Workbook

Sheet Contents
A1: 80 | M1: ESC USE ONLY
D2: ESSENTIAL SERVICES COMMISSION
D3: Water Price Review - 2023
D4: Financial Model Template
B7: Table of Contents | F7: Water Business: | H7: =+N24 -> Coliban Water | I7: =+O24 -> CW
B8: Section & Sheet Titles | F8: Regulatory Period: | H8: 2023-24 to 2027-28 (Fifth) | N8: [Decision] | O8: [Month] | P8: [Year] | Q8: [Version]
F9: Model Name: | H9: =I7&"_Price Review Template_"&O9&P9&Q9 -> CW_Price Review Template_Oct2021 - v1 | N9: Draft | O9: Oct | P9: 2021 | Q9: - v1 | R9: << Select
B10: 1 | C10: Model Quality Check | F10: Decision type: | H10: =+N9&" Decision" -> Draft Decision | N10: Draft | O10: Jan | P10: 2016 | Q10: - v1
B11: 2 | C11: =+KeyAssumptionsPriceControl_FO!B1 -> Key Assumptions Price Control | N11: Final | O11: Feb | P11: 2017
B12: 3 | C12: =+Expenditure_Detail!B1 -> Expenditure - Detail | F12: Model Key: | O12: Mar | P12: 2018
B13: 4 | C13: =Opex_FO!B1 -> Operating Expenditure - Forecast | O13: Apr | P13: 2019
B14: 5 | C14: =Opex_Breakdown!B1 -> Operating Expenditure - Breakdown | G14: BLUE | H14: =+I7&" - DATA INPUT CELL" -> CW - DATA INPUT CELL | O14: May | P14: 2020
B15: 6 | C15: =+'Capex_FO input'!B1 -> Capital Expenditure - Forecast Input | O15: Jun | P15: 2021
B16: 7 | C16: =Capex_FO_AC!B1 -> Capital Expenditure - Asset Category Breakdown | G16: PURPLE | H16: NOTES / INSTRUCTIONS | O16: Jul | P16: 2022
B17: 8 | C17: =ExpSummary_FO!B1 -> Expenditure Summary | O17: Aug | P17: 2023
B18: 9 | C18: =RollForward_FO!B1 -> Rolled forward regulatory asset base (RAB) | G18: GREY | H18: MODEL PARAMETERS / ASSUMPTIONS | O18: Sep
B19: 10 | C19: =PrevPerAdj_FO!B1 -> Previous period adjustments | O19: Oct
B20: 11 | C20: =RevenuePriceCap_FO!C1 -> Revenue forecast (price caps) | G20: WHITE | H20: FORMULA / HARDCODED VALUES | O20: Nov
B21: 12 | C21: Revenue forecast (tariff basket) | O21: Dec
B22: 13 | C22: =NotPres_FO!B1 -> Non Prescribed Services | G22: ORANGE | H22: FORMULA DIFFERENT TO ADJACENT CELL
B23: 14 | C23: ='Finance&Tax_FO'!B1 -> Cash, debt and tax assumptions | N23: [Business]
B24: 15 | C24: ='Rev&RAV_FO'!B1 -> Revenue requirement detail | G24: GREEN | H24: DATA FROM 2018 DECISION OR PERFORMANCE REPORT | N24: Coliban Water | O24: =+VLOOKUP(N24,N25:O42,2,FALSE) -> CW
B25: 16 | C25: =Indicators_FO!B1 -> Financial indicators | N25: Barwon Water | O25: BW
B26: 17 | C26: =Outcomes!B1 -> Outcomes | G26: RED | H26: ERROR CHECK | N26: Central Highlands Water | O26: CHW
B27: 18 | C27: =GSL!B1 -> Guaranteed Service Levels (GSL) | N27: Greater Western Water | O27: GWW
B28: 19 | C28: Dashboard - Pricing | N28: Coliban Water | O28: CW
B29: 20 | C29: Dashboard - Opex | N29: East Gippsland Water | O29: EGW
B30: 21 | C30: Dashboard - Capex | N30: Gippsland Water | O30: CGW
B31: 22 | C31: Dashboard - Data | N31: Goulburn Valley Water | O31: GVW
B32: 23 | C32: Household Bill | N32: GWM Water | O32: GWMW | P32: diff model
N33: Lower Murray Water - Urban | O33: LMW-U | P33: diff model
N34: Lower Murray Water - Rural | O34: LMW-R
N35: North East Water | O35: NEW
N36: South East Water | O36: SEW
N37: South Gippsland Water | O37: SGW
N38: Southern Rural Water | O38: SRW | P38: diff model
N39: Wannon Water | O39: WNW
N40: Westernport Water | O40: WPW
N41: Yarra Valley Water | O41: YVW

Sheet Adjustments log (hidden)
A3: 1 | B3: Operating expenditure
B4: $m 2022-23
C6: 2023-24 | D6: 2024-25 | E6: 2025-26 | F6: 2026-27 | G6: 2027-28 | H6: Total
B7: Proposed - controllable operating expenditure | H7: =SUM(C7:G7) -> 0
B8: DD adjustments
B9: xx | H9: =SUM(C9:G9) -> 0
B10: xx | H10: =SUM(C10:G10) -> 0
B11: xx | H11: =SUM(C11:G11) -> 0
B12: xx | H12: =SUM(C12:G12) -> 0
B13: xx | H13: =SUM(C13:G13) -> 0
B14: FD adjustments
B15: xx | H15: =SUM(C15:G15) -> 0
B16: xx | H16: =SUM(C16:G16) -> 0
B17: xx | H17: =SUM(C17:G17) -> 0
B18: xx | H18: =SUM(C18:G18) -> 0
B19: xx | H19: 0
B20: Total adjustments | C20: =SUM(C8:C19) -> 0 | D20: 0 | E20: 0 | F20: 0 | G20: 0 | H20: 0
B21: Final decision - controllable operating expenditure | C21: =C7+C20 -> 0 | D21: 0 | E21: 0 | F21: 0 | G21: 0 | H21: 0
B23: Proposed - non-controllable operating expenditure | H23: =SUM(C23:G23) -> 0
B24: DD adjustments
B25: xx | H25: =SUM(C25:G25) -> 0
B26: xx | H26: =SUM(C26:G26) -> 0
B27: xx | H27: =SUM(C27:G27) -> 0
B28: xx | H28: =SUM(C28:G28) -> 0
B29: FD adjustments
B30: xx | H30: =SUM(C30:G30) -> 0
B31: xx | H31: =SUM(C31:G31) -> 0
B32: Total adjustments | C32: =SUM(C24:C31) -> 0 | D32: 0 | E32: 0 | F32: 0 | G32: 0 | H32: 0
B33: Final decision - non-controllable operating expenditure | C33: =C23+C32 -> 0 | D33: 0 | E33: 0 | F33: 0 | G33: 0 | H33: 0
B35: Proposed - total operating expenditure | C35: =C7+C23 -> 0 | D35: 0 | E35: 0 | F35: 0 | G35: 0 | H35: 0
B36: Total adjustments | C36: =C20+C32 -> 0 | D36: 0 | E36: 0 | F36: 0 | G36: 0 | H36: 0
B37: Final decision - total operating expenditure | C37: =SUM(C35:C36) -> 0 | D37: 0 | E37: 0 | F37: 0 | G37: 0 | H37: 0
B39: Check
A42: 2 | B42: Capital expenditure
B43: $m 2022-23
C45: 2023-24 | D45: 2024-25 | E45: 2025-26 | F45: 2026-27 | G45: 2027-28 | H45: Total
B46: Proposed - capital expenditure | H46: =SUM(C46:G46) -> 0
B47: DD adjustments
B48: xx | H48: =SUM(C48:G48) -> 0
B49: xx | H49: =SUM(C49:G49) -> 0
B50: xx | H50: =SUM(C50:G50) -> 0
B51: xx | H51: =SUM(C51:G51) -> 0
B52: FD adjustments
B53: xx | H53: =SUM(C53:G53) -> 0
B54: xx
B55: Total adjustments | C55: =SUM(C47:C54) -> 0 | D55: 0 | E55: 0 | F55: 0 | G55: 0 | H55: 0
B56: Draft decision - capital expenditure | C56: =C46+C55 -> 0 | D56: 0 | E56: 0 | F56: 0 | G56: 0 | H56: 0
B58: Check

Sheet Model Quality Check
A1: 80 | B1: Model Quality Check
B2: =+Contents!H7 -> Coliban Water
B3: Go to Table of Contents
K4: FIRST REG PERIOD | O4: SECOND REG PERIOD | T4: THIRD REG PERIOD | Y4: FOURTH REG PERIOD | AD4: FIFTH REG PERIOD | AI4: SIXTH REG PERIOD
F6: Straight Line | J6: 2006 | K6: 2007 | L6: 2008 | M6: 2009 | N6: 2010 | O6: 2011 | P6: 2012 | Q6: 2013 | R6: 2014 | S6: 2015 | T6: 2016 | U6: 2017 | V6: 2018 | W6: 2019 | X6: 2020 | Y6: 2021 | Z6: 2022 | AA6: 2023 | AB6: 2024 | AC6: 2025 | AD6: 2026 | AE6: 2027 | AF6: 2028 | AG6: 2029 | AH6: 2030 | AI6: 2031 | AJ6: 2032 | AK6: 2033
F7: Declining Balance | J7: =+CONCATENATE(J6-1,"-",RIGHT(J6,2)) -> 2005-06 | K7: 2006-07 | L7: 2007-08 | M7: 2008-09 | N7: 2009-10 | O7: 2010-11 | P7: 2011-12 | Q7: 2012-13 | R7: 2013-14 | S7: 2014-15 | T7: 2015-16 | U7: 2016-17 | V7: 2017-18 | W7: =+CONCATENATE(W6-1,"-",RIGHT(W6,2)) -> 2018-19 | X7: 2019-20 | Y7: 2020-21 | Z7: 2021-22 | AA7: 2022-23 | AB7: 2023-24 | AC7: 2024-25 | AD7: 2025-26 | AE7: 2026-27 | AF7: =+CONCATENATE(AF6-1,"-",RIGHT(AF6,2)) -> 2027-28 | AG7: 2028-29 | AH7: 2029-30 | AI7: 2030-31 | AJ7: 2031-32 | AK7: 2032-33
D9: Model ready for submission: | I9: =SUM(AA15:AK49) -> 12 | R9: (If No, please ensure that the error check is corrected at the source)
D11: All financial indicators satisfied: | I11: =SUM(AB54:AK59) -> 22
E14: 1. | F14: Opex_FO
G15: Reconciliation to 'Opex_Breakdown' tab row 37 | AB15: =Opex_FO!AC100 -> 0 | AC15: =Opex_FO!AD100 -> 0 | AD15: =Opex_FO!AE100 -> 0 | AE15: =Opex_FO!AF100 -> 0 | AF15: =Opex_FO!AG100 -> 0 | AG15: =Opex_FO!AH100 -> 0 | AH15: =Opex_FO!AI100 -> 0 | AI15: =Opex_FO!AJ100 -> 0 | AJ15: =Opex_FO!AK100 -> 0 | AK15: =Opex_FO!AL100 -> 0
E17: 2. | F17: Opex_Breakdown
G18: Reconciliation to 'Opex_FO' tab row 95 | AB18: =Opex_Breakdown!AC42 -> 0 | AC18: =Opex_Breakdown!AD42 -> 0 | AD18: =Opex_Breakdown!AE42 -> 0 | AE18: =Opex_Breakdown!AF42 -> 0 | AF18: =Opex_Breakdown!AG42 -> 0 | AG18: =Opex_Breakdown!AH42 -> 0 | AH18: =Opex_Breakdown!AI42 -> 0 | AI18: =Opex_Breakdown!AJ42 -> 0 | AJ18: =Opex_Breakdown!AK42 -> 0 | AK18: =Opex_Breakdown!AL42 -> 0
G20: Reconciliation of Opex by service and function | AB20: =Opex_Breakdown!AC27 -> 0 | AC20: =Opex_Breakdown!AD27 -> 0 | AD20: =Opex_Breakdown!AE27 -> 0 | AE20: =Opex_Breakdown!AF27 -> 0 | AF20: =Opex_Breakdown!AG27 -> 0 | AG20: =Opex_Breakdown!AH27 -> 0 | AH20: =Opex_Breakdown!AI27 -> 0 | AI20: =Opex_Breakdown!AJ27 -> 0 | AJ20: =Opex_Breakdown!AK27 -> 0 | AK20: =Opex_Breakdown!AL27 -> 0
E22: 3. | F22: Capex_FO input
G23: Reconciliation of total prescribed capex between cost driver and capital type | AB23: ='Capex_FO input'!D26 -> 0 | AC23: ='Capex_FO input'!E26 -> 0 | AD23: ='Capex_FO input'!F26 -> 0 | AE23: ='Capex_FO input'!G26 -> 0 | AF23: ='Capex_FO input'!H26 -> 0 | AG23: ='Capex_FO input'!I26 -> 0 | AH23: ='Capex_FO input'!J26 -> 0 | AI23: ='Capex_FO input'!K26 -> 0 | AJ23: ='Capex_FO input'!L26 -> 0 | AK23: ='Capex_FO input'!M26 -> 0
E25: 4. | F25: Capex_FO_AC
G26: Reconciliation to 'Capex_FO input' tab row 29 | AA26: =Capex_FO_AC!AB30 -> 1 | AB26: =Capex_FO_AC!AC30 -> 0 | AC26: =Capex_FO_AC!AD30 -> 0 | AD26: =Capex_FO_AC!AE30 -> 0 | AE26: =Capex_FO_AC!AF30 -> 0 | AF26: =Capex_FO_AC!AG30 -> 0 | AG26: =Capex_FO_AC!AH30 -> 0 | AH26: =Capex_FO_AC!AI30 -> 0 | AI26: =Capex_FO_AC!AJ30 -> 0 | AJ26: =Capex_FO_AC!AK30 -> 0 | AK26: =Capex_FO_AC!AL30 -> 0
E28: 5. | F28: RollForward_FO
G29: Reconciliation of existing assets book value to RAB | AB29: =IF(ROUND(RollForward_FO!G84,2)=ROUND(RollForward_FO!G82,2),0,1) -> 1
E31: 6. | F31: RevenuePriceCap_FO
G32: Price control - Fifth period | AB32: =IF(KeyAssumptionsPriceControl_FO!I48=1,IF(RevenuePriceCap_FO!AD34="PRICE CONTROL OK",0,1),0) -> 0 | AC32: =IF(KeyAssumptionsPriceControl_FO!I48=1,RevenuePriceCap_FO!AD34,"") -> PRICE CONTROL OK
G34: Price control - Sixth period | AB34: =IF(KeyAssumptionsPriceControl_FO!I48=1,IF(RevenuePriceCap_FO!AI34="PRICE CONTROL OK",0,1),0) -> 0 | AC34: =IF(KeyAssumptionsPriceControl_FO!I48=1,RevenuePriceCap_FO!AI34,"") -> PRICE CONTROL OK
G36: Tariff revenue reconciliation | AB36: =RevenuePriceCap_FO!AC458 -> 0 | AC36: =RevenuePriceCap_FO!AD458 -> 0 | AD36: =RevenuePriceCap_FO!AE458 -> 0 | AE36: =RevenuePriceCap_FO!AF458 -> 0 | AF36: =RevenuePriceCap_FO!AG458 -> 0 | AG36: =RevenuePriceCap_FO!AH458 -> 0 | AH36: =RevenuePriceCap_FO!AI458 -> 0 | AI36: =RevenuePriceCap_FO!AJ458 -> 0 | AJ36: =RevenuePriceCap_FO!AK458 -> 0 | AK36: =RevenuePriceCap_FO!AL458 -> 0
E38: 7. | F38: RevenueTariffBasket_FO
G39: Price control - Fifth period | AB39: =IF(KeyAssumptionsPriceControl_FO!I48=2,IF(RevenueTariffBasket_FO!AD34="PRICE CONTROL OK",0,1),0) -> 0 | AC39: =IF(KeyAssumptionsPriceControl_FO!I48=2,RevenueTariffBasket_FO!AD34,"") -> 
G41: Price control - Sixth period | AB41: =IF(KeyAssumptionsPriceControl_FO!I48=2,IF(RevenueTariffBasket_FO!AI41="PRICE CONTROL OK",0,1),0) -> 0 | AC41: =IF(KeyAssumptionsPriceControl_FO!I48=2,RevenueTariffBasket_FO!AI34,"") -> 
G43: Tariff revenue reconciliation | AB43: =RevenueTariffBasket_FO!AC458 -> 0 | AC43: =RevenueTariffBasket_FO!AD458 -> 0 | AD43: =RevenueTariffBasket_FO!AE458 -> 0 | AE43: =RevenueTariffBasket_FO!AF458 -> 0 | AF43: =RevenueTariffBasket_FO!AG458 -> 0 | AG43: =RevenueTariffBasket_FO!AH458 -> 0 | AH43: =RevenueTariffBasket_FO!AI458 -> 0 | AI43: =RevenueTariffBasket_FO!AJ458 -> 0 | AJ43: =RevenueTariffBasket_FO!AK458 -> 0 | AK43: =RevenueTariffBasket_FO!AL458 -> 0
E45: 8. | F45: Rev&RAV_FO
G46: Rolled forward RAV reconciliation | AB46: ='Rev&RAV_FO'!AC80 -> 1 | AC46: ='Rev&RAV_FO'!AD80 -> 1 | AD46: ='Rev&RAV_FO'!AE80 -> 1 | AE46: ='Rev&RAV_FO'!AF80 -> 1 | AF46: ='Rev&RAV_FO'!AG80 -> 1 | AG46: ='Rev&RAV_FO'!AH80 -> 1 | AH46: ='Rev&RAV_FO'!AI80 -> 1 | AI46: ='Rev&RAV_FO'!AJ80 -> 1 | AJ46: ='Rev&RAV_FO'!AK80 -> 1 | AK46: ='Rev&RAV_FO'!AL80 -> 1
E48: 9. | F48: GSL
G49: Reconciliation to 'Opex_Breakdown' tab row 23 | AB49: =IF(ROUND(GSL!AC40,2)=ROUND(GSL!AC39,2),0,1) -> 0 | AC49: =IF(ROUND(GSL!AD40,2)=ROUND(GSL!AD39,2),0,1) -> 0 | AD49: =IF(ROUND(GSL!AE40,2)=ROUND(GSL!AE39,2),0,1) -> 0 | AE49: =IF(ROUND(GSL!AF40,2)=ROUND(GSL!AF39,2),0,1) -> 0 | AF49: =IF(ROUND(GSL!AG40,2)=ROUND(GSL!AG39,2),0,1) -> 0 | AG49: =IF(ROUND(GSL!AH40,2)=ROUND(GSL!AH39,2),0,1) -> 0 | AH49: =IF(ROUND(GSL!AI40,2)=ROUND(GSL!AI39,2),0,1) -> 0 | AI49: =IF(ROUND(GSL!AJ40,2)=ROUND(GSL!AJ39,2),0,1) -> 0 | AJ49: =IF(ROUND(GSL!AK40,2)=ROUND(GSL!AK39,2),0,1) -> 0 | AK49: =IF(ROUND(GSL!AL40,2)=ROUND(GSL!AL39,2),0,1) -> 0
E53: 1. | F53: Primary Indicator
G54: FFO interest cover | AB54: =Indicators_FO!AC$226 -> 0 | AC54: =Indicators_FO!AD$226 -> 0 | AD54: =Indicators_FO!AE$226 -> 0 | AE54: =Indicators_FO!AF$226 -> 0 | AF54: =Indicators_FO!AG$226 -> 0 | AG54: =Indicators_FO!AH$226 -> 0 | AH54: =Indicators_FO!AI$226 -> 0 | AI54: =Indicators_FO!AJ$226 -> 0 | AJ54: =Indicators_FO!AK$226 -> 0 | AK54: =Indicators_FO!AL$226 -> 0
E56: 2. | F56: Secondary indicators
G57: Net debt / RAV | AB57: =Indicators_FO!AC$235 -> 1 | AC57: =Indicators_FO!AD$235 -> 1 | AD57: =Indicators_FO!AE$235 -> 1 | AE57: =Indicators_FO!AF$235 -> 1 | AF57: =Indicators_FO!AG$235 -> 1 | AG57: =Indicators_FO!AH$235 -> 1 | AH57: =Indicators_FO!AI$235 -> 1 | AI57: =Indicators_FO!AJ$235 -> 1 | AJ57: =Indicators_FO!AK$235 -> 1 | AK57: =Indicators_FO!AL$235 -> 1
G58: FFO / Net debt | AB58: =Indicators_FO!AC$243 -> 1 | AC58: =Indicators_FO!AD$243 -> 1 | AD58: =Indicators_FO!AE$243 -> 1 | AE58: =Indicators_FO!AF$243 -> 1 | AF58: =Indicators_FO!AG$243 -> 1 | AG58: =Indicators_FO!AH$243 -> 1 | AH58: =Indicators_FO!AI$243 -> 1 | AI58: =Indicators_FO!AJ$243 -> 1 | AJ58: =Indicators_FO!AK$243 -> 1 | AK58: =Indicators_FO!AL$243 -> 1
G59: Internal financing ratio | AB59: =Indicators_FO!AC$252 -> 0 | AC59: =Indicators_FO!AD$252 -> 1 | AD59: =Indicators_FO!AE$252 -> 1 | AE59: =Indicators_FO!AF$252 -> 0 | AF59: =Indicators_FO!AG$252 -> 0 | AG59: =Indicators_FO!AH$252 -> 0 | AH59: =Indicators_FO!AI$252 -> 0 | AI59: =Indicators_FO!AJ$252 -> 0 | AJ59: =Indicators_FO!AK$252 -> 0 | AK59: =Indicators_FO!AL$252 -> 0

Sheet KeyAssumptionsPriceControl_FO
A1: 80 | B1: Key Assumptions Price Control
B2: =+Contents!H7 -> Coliban Water
B3: Go to Table of Contents
L4: FIRST REG PERIOD | P4: SECOND REG PERIOD | U4: THIRD REG PERIOD | Z4: FOURTH REG PERIOD | AE4: FIFTH REG PERIOD | AJ4: SIXTH REG PERIOD
F6: Straight Line | K6: 2006 | L6: 2007 | M6: 2008 | N6: 2009 | O6: 2010 | P6: 2011 | Q6: 2012 | R6: 2013 | S6: 2014 | T6: 2015 | U6: 2016 | V6: 2017 | W6: 2018 | X6: 2019 | Y6: 2020 | Z6: 2021 | AA6: 2022 | AB6: 2023 | AC6: 2024 | AD6: 2025 | AE6: 2026 | AF6: 2027 | AG6: 2028 | AH6: 2029 | AI6: 2030 | AJ6: 2031 | AK6: 2032 | AL6: 2033
F7: Declining Balance | I7: 2003-04 | J7: 2004-05 | K7: =+CONCATENATE(K6-1,"-",RIGHT(K6,2)) -> 2005-06 | L7: =+CONCATENATE(L6-1,"-",RIGHT(L6,2)) -> 2006-07 | M7: 2007-08 | N7: 2008-09 | O7: 2009-10 | P7: 2010-11 | Q7: 2011-12 | R7: 2012-13 | S7: 2013-14 | T7: 2014-15 | U7: 2015-16 | V7: 2016-17 | W7: 2017-18 | X7: 2018-19 | Y7: 2019-20 | Z7: 2020-21 | AA7: 2021-22 | AB7: 2022-23 | AC7: 2023-24 | AD7: 2024-25 | AE7: 2025-26 | AF7: 2026-27 | AG7: 2027-28 | AH7: =+CONCATENATE(AH6-1,"-",RIGHT(AH6,2)) -> 2028-29 | AI7: =+CONCATENATE(AI6-1,"-",RIGHT(AI6,2)) -> 2029-30 | AJ7: =+CONCATENATE(AJ6-1,"-",RIGHT(AJ6,2)) -> 2030-31 | AK7: =+CONCATENATE(AK6-1,"-",RIGHT(AK6,2)) -> 2031-32 | AL7: =+CONCATENATE(AL6-1,"-",RIGHT(AL6,2)) -> 2032-33
E11: Inflation assumptions
AB12: Estimate
F13: March quarter annual CPI | I13: 141.3 | J13: 144.1 | K13: 147.5 | L13: 151.9 | M13: 155.6 | N13: 162.2 | O13: 166.2 | P13: 171 | Q13: 176.7 | R13: 99.9 | S13: 102.4 | T13: 105.4 | U13: 106.8 | V13: 108.2 | W13: 110.5 | X13: 112.6 | Y13: 114.1 | Z13: 116.6 | AA13: 117.9 | AB13: 123.9
F14: Inflation | J14: =+J13/I13-1 -> 0.01981599434 | K14: 0.02359472588 | L14: 0.02983050847 | M14: 0.02435813035 | N14: 0.04241645244 | O14: 0.02466091245 | P14: 0.02888086643 | Q14: 0.03333333333 | R14: 0.01584606678 | S14: =+IF(S13=0,$Z$44,S13/R13-1) -> 0.02502502503 | T14: 0.029296875 | U14: 0.01328273245 | V14: 0.01310861423 | W14: 0.02125693161 | X14: 0.01900452489 | Y14: 0.01332149201 | Z14: 0.02191060473 | AA14: 0.01114922813 | AB14: 0.05089058524 | AC14: =+IF(AC13=0,$AC$44,AC13/AB13-1) -> 0.03 | AD14: 0.03 | AE14: 0.03 | AF14: 0.03 | AG14: 0.03 | AH14: 0.03 | AI14: 0.03 | AJ14: 0.03 | AK14: 0.03 | AL14: 0.03
F15: Inflation factor | I15: 0.7871866295 | J15: 0.8027855153 | K15: 0.8217270195 | L15: 0.8462395543 | M15: 0.8668523677 | N15: 0.9036211699 | O15: 0.9259052925 | P15: 0.9526462396 | Q15: 0.9844011142 | R15: =+R13/$AB$13 -> 0.8062953995 | S15: 0.8264729621 | T15: 0.8506860371 | U15: 0.8619854722 | V15: 0.8732849072 | W15: 0.8918482647 | X15: 0.9087974173 | Y15: 0.9209039548 | Z15: 0.9410815174 | AA15: 0.9515738499 | AB15: 1 | AC15: =+AB15*(1+AC14) -> 1.03 | AD15: 1.0609 | AE15: 1.092727 | AF15: 1.12550881 | AG15: 1.159274074 | AH15: 1.194052297 | AI15: 1.229873865 | AJ15: 1.266770081 | AK15: 1.304773184 | AL15: 1.343916379
I16: CPI index re-referenced in 2012-13, shaded values have been hardcoded to lock in RAB value.
E21: Cost of debt - 10 year trailing average (Nominal)
AA22: Estimate | AB22: Estimate | AC22: Estimate | AD22: Estimate | AE22: Estimate | AF22: Estimate | AG22: Estimate | AH22: Estimate | AI22: Estimate | AJ22: Estimate | AK22: Estimate | AL22: Estimate
E23: Cost of debt | L23: 0.06981666667 | M23: 0.07414 | N23: 0.0691525788 | O23: 0.07361870984 | P23: 0.07046784142 | Q23: 0.06308887941 | R23: 0.0526945046 | S23: 0.070525 | T23: 0.05360833333 | U23: 0.05270138413 | V23: 0.04908333333 | W23: 0.045283 | X23: 0.046133 | Y23: 0.03305833333 | Z23: 0.03045 | AA23: 0.037533 | AB23: 0.037533 | AC23: 0.037533 | AD23: 0.037533 | AE23: 0.037533 | AF23: 0.037533 | AG23: 0.037533 | AH23: 0.037533 | AI23: 0.037533 | AJ23: 0.037533 | AK23: 0.037533 | AL23: 0.037533
E24: Re-financing weightings - average 10 yrs | L24: =1/10 -> 0.1 | M24: =1/10 -> 0.1 | N24: =1/10 -> 0.1 | O24: =1/10 -> 0.1 | P24: =1/10 -> 0.1 | Q24: 0.1 | R24: 0.1 | S24: 0.1 | T24: 0.1 | U24: 0.1 | V24: 0.1 | W24: 0.1 | X24: 0.1 | Y24: 0.1 | Z24: 0.1 | AA24: 0.1 | AB24: 0.1 | AC24: 0.1 | AD24: 0.1 | AE24: 0.1 | AF24: 0.1 | AG24: 0.1 | AH24: 0.1 | AI24: 0.1 | AJ24: 0.1 | AK24: 0.1 | AL24: 0.1
E26: Cost of debt - 10 year trailing average | V26: =IF(U23<>"",SUMPRODUCT(L23:U23,L24:U24),"") -> 0.06498138982 | W26: 0.06290805649 | X26: 0.06002235649 | Y26: 0.05772039861 | Z26: 0.05366436096 | AA26: 0.04966257681 | AB26: =IF(AA23<>"",SUMPRODUCT(R23:AA23,R24:AA24),"") -> 0.04710698887 | AC26: =IF(AB23<>"",SUMPRODUCT(S23:AB23,S24:AB24),"") -> 0.04559083841 | AD26: =IF(AC23<>"",SUMPRODUCT(T23:AC23,T24:AC24),"") -> 0.04229163841 | AE26: 0.04068410508 | AF26: 0.03916726667 | AG26: 0.03801223333 | AH26: 0.03723723333 | AI26: 0.03637723333 | AJ26: 0.0368247 | AK26: 0.037533 | AL26: 0.037533
E30: WACC assumptions (retained for historical purposes only) | Z30: Regulatory Rate of Return (RRR) - Nominal
K32: 1st period | M32: 2nd period | O32: 3rd period | Z32: Cost of Debt | AC32: =+AC26 -> 0.04559083841 | AD32: =+AD26 -> 0.04229163841 | AE32: 0.04068410508 | AF32: 0.03916726667 | AG32: 0.03801223333 | AH32: 0.03723723333 | AI32: 0.03637723333 | AJ32: 0.0368247 | AK32: 0.037533 | AL32: 0.037533
E33: Parameters
F34: Risk Free Rate (Real) | K34: =Determination_Lookup!W8 -> 0.0267 | M34: =Determination_Lookup!X8 -> 0.0323 | O34: =Determination_Lookup!Y8 -> 0.005959
F35: Debt Premium | K35: =Determination_Lookup!W9 -> 0.0116 | M35: =Determination_Lookup!X9 -> 0.0175 | O35: =Determination_Lookup!Y9 -> 0.0399
F36: Equity Premium | K36: =Determination_Lookup!W10 -> 0.06 | M36: =Determination_Lookup!X10 -> 0.06 | O36: =Determination_Lookup!Y10 -> 0.06 | Z36: Regulatory Rate of Return (RRR) - Real
F37: Equity Beta | K37: =Determination_Lookup!W11 -> 0.75 | M37: =Determination_Lookup!X11 -> 0.65 | O37: =Determination_Lookup!Y11 -> 0.65
F38: Gearing (Debt/Assets) | K38: =Determination_Lookup!W12 -> 0.6 | M38: =Determination_Lookup!X12 -> 0.6 | O38: =Determination_Lookup!Y12 -> 0.6 | Z38: Cost of Debt | AC38: =(1+AC32)/(1+AC44)-1 -> 0.01513673632 | AD38: =(1+AD32)/(1+AD44)-1 -> 0.01193362953 | AE38: 0.01037291755 | AF38: 0.0089002589 | AG38: 0.007778867314 | AH38: 0.007026440129 | AI38: 0.006191488673 | AJ38: 0.00662592233 | AK38: 0.007313592233 | AL38: 0.007313592233
F39: Forecast Inflation | K39: =Determination_Lookup!W13 -> 0.0255 | M39: =Determination_Lookup!X13 -> 0.025 | O39: =Determination_Lookup!Y13 -> 0.0275
F40: Franking credit value | K40: =Determination_Lookup!W14 -> 0.5 | M40: =Determination_Lookup!X14 -> 0.5 | O40: =Determination_Lookup!Y14 -> 0.5 | Z40: Return on Equity | AC40: =IF(AE64<>0,(AE64/100),IF(AE62<>0,(AE62/100),(AE60/100))) -> 0.041 | AD40: =+$AC$40 -> 0.041 | AE40: 0.041 | AF40: 0.041 | AG40: 0.041 | AH40: 0.041 | AI40: 0.041 | AJ40: 0.041 | AK40: 0.041 | AL40: 0.041
E42: 'Vanilla' After Tax WACC (Real) | K42: =ROUND(((K34+K36*K37)*(1-K38))+((K34+K35)*K38),3) -> 0.052 | M42: =ROUND(((M34+M36*M37)*(1-M38))+((M34+M35)*M38),3) -> 0.058 | O42: =ROUND(((O34+O36*O37)*(1-O38))+((O34+O35)*O38),3) -> 0.045 | Z42: RRR (real) | AC42: =ROUND((AC40*(1-AC43)+AC38*AC43),4) -> 0.0255 | AD42: 0.0236 | AE42: 0.0226 | AF42: 0.0217 | AG42: 0.0211 | AH42: 0.0206 | AI42: 0.0201 | AJ42: 0.0204 | AK42: 0.0208 | AL42: 0.0208
Z43: Gearing | AC43: 0.6 | AD43: =+AC43 -> 0.6 | AE43: 0.6 | AF43: 0.6 | AG43: 0.6 | AH43: 0.6 | AI43: 0.6 | AJ43: 0.6 | AK43: 0.6 | AL43: 0.6
Z44: Forecast Inflation | AC44: 0.03 | AD44: =+AC44 -> 0.03 | AE44: 0.03 | AF44: 0.03 | AG44: 0.03 | AH44: 0.03 | AI44: 0.03 | AJ44: 0.03 | AK44: 0.03 | AL44: 0.03
L45: Regulatory Rate of Return (RRR) [retained for historical purposes only]
E46: Form of price control selected
O47: 4th period
E48: Price caps | I48: 1 | L48: Cost of Debt | O48: =Determination_Lookup!W25 -> 0.03618998679 | Z48: PREMO Assessment Matrix (linked to Regulatory Rate of Return calculation above)
L49: Return on Equity | O49: =Determination_Lookup!W26 -> 0.049 | U49: PREMO Graded Scoring System (for reference only)
E50: Revenue cap / Hybrid Tariff Basket | L50: Gearing | O50: =Determination_Lookup!W27 -> 0.6
L51: Forecast Inflation | O51: =Determination_Lookup!W28 -> 0.023 | AB51: Water business self-assessment
L52: RRR (real) | O52: =Determination_Lookup!W29 -> 0.0413
AB53: Leading | AC53: Advanced | AD53: Standard | AE53: Basic
Z54: ESC assessment of submission | AA54: Leading | AB54: 4.9
U55: Risk | AA55: Advanced | AB55: 4.3 | AC55: 4.5
U56: Engagement | V56: [Select] | AA56: Standard | AB56: 3.7 | AC56: 3.9 | AD56: 4.1
U57: Management | V57: [Select] | AA57: Basic | AD57: 3.5 | AE57: 3.7
U58: Outcomes | V58: [Select]
U60: Total Score | Z60: Water business self-assessment (Maximum allowable ROE) | AD60: Standard | AE60: =+VLOOKUP(AD60,$AD$71:$AE$75,2,FALSE) -> 4.1
Z62: ROE Override (Must be less than Maximum allowable ROE) | AE62: =+IF(AD62<=AE60,AD62,"CHECK") -> 0
U64: Rating | Z64: ESC assessment of submission | AD64: Standard | AE64: =IFERROR(IF(AD64=AD60,AE60,VLOOKUP(AD60&AD64,AD78:AE82,2,FALSE)),0) -> 4.1
AD66: Difference | AE66: =IFERROR(IF(AE64=0,"",AE64-AE60),"") -> 0
U70: ESC USE ONLY | AD70: Business self assessment
AD71: [Select]
AD72: Leading | AE72: =+AB54 -> 4.9
AD73: Advanced | AE73: =+AC55 -> 4.5
AD74: Standard | AE74: =+AD56 -> 4.1
AD75: Basic | AE75: =+AE57 -> 3.7
AD77: downgrading
AD78: =AD53&AA57 -> StandardBasic | AE78: =+AD57 -> 3.5
AD79: =+AC53&AA56 -> AdvancedStandard | AE79: =+AC56 -> 3.9
AD80: =+AB53&AA55 -> LeadingAdvanced | AE80: =+AB55 -> 4.3
AD81: =+AB53&AA56 -> LeadingStandard | AE81: =+AB56 -> 3.7
AD82: =+AD60&"Basic" -> StandardBasic | AE82: CHECK

Sheet Expenditure_Detail
A1: 80 | B1: Expenditure - Detail
B2: =Model_Name -> Coliban Water
B3: Go to Table of Contents
L4: FIRST REG PERIOD | P4: SECOND REG PERIOD | U4: THIRD REG PERIOD | Z4: FOURTH REG PERIOD | AE4: FIFTH REG PERIOD | AJ4: SIXTH REG PERIOD
K5: 2006 | L5: 2007 | M5: 2008 | N5: 2009 | O5: 2010 | P5: 2011 | Q5: 2012 | R5: 2013 | S5: 2014 | T5: 2015 | U5: 2016 | V5: 2017 | W5: 2018 | X5: 2019 | Y5: 2020 | Z5: 2021 | AA5: 2022 | AB5: 2023 | AC5: 2024 | AD5: 2025 | AE5: 2026 | AF5: 2027 | AG5: 2028 | AH5: 2029 | AI5: 2030 | AJ5: 2031 | AK5: 2032 | AL5: 2033
B6: $m, 01/01/23 | K6: =+CONCATENATE(K5-1,"-",RIGHT(K5,2)) -> 2005-06 | L6: =+CONCATENATE(L5-1,"-",RIGHT(L5,2)) -> 2006-07 | M6: 2007-08 | N6: 2008-09 | O6: 2009-10 | P6: 2010-11 | Q6: 2011-12 | R6: 2012-13 | S6: 2013-14 | T6: 2014-15 | U6: 2015-16 | V6: 2016-17 | W6: 2017-18 | X6: 2018-19 | Y6: 2019-20 | Z6: 2020-21 | AA6: 2021-22 | AB6: 2022-23 | AC6: 2023-24 | AD6: 2024-25 | AE6: 2025-26 | AF6: 2026-27 | AG6: 2027-28 | AH6: =+CONCATENATE(AH5-1,"-",RIGHT(AH5,2)) -> 2028-29 | AI6: =+CONCATENATE(AI5-1,"-",RIGHT(AI5,2)) -> 2029-30 | AJ6: =+CONCATENATE(AJ5-1,"-",RIGHT(AJ5,2)) -> 2030-31 | AK6: =+CONCATENATE(AK5-1,"-",RIGHT(AK5,2)) -> 2031-32 | AL6: =+CONCATENATE(AL5-1,"-",RIGHT(AL5,2)) -> 2032-33
B8: This worksheet outlines the key cost drivers of operating expenditure - capitalised costs are excluded. This tab does not link to the Rev&RAV_FO worksheet
C11: Expenditure Summary
D13: Total Labour costs | W13: =W34 -> 19.0705086 | X13: 19.25511634 | Y13: 20.04769325 | Z13: 20.8717307 | AA13: 22.055 | AB13: 22.07 | AC13: 23.25853659 | AD13: 23.11005354 | AE13: 23.15926931 | AF13: 22.67594464 | AG13: 22.19358116 | AH13: =AH34 -> 22.19358116 | AI13: =AI34 -> 22.19358116 | AJ13: =AJ34 -> 22.19358116 | AK13: =AK34 -> 22.19358116 | AL13: =AL34 -> 22.19358116
D14: Total Energy costs | W14: =W92 -> 6.895791956 | X14: 6.884517298 | Y14: 5.552618645 | Z14: 4.517532564 | AA14: 4.719937828 | AB14: 4.719937828 | AC14: 4.719937828 | AD14: 4.719937828 | AE14: 4.719937828 | AF14: =AF92 -> 4.719937828 | AG14: 4.719937828 | AH14: =AH92 -> 4.719937828 | AI14: =AI92 -> 4.719937828 | AJ14: =AJ92 -> 4.719937828 | AK14: =AK92 -> 4.719937828 | AL14: =AL92 -> 4.719937828
D15: Total IT costs | W15: =W103 -> 1.772 | X15: 1.189484014 | Y15: 2.195668712 | Z15: 0.8766509434 | AA15: 2.532 | AB15: 3.0721 | AC15: 5.3806 | AD15: 5.5938 | AE15: 4.7094 | AF15: 4.3501 | AG15: 4.2906 | AH15: =AH103 -> 4.8649 | AI15: =AI103 -> 4.8649 | AJ15: =AJ103 -> 4.8649 | AK15: =AK103 -> 4.8649 | AL15: =AL103 -> 4.8649
D16: Total Chemical costs | W16: =W114 -> 2.218 | X16: 1.785 | Y16: 2.03 | Z16: 2.417 | AA16: 2.598 | AB16: 2.408 | AC16: 2.488 | AD16: 2.571 | AE16: 2.656 | AF16: 2.745 | AG16: 2.836 | AH16: =AH114 -> 2.926194589 | AI16: =AI114 -> 3.023522165 | AJ16: =AJ114 -> 3.124086935 | AK16: =AK114 -> 3.227996569 | AL16: =AL114 -> 3.335362321
C21: Labour assumptions
D23: Current FTEs (at 30 June) | W23: 186 | X23: 197 | Y23: 195 | Z23: 192 | AA23: 201
D24: Actual and forecast labour costs for current FTEs ($m) | W24: 19.0705086 | X24: 19.25511634 | Y24: 20.04769325 | Z24: 20.8717307 | AA24: 22.055 | AB24: 22.055 | AC24: 22.055 | AD24: 22.055 | AE24: 22.055 | AF24: 22.055 | AG24: 22.055 | AH24: 22.055 | AI24: 22.055 | AJ24: 22.055 | AK24: 22.055 | AL24: 22.055
D25: Cost per FTE ($000) | W25: =+W24/W23*10^3 -> 102.5296161 | X25: =+X24/X23*10^3 -> 97.74170731 | Y25: =+Y24/Y23*10^3 -> 102.8086833 | Z25: =+Z24/Z23*10^3 -> 108.7069307 | AA25: =+AA24/AA23*10^3 -> 109.7263682 | AB25: =+AB24/$AA$23*10^3 -> 109.7263682 | AC25: 109.7263682 | AD25: 109.7263682 | AE25: 109.7263682 | AF25: 109.7263682 | AG25: 109.7263682 | AH25: 109.7263682 | AI25: 109.7263682 | AJ25: 109.7263682 | AK25: 109.7263682 | AL25: 109.7263682
D26: Annual growth in labour costs for current FTEs | X26: =+X25/W25-1 -> -0.0466978126 | Y26: 0.0518404698 | Z26: 0.05737110148 | AA26: 0.009377851127 | AB26: 0 | AC26: 0 | AD26: 0 | AE26: 0 | AF26: 0 | AG26: 0 | AH26: =+AH25/AG25-1 -> 0 | AI26: =+AI25/AH25-1 -> 0 | AJ26: =+AJ25/AI25-1 -> 0 | AK26: =+AK25/AJ25-1 -> 0 | AL26: =+AL25/AK25-1 -> 0
D28: Change in FTEs in future periods (net no. annual change) | AB28: 32.49 | AC28: 12.9 | AD28: -5.25 | AE28: -4.38 | AF28: -8.33 | AG28: 0
D29: Increase or decrease in labour costs ($m) | AB29: 0.015 | AC29: 1.203536585 | AD29: 1.05505354 | AE29: 1.104269308 | AF29: 0.6209446393 | AG29: 0.1385811619 | AH29: =+AG29 -> 0.1385811619 | AI29: 0.1385811619 | AJ29: 0.1385811619 | AK29: 0.1385811619 | AL29: 0.1385811619
D33: Total FTEs | W33: =+W23 -> 186 | X33: 197 | Y33: 195 | Z33: 192 | AA33: 201 | AB33: =+$AA$23+SUM($AB28:AB28) -> 233.49 | AC33: =+$AA$23+SUM($AB28:AC28) -> 246.39 | AD33: =+$AA$23+SUM($AB28:AD28) -> 241.14 | AE33: =+$AA$23+SUM($AB28:AE28) -> 236.76 | AF33: =+$AA$23+SUM($AB28:AF28) -> 228.43 | AG33: =+$AA$23+SUM($AB28:AG28) -> 228.43 | AH33: =+$AA$23+SUM($AB28:AH28) -> 228.43 | AI33: =+$AA$23+SUM($AB28:AI28) -> 228.43 | AJ33: =+$AA$23+SUM($AB28:AJ28) -> 228.43 | AK33: =+$AA$23+SUM($AB28:AK28) -> 228.43 | AL33: =+$AA$23+SUM($AB28:AL28) -> 228.43
D34: Total labour costs ($m) | W34: 19.0705086 | X34: 19.25511634 | Y34: 20.04769325 | Z34: 20.8717307 | AA34: 22.055 | AB34: =+AB29+AB24 -> 22.07 | AC34: 23.25853659 | AD34: 23.11005354 | AE34: 23.15926931 | AF34: 22.67594464 | AG34: 22.19358116 | AH34: 22.19358116 | AI34: 22.19358116 | AJ34: 22.19358116 | AK34: 22.19358116 | AL34: 22.19358116
D35: Cost per FTE | W35: =+W34/W33 -> 0.1025296161 | X35: 0.09774170731 | Y35: 0.1028086833 | Z35: 0.1087069307 | AA35: 0.1097263682 | AB35: 0.09452224935 | AC35: 0.09439724252 | AD35: 0.09583666559 | AE35: 0.09781749159 | AF35: 0.09926868029 | AG35: 0.0971570335 | AH35: =+AH34/AH33 -> 0.0971570335 | AI35: =+AI34/AI33 -> 0.0971570335 | AJ35: =+AJ34/AJ33 -> 0.0971570335 | AK35: =+AK34/AK33 -> 0.0971570335 | AL35: =+AL34/AL33 -> 0.0971570335
D36: Annual growth in total labour costs | X36: =+X34/W34-1 -> 0.009680273749 | Y36: 0.04116188635 | Z36: 0.04110385376 | AA36: 0.0566924379 | AB36: 0.0006801178871 | AC36: 0.05385303966 | AD36: -0.006384023572 | AE36: 0.002129625909 | AF36: -0.02086959923 | AG36: -0.02127203453 | AH36: =+AH34/AG34-1 -> 0 | AI36: 0 | AJ36: 0 | AK36: 0 | AL36: 0
D37: Annual growth in total labour costs per FTE | X37: =+X35/W35-1 -> -0.0466978126 | Y37: 0.0518404698 | Z37: 0.05737110148 | AA37: 0.009377851127 | AB37: -0.1385639484 | AC37: -0.001322512152 | AD37: 0.01524857109 | AE37: 0.02066877003 | AF37: 0.01483567695 | AG37: -0.02127203453 | AH37: 0 | AI37: 0 | AJ37: 0 | AK37: 0 | AL37: 0
C42: Energy assumptions
D44: Electricity - traditional sources
D46: BASE LOAD
D48: Large sites
D49: Total kWh | W49: 22839899.15 | X49: 27773203.43 | Y49: 20417333.97 | Z49: 21140613.6 | AA49: 21931191.65 | AB49: 21931191.65 | AC49: 21931191.65 | AD49: 21931191.65 | AE49: 21931191.65 | AF49: 21931191.65 | AG49: 21931191.65 | AH49: 21931191.65 | AI49: 21931191.65 | AJ49: 21931191.65 | AK49: 21931191.65 | AL49: 21931191.65
D50: Total electricity costs ($m) | W50: 6.645784361 | X50: 6.194547952 | Y50: 4.738939329 | Z50: 3.717251158 | AA50: 3.926767986 | AB50: 3.926767986 | AC50: 3.926767986 | AD50: 3.926767986 | AE50: 3.926767986 | AF50: 3.926767986 | AG50: 3.926767986 | AH50: 3.926767986 | AI50: 3.926767986 | AJ50: 3.926767986 | AK50: 3.926767986 | AL50: 3.926767986
D51: Average c/kWh | W51: =+W50/W49*100*10^6 -> 29.0972579 | X51: 22.30404558 | Y51: 23.2103728 | Z51: 17.58345916 | AA51: 17.90494584 | AB51: 17.90494584 | AC51: =+AC50/AC49*100*10^6 -> 17.90494584 | AD51: 17.90494584 | AE51: 17.90494584 | AF51: 17.90494584 | AG51: 17.90494584 | AH51: 17.90494584 | AI51: 17.90494584 | AJ51: 17.90494584 | AK51: 17.90494584 | AL51: 17.90494584
D52: % increase p.a. | X52: =+X51/W51-1 -> -0.233465722 | Y52: =+Y51/X51-1 -> 0.04063510418 | Z52: =+Z51/Y51-1 -> -0.2424309893 | AA52: =+AA51/Z51-1 -> 0.01828347174 | AB52: =+AB51/AA51-1 -> 0 | AC52: =+AC51/AB51-1 -> 0 | AD52: 0 | AE52: 0 | AF52: 0 | AG52: 0 | AH52: 0 | AI52: 0 | AJ52: 0 | AK52: 0 | AL52: 0
D54: Medium sites
D55: Total kWh
D56: Total electricity costs ($m)
D57: Average c/kWh | W57: =+W56/W55*100*10^6 ->  | AC57: =+AC56/AC55*100*10^6 -> 
D58: % increase p.a. | X58: =+X57/W57-1 ->  | Y58: =+Y57/X57-1 ->  | Z58: =+Z57/Y57-1 ->  | AA58: =+AA57/Z57-1 ->  | AB58: =+AB57/AA57-1 ->  | AC58: =+AC57/AB57-1 -> 
D60: Small sites
D61: Total kWh | W61: 868411.87 | X61: 2385875.25 | Y61: 3147210.19 | Z61: 3193718.92 | AA61: 3211812.38 | AB61: 3211812.38 | AC61: 3211812.38 | AD61: 3211812.38 | AE61: 3211812.38 | AF61: 3211812.38 | AG61: 3211812.38 | AH61: 3211812.38 | AI61: 3211812.38 | AJ61: 3211812.38 | AK61: 3211812.38 | AL61: 3211812.38
D62: Total electricity costs ($m) | W62: 0.2500075953 | X62: 0.6899693464 | Y62: 0.813679316 | Z62: 0.8002814061 | AA62: 0.7931698418 | AB62: 0.7931698418 | AC62: 0.7931698418 | AD62: 0.7931698418 | AE62: 0.7931698418 | AF62: 0.7931698418 | AG62: 0.7931698418 | AH62: 0.7931698418 | AI62: 0.7931698418 | AJ62: 0.7931698418 | AK62: 0.7931698418 | AL62: 0.7931698418
D63: Average c/kWh | W63: =+W62/W61*100*10^6 -> 28.78905781 | X63: 28.91891965 | Y63: 25.85398708 | Z63: 25.05797868 | AA63: 24.69539774 | AB63: 24.69539774 | AC63: =+AC62/AC61*100*10^6 -> 24.69539774 | AD63: 24.69539774 | AE63: 24.69539774 | AF63: 24.69539774 | AG63: 24.69539774 | AH63: 24.69539774 | AI63: 24.69539774 | AJ63: 24.69539774 | AK63: 24.69539774 | AL63: 24.69539774
D64: % increase p.a. | X64: =+X63/W63-1 -> 0.004510805442 | Y64: =+Y63/X63-1 -> -0.1059836468 | Z64: =+Z63/Y63-1 -> -0.03078861287 | AA64: =+AA63/Z63-1 -> -0.01446968045 | AB64: =+AB63/AA63-1 -> 0 | AC64: =+AC63/AB63-1 -> 0 | AD64: 0 | AE64: 0 | AF64: 0 | AG64: 0 | AH64: 0 | AI64: 0 | AJ64: 0 | AK64: 0 | AL64: 0
D67: NEW PROJECTS
D69: Large sites
D70: Total kWh
D71: Total electricity costs ($m)
D72: Average c/kWh | W72: =+W71/W70*100*10^6 ->  | AC72: =+AC71/AC70*100*10^6 -> 
D73: % increase p.a. | X73: =+X72/W72-1 ->  | Y73: =+Y72/X72-1 ->  | Z73: =+Z72/Y72-1 ->  | AA73: =+AA72/Z72-1 ->  | AB73: =+AB72/AA72-1 ->  | AC73: =+AC72/AB72-1 -> 
D75: Medium sites
D76: Total kWh
D77: Total electricity costs ($m)
D78: Average c/kWh | W78: =+W77/W76*100*10^6 ->  | AC78: =+AC77/AC76*100*10^6 -> 
D79: % increase p.a. | X79: =+X78/W78-1 ->  | Y79: =+Y78/X78-1 ->  | Z79: =+Z78/Y78-1 ->  | AA79: =+AA78/Z78-1 ->  | AB79: =+AB78/AA78-1 ->  | AC79: =+AC78/AB78-1 -> 
D81: Small sites
D82: Total kWh
D83: Total electricity costs ($m)
D84: Average c/kWh | W84: =+W83/W82*100*10^6 ->  | X84: =+X83/X82*100*10^6 ->  | AH84: =+AH83/AH82*100*10^6 ->  | AI84: =+AI83/AI82*100*10^6 ->  | AJ84: =+AJ83/AJ82*100*10^6 ->  | AK84: =+AK83/AK82*100*10^6 ->  | AL84: =+AL83/AL82*100*10^6 -> 
D85: % increase p.a. | X85: =+X84/W84-1 ->  | Y85: =+Y84/X84-1 ->  | Z85: =+Z84/Y84-1 ->  | AA85: =+AA84/Z84-1 ->  | AB85: =+AB84/AA84-1 ->  | AC85: =+AC84/AB84-1 -> 
D88: Greenhouse Gas Offsets
D89: % increase p.a. | X89: =X88/W88-1 ->  | AH89: =AH88/AG88-1 ->  | AI89: =AI88/AH88-1 ->  | AJ89: =AJ88/AI88-1 ->  | AK89: =AK88/AJ88-1 ->  | AL89: =AL88/AK88-1 -> 
D92: TOTAL ENERGY COSTS | W92: =+SUM(W50,W56,W62,W71,W77,W83,W88) -> 6.895791956 | X92: 6.884517298 | Y92: 5.552618645 | Z92: 4.517532564 | AA92: 4.719937828 | AB92: 4.719937828 | AC92: 4.719937828 | AD92: 4.719937828 | AE92: 4.719937828 | AF92: 4.719937828 | AG92: =+SUM(AG50,AG56,AG62,AG71,AG77,AG83,AG88) -> 4.719937828 | AH92: 4.719937828 | AI92: 4.719937828 | AJ92: 4.719937828 | AK92: 4.719937828 | AL92: 4.719937828
D93: % increase p.a. | W93: =W92/V92-1 ->  | X93: -0.001635005484 | Y93: -0.1934628959 | Z93: -0.1864140413 | AA93: 0.04480438402 | AB93: 0 | AC93: 0 | AD93: 0 | AE93: 0 | AF93: 0 | AG93: 0 | AH93: =AH92/AG92-1 -> 0 | AI93: =AI92/AH92-1 -> 0 | AJ93: =AJ92/AI92-1 -> 0 | AK93: =AK92/AJ92-1 -> 0 | AL93: =AL92/AK92-1 -> 0
C98: IT cost assumptions
D100: Water related IT costs | W100: 0.886 | X100: 0.5947420071 | Y100: 1.097834356 | Z100: 0.4383254717 | AA100: 1.266 | AB100: 1.53605 | AC100: 2.6903 | AD100: 2.7969 | AE100: 2.3547 | AF100: 2.17505 | AG100: 2.1453 | AH100: 2.43245 | AI100: 2.43245 | AJ100: 2.43245 | AK100: 2.43245 | AL100: 2.43245
D101: Sewerage and trade waste related IT costs | W101: 0.886 | X101: 0.5947420071 | Y101: 1.097834356 | Z101: 0.4383254717 | AA101: 1.266 | AB101: 1.53605 | AC101: 2.6903 | AD101: 2.7969 | AE101: 2.3547 | AF101: 2.17505 | AG101: 2.1453 | AH101: 2.43245 | AI101: 2.43245 | AJ101: 2.43245 | AK101: 2.43245 | AL101: 2.43245
D102: Other IT costs | W102: 0 | X102: 0 | Y102: 0 | Z102: 0 | AA102: 0 | AB102: 0 | AC102: 0 | AD102: 0 | AE102: 0 | AF102: 0 | AG102: 0 | AH102: 0 | AI102: 0 | AJ102: 0 | AK102: 0 | AL102: 0
D103: Total IT costs | W103: =SUM(W100:W102) -> 1.772 | X103: 1.189484014 | Y103: 2.195668712 | Z103: 0.8766509434 | AA103: 2.532 | AB103: 3.0721 | AC103: =SUM(AC100:AC102) -> 5.3806 | AD103: 5.5938 | AE103: 4.7094 | AF103: 4.3501 | AG103: 4.2906 | AH103: 4.8649 | AI103: 4.8649 | AJ103: 4.8649 | AK103: 4.8649 | AL103: 4.8649
D104: % increase p.a. | X104: =X103/W103-1 -> -0.3287336263 | Y104: 0.8459001428 | Z104: -0.600736241 | AA104: 1.88826473 | AB104: 0.2133096367 | AC104: 0.7514403828 | AD104: 0.03962383377 | AE104: -0.1581036147 | AF104: -0.07629422007 | AG104: -0.01367784649 | AH104: =AH103/AG103-1 -> 0.1338507435 | AI104: =AI103/AH103-1 -> 0 | AJ104: =AJ103/AI103-1 -> 0 | AK104: =AK103/AJ103-1 -> 0 | AL104: =AL103/AK103-1 -> 0
C109: Chemical cost assumptions
D111: Water related chemical costs | W111: 0.834 | X111: 0.671 | Y111: 0.752 | Z111: 0.798 | AA111: 0.839 | AB111: 0.911 | AC111: 0.943 | AD111: 0.976 | AE111: 1.01 | AF111: 1.045 | AG111: 1.081 | AH111: 1.116954926 | AI111: 1.154105742 | AJ111: 1.192492223 | AK111: 1.23215547 | AL111: 1.273137948
D112: Sewerage and trade waste related chemical costs | W112: 1.383 | X112: 1.113 | Y112: 1.275 | Z112: 1.619 | AA112: 1.753 | AB112: 1.493 | AC112: 1.541 | AD112: 1.591 | AE112: 1.642 | AF112: 1.696 | AG112: 1.751 | AH112: 1.809239663 | AI112: 1.869416424 | AJ112: 1.931594711 | AK112: 1.995841099 | AL112: 2.062224373
D113: Other chemical costs | W113: 0.001 | X113: 0.001 | Y113: 0.003 | Z113: 0 | AA113: 0.006 | AB113: 0.004 | AC113: 0.004 | AD113: 0.004 | AE113: 0.004 | AF113: 0.004 | AG113: 0.004 | AH113: 0 | AI113: 0 | AJ113: 0 | AK113: 0 | AL113: 0
D114: Total chemical costs | W114: =SUM(W111:W113) -> 2.218 | X114: 1.785 | Y114: 2.03 | Z114: 2.417 | AA114: 2.598 | AB114: 2.408 | AC114: =SUM(AC111:AC113) -> 2.488 | AD114: 2.571 | AE114: 2.656 | AF114: 2.745 | AG114: 2.836 | AH114: 2.926194589 | AI114: 3.023522165 | AJ114: 3.124086935 | AK114: 3.227996569 | AL114: 3.335362321
D115: % increase p.a. | X115: =X114/W114-1 -> -0.1952209197 | Y115: 0.137254902 | Z115: 0.1906403941 | AA115: 0.07488622259 | AB115: -0.07313317937 | AC115: 0.03322259136 | AD115: 0.03336012862 | AE115: 0.03306106573 | AF115: 0.03350903614 | AG115: 0.03315118397 | AH115: =AH114/AG114-1 -> 0.03180345166 | AI115: =AI114/AH114-1 -> 0.03326080117 | AJ115: =AJ114/AI114-1 -> 0.03326080117 | AK115: =AK114/AJ114-1 -> 0.03326080117 | AL115: =AL114/AK114-1 -> 0.03326080117

Sheet Opex_Breakdown
A1: 80 | B1: Operating Expenditure - Breakdown
B2: =+Contents!H7 -> Coliban Water
B3: Go to Table of Contents
L4: FIRST REG PERIOD | P4: SECOND REG PERIOD | U4: THIRD REG PERIOD | Z4: FOURTH REG PERIOD | AE4: FIFTH REG PERIOD | AJ4: SIXTH REG PERIOD
K6: 2006 | L6: 2007 | M6: 2008 | N6: 2009 | O6: 2010 | P6: 2011 | Q6: 2012 | R6: 2013 | S6: 2014 | T6: 2015 | U6: 2016 | V6: 2017 | W6: 2018 | X6: 2019 | Y6: 2020 | Z6: 2021 | AA6: 2022 | AB6: 2023 | AC6: 2024 | AD6: 2025 | AE6: 2026 | AF6: 2027 | AG6: 2028 | AH6: 2029 | AI6: 2030 | AJ6: 2031 | AK6: 2032 | AL6: 2033
B7: =Expenditure_Detail!$B$6 -> $m, 01/01/23 | K7: =+CONCATENATE(K6-1,"-",RIGHT(K6,2)) -> 2005-06 | L7: =+CONCATENATE(L6-1,"-",RIGHT(L6,2)) -> 2006-07 | M7: 2007-08 | N7: 2008-09 | O7: 2009-10 | P7: 2010-11 | Q7: 2011-12 | R7: 2012-13 | S7: 2013-14 | T7: 2014-15 | U7: 2015-16 | V7: 2016-17 | W7: 2017-18 | X7: =+CONCATENATE(X6-1,"-",RIGHT(X6,2)) -> 2018-19 | Y7: 2019-20 | Z7: 2020-21 | AA7: 2021-22 | AB7: 2022-23 | AC7: 2023-24 | AD7: 2024-25 | AE7: 2025-26 | AF7: 2026-27 | AG7: 2027-28 | AH7: =+CONCATENATE(AH6-1,"-",RIGHT(AH6,2)) -> 2028-29 | AI7: =+CONCATENATE(AI6-1,"-",RIGHT(AI6,2)) -> 2029-30 | AJ7: =+CONCATENATE(AJ6-1,"-",RIGHT(AJ6,2)) -> 2030-31 | AK7: =+CONCATENATE(AK6-1,"-",RIGHT(AK6,2)) -> 2031-32 | AL7: =+CONCATENATE(AL6-1,"-",RIGHT(AL6,2)) -> 2032-33
D10: Operating Expenditure Summary
E12: =C48 -> Water | W12: =+W57-W50-W54 -> 34.18871932 | X12: 37.5156766 | Y12: 36.29493589 | Z12: 36.43361321 | AA12: 36.85584224 | AB12: 40.4967463 | AC12: =+AC57-AC50-AC54 -> 42.66894092 | AD12: 42.90771283 | AE12: 43.69300316 | AF12: 44.32889207 | AG12: 44.04763649 | AH12: 44.79869338 | AI12: 45.06995648 | AJ12: 45.36628384 | AK12: 45.68787293 | AL12: 46.03492888
E13: =C59 -> Sewerage | W13: =W68-W61-W65 -> 30.77177036 | X13: 28.25515071 | Y13: 28.69153712 | Z13: 29.14306518 | AA13: 31.12317557 | AB13: 31.47535564 | AC13: =AC68-AC61-AC65 -> 32.68235073 | AD13: 31.77820906 | AE13: 31.23156052 | AF13: 30.86052537 | AG13: 30.78579968 | AH13: 31.1875878 | AI13: 31.37643353 | AJ13: 31.58272828 | AK13: 31.80660954 | AL13: 32.04822012
E14: =C70 -> Recycled Water | W14: =W79-W72-W76 -> 1.289513077 | X14: 1.727942851 | Y14: 1.480447546 | Z14: 1.627223542 | AA14: 1.513282443 | AB14: 2.27398783 | AC14: =AC79-AC72-AC76 -> 2.39052409 | AD14: 2.42554438 | AE14: 2.41332081 | AF14: 2.35072685 | AG14: 2.2884139 | AH14: 2.37564005 | AI14: 2.390024922 | AJ14: 2.405738933 | AK14: 2.422792553 | AL14: 2.441196662
E15: =C81 -> Rural Water | W15: =W90-W83-W87 -> 3.406465113 | X15: 3.856249956 | Y15: 3.403557975 | Z15: 3.155252702 | AA15: 3.420648855 | AB15: 3.87360483 | AC15: =AC90-AC83-AC87 -> 3.84674209 | AD15: 3.89029638 | AE15: 3.96739081 | AF15: 3.81090885 | AG15: 3.7550599 | AH15: 3.851297181 | AI15: 3.874617388 | AJ15: 3.900092344 | AK15: 3.927739024 | AL15: 3.957575064
E16: Bulk Water | W16: =W100-W97 -> 0 | X16: 0 | Y16: 0 | Z16: 0 | AA16: 0 | AB16: 0 | AC16: =AC100-AC97 -> 0 | AD16: 0 | AE16: 0 | AF16: 0 | AG16: 0 | AH16: 0 | AI16: 0 | AJ16: 0 | AK16: 0 | AL16: 0
E17: Total controllable operating expenditure | W17: =SUM(W12:W16) -> 69.65646787 | X17: 71.35502012 | Y17: 69.87047853 | Z17: 70.35915463 | AA17: 72.91294911 | AB17: 78.1196946 | AC17: 81.58855783 | AD17: 81.00176265 | AE17: 81.3052753 | AF17: 81.35105314 | AG17: 80.87690997 | AH17: =SUM(AH12:AH16) -> 82.21321841 | AI17: =SUM(AI12:AI16) -> 82.71103232 | AJ17: =SUM(AJ12:AJ16) -> 83.2548434 | AK17: =SUM(AK12:AK16) -> 83.84501405 | AL17: =SUM(AL12:AL16) -> 84.48192072
E20: Operations & Maintenance | W20: =W49+W60+W71+W82+W93 -> 22.88057376 | X20: 25.95649982 | Y20: 22.40407362 | Z20: 21.56242539 | AA20: 22.73286514 | AB20: 22.4296946 | AC20: 23.50476045 | AD20: 24.5735102 | AE20: 25.54015725 | AF20: 25.47389457 | AG20: 25.95090033 | AH20: =AH49+AH60+AH71+AH82+AH93 -> 25.74386904 | AI20: =AI49+AI60+AI71+AI82+AI93 -> 25.8997522 | AJ20: =AJ49+AJ60+AJ71+AJ82+AJ93 -> 26.0700387 | AK20: =AK49+AK60+AK71+AK82+AK93 -> 26.25484202 | AL20: =AL49+AL60+AL71+AL82+AL93 -> 26.45428004
E21: Treatment | W21: =W51+W62+W73+W84+W94 -> 29.92549412 | X21: 28.18126186 | Y21: 30.31586503 | Z21: 31.74645283 | AA21: 30.42748601 | AB21: 33.79 | AC21: 34.43093656 | AD21: 33.2247208 | AE21: 33.44134676 | AF21: 33.88076157 | AG21: 32.98964464 | AH21: =AH51+AH62+AH73+AH84+AH94 -> 34.23983272 | AI21: 34.44716027 | AJ21: 34.67364453 | AK21: 34.91943645 | AL21: 35.18469279
E22: Customer Service and billing | W22: =W52+W63+W74+W85+W95 -> 2.284020814 | X22: 2.290939609 | Y22: 2.171779141 | Z22: 6.601978559 | AA22: 8.158063613 | AB22: 10.55 | AC22: 8.859123252 | AD22: 8.524557061 | AE22: 8.858471768 | AF22: 8.37183058 | AG22: 8.394192699 | AH22: 8.461076866 | AI22: 8.512564045 | AJ22: 8.568782994 | AK22: 8.629771222 | AL22: 8.695567677
E23: GSL Payments | W23: =W53+W64+W75+W86+W96 -> 0.001121266968 | X23: 0.07152309059 | Y23: 0.02171779141 | Z23: 0.03825385935 | AA23: 0.01050890585 | AB23: 0.02 | AC23: 0.008370747573 | AD23: 0.008126939391 | AE23: 0.007890232419 | AF23: 0.007660419824 | AG23: 0.0074373008 | AH23: 0.007220680388 | AI23: 0.007010369309 | AJ23: 0.006806183795 | AK23: 0.006607945432 | AL23: 0.006415481002
E24: Corporate | W24: =W55+W66+W77+W88+W98 -> 14.42285701 | X24: 14.71505062 | Y24: 14.81913497 | Z24: 10.27541166 | AA24: 11.45056234 | AB24: 11.2 | AC24: 14.65519182 | AD24: 14.53741865 | AE24: 13.32064429 | AF24: 13.476722 | AG24: 13.391046 | AH24: =AH55+AH66+AH77+AH88+AH98 -> 13.61954943 | AI24: 13.70201793 | AJ24: 13.79210639 | AK24: 13.88987483 | AL24: 13.99538562
E25: Other operating expenditure | W25: =W56+W67+W78+W89+W99 -> 0.142400905 | X25: 0.1397451155 | Y25: 0.1379079755 | Z25: 0.1346323328 | AA25: 0.1334631043 | AB25: 0.13 | AC25: 0.130175 | AD25: 0.133429 | AE25: 0.136765 | AF25: 0.140184 | AG25: 0.143689 | AH25: 0.1416696818 | AI25: 0.1425275139 | AJ25: 0.1434646082 | AK25: 0.1444815893 | AL25: 0.1455791058
E26: Total controllable operating expenditure | W26: =SUM(W20:W25) -> 69.65646787 | X26: 71.35502012 | Y26: 69.87047853 | Z26: 70.35915463 | AA26: 72.91294911 | AB26: 78.1196946 | AC26: 81.58855783 | AD26: 81.00176265 | AE26: 81.3052753 | AF26: 81.35105314 | AG26: 80.87690997 | AH26: =SUM(AH20:AH25) -> 82.21321841 | AI26: =SUM(AI20:AI25) -> 82.71103232 | AJ26: =SUM(AJ20:AJ25) -> 83.2548434 | AK26: =SUM(AK20:AK25) -> 83.84501405 | AL26: =SUM(AL20:AL25) -> 84.48192072
AC27: =IF(ROUND(AC26,2)=ROUND(AC17,2),0,1) -> 0 | AD27: =IF(ROUND(AD26,2)=ROUND(AD17,2),0,1) -> 0 | AE27: 0 | AF27: 0 | AG27: 0 | AH27: 0 | AI27: 0 | AJ27: 0 | AK27: 0 | AL27: 0
E29: External bulk water charges (excl. temporary purchases) | W29: =W50+W61+W72+W83 -> 1.948761991 | X29: =X50+X61+X72+X83 -> 2.330552398 | Y29: =Y50+Y61+Y72+Y83 -> 2.291226994 | Z29: 2.421681818 | AA29: 2.325620865 | AB29: 2.369807662 | AC29: 2.414834007 | AD29: 2.460715853 | AE29: 2.507469454 | AF29: 2.555111374 | AG29: 2.60365849 | AH29: =AH50+AH61+AH72+AH83 -> 2.653128002 | AI29: =AI50+AI61+AI72+AI83 -> 2.703537434 | AJ29: =AJ50+AJ61+AJ72+AJ83 -> 2.754904645 | AK29: =AK50+AK61+AK72+AK83 -> 2.807247833 | AL29: =AL50+AL61+AL72+AL83 -> 2.860585542
E30: External temporary water purchases | W30: =+W102 -> 0.002242533937 | X30: 0 | Y30: 0 | Z30: 0 | AA30: 0 | AB30: 0 | AC30: 0 | AD30: 0 | AE30: 0 | AF30: 0 | AG30: 0 | AH30: =+AH102 -> 0 | AI30: =+AI102 -> 0 | AJ30: =+AJ102 -> 0 | AK30: =+AK102 -> 0 | AL30: =+AL102 -> 0
E31: Licence fees | W31: =+W109 -> 0.2713466063 | X31: 0.3367087034 | Y31: 0.293190184 | Z31: 0.3198447684 | AA31: 0.4319160305 | AB31: 0.320722 | AC31: 0.3331 | AD31: 0.3331 | AE31: 0.3331 | AF31: 0.3331 | AG31: 0.3331 | AH31: =+AH109 -> 0.327026 | AI31: =+AI109 -> 0.327026 | AJ31: =+AJ109 -> 0.327026 | AK31: =+AK109 -> 0.327026 | AL31: =+AL109 -> 0.327026
E32: Environment Contribution | W32: =W111 -> 3.66878552 | X32: 5.629417407 | Y32: 5.555411043 | Z32: 6.094052316 | AA32: 6.025806616 | AB32: 5.73432 | AC32: 5.567300971 | AD32: 5.405146574 | AE32: 5.24771512 | AF32: 5.094869049 | AG32: 4.946474804 | AH32: =AH111 -> 8.054249613 | AI32: =AI111 -> 7.819659818 | AJ32: =AJ111 -> 7.591902736 | AK32: =AK111 -> 7.370779356 | AL32: =AL111 -> 7.156096462
E33: Other non-controllable | W33: =+W124 -> 0 | X33: 0 | Y33: 0 | Z33: 0 | AA33: 0 | AB33: 0 | AC33: 0 | AD33: 0 | AE33: 0 | AF33: 0 | AG33: =+AG124 -> 0 | AH33: 0 | AI33: 0 | AJ33: 0 | AK33: 0 | AL33: 0
E34: Total non-controllable operating expenditure | W34: =SUM(W29:W33) -> 5.891136652 | X34: 8.296678508 | Y34: 8.139828221 | Z34: 8.835578902 | AA34: 8.783343511 | AB34: 8.424849662 | AC34: 8.315234978 | AD34: 8.198962427 | AE34: 8.088284575 | AF34: 7.983080423 | AG34: 7.883233295 | AH34: =SUM(AH29:AH33) -> 11.03440361 | AI34: =SUM(AI29:AI33) -> 10.85022325 | AJ34: =SUM(AJ29:AJ33) -> 10.67383338 | AK34: =SUM(AK29:AK33) -> 10.50505319 | AL34: =SUM(AL29:AL33) -> 10.343708
E37: Total prescribed operating expenditure | W37: =+W34+W17 -> 75.54760452 | X37: 79.65169862 | Y37: 78.01030675 | Z37: 79.19473353 | AA37: 81.69629262 | AB37: 86.54454426 | AC37: 89.90379281 | AD37: 89.20072508 | AE37: 89.39355987 | AF37: 89.33413357 | AG37: 88.76014327 | AH37: =+AH34+AH17 -> 93.24762202 | AI37: =+AI34+AI17 -> 93.56125557 | AJ37: =+AJ34+AJ17 -> 93.92867678 | AK37: =+AK34+AK17 -> 94.35006724 | AL37: =+AL34+AL17 -> 94.82562872
AB40: To reconcile to 'Opex_FO' tab row 95>> | AC40: =+Opex_FO!AC95 -> 89.90379281 | AD40: =+Opex_FO!AD95 -> 89.20072508 | AE40: =+Opex_FO!AE95 -> 89.39355987 | AF40: =+Opex_FO!AF95 -> 89.33413357 | AG40: =+Opex_FO!AG95 -> 88.76014327 | AH40: =+Opex_FO!AH95 -> 93.24762202 | AI40: =+Opex_FO!AI95 -> 93.56125557 | AJ40: =+Opex_FO!AJ95 -> 93.92867678 | AK40: =+Opex_FO!AK95 -> 94.35006724 | AL40: =+Opex_FO!AL95 -> 94.82562872
AB41: Difference | AC41: =+AC40-AC37 -> 0 | AD41: 0 | AE41: 0 | AF41: 0 | AG41: 0 | AH41: =+AH40-AH37 -> 0 | AI41: =+AI40-AI37 -> 0 | AJ41: =+AJ40-AJ37 -> 0 | AK41: =+AK40-AK37 -> 0 | AL41: =+AL40-AL37 -> 0
AB42: Test | AC42: =IF(ROUND(AC40,2)=ROUND(AC37,2),0,1) -> 0 | AD42: 0 | AE42: 0 | AF42: 0 | AG42: 0 | AH42: 0 | AI42: 0 | AJ42: 0 | AK42: 0 | AL42: 0
B46: Total operating expenditure
C48: Water
D49: Operations & Maintenance | W49: 11.72396742 | X49: 14.44326288 | Y49: 12.69296319 | Z49: 12.53345197 | AA49: 12.34270992 | AB49: 13.0367463 | AC49: 14.08940073 | AD49: 14.6104126 | AE49: 15.22868113 | AF49: 15.34403629 | AG49: 15.59372817 | AH49: 15.50665367 | AI49: 15.60054888 | AJ49: 15.70311986 | AK49: 15.81443495 | AL49: 15.93456516
D50: External bulk charges (excl. temporary purchases) | W50: =+W131 -> 1.948761991 | X50: 2.330552398 | Y50: 2.291226994 | Z50: 2.421681818 | AA50: 2.325620865 | AB50: 2.369807662 | AC50: 2.414834007 | AD50: 2.460715853 | AE50: 2.507469454 | AF50: 2.555111374 | AG50: 2.60365849 | AH50: =+AH131 -> 2.653128002 | AI50: 2.703537434 | AJ50: 2.754904645 | AK50: 2.807247833 | AL50: 2.860585542 | AM50: see reconciliation below
D51: Treatment | W51: 14.04274751 | X51: 14.65783215 | Y51: 15.06237423 | Z51: 15.50875214 | AA51: 15.34930789 | AB51: 16.52 | AC51: 16.75310978 | AD51: 16.6955344 | AE51: 17.30243638 | AF51: 17.98665729 | AG51: 17.48572582 | AH51: 18.17728138 | AI51: 18.28734767 | AJ51: 18.40758389 | AK51: 18.53807019 | AL51: 18.67888978
D52: Customer Service and billing | W52: 1.141449774 | X52: 1.145469805 | Y52: 1.085889571 | Z52: 3.201635506 | AA52: 4.072201018 | AB52: 5.27 | AC52: 4.429561626 | AD52: 4.26227853 | AE52: 4.429235884 | AF52: 4.18591529 | AG52: 4.19709635 | AH52: 4.230538433 | AI52: 4.256282023 | AJ52: 4.284391497 | AK52: 4.314885611 | AL52: 4.347783838
D53: GSL Payments | W53: 0.001121266968 | X53: 0.07152309059 | Y53: 0.02171779141 | Z53: 0.009563464837 | AA53: 0.01050890585 | AB53: 0.01 | AC53: 0.004185373786 | AD53: 0.004063469696 | AE53: 0.003945116209 | AF53: 0.003830209912 | AG53: 0.0037186504 | AH53: 0.003610340194 | AI53: 0.003505184654 | AJ53: 0.003403091898 | AK53: 0.003303972716 | AL53: 0.003207740501
D54: Licence Fees | W54: 0.07848868778 | X54: 0.09022912966 | Y54: 0.07166871166 | Z54: 0.08607118353 | AA54: 0.1397684478 | AB54: 0.19 | AC54: 0.186922 | AD54: 0.186923 | AE54: 0.186922 | AF54: 0.186922 | AG54: 0.1869225 | AH54: 0.1824263209 | AI54: 0.1835309408 | AJ54: 0.1847376258 | AK54: 0.1860471799 | AL54: 0.1874604385
D55: Corporate | W55: 7.215352941 | X55: 7.134703375 | Y55: 7.369932515 | Z55: 5.119641509 | AA55: 4.947651399 | AB55: 5.6 | AC55: 7.32759591 | AD55: 7.26870933 | AE55: 6.66032215 | AF55: 6.738361 | AG55: 6.695523 | AH55: 6.809774713 | AI55: 6.851008966 | AJ55: 6.896053194 | AK55: 6.944937415 | AL55: 6.997692811
D56: Other operating expenditure | W56: 0.06408040724 | X56: 0.06288530195 | Y56: 0.06205858896 | Z56: 0.06056861063 | AA56: 0.1334631043 | AB56: 0.06 | AC56: 0.0650875 | AD56: 0.0667145 | AE56: 0.0683825 | AF56: 0.070092 | AG56: 0.0718445 | AH56: 0.07083484088 | AI56: 0.07126375693 | AJ56: 0.07173230411 | AK56: 0.07224079465 | AL56: 0.07278955291
C57: =+CONCATENATE("Total ",C48) -> Total Water | K57: =+SUM(K49:K56) -> 0 | L57: =+SUM(L49:L56) -> 0 | M57: 0 | N57: 0 | O57: 0 | P57: 0 | Q57: 0 | R57: 0 | S57: 0 | T57: 0 | U57: 0 | V57: 0 | W57: =+SUM(W49:W56) -> 36.21597 | X57: 39.93645813 | Y57: 38.6578316 | Z57: 38.94136621 | AA57: 39.32123155 | AB57: 43.05655396 | AC57: 45.27069693 | AD57: 45.55535168 | AE57: 46.38739461 | AF57: 47.07092545 | AG57: 46.83821748 | AH57: =+SUM(AH49:AH56) -> 47.6342477 | AI57: =+SUM(AI49:AI56) -> 47.95702486 | AJ57: =+SUM(AJ49:AJ56) -> 48.30592611 | AK57: =+SUM(AK49:AK56) -> 48.68116794 | AL57: =+SUM(AL49:AL56) -> 49.08297486
C59: Sewerage
D60: =+D49 -> Operations & Maintenance | W60: 8.467808145 | X60: 8.37480373 | Y60: 6.941006135 | Z60: 6.615792453 | AA60: 7.979412214 | AB60: 6.22535564 | AC60: 6.36007578 | AD60: 6.84532288 | AE60: 7.0734975 | AF60: 7.024955886 | AG60: 7.296560281 | AH60: 7.099406956 | AI60: 7.142394977 | AJ60: 7.189355019 | AK60: 7.240318376 | AL60: 7.295317556
D61: =+D50 -> External bulk charges (excl. temporary purchases) | W61: =+W132 -> 0 | X61: 0 | Y61: 0 | Z61: 0 | AA61: 0 | AB61: 0 | AC61: 0 | AD61: 0 | AE61: 0 | AF61: 0 | AG61: 0 | AH61: =+AH132 -> 0 | AI61: 0 | AJ61: 0 | AK61: 0 | AL61: 0 | AM61: see reconciliation below
D62: Treatment | W62: 15.55421538 | X62: 13.15591106 | Y62: 14.86039877 | Z62: 15.7967187 | AA62: 14.68619593 | AB62: 16.49 | AC62: 16.86113062 | AD62: 15.65147352 | AE62: 15.2285545 | AF62: 15.03701069 | AG62: 14.7146934 | AH62: 15.19637418 | AI62: 15.28839061 | AJ62: 15.3889092 | AK62: 15.49799693 | AL62: 15.61572341
D63: Customer Service and billing | W63: 0.9138325792 | X63: 0.9165959147 | Y63: 0.8687116564 | Z63: 2.720274443 | AA63: 3.26826972 | AB63: 4.22 | AC63: 3.542812226 | AD63: 3.40901013 | AE63: 3.542599684 | AF63: 3.34796619 | AG63: 3.35693335 | AH63: 3.383708678 | AI63: 3.404324581 | AJ63: 3.426832579 | AK63: 3.451247694 | AL63: 3.477585523
D64: GSL Payments | W64: 0 | X64: 0 | Y64: 0 | Z64: 0.009563464837 | AA64: 0 | AB64: 0.01 | AC64: 0.004185373786 | AD64: 0.004063469696 | AE64: 0.003945116209 | AF64: 0.003830209912 | AG64: 0.0037186504 | AH64: 0.003610340194 | AI64: 0.003505184654 | AJ64: 0.003403091898 | AK64: 0.003303972716 | AL64: 0.003207740501
D65: Licence Fees | W65: 0.1861303167 | X65: 0.2354760213 | Y65: 0.215006135 | Z65: 0.2252727273 | AA65: 0.2732315522 | AB65: 0.12 | AC65: 0.1169432 | AD65: 0.1169432 | AE65: 0.1169432 | AF65: 0.1169432 | AG65: 0.1169436 | AH65: 0.1141305878 | AI65: 0.1148216663 | AJ65: 0.1155765994 | AK65: 0.1163958901 | AL65: 0.117280061
D66: Corporate | W66: 5.771833846 | X66: 5.744954707 | Y66: 5.959361963 | Z66: 3.940147513 | AA66: 5.18929771 | AB66: 4.48 | AC66: 5.86207673 | AD66: 5.81496746 | AE66: 5.32825772 | AF66: 5.3906888 | AG66: 5.3564184 | AH66: 5.447819771 | AI66: 5.480807173 | AJ66: 5.516842555 | AK66: 5.555949932 | AL66: 5.598154249
D67: Other operating expenditure | W67: 0.06408040724 | X67: 0.06288530195 | Y67: 0.06205858896 | Z67: 0.06056861063 | AA67: 0 | AB67: 0.05 | AC67: 0.05207 | AD67: 0.0533716 | AE67: 0.054706 | AF67: 0.0560736 | AG67: 0.0574756 | AH67: 0.0566678727 | AI67: 0.05701100555 | AJ67: 0.05738584329 | AK67: 0.05779263572 | AL67: 0.05823164233
C68: =+CONCATENATE("Total ",C59) -> Total Sewerage | W68: =+SUM(W60:W67) -> 30.95790068 | X68: 28.49062673 | Y68: 28.90654325 | Z68: 29.36833791 | AA68: 31.39640712 | AB68: 31.59535564 | AC68: 32.79929393 | AD68: 31.89515226 | AE68: 31.34850372 | AF68: 30.97746857 | AG68: 30.90274328 | AH68: =+SUM(AH60:AH67) -> 31.30171839 | AI68: =+SUM(AI60:AI67) -> 31.4912552 | AJ68: =+SUM(AJ60:AJ67) -> 31.69830488 | AK68: =+SUM(AK60:AK67) -> 31.92300543 | AL68: =+SUM(AL60:AL67) -> 32.16550018
C70: Recycled Water
D71: =+D60 -> Operations & Maintenance | W71: 0.389079638 | X71: 0.6195 | Y71: 0.546202454 | Z71: 0.5801835334 | AA71: 0.3741170483 | AB71: 0.78398783 | AC71: 0.79953297 | AD71: 0.82651136 | AE71: 0.84195431 | AF71: 0.8223602 | AG71: 0.79698294 | AH71: 0.8310756422 | AI71: 0.8361079353 | AJ71: 0.8416052039 | AK71: 0.8475711113 | AL71: 0.8540094631
D72: =+D61 -> External bulk charges (excl. temporary purchases) | W72: =+W133 -> 0 | X72: 0 | Y72: 0 | Z72: 0 | AA72: 0 | AB72: 0 | AC72: 0 | AD72: 0 | AE72: 0 | AF72: 0 | AG72: 0 | AH72: =+AH133 -> 0 | AI72: 0 | AJ72: 0 | AK72: 0 | AL72: 0 | AM72: see reconciliation below
D73: Treatment | W73: 0.06166968326 | X73: 0.06932238011 | Y73: 0.0738404908 | Z73: 0.08288336192 | AA73: 0.07356234097 | AB73: 0.39 | AC73: 0.40834808 | AD73: 0.43885644 | AE73: 0.45517794 | AF73: 0.4285468 | AG73: 0.39461271 | AH73: 0.4330885748 | AI73: 0.435710994 | AJ73: 0.4385757202 | AK73: 0.4416846627 | AL73: 0.4450398044
D74: Customer Service and billing | W74: 0.1143692308 | X74: 0.1144369449 | Y74: 0.1085889571 | Z74: 0.3400343053 | AA74: 0.4087964377 | AB74: 0.53 | AC74: 0.4433747 | AD74: 0.4266342 | AE74: 0.4433181 | AF74: 0.41897455 | AG74: 0.4200815 | AH74: 0.4234148773 | AI74: 0.4259787207 | AJ74: 0.4287794589 | AK74: 0.4318189584 | AL74: 0.4350991579
D75: GSL Payments | W75: 0 | X75: 0 | Y75: 0 | Z75: 0.009563464837 | AA75: 0 | AB75: 0 | AC75: 0 | AD75: 0 | AE75: 0 | AF75: 0 | AG75: 0 | AH75: 0 | AI75: 0 | AJ75: 0 | AK75: 0 | AL75: 0
D76: Licence Fees | W76: 0.003363800905 | X76: 0.005501776199 | Y76: 0.003257668712 | Z76: 0.004250428816 | AA76: 0.009458015267 | AB76: 0.01 | AC76: 0.0146179 | AD76: 0.0146179 | AE76: 0.0146179 | AF76: 0.0146179 | AG76: 0.01461795 | AH76: 0.01426632347 | AI76: 0.01435270829 | AJ76: 0.01444707493 | AK76: 0.01454948626 | AL76: 0.01466000762
D77: Corporate | W77: 0.7172744796 | X77: 0.91769627 | Y77: 0.7449202454 | Z77: 0.6078113208 | AA77: 0.6568066158 | AB77: 0.56 | AC77: 0.73275959 | AD77: 0.72687093 | AE77: 0.66603221 | AF77: 0.6738361 | AG77: 0.6695523 | AH77: 0.6809774713 | AI77: 0.6851008966 | AJ77: 0.6896053194 | AK77: 0.6944937415 | AL77: 0.6997692811
D78: Other operating expenditure | W78: 0.007120045249 | X78: 0.006987255773 | Y78: 0.006895398773 | Z78: 0.006747555746 | AA78: 0 | AB78: 0.01 | AC78: 0.00650875 | AD78: 0.00667145 | AE78: 0.00683825 | AF78: 0.0070092 | AG78: 0.00718445 | AH78: 0.007083484088 | AI78: 0.007126375693 | AJ78: 0.007173230411 | AK78: 0.007224079465 | AL78: 0.007278955291
C79: =+CONCATENATE("Total ",C70) -> Total Recycled Water | W79: =+SUM(W71:W78) -> 1.292876878 | X79: 1.733444627 | Y79: 1.483705215 | Z79: 1.631473971 | AA79: 1.522740458 | AB79: 2.28398783 | AC79: 2.40514199 | AD79: 2.44016228 | AE79: 2.42793871 | AF79: 2.36534475 | AG79: 2.30303185 | AH79: =+SUM(AH71:AH78) -> 2.389906373 | AI79: =+SUM(AI71:AI78) -> 2.404377631 | AJ79: =+SUM(AJ71:AJ78) -> 2.420186008 | AK79: =+SUM(AK71:AK78) -> 2.43734204 | AL79: =+SUM(AL71:AL78) -> 2.455856669
C81: Rural Water
D82: =+D60 -> Operations & Maintenance | W82: 2.299718552 | X82: 2.518933215 | Y82: 2.22390184 | Z82: 1.832997427 | AA82: 2.036625954 | AB82: 2.38360483 | AC82: 2.25575097 | AD82: 2.29126336 | AE82: 2.39602431 | AF82: 2.2825422 | AG82: 2.26362894 | AH82: 2.306732773 | AI82: 2.320700401 | AJ82: 2.335958615 | AK82: 2.352517582 | AL82: 2.370387865
D83: =+D61 -> External bulk charges (excl. temporary purchases) | W83: =+W134 -> 0 | X83: 0 | Y83: 0 | Z83: 0 | AA83: 0 | AB83: 0 | AC83: 0 | AD83: 0 | AE83: 0 | AF83: 0 | AG83: 0 | AH83: =+AH134 -> 0 | AI83: 0 | AJ83: 0 | AK83: 0 | AL83: 0 | AM83: see reconciliation below
D84: Treatment | W84: 0.2668615385 | X84: 0.29819627 | Y84: 0.3192515337 | Z84: 0.3580986278 | AA84: 0.3184198473 | AB84: 0.39 | AC84: 0.40834808 | AD84: 0.43885644 | AE84: 0.45517794 | AF84: 0.4285468 | AG84: 0.39461271 | AH84: 0.4330885748 | AI84: 0.435710994 | AJ84: 0.4385757202 | AK84: 0.4416846627 | AL84: 0.4450398044
D85: Customer Service and billing | W85: 0.1143692308 | X85: 0.1144369449 | Y85: 0.1085889571 | Z85: 0.3400343053 | AA85: 0.4087964377 | AB85: 0.53 | AC85: 0.4433747 | AD85: 0.4266342 | AE85: 0.4433181 | AF85: 0.41897455 | AG85: 0.4200815 | AH85: 0.4234148773 | AI85: 0.4259787207 | AJ85: 0.4287794589 | AK85: 0.4318189584 | AL85: 0.4350991579
D86: GSL Payments | W86: 0 | X86: 0 | Y86: 0 | Z86: 0.009563464837 | AA86: 0 | AB86: 0 | AC86: 0 | AD86: 0 | AE86: 0 | AF86: 0 | AG86: 0 | AH86: 0 | AI86: 0 | AJ86: 0 | AK86: 0 | AL86: 0
D87: Licence Fees | W87: 0.003363800905 | X87: 0.005501776199 | Y87: 0.003257668712 | Z87: 0.004250428816 | AA87: 0.009458015267 | AB87: 0.01 | AC87: 0.0146179 | AD87: 0.0146179 | AE87: 0.0146179 | AF87: 0.0146179 | AG87: 0.01461795 | AH87: 0.01426632347 | AI87: 0.01435270829 | AJ87: 0.01444707493 | AK87: 0.01454948626 | AL87: 0.01466000762
D88: Corporate | W88: 0.7183957466 | X88: 0.91769627 | Y88: 0.7449202454 | Z88: 0.6078113208 | AA88: 0.6568066158 | AB88: 0.56 | AC88: 0.73275959 | AD88: 0.72687093 | AE88: 0.66603221 | AF88: 0.6738361 | AG88: 0.6695523 | AH88: 0.6809774713 | AI88: 0.6851008966 | AJ88: 0.6896053194 | AK88: 0.6944937415 | AL88: 0.6997692811
D89: Other operating expenditure | W89: 0.007120045249 | X89: 0.006987255773 | Y89: 0.006895398773 | Z89: 0.006747555746 | AA89: 0 | AB89: 0.01 | AC89: 0.00650875 | AD89: 0.00667145 | AE89: 0.00683825 | AF89: 0.0070092 | AG89: 0.00718445 | AH89: 0.007083484088 | AI89: 0.007126375693 | AJ89: 0.007173230411 | AK89: 0.007224079465 | AL89: 0.007278955291
C90: =+CONCATENATE("Total ",C81) -> Total Rural Water | W90: =+SUM(W82:W89) -> 3.409828914 | X90: 3.861751732 | Y90: 3.406815644 | Z90: 3.15950313 | AA90: 3.43010687 | AB90: 3.88360483 | AC90: 3.86135999 | AD90: 3.90491428 | AE90: 3.98200871 | AF90: 3.82552675 | AG90: 3.76967785 | AH90: =+SUM(AH82:AH89) -> 3.865563504 | AI90: =+SUM(AI82:AI89) -> 3.888970097 | AJ90: =+SUM(AJ82:AJ89) -> 3.914539419 | AK90: =+SUM(AK82:AK89) -> 3.94228851 | AL90: =+SUM(AL82:AL89) -> 3.972235071
C92: Bulk Water
D93: Operations & Maintenance | W93: 0 | X93: 0 | Y93: 0 | Z93: 0 | AA93: 0 | AB93: 0 | AC93: 0 | AD93: 0 | AE93: 0 | AF93: 0 | AG93: 0 | AH93: 0 | AI93: 0 | AJ93: 0 | AK93: 0 | AL93: 0
D94: Treatment | W94: 0 | X94: 0 | Y94: 0 | Z94: 0 | AA94: 0 | AB94: 0 | AC94: 0 | AD94: 0 | AE94: 0 | AF94: 0 | AG94: 0 | AH94: 0 | AI94: 0 | AJ94: 0 | AK94: 0 | AL94: 0
D95: Customer Service and billing | W95: 0 | X95: 0 | Y95: 0 | Z95: 0 | AA95: 0 | AB95: 0 | AC95: 0 | AD95: 0 | AE95: 0 | AF95: 0 | AG95: 0 | AH95: 0 | AI95: 0 | AJ95: 0 | AK95: 0 | AL95: 0
D96: GSL Payments | W96: 0 | X96: 0 | Y96: 0 | Z96: 0 | AA96: 0 | AB96: 0 | AC96: 0 | AD96: 0 | AE96: 0 | AF96: 0 | AG96: 0 | AH96: 0 | AI96: 0 | AJ96: 0 | AK96: 0 | AL96: 0
D97: Licence Fees | W97: 0 | X97: 0 | Y97: 0 | Z97: 0 | AA97: 0 | AB97: 0 | AC97: 0 | AD97: 0 | AE97: 0 | AF97: 0 | AG97: 0 | AH97: 0 | AI97: 0 | AJ97: 0 | AK97: 0 | AL97: 0
D98: Corporate | W98: 0 | X98: 0 | Y98: 0 | Z98: 0 | AA98: 0 | AB98: 0 | AC98: 0 | AD98: 0 | AE98: 0 | AF98: 0 | AG98: 0 | AH98: 0 | AI98: 0 | AJ98: 0 | AK98: 0 | AL98: 0
D99: Other operating expenditure | W99: 0 | X99: 0 | Y99: 0 | Z99: 0 | AA99: 0 | AB99: 0 | AC99: 0 | AD99: 0 | AE99: 0 | AF99: 0 | AG99: 0 | AH99: 0 | AI99: 0 | AJ99: 0 | AK99: 0 | AL99: 0
C100: Total Bulk water | W100: =+SUM(W93:W99) -> 0 | X100: 0 | Y100: 0 | Z100: 0 | AA100: 0 | AB100: 0 | AC100: 0 | AD100: 0 | AE100: 0 | AF100: 0 | AG100: 0 | AH100: =+SUM(AH93:AH99) -> 0 | AI100: =+SUM(AI93:AI99) -> 0 | AJ100: =+SUM(AJ93:AJ99) -> 0 | AK100: =+SUM(AK93:AK99) -> 0 | AL100: =+SUM(AL93:AL99) -> 0
C102: External temporary water purchases | W102: 0.002242533937 | X102: 0 | Y102: 0 | Z102: 0 | AA102: 0 | AB102: 0 | AC102: 0 | AD102: 0 | AE102: 0 | AF102: 0 | AG102: 0 | AH102: 0 | AI102: 0 | AJ102: 0 | AK102: 0 | AL102: 0
C105: Licence fees
D106: Essential Services Commission | W106: 0.07288235294 | X106: 0.1001323268 | Y106: 0.06189570552 | Z106: 0.09032161235 | AA106: 0.1965165394 | AB106: 0.09 | AC106: 0.0983 | AD106: 0.0983 | AE106: 0.0983 | AF106: 0.0983 | AG106: 0.0983 | AH106: 0.097224 | AI106: 0.097224 | AJ106: 0.097224 | AK106: 0.097224 | AL106: 0.097224
D107: Department of Human Services | W107: 0.04148687783 | X107: 0.04071314387 | Y107: 0.04126380368 | Z107: 0.04037907376 | AA107: 0.04098473282 | AB107: 0.040722 | AC107: 0.0407 | AD107: 0.0407 | AE107: 0.0407 | AF107: 0.0407 | AG107: 0.0407 | AH107: 0.039773 | AI107: 0.039773 | AJ107: 0.039773 | AK107: 0.039773 | AL107: 0.039773
D108: Environment Protection Authority | W108: 0.1569773756 | X108: 0.1958632327 | Y108: 0.1900306748 | Z108: 0.1891440823 | AA108: 0.1944147583 | AB108: 0.19 | AC108: 0.1941 | AD108: 0.1941 | AE108: 0.1941 | AF108: 0.1941 | AG108: 0.1941 | AH108: 0.190029 | AI108: 0.190029 | AJ108: 0.190029 | AK108: 0.190029 | AL108: 0.190029
C109: =+CONCATENATE("Total ",C105) -> Total Licence fees | W109: =+SUM(W106:W108) -> 0.2713466063 | X109: 0.3367087034 | Y109: 0.293190184 | Z109: 0.3198447684 | AA109: 0.4319160305 | AB109: 0.320722 | AC109: 0.3331 | AD109: 0.3331 | AE109: 0.3331 | AF109: 0.3331 | AG109: 0.3331 | AH109: =+SUM(AH106:AH108) -> 0.327026 | AI109: =+SUM(AI106:AI108) -> 0.327026 | AJ109: =+SUM(AJ106:AJ108) -> 0.327026 | AK109: =+SUM(AK106:AK108) -> 0.327026 | AL109: =+SUM(AL106:AL108) -> 0.327026
C111: Environment Contribution | W111: 3.66878552 | X111: 5.629417407 | Y111: 5.555411043 | Z111: 6.094052316 | AA111: 6.025806616 | AB111: 5.73432 | AC111: 5.567300971 | AD111: 5.405146574 | AE111: 5.24771512 | AF111: 5.094869049 | AG111: 4.946474804 | AH111: 8.054249613 | AI111: 7.819659818 | AJ111: 7.591902736 | AK111: 7.370779356 | AL111: 7.156096462
C113: Other non-controllable
D114: [Non-controllable 1] | W114: 0 | X114: 0 | Y114: 0 | Z114: 0 | AA114: 0 | AB114: 0 | AC114: 0 | AD114: 0 | AE114: 0 | AF114: 0 | AG114: 0 | AH114: 0 | AI114: 0 | AJ114: 0 | AK114: 0 | AL114: 0
D115: [Non-controllable 2] | W115: 0 | X115: 0 | Y115: 0 | Z115: 0 | AA115: 0 | AB115: 0 | AC115: 0 | AD115: 0 | AE115: 0 | AF115: 0 | AG115: 0 | AH115: 0 | AI115: 0 | AJ115: 0 | AK115: 0 | AL115: 0
D116: [Non-controllable 3] | W116: 0 | X116: 0 | Y116: 0 | Z116: 0 | AA116: 0 | AB116: 0 | AC116: 0 | AD116: 0 | AE116: 0 | AF116: 0 | AG116: 0 | AH116: 0 | AI116: 0 | AJ116: 0 | AK116: 0 | AL116: 0
D117: [Non-controllable 4] | W117: 0 | X117: 0 | Y117: 0 | Z117: 0 | AA117: 0 | AB117: 0 | AC117: 0 | AD117: 0 | AE117: 0 | AF117: 0 | AG117: 0 | AH117: 0 | AI117: 0 | AJ117: 0 | AK117: 0 | AL117: 0
D118: [Non-controllable 5] | W118: 0 | X118: 0 | Y118: 0 | Z118: 0 | AA118: 0 | AB118: 0 | AC118: 0 | AD118: 0 | AE118: 0 | AF118: 0 | AG118: 0 | AH118: 0 | AI118: 0 | AJ118: 0 | AK118: 0 | AL118: 0
D119: [Non-controllable 6] | W119: 0 | X119: 0 | Y119: 0 | Z119: 0 | AA119: 0 | AB119: 0 | AC119: 0 | AD119: 0 | AE119: 0 | AF119: 0 | AG119: 0 | AH119: 0 | AI119: 0 | AJ119: 0 | AK119: 0 | AL119: 0
D120: [Non-controllable 7] | W120: 0 | X120: 0 | Y120: 0 | Z120: 0 | AA120: 0 | AB120: 0 | AC120: 0 | AD120: 0 | AE120: 0 | AF120: 0 | AG120: 0 | AH120: 0 | AI120: 0 | AJ120: 0 | AK120: 0 | AL120: 0
D121: [Non-controllable 8] | W121: 0 | X121: 0 | Y121: 0 | Z121: 0 | AA121: 0 | AB121: 0 | AC121: 0 | AD121: 0 | AE121: 0 | AF121: 0 | AG121: 0 | AH121: 0 | AI121: 0 | AJ121: 0 | AK121: 0 | AL121: 0
D122: [Non-controllable 9] | W122: 0 | X122: 0 | Y122: 0 | Z122: 0 | AA122: 0 | AB122: 0 | AC122: 0 | AD122: 0 | AE122: 0 | AF122: 0 | AG122: 0 | AH122: 0 | AI122: 0 | AJ122: 0 | AK122: 0 | AL122: 0
D123: [Non-controllable 10] | W123: 0 | X123: 0 | Y123: 0 | Z123: 0 | AA123: 0 | AB123: 0 | AC123: 0 | AD123: 0 | AE123: 0 | AF123: 0 | AG123: 0 | AH123: 0 | AI123: 0 | AJ123: 0 | AK123: 0 | AL123: 0
W124: =SUM(W114:W123) -> 0 | X124: 0 | Y124: 0 | Z124: 0 | AA124: 0 | AB124: 0 | AC124: 0 | AD124: 0 | AE124: 0 | AF124: 0 | AG124: 0 | AH124: =SUM(AH114:AH123) -> 0 | AI124: =SUM(AI114:AI123) -> 0 | AJ124: =SUM(AJ114:AJ123) -> 0 | AK124: =SUM(AK114:AK123) -> 0 | AL124: =SUM(AL114:AL123) -> 0
C127: External bulk charges (excl. temporary purchases)
C128: Reconciliation
C130: Service | W130: =+W7 -> 2017-18 | X130: =+X7 -> 2018-19 | Y130: 2019-20 | Z130: 2020-21 | AA130: 2021-22 | AB130: 2022-23 | AC130: 2023-24 | AD130: 2024-25 | AE130: 2025-26 | AF130: 2026-27 | AG130: 2027-28 | AH130: =+AH7 -> 2028-29 | AI130: =+AI7 -> 2029-30 | AJ130: =+AJ7 -> 2030-31 | AK130: =+AK7 -> 2031-32 | AL130: =+AL7 -> 2032-33
D131: Water | W131: =+SUMIF($I$138:$I$179,$D$131,W$138:W$179) -> 1.948761991 | X131: 2.330552398 | Y131: 2.291226994 | Z131: 2.421681818 | AA131: 2.325620865 | AB131: 2.369807662 | AC131: 2.414834007 | AD131: 2.460715853 | AE131: 2.507469454 | AF131: 2.555111374 | AG131: 2.60365849 | AH131: 2.653128002 | AI131: 2.703537434 | AJ131: 2.754904645 | AK131: 2.807247833 | AL131: 2.860585542
D132: Sewerage | W132: =+SUMIF($I$138:$I$179,$D$132,W$138:W$179) -> 0 | X132: 0 | Y132: 0 | Z132: 0 | AA132: 0 | AB132: 0 | AC132: 0 | AD132: 0 | AE132: 0 | AF132: 0 | AG132: 0 | AH132: 0 | AI132: 0 | AJ132: 0 | AK132: 0 | AL132: 0
D133: Recycled Water | W133: =+SUMIF($I$138:$I$179,$D$133,W$138:W$179) -> 0 | X133: 0 | Y133: 0 | Z133: 0 | AA133: 0 | AB133: 0 | AC133: 0 | AD133: 0 | AE133: 0 | AF133: 0 | AG133: 0 | AH133: 0 | AI133: 0 | AJ133: 0 | AK133: 0 | AL133: 0
D134: Rural Water | W134: =+SUMIF($I$138:$I$179,$D$134,W$138:W$179) -> 0 | X134: 0 | Y134: 0 | Z134: 0 | AA134: 0 | AB134: 0 | AC134: 0 | AD134: 0 | AE134: 0 | AF134: 0 | AG134: 0 | AH134: 0 | AI134: 0 | AJ134: 0 | AK134: 0 | AL134: 0
C135: Total External Bulk Charges | W135: =SUM(W131:W134) -> 1.948761991 | X135: 2.330552398 | Y135: 2.291226994 | Z135: 2.421681818 | AA135: 2.325620865 | AB135: 2.369807662 | AC135: 2.414834007 | AD135: 2.460715853 | AE135: 2.507469454 | AF135: 2.555111374 | AG135: 2.60365849 | AH135: =SUM(AH131:AH134) -> 2.653128002 | AI135: =SUM(AI131:AI134) -> 2.703537434 | AJ135: =SUM(AJ131:AJ134) -> 2.754904645 | AK135: =SUM(AK131:AK134) -> 2.807247833 | AL135: =SUM(AL131:AL134) -> 2.860585542
C137: Description | H137: Source | I137: Service | J137: Price
B138: 1 | C138: GMW | H138: Goulburn-Murray Water | I138: Water | J138: Fixed | W138: 1.553787023 | X138: 1.862422227 | Y138: 1.626521107 | Z138: 1.728899421 | AA138: 1.490717279 | AB138: 1.519040907 | AC138: 1.547902684 | AD138: 1.577312835 | AE138: 1.607281779 | AF138: 1.637820133 | AG138: 1.668938715 | AH138: 1.700648551 | AI138: 1.732960874 | AJ138: 1.76588713 | AK138: 1.799438986 | AL138: 1.833628326 | AO138: ESC USE ONLY
B139: 2 | C139: GWMWater | H139: Goulburn-Murray Water | I139: Water | J139: Fixed | W139: 0.3949749682 | X139: 0.4681301706 | Y139: 0.6647058869 | Z139: 0.6927823977 | AA139: 0.8349035864 | AB139: 0.8507667546 | AC139: 0.8669313229 | AD139: 0.883403018 | AE139: 0.9001876754 | AF139: 0.9172912412 | AG139: 0.9347197748 | AH139: 0.9524794505 | AI139: 0.9705765601 | AJ139: 0.9890175147 | AK139: 1.007808847 | AL139: 1.026957216
B140: 3 | C140: [External bulk charge 3] | H140: 0 | I140: 0 | J140: 0 | W140: 0 | X140: 0 | Y140: 0 | Z140: 0 | AA140: 0 | AB140: 0 | AC140: 0 | AD140: 0 | AE140: 0 | AF140: 0 | AG140: 0 | AH140: 0 | AI140: 0 | AJ140: 0 | AK140: 0 | AL140: 0 | AO140: [Service]
B141: 4 | C141: [External bulk charge 4] | H141: 0 | I141: 0 | J141: 0 | W141: 0 | X141: 0 | Y141: 0 | Z141: 0 | AA141: 0 | AB141: 0 | AC141: 0 | AD141: 0 | AE141: 0 | AF141: 0 | AG141: 0 | AH141: 0 | AI141: 0 | AJ141: 0 | AK141: 0 | AL141: 0 | AO141: Water
B142: 5 | C142: [External bulk charge 5] | H142: [Source] | I142: [Service] | J142: [Price] | W142: 0 | X142: 0 | Y142: 0 | Z142: 0 | AA142: 0 | AB142: 0 | AC142: 0 | AD142: 0 | AE142: 0 | AF142: 0 | AG142: 0 | AH142: 0 | AI142: 0 | AJ142: 0 | AK142: 0 | AL142: 0 | AO142: Sewerage
B143: 6 | C143: [External bulk charge 6] | H143: [Source] | I143: [Service] | J143: [Price] | W143: 0 | X143: 0 | Y143: 0 | Z143: 0 | AA143: 0 | AB143: 0 | AC143: 0 | AD143: 0 | AE143: 0 | AF143: 0 | AG143: 0 | AH143: 0 | AI143: 0 | AJ143: 0 | AK143: 0 | AL143: 0 | AO143: Recycled Water
B144: 7 | C144: [External bulk charge 7] | H144: [Source] | I144: [Service] | J144: [Price] | W144: 0 | X144: 0 | Y144: 0 | Z144: 0 | AA144: 0 | AB144: 0 | AC144: 0 | AD144: 0 | AE144: 0 | AF144: 0 | AG144: 0 | AH144: 0 | AI144: 0 | AJ144: 0 | AK144: 0 | AL144: 0 | AO144: Rural Water
B145: 8 | C145: [External bulk charge 8] | H145: [Source] | I145: [Service] | J145: [Price] | W145: 0 | X145: 0 | Y145: 0 | Z145: 0 | AA145: 0 | AB145: 0 | AC145: 0 | AD145: 0 | AE145: 0 | AF145: 0 | AG145: 0 | AH145: 0 | AI145: 0 | AJ145: 0 | AK145: 0 | AL145: 0
B146: 9 | C146: [External bulk charge 9] | H146: [Source] | I146: [Service] | J146: [Price] | W146: 0 | X146: 0 | Y146: 0 | Z146: 0 | AA146: 0 | AB146: 0 | AC146: 0 | AD146: 0 | AE146: 0 | AF146: 0 | AG146: 0 | AH146: 0 | AI146: 0 | AJ146: 0 | AK146: 0 | AL146: 0 | AO146: [Source]
B147: 10 | C147: [External bulk charge 10] | H147: [Source] | I147: [Service] | J147: [Price] | W147: 0 | X147: 0 | Y147: 0 | Z147: 0 | AA147: 0 | AB147: 0 | AC147: 0 | AD147: 0 | AE147: 0 | AF147: 0 | AG147: 0 | AH147: 0 | AI147: 0 | AJ147: 0 | AK147: 0 | AL147: 0 | AO147: Melbourne Water
B148: 11 | C148: [External bulk charge 11] | H148: [Source] | I148: [Service] | J148: [Price] | W148: 0 | X148: 0 | Y148: 0 | Z148: 0 | AA148: 0 | AB148: 0 | AC148: 0 | AD148: 0 | AE148: 0 | AF148: 0 | AG148: 0 | AH148: 0 | AI148: 0 | AJ148: 0 | AK148: 0 | AL148: 0 | AO148: Goulburn-Murray Water
B149: 12 | C149: [External bulk charge 12] | H149: [Source] | I149: [Service] | J149: [Price] | W149: 0 | X149: 0 | Y149: 0 | Z149: 0 | AA149: 0 | AB149: 0 | AC149: 0 | AD149: 0 | AE149: 0 | AF149: 0 | AG149: 0 | AH149: 0 | AI149: 0 | AJ149: 0 | AK149: 0 | AL149: 0 | AO149: Other Sources
B150: 13 | C150: [External bulk charge 13] | H150: [Source] | I150: [Service] | J150: [Price] | W150: 0 | X150: 0 | Y150: 0 | Z150: 0 | AA150: 0 | AB150: 0 | AC150: 0 | AD150: 0 | AE150: 0 | AF150: 0 | AG150: 0 | AH150: 0 | AI150: 0 | AJ150: 0 | AK150: 0 | AL150: 0
B151: 14 | C151: [External bulk charge 14] | H151: [Source] | I151: [Service] | J151: [Price] | W151: 0 | X151: 0 | Y151: 0 | Z151: 0 | AA151: 0 | AB151: 0 | AC151: 0 | AD151: 0 | AE151: 0 | AF151: 0 | AG151: 0 | AH151: 0 | AI151: 0 | AJ151: 0 | AK151: 0 | AL151: 0
B152: 15 | C152: [External bulk charge 15] | H152: [Source] | I152: [Service] | J152: [Price] | W152: 0 | X152: 0 | Y152: 0 | Z152: 0 | AA152: 0 | AB152: 0 | AC152: 0 | AD152: 0 | AE152: 0 | AF152: 0 | AG152: 0 | AH152: 0 | AI152: 0 | AJ152: 0 | AK152: 0 | AL152: 0
B153: 16 | C153: [External bulk charge 16] | H153: [Source] | I153: [Service] | J153: [Price] | W153: 0 | X153: 0 | Y153: 0 | Z153: 0 | AA153: 0 | AB153: 0 | AC153: 0 | AD153: 0 | AE153: 0 | AF153: 0 | AG153: 0 | AH153: 0 | AI153: 0 | AJ153: 0 | AK153: 0 | AL153: 0
B154: 17 | C154: [External bulk charge 17] | H154: [Source] | I154: [Service] | J154: [Price] | W154: 0 | X154: 0 | Y154: 0 | Z154: 0 | AA154: 0 | AB154: 0 | AC154: 0 | AD154: 0 | AE154: 0 | AF154: 0 | AG154: 0 | AH154: 0 | AI154: 0 | AJ154: 0 | AK154: 0 | AL154: 0
B155: 18 | C155: [External bulk charge 18] | H155: [Source] | I155: [Service] | J155: [Price] | W155: 0 | X155: 0 | Y155: 0 | Z155: 0 | AA155: 0 | AB155: 0 | AC155: 0 | AD155: 0 | AE155: 0 | AF155: 0 | AG155: 0 | AH155: 0 | AI155: 0 | AJ155: 0 | AK155: 0 | AL155: 0
B156: 19 | C156: [External bulk charge 19] | H156: [Source] | I156: [Service] | J156: [Price] | W156: 0 | X156: 0 | Y156: 0 | Z156: 0 | AA156: 0 | AB156: 0 | AC156: 0 | AD156: 0 | AE156: 0 | AF156: 0 | AG156: 0 | AH156: 0 | AI156: 0 | AJ156: 0 | AK156: 0 | AL156: 0
B157: 20 | C157: [External bulk charge 20] | H157: [Source] | I157: [Service] | J157: [Price] | W157: 0 | X157: 0 | Y157: 0 | Z157: 0 | AA157: 0 | AB157: 0 | AC157: 0 | AD157: 0 | AE157: 0 | AF157: 0 | AG157: 0 | AH157: 0 | AI157: 0 | AJ157: 0 | AK157: 0 | AL157: 0
B158: 21 | C158: [External bulk charge 21] | H158: [Source] | I158: [Service] | J158: [Price] | W158: 0 | X158: 0 | Y158: 0 | Z158: 0 | AA158: 0 | AB158: 0 | AC158: 0 | AD158: 0 | AE158: 0 | AF158: 0 | AG158: 0 | AH158: 0 | AI158: 0 | AJ158: 0 | AK158: 0 | AL158: 0
B159: 22 | C159: [External bulk charge 22] | H159: [Source] | I159: [Service] | J159: [Price] | W159: 0 | X159: 0 | Y159: 0 | Z159: 0 | AA159: 0 | AB159: 0 | AC159: 0 | AD159: 0 | AE159: 0 | AF159: 0 | AG159: 0 | AH159: 0 | AI159: 0 | AJ159: 0 | AK159: 0 | AL159: 0
B160: 23 | C160: [External bulk charge 23] | H160: [Source] | I160: [Service] | J160: [Price] | W160: 0 | X160: 0 | Y160: 0 | Z160: 0 | AA160: 0 | AB160: 0 | AC160: 0 | AD160: 0 | AE160: 0 | AF160: 0 | AG160: 0 | AH160: 0 | AI160: 0 | AJ160: 0 | AK160: 0 | AL160: 0
B161: 24 | C161: [External bulk charge 24] | H161: [Source] | I161: [Service] | J161: [Price] | W161: 0 | X161: 0 | Y161: 0 | Z161: 0 | AA161: 0 | AB161: 0 | AC161: 0 | AD161: 0 | AE161: 0 | AF161: 0 | AG161: 0 | AH161: 0 | AI161: 0 | AJ161: 0 | AK161: 0 | AL161: 0
B162: 25 | C162: [External bulk charge 25] | H162: [Source] | I162: [Service] | J162: [Price] | W162: 0 | X162: 0 | Y162: 0 | Z162: 0 | AA162: 0 | AB162: 0 | AC162: 0 | AD162: 0 | AE162: 0 | AF162: 0 | AG162: 0 | AH162: 0 | AI162: 0 | AJ162: 0 | AK162: 0 | AL162: 0
B163: 26 | C163: [External bulk charge 26] | H163: [Source] | I163: [Service] | J163: [Price] | W163: 0 | X163: 0 | Y163: 0 | Z163: 0 | AA163: 0 | AB163: 0 | AC163: 0 | AD163: 0 | AE163: 0 | AF163: 0 | AG163: 0 | AH163: 0 | AI163: 0 | AJ163: 0 | AK163: 0 | AL163: 0
B164: 27 | C164: [External bulk charge 27] | H164: [Source] | I164: [Service] | J164: [Price] | W164: 0 | X164: 0 | Y164: 0 | Z164: 0 | AA164: 0 | AB164: 0 | AC164: 0 | AD164: 0 | AE164: 0 | AF164: 0 | AG164: 0 | AH164: 0 | AI164: 0 | AJ164: 0 | AK164: 0 | AL164: 0
B165: 28 | C165: [External bulk charge 28] | H165: [Source] | I165: [Service] | J165: [Price] | W165: 0 | X165: 0 | Y165: 0 | Z165: 0 | AA165: 0 | AB165: 0 | AC165: 0 | AD165: 0 | AE165: 0 | AF165: 0 | AG165: 0 | AH165: 0 | AI165: 0 | AJ165: 0 | AK165: 0 | AL165: 0
B166: 29 | C166: [External bulk charge 29] | H166: [Source] | I166: [Service] | J166: [Price] | W166: 0 | X166: 0 | Y166: 0 | Z166: 0 | AA166: 0 | AB166: 0 | AC166: 0 | AD166: 0 | AE166: 0 | AF166: 0 | AG166: 0 | AH166: 0 | AI166: 0 | AJ166: 0 | AK166: 0 | AL166: 0
B167: 30 | C167: [External bulk charge 30] | H167: [Source] | I167: [Service] | J167: [Price] | W167: 0 | X167: 0 | Y167: 0 | Z167: 0 | AA167: 0 | AB167: 0 | AC167: 0 | AD167: 0 | AE167: 0 | AF167: 0 | AG167: 0 | AH167: 0 | AI167: 0 | AJ167: 0 | AK167: 0 | AL167: 0
B168: 31 | C168: [External bulk charge 31] | H168: [Source] | I168: [Service] | J168: [Price] | W168: 0 | X168: 0 | Y168: 0 | Z168: 0 | AA168: 0 | AB168: 0 | AC168: 0 | AD168: 0 | AE168: 0 | AF168: 0 | AG168: 0 | AH168: 0 | AI168: 0 | AJ168: 0 | AK168: 0 | AL168: 0
B169: 32 | C169: [External bulk charge 32] | H169: [Source] | I169: [Service] | J169: [Price] | W169: 0 | X169: 0 | Y169: 0 | Z169: 0 | AA169: 0 | AB169: 0 | AC169: 0 | AD169: 0 | AE169: 0 | AF169: 0 | AG169: 0 | AH169: 0 | AI169: 0 | AJ169: 0 | AK169: 0 | AL169: 0
B170: 33 | C170: [External bulk charge 33] | H170: [Source] | I170: [Service] | J170: [Price] | W170: 0 | X170: 0 | Y170: 0 | Z170: 0 | AA170: 0 | AB170: 0 | AC170: 0 | AD170: 0 | AE170: 0 | AF170: 0 | AG170: 0 | AH170: 0 | AI170: 0 | AJ170: 0 | AK170: 0 | AL170: 0
B171: 34 | C171: [External bulk charge 34] | H171: [Source] | I171: [Service] | J171: [Price] | W171: 0 | X171: 0 | Y171: 0 | Z171: 0 | AA171: 0 | AB171: 0 | AC171: 0 | AD171: 0 | AE171: 0 | AF171: 0 | AG171: 0 | AH171: 0 | AI171: 0 | AJ171: 0 | AK171: 0 | AL171: 0
B172: 35 | C172: [External bulk charge 35] | H172: [Source] | I172: [Service] | J172: [Price] | W172: 0 | X172: 0 | Y172: 0 | Z172: 0 | AA172: 0 | AB172: 0 | AC172: 0 | AD172: 0 | AE172: 0 | AF172: 0 | AG172: 0 | AH172: 0 | AI172: 0 | AJ172: 0 | AK172: 0 | AL172: 0
B173: 36 | C173: [External bulk charge 36] | H173: [Source] | I173: [Service] | J173: [Price] | W173: 0 | X173: 0 | Y173: 0 | Z173: 0 | AA173: 0 | AB173: 0 | AC173: 0 | AD173: 0 | AE173: 0 | AF173: 0 | AG173: 0 | AH173: 0 | AI173: 0 | AJ173: 0 | AK173: 0 | AL173: 0
B174: 37 | C174: [External bulk charge 37] | H174: [Source] | I174: [Service] | J174: [Price] | W174: 0 | X174: 0 | Y174: 0 | Z174: 0 | AA174: 0 | AB174: 0 | AC174: 0 | AD174: 0 | AE174: 0 | AF174: 0 | AG174: 0 | AH174: 0 | AI174: 0 | AJ174: 0 | AK174: 0 | AL174: 0
B175: 38 | C175: [External bulk charge 38] | H175: [Source] | I175: [Service] | J175: [Price] | W175: 0 | X175: 0 | Y175: 0 | Z175: 0 | AA175: 0 | AB175: 0 | AC175: 0 | AD175: 0 | AE175: 0 | AF175: 0 | AG175: 0 | AH175: 0 | AI175: 0 | AJ175: 0 | AK175: 0 | AL175: 0
B176: 39 | C176: [External bulk charge 39] | H176: [Source] | I176: [Service] | J176: [Price] | W176: 0 | X176: 0 | Y176: 0 | Z176: 0 | AA176: 0 | AB176: 0 | AC176: 0 | AD176: 0 | AE176: 0 | AF176: 0 | AG176: 0 | AH176: 0 | AI176: 0 | AJ176: 0 | AK176: 0 | AL176: 0
B177: 40 | C177: [External bulk charge 40] | H177: [Source] | I177: [Service] | J177: [Price] | W177: 0 | X177: 0 | Y177: 0 | Z177: 0 | AA177: 0 | AB177: 0 | AC177: 0 | AD177: 0 | AE177: 0 | AF177: 0 | AG177: 0 | AH177: 0 | AI177: 0 | AJ177: 0 | AK177: 0 | AL177: 0

Sheet Opex_FO
A1: 80 | B1: Operating Expenditure - Forecast
B2: =Model_Name -> Coliban Water
B3: Go to Table of Contents
L4: FIRST REG PERIOD | P4: SECOND REG PERIOD | U4: THIRD REG PERIOD | Z4: FOURTH REG PERIOD | AE4: FIFTH REG PERIOD | AJ4: SIXTH REG PERIOD
K5: 2006 | L5: 2007 | M5: 2008 | N5: 2009 | O5: 2010 | P5: 2011 | Q5: 2012 | R5: 2013 | S5: 2014 | T5: 2015 | U5: 2016 | V5: 2017 | W5: 2018 | X5: 2019 | Y5: 2020 | Z5: 2021 | AA5: 2022 | AB5: 2023 | AC5: 2024 | AD5: 2025 | AE5: 2026 | AF5: 2027 | AG5: 2028 | AH5: 2029 | AI5: 2030 | AJ5: 2031 | AK5: 2032 | AL5: 2033
B6: =Expenditure_Detail!$B$6 -> $m, 01/01/23 | K6: =+CONCATENATE(K5-1,"-",RIGHT(K5,2)) -> 2005-06 | L6: =+CONCATENATE(L5-1,"-",RIGHT(L5,2)) -> 2006-07 | M6: 2007-08 | N6: 2008-09 | O6: 2009-10 | P6: 2010-11 | Q6: 2011-12 | R6: 2012-13 | S6: 2013-14 | T6: 2014-15 | U6: 2015-16 | V6: 2016-17 | W6: 2017-18 | X6: 2018-19 | Y6: 2019-20 | Z6: 2020-21 | AA6: 2021-22 | AB6: 2022-23 | AC6: 2023-24 | AD6: 2024-25 | AE6: 2025-26 | AF6: 2026-27 | AG6: 2027-28 | AH6: =+CONCATENATE(AH5-1,"-",RIGHT(AH5,2)) -> 2028-29 | AI6: =+CONCATENATE(AI5-1,"-",RIGHT(AI5,2)) -> 2029-30 | AJ6: =+CONCATENATE(AJ5-1,"-",RIGHT(AJ5,2)) -> 2030-31 | AK6: =+CONCATENATE(AK5-1,"-",RIGHT(AK5,2)) -> 2031-32 | AL6: =+CONCATENATE(AL5-1,"-",RIGHT(AL5,2)) -> 2032-33
C9: Parameters | G9: 4th period | I9: 5th period
D11: Cost efficiency improvement rate (% per annum) | G11: =Determination_Lookup!X33 -> 0.015 | I11: =IFERROR(AVERAGE(AC11:AG11),"-") -> 0.014 | AC11: 0.014 | AD11: 0.014 | AE11: 0.014 | AF11: 0.014 | AG11: 0.014 | AH11: 0.014 | AI11: 0.014 | AJ11: 0.014 | AK11: 0.014 | AL11: 0.014
D13: Customer growth forecast (% per annum) | G13: =Determination_Lookup!X34 -> 0.01720448428 | I13: =IFERROR(AVERAGE(AC13:AG13),"-") -> 0.019 | Y13: =IF(Y15="","",Y15/X15-1) -> 0.01609613222 | Z13: =IF(Z15="","",Z15/Y15-1) -> 0.0170765291 | AA13: =IF(AA15="","",AA15/Z15-1) -> 0.01312060327 | AB13: 0.019 | AC13: 0.019 | AD13: 0.019 | AE13: 0.019 | AF13: 0.019 | AG13: 0.019 | AH13: 0.019 | AI13: 0.019 | AJ13: 0.019 | AK13: 0.019 | AL13: 0.019
F14: Net baseline opex growth | G14: =IFERROR(G13-G11,"-") -> 0.002204484275 | I14: =IFERROR(I13-I11,"-") -> 0.005
D15: Water customers (No.) - Residential & Non-Residential - [BED 1] | W15: =+Determination_Lookup!M20 -> 75238 | X15: =+Determination_Lookup!N20 -> 76478 | Y15: =+Determination_Lookup!O20 -> 77709 | Z15: 79036 | AA15: 80073 | AB15: =+AA$15*(1+AB$13) -> 81594.387 | AC15: 83144.68035 | AD15: 84724.42928 | AE15: 86334.19344 | AF15: 87974.54311 | AG15: 89646.05943 | AH15: =+AG$15*(1+AH$13) -> 91349.33456 | AI15: =+AH$15*(1+AI$13) -> 93084.97192 | AJ15: =+AI$15*(1+AJ$13) -> 94853.58638 | AK15: =+AJ$15*(1+AK$13) -> 96655.80452 | AL15: =+AK$15*(1+AL$13) -> 98492.26481
D17: Sewer customers (No.) - Residential & Non-Residential - [BED 2] | W17: =+Determination_Lookup!M21 -> 67996 | X17: =+Determination_Lookup!N21 -> 69173 | Y17: =+Determination_Lookup!O21 -> 70474 | Z17: 72033 | AA17: 73101 | AB17: =+AA$17*(1+AB$13) -> 74489.919 | AC17: 75905.22746 | AD17: 77347.42678 | AE17: 78817.02789 | AF17: 80314.55142 | AG17: 81840.5279 | AH17: =+AG$17*(1+AH$13) -> 83395.49793 | AI17: =+AH$17*(1+AI$13) -> 84980.01239 | AJ17: =+AI$17*(1+AJ$13) -> 86594.63262 | AK17: =+AJ$17*(1+AK$13) -> 88239.93064 | AL17: =+AK$17*(1+AL$13) -> 89916.48933
D19: Total metered volume of water delivered to customers (ML) - [BED 10] | W19: =+Determination_Lookup!M22 -> 20447 | X19: =+Determination_Lookup!N22 -> 21301 | Y19: =+Determination_Lookup!O22 -> 20304 | Z19: 19859 | AA19: 20244 | AB19: 20758.807 | AC19: 21088.023 | AD19: 21423.334 | AE19: 21763.829 | AF19: 22110.611 | AG19: 22462.769 | AH19: 22821.406 | AI19: 23186.714 | AJ19: 23557.782 | AK19: 23935.521 | AL19: 24319.212
D20: Residential, Non-Residential & Recycled (Residential & Non-Residential)
C24: Baseline Forecast
D26: Baseline year - total prescribed operating expenditure in 2021-22: | AA26: =+Opex_Breakdown!AA37 -> 81.69629262
D28: Less non-controllable expenditure items incurred in 2021-22:
E29: External bulk water charges (excl. temporary purchases) | AA29: =+Opex_Breakdown!AA29 -> 2.325620865
E30: External temporary water purchases | AA30: =+Opex_Breakdown!AA30 -> 0 | AC30: Comparison with approved 2021-22 total controllable opex
E31: Licence fees | AA31: =+Opex_Breakdown!AA31 -> 0.4319160305 | AC31: per 2018 determination model
E32: Environment Contribution | AA32: =+Opex_Breakdown!AA32 -> 6.025806616
E33: Other non-controllable | AA33: =+Opex_Breakdown!AA33 -> 0
AA34: =SUM(AA29:AA33) -> 8.783343511 | AD34: 2021-22 | AE34: Difference | AF34: %
D36: Baseline year - total controllable operating expenditure in 2021-22: | AA36: =+AA26-AA34 -> 72.91294911 | AD36: =Determination_Lookup!Q18 -> 66.6358739 | AE36: =+AA52-AD36 -> 9.321869214 | AF36: =+AE36/AD36 -> 0.1398926534
D38: Adjustments for non-recurring expenditure items incurred in 2021-22 and any efficiency savings to be realised from 2021-22: | AC38: ($, 2022-23)
D40: 1 | E40: COVID Pandemic | AA40: 0.2
D41: 2 | E41: Cloud | AA41: -2.244794
D42: 3 | E42: Pumping | AA42: -0.2
D43: 4 | E43: Labour vacancy | AA43: -0.8
D44: 5 | E44: 0 | AA44: 0
D45: 6 | E45: 0 | AA45: 0
D46: 7 | E46: 0 | AA46: 0
D47: 8 | E47: 0 | AA47: 0
D48: 9 | E48: 0 | AA48: 0
D49: 10 | E49: 0 | AA49: 0
AA50: =SUM(AA40:AA49) -> -3.044794
D52: Adjusted baseline controllable operating expenditure (2021-22) | AA52: =+AA36-AA50 -> 75.95774311
D54: Adjusted baseline controllable operating expenditure (Forecast) | AB54: =+AA52*(1+$AB$13-$G$11) -> 76.26157408 | AC54: =+AB$54*(1+AC$13-AC$11) -> 76.64288195 | AD54: 77.02609636 | AE54: 77.41122684 | AF54: 77.79828298 | AG54: 78.18727439 | AH54: 78.57821076 | AI54: 78.97110182 | AJ54: 79.36595733 | AK54: 79.76278711 | AL54: 80.16160105
C58: Operating expenditure - reconciliation
D61: Adjusted baseline controllable operating expenditure (Forecast) | AC61: =+AC54 -> 76.64288195 | AD61: 77.02609636 | AE61: 77.41122684 | AF61: 77.79828298 | AG61: 78.18727439 | AH61: 78.57821076 | AI61: 78.97110182 | AJ61: 79.36595733 | AK61: 79.76278711 | AL61: 80.16160105
H62: Controllable
D63: Forecast variations to baseline operating expenditure (above or below baseline) | H63: only
D65: 1 | E65: Big Water Build | H65: Water | AC65: 0.465 | AD65: 0.472 | AE65: 0.506 | AF65: 0.51 | AG65: 0.524 | AH65: 0 | AI65: 0 | AJ65: 0 | AK65: 0 | AL65: 0
D66: 2 | E66: Big Water Build | H66: Sewerage | AC66: 0.465 | AD66: 0.472 | AE66: 0.506 | AF66: 0.51 | AG66: 0.524 | AH66: 0 | AI66: 0 | AJ66: 0 | AK66: 0 | AL66: 0
D67: 3 | E67: Resilient & Composable | H67: Water | AC67: 1.236 | AD67: 0.819 | AE67: 0.882 | AF67: 0.717 | AG67: 0.257 | AH67: 0 | AI67: 0 | AJ67: 0 | AK67: 0 | AL67: 0
D68: 4 | E68: Resilient & Composable | H68: Sewerage | AC68: 1.236 | AD68: 0.819 | AE68: 0.882 | AF68: 0.717 | AG68: 0.257 | AH68: 0 | AI68: 0 | AJ68: 0 | AK68: 0 | AL68: 0
D69: 5 | E69: Customer Experience | H69: Water | AC69: 0.37 | AD69: 0.37 | AE69: 0.37 | AF69: 0.37 | AG69: 0.37 | AH69: 0 | AI69: 0 | AJ69: 0 | AK69: 0 | AL69: 0
D70: 6 | E70: Customer Experience | H70: Sewerage | AC70: 0.37 | AD70: 0.37 | AE70: 0.37 | AF70: 0.37 | AG70: 0.37 | AH70: 0 | AI70: 0 | AJ70: 0 | AK70: 0 | AL70: 0
D71: 7 | E71: Digital Transformation | H71: Water | AC71: 0.402 | AD71: 0.327 | AE71: 0.189 | AF71: 0.179 | AG71: 0.194 | AH71: 0 | AI71: 0 | AJ71: 0 | AK71: 0 | AL71: 0
D72: 8 | E72: Digital Transformation | H72: Sewerage | AC72: 0.402 | AD72: 0.327 | AE72: 0.189 | AF72: 0.179 | AG72: 0.194 | AH72: 0 | AI72: 0 | AJ72: 0 | AK72: 0 | AL72: 0
D73: 9 | E73: Future adjustments | H73: Water | AC73: 0 | AD73: 0 | AE73: 0 | AF73: 0 | AG73: 0 | AH73: 1.816385083 | AI73: 1.871385083 | AJ73: 1.946385083 | AK73: 2.041385083 | AL73: 2.161385083
D74: 10 | E74: Future adjustments | H74: Sewerage | AC74: 0 | AD74: 0 | AE74: 0 | AF74: 0 | AG74: 0 | AH74: 1.816385083 | AI74: 1.871385083 | AJ74: 1.946385083 | AK74: 2.041385083 | AL74: 2.161385083
D75: 11 | E75: Rounding adjustments | H75: Water | AC75: -0.0003241222617 | AD75: -0.000333712023 | AE75: 4.845616691e-05 | AF75: 0.0007701665617 | AG75: -0.0003644191066 | AH75: 0.002237478868 | AI75: -0.002839662632 | AJ75: -0.003884093606 | AK75: -0.000543232 | AL75: -0.002450497605
D76: 12 | E76: 0 | H76: [Service] | AC76: 0 | AD76: 0 | AE76: 0 | AF76: 0 | AG76: 0 | AH76: 0 | AI76: 0 | AJ76: 0 | AK76: 0 | AL76: 0
D77: 13 | E77: 0 | H77: [Service] | AC77: 0 | AD77: 0 | AE77: 0 | AF77: 0 | AG77: 0 | AH77: 0 | AI77: 0 | AJ77: 0 | AK77: 0 | AL77: 0
D78: 14 | E78: 0 | H78: [Service] | AC78: 0 | AD78: 0 | AE78: 0 | AF78: 0 | AG78: 0 | AH78: 0 | AI78: 0 | AJ78: 0 | AK78: 0 | AL78: 0
D79: 15 | E79: 0 | H79: [Service] | AC79: 0 | AD79: 0 | AE79: 0 | AF79: 0 | AG79: 0 | AH79: 0 | AI79: 0 | AJ79: 0 | AK79: 0 | AL79: 0
D81: Total changes required to baseline operating expenditure | AC81: =SUM(AC65:AC80) -> 4.945675878 | AD81: 3.975666288 | AE81: 3.894048456 | AF81: 3.552770167 | AG81: 2.689635581 | AH81: 3.635007645 | AI81: 3.739930504 | AJ81: 3.888886073 | AK81: 4.082226935 | AL81: 4.320319669
D84: Total controllable operating expenditure | AC84: =+AC81+AC61 -> 81.58855783 | AD84: 81.00176265 | AE84: 81.3052753 | AF84: 81.35105314 | AG84: 80.87690997 | AH84: 82.21321841 | AI84: 82.71103232 | AJ84: 83.2548434 | AK84: 83.84501405 | AL84: 84.48192072
D86: Non-controllable operating expenditure
D87: External bulk water charges (excl. temporary purchases) | AC87: =+Opex_Breakdown!AC29 -> 2.414834007 | AD87: =+Opex_Breakdown!AD29 -> 2.460715853 | AE87: =+Opex_Breakdown!AE29 -> 2.507469454 | AF87: =+Opex_Breakdown!AF29 -> 2.555111374 | AG87: =+Opex_Breakdown!AG29 -> 2.60365849 | AH87: =+Opex_Breakdown!AH29 -> 2.653128002 | AI87: =+Opex_Breakdown!AI29 -> 2.703537434 | AJ87: =+Opex_Breakdown!AJ29 -> 2.754904645 | AK87: =+Opex_Breakdown!AK29 -> 2.807247833 | AL87: =+Opex_Breakdown!AL29 -> 2.860585542
D88: External temporary water purchases | AC88: =+Opex_Breakdown!AC30 -> 0 | AD88: =+Opex_Breakdown!AD30 -> 0 | AE88: =+Opex_Breakdown!AE30 -> 0 | AF88: =+Opex_Breakdown!AF30 -> 0 | AG88: =+Opex_Breakdown!AG30 -> 0 | AH88: =+Opex_Breakdown!AH30 -> 0 | AI88: =+Opex_Breakdown!AI30 -> 0 | AJ88: =+Opex_Breakdown!AJ30 -> 0 | AK88: =+Opex_Breakdown!AK30 -> 0 | AL88: =+Opex_Breakdown!AL30 -> 0
D89: Licence fees | AC89: =+Opex_Breakdown!AC31 -> 0.3331 | AD89: =+Opex_Breakdown!AD31 -> 0.3331 | AE89: =+Opex_Breakdown!AE31 -> 0.3331 | AF89: =+Opex_Breakdown!AF31 -> 0.3331 | AG89: =+Opex_Breakdown!AG31 -> 0.3331 | AH89: =+Opex_Breakdown!AH31 -> 0.327026 | AI89: =+Opex_Breakdown!AI31 -> 0.327026 | AJ89: =+Opex_Breakdown!AJ31 -> 0.327026 | AK89: =+Opex_Breakdown!AK31 -> 0.327026 | AL89: =+Opex_Breakdown!AL31 -> 0.327026
D90: Environment Contribution | AC90: =+Opex_Breakdown!AC32 -> 5.567300971 | AD90: =+Opex_Breakdown!AD32 -> 5.405146574 | AE90: =+Opex_Breakdown!AE32 -> 5.24771512 | AF90: =+Opex_Breakdown!AF32 -> 5.094869049 | AG90: =+Opex_Breakdown!AG32 -> 4.946474804 | AH90: =+Opex_Breakdown!AH32 -> 8.054249613 | AI90: =+Opex_Breakdown!AI32 -> 7.819659818 | AJ90: =+Opex_Breakdown!AJ32 -> 7.591902736 | AK90: =+Opex_Breakdown!AK32 -> 7.370779356 | AL90: =+Opex_Breakdown!AL32 -> 7.156096462
D91: Other non-controllable | AC91: =+Opex_Breakdown!AC33 -> 0 | AD91: =+Opex_Breakdown!AD33 -> 0 | AE91: =+Opex_Breakdown!AE33 -> 0 | AF91: =+Opex_Breakdown!AF33 -> 0 | AG91: =+Opex_Breakdown!AG33 -> 0 | AH91: =+Opex_Breakdown!AH33 -> 0 | AI91: =+Opex_Breakdown!AI33 -> 0 | AJ91: =+Opex_Breakdown!AJ33 -> 0 | AK91: =+Opex_Breakdown!AK33 -> 0 | AL91: =+Opex_Breakdown!AL33 -> 0
D92: Total non-controllable operating expenditure | AC92: =SUM(AC87:AC91) -> 8.315234978 | AD92: 8.198962427 | AE92: 8.088284575 | AF92: 7.983080423 | AG92: 7.883233295 | AH92: =SUM(AH87:AH91) -> 11.03440361 | AI92: =SUM(AI87:AI91) -> 10.85022325 | AJ92: =SUM(AJ87:AJ91) -> 10.67383338 | AK92: =SUM(AK87:AK91) -> 10.50505319 | AL92: =SUM(AL87:AL91) -> 10.343708
D95: Total prescribed operating expenditure | AC95: =+AC92+AC84 -> 89.90379281 | AD95: 89.20072508 | AE95: 89.39355987 | AF95: 89.33413357 | AG95: 88.76014327 | AH95: 93.24762202 | AI95: 93.56125557 | AJ95: 93.92867678 | AK95: 94.35006724 | AL95: 94.82562872
AB98: To reconcile to 'Opex_Breakdown' tab row 37 >> | AC98: =+Opex_Breakdown!AC37 -> 89.90379281 | AD98: =+Opex_Breakdown!AD37 -> 89.20072508 | AE98: =+Opex_Breakdown!AE37 -> 89.39355987 | AF98: =+Opex_Breakdown!AF37 -> 89.33413357 | AG98: =+Opex_Breakdown!AG37 -> 88.76014327 | AH98: =+Opex_Breakdown!AH37 -> 93.24762202 | AI98: =+Opex_Breakdown!AI37 -> 93.56125557 | AJ98: =+Opex_Breakdown!AJ37 -> 93.92867678 | AK98: =+Opex_Breakdown!AK37 -> 94.35006724 | AL98: =+Opex_Breakdown!AL37 -> 94.82562872
AB99: Difference | AC99: =+AC98-AC95 -> 0 | AD99: 0 | AE99: 0 | AF99: 0 | AG99: 0 | AH99: 0 | AI99: 0 | AJ99: 0 | AK99: 0 | AL99: 0
AB100: Test | AC100: =IF(ROUND(AC98,2)=ROUND(AC95,2),0,1) -> 0 | AD100: =IF(ROUND(AD98,2)=ROUND(AD95,2),0,1) -> 0 | AE100: 0 | AF100: 0 | AG100: 0 | AH100: 0 | AI100: 0 | AJ100: 0 | AK100: 0 | AL100: 0
AC139: =+AC$160 -> 2023-24 | AD139: 2024-25 | AE139: 2025-26 | AF139: 2026-27 | AG139: 2027-28 | AH139: 2028-29 | AI139: 2029-30 | AJ139: 2030-31 | AK139: 2031-32 | AL139: 2032-33
AB140: Total controllable opex | AC140: =+AC84 -> 81.58855783 | AD140: 81.00176265 | AE140: 81.3052753 | AF140: 81.35105314 | AG140: 80.87690997 | AH140: 82.21321841 | AI140: 82.71103232 | AJ140: 83.2548434 | AK140: 83.84501405 | AL140: 84.48192072
AB141: Change - $ | AD141: =+AD140-AC140 -> -0.58679518 | AE141: 0.30351265 | AF141: 0.04577784461 | AG141: -0.4741431708 | AH141: 1.336308437 | AI141: 0.4978139123 | AJ141: 0.5438110781 | AK141: 0.5901706482 | AL141: 0.63690667
AB142: Change - % | AC142: =IFERROR(AC141/AB140,"") ->  | AD142: -0.007192125901 | AE142: 0.003746988214 | AF142: 0.0005630365858 | AG142: -0.005828359344 | AH142: 0.01652274347 | AI142: 0.006055156603 | AJ142: 0.006574831227 | AK142: 0.007088724501 | AL142: 0.007596237859
AC144: =+AC$160 -> 2023-24 | AD144: 2024-25 | AE144: 2025-26 | AF144: 2026-27 | AG144: 2027-28 | AH144: 2028-29 | AI144: 2029-30 | AJ144: 2030-31 | AK144: 2031-32 | AL144: 2032-33
AB145: Total non-controllable opex | AC145: =+AC92 -> 8.315234978 | AD145: 8.198962427 | AE145: 8.088284575 | AF145: 7.983080423 | AG145: 7.883233295 | AH145: 11.03440361 | AI145: 10.85022325 | AJ145: 10.67383338 | AK145: 10.50505319 | AL145: 10.343708
AB146: Change - $ | AD146: =+AD145-AC145 -> -0.1162725511 | AE146: -0.1106778524 | AF146: -0.1052041518 | AG146: -0.09984712803 | AH146: 3.15117032 | AI146: -0.1841803625 | AJ146: -0.1763898709 | AK146: -0.1687801924 | AL146: -0.161345185
AB147: Change - % | AC147: =IFERROR(AC146/AB145,"") ->  | AD147: -0.01398307461 | AE147: -0.01349900715 | AF147: -0.01300697952 | AG147: -0.01250734337 | AH147: 0.3997306945 | AI147: -0.01669146507 | AJ147: -0.01625679645 | AK147: -0.01581251893 | AL147: -0.01535881657
AC149: =+AC$160 -> 2023-24 | AD149: 2024-25 | AE149: 2025-26 | AF149: 2026-27 | AG149: 2027-28 | AH149: 2028-29 | AI149: 2029-30 | AJ149: 2030-31 | AK149: 2031-32 | AL149: 2032-33
AB150: Total prescribed opex | AC150: =+AC140+AC145 -> 89.90379281 | AD150: 89.20072508 | AE150: 89.39355987 | AF150: 89.33413357 | AG150: 88.76014327 | AH150: 93.24762202 | AI150: 93.56125557 | AJ150: 93.92867678 | AK150: 94.35006724 | AL150: 94.82562872
AB151: Change - $ | AD151: =+AD150-AC150 -> -0.7030677311 | AE151: 0.1928347976 | AF151: -0.05942630721 | AG151: -0.5739902988 | AH151: 4.487478756 | AI151: 0.3136335498 | AJ151: 0.3674212073 | AK151: 0.4213904558 | AL151: 0.4755614849
AB152: Change - % | AC152: =IFERROR(AC151/AB150,"") ->  | AD152: -0.007820223253 | AE152: 0.002161807513 | AF152: -0.0006647716826 | AG152: -0.006425206983 | AH152: 0.0505573627 | AI152: 0.003363448236 | AJ152: 0.003927065803 | AK152: 0.00448628119 | AL152: 0.005040393705
AB155: Controllable vs. Non-controllable opex - % | AC155: =+AC$160 -> 2023-24 | AD155: 2024-25 | AE155: 2025-26 | AF155: 2026-27 | AG155: 2027-28 | AH155: 2028-29 | AI155: 2029-30 | AJ155: 2030-31 | AK155: 2031-32 | AL155: 2032-33
AB156: Controllable opex - % | AC156: =+AC84/AC95 -> 0.9075096309 | AD156: 0.908084128 | AE156: 0.9095205003 | AF156: 0.9106379599 | AG156: 0.9111849868 | AH156: 0.8816655763 | AI156: 0.8840308076 | AJ156: 0.8863623576 | AK156: 0.8886587631 | AL156: 0.8909186457
AB157: Non-controllable opex - % | AC157: =+AC92/AC95 -> 0.09249036907 | AD157: 0.09191587198 | AE157: 0.09047949971 | AF157: 0.08936204006 | AG157: 0.08881501319 | AH157: 0.1183344237 | AI157: 0.1159691924 | AJ157: 0.1136376424 | AK157: 0.1113412369 | AL157: 0.1090813543
AC158: =SUM(AC156:AC157) -> 1 | AD158: 1 | AE158: 1 | AF158: 1 | AG158: 1 | AH158: 1 | AI158: 1 | AJ158: 1 | AK158: 1 | AL158: 1
AA160: =+AA6 -> 2021-22 | AB160: 2022-23 | AC160: 2023-24 | AD160: 2024-25 | AE160: 2025-26 | AF160: 2026-27 | AG160: 2027-28 | AH160: =+AH6 -> 2028-29 | AI160: =+AI6 -> 2029-30 | AJ160: =+AJ6 -> 2030-31 | AK160: =+AK6 -> 2031-32 | AL160: =+AL6 -> 2032-33
Y161: Fourth reg period opex | Z161: Third Reg period Opex | AA161: =+AA169-SUM(AA162:AA168) -> 81.69629262 | AB161: =+AB169-SUM(AB162:AB168) -> 86.54454426
Z162: Adjusted baseline opex | AC162: =+AC61 -> 76.64288195 | AD162: 77.02609636 | AE162: 77.41122684 | AF162: 77.79828298 | AG162: 78.18727439 | AH162: 78.57821076 | AI162: 78.97110182 | AJ162: 79.36595733 | AK162: 79.76278711 | AL162: 80.16160105
Z163: Forecast variations to baseline operating expenditure | AC163: =+AC81 -> 4.945675878 | AD163: 3.975666288 | AE163: 3.894048456 | AF163: 3.552770167 | AG163: 2.689635581 | AH163: 3.635007645 | AI163: 3.739930504 | AJ163: 3.888886073 | AK163: 4.082226935 | AL163: 4.320319669
Z164: Licence fees | AA164: =+AA193 -> 0 | AB164: =+AB193 -> 0 | AC164: =+AC89 -> 0.3331 | AD164: 0.3331 | AE164: 0.3331 | AF164: 0.3331 | AG164: 0.3331 | AH164: =+AH89 -> 0.327026 | AI164: 0.327026 | AJ164: 0.327026 | AK164: 0.327026 | AL164: 0.327026
Z165: Environment Contribution | AA165: =+AA194 -> 0 | AB165: =+AB194 -> 0 | AC165: =+AC90 -> 5.567300971 | AD165: 5.405146574 | AE165: 5.24771512 | AF165: 5.094869049 | AG165: 4.946474804 | AH165: 8.054249613 | AI165: 7.819659818 | AJ165: 7.591902736 | AK165: 7.370779356 | AL165: 7.156096462
Z166: External bulk water charges | AA166: =+AA191 -> 0 | AB166: =+AB191 -> 0 | AC166: =+AC87 -> 2.414834007 | AD166: 2.460715853 | AE166: 2.507469454 | AF166: 2.555111374 | AG166: 2.60365849 | AH166: =+AH87 -> 2.653128002 | AI166: 2.703537434 | AJ166: 2.754904645 | AK166: 2.807247833 | AL166: 2.860585542
Z167: External temporary water purchases | AA167: =+AA192 -> 0 | AB167: =+AB192 -> 0 | AC167: =+AC88 -> 0 | AD167: 0 | AE167: 0 | AF167: 0 | AG167: 0 | AH167: 0 | AI167: 0 | AJ167: 0 | AK167: 0 | AL167: 0
Z168: Other non-controllable | AA168: =+AA195 -> 0 | AB168: =+AB195 -> 0 | AC168: =+AC91 -> 0 | AD168: 0 | AE168: 0 | AF168: 0 | AG168: 0 | AH168: =+AH91 -> 0 | AI168: =+AI91 -> 0 | AJ168: =+AJ91 -> 0 | AK168: =+AK91 -> 0 | AL168: =+AL91 -> 0
Z169: Total prescribed opex | AA169: =+Opex_Breakdown!AA37 -> 81.69629262 | AB169: =+Opex_Breakdown!AB37 -> 86.54454426 | AC169: =SUM(AC162:AC168) -> 89.90379281 | AD169: 89.20072508 | AE169: 89.39355987 | AF169: 89.33413357 | AG169: 88.76014327 | AH169: =SUM(AH162:AH168) -> 93.24762202 | AI169: =SUM(AI162:AI168) -> 93.56125557 | AJ169: =SUM(AJ162:AJ168) -> 93.92867678 | AK169: =SUM(AK162:AK168) -> 94.35006724 | AL169: =SUM(AL162:AL168) -> 94.82562872
AC171: =+AC$160 -> 2023-24 | AD171: 2024-25 | AE171: 2025-26 | AF171: 2026-27 | AG171: 2027-28 | AH171: 2028-29 | AI171: 2029-30 | AJ171: 2030-31 | AK171: 2031-32 | AL171: 2032-33
AB172: Adjusted baseline opex | AC172: =+AC162/AC$169 -> 0.8524988719 | AD172: 0.8635142404 | AE172: 0.8659597733 | AF172: 0.8708685009 | AG172: 0.8808826971 | AH172: 0.842683267 | AI172: 0.8440577388 | AJ172: 0.8449598147 | AK172: 0.8453919478 | AL172: 0.8453579705
AB173: Forecast variations to baseline operating expenditure | AC173: =+AC163/AC$169 -> 0.05501075898 | AD173: 0.04456988757 | AE173: 0.04356072699 | AF173: 0.03976945905 | AG173: 0.03030228976 | AH173: 0.03898230932 | AI173: 0.03997306878 | AJ173: 0.04140254293 | AK173: 0.04326681532 | AL173: 0.04556067518
AB174: Licence fees | AC174: =+AC164/AC$169 -> 0.003705071717 | AD174: 0.003734274578 | AE174: 0.003726219209 | AF174: 0.003728697942 | AG174: 0.003752810527 | AH174: 0.003507070667 | AI174: 0.003495314358 | AJ174: 0.003481641722 | AK174: 0.00346609186 | AL174: 0.003448709008
AB175: Environment Contribution | AC175: =+AC165/AC$169 -> 0.06192509567 | AD175: 0.06059532105 | AE175: 0.05870350311 | AF175: 0.05703160534 | AG175: 0.05572855814 | AH175: 0.08637485266 | AI175: 0.08357797007 | AJ175: 0.08082625026 | AK175: 0.07812161211 | AL175: 0.07546584777
AB176: External bulk water charges (excl. temporary purchases) | AC176: =+AC166/AC$169 -> 0.02686020169 | AD176: 0.02758627636 | AE176: 0.02804977739 | AF176: 0.02860173678 | AG176: 0.02933364452 | AH176: 0.02845250038 | AI176: 0.028895908 | AJ176: 0.02932975039 | AK176: 0.02975353294 | AL176: 0.03016679753
AB177: External temporary water purchases | AC177: =+AC167/AC$169 -> 0 | AD177: 0 | AE177: 0 | AF177: 0 | AG177: 0 | AH177: 0 | AI177: 0 | AJ177: 0 | AK177: 0 | AL177: 0
AB178: Other non-controllable | AC178: =+AC168/AC$169 -> 0 | AD178: 0 | AE178: 0 | AF178: 0 | AG178: 0 | AH178: 0 | AI178: 0 | AJ178: 0 | AK178: 0 | AL178: 0
AB179: Total prescribed opex | AC179: =+AC169/AC$169 -> 1 | AD179: 1 | AE179: 1 | AF179: 1 | AG179: 1 | AH179: 1 | AI179: 1 | AJ179: 1 | AK179: 1 | AL179: 1
AC181: =+AC$160 -> 2023-24 | AD181: 2024-25 | AE181: 2025-26 | AF181: 2026-27 | AG181: 2027-28 | AH181: 2028-29 | AI181: 2029-30 | AJ181: 2030-31 | AK181: 2031-32 | AL181: 2032-33
AB182: Water | AC182: =+SUMIF($H$65:$H$80,$AB182,AC$65:AC$80) -> 2.472675878 | AD182: =+SUMIF($H$65:$H$80,$AB182,AD$65:AD$80) -> 1.987666288 | AE182: 1.947048456 | AF182: 1.776770167 | AG182: 1.344635581 | AH182: 1.818622562 | AI182: 1.868545421 | AJ182: 1.94250099 | AK182: 2.040841851 | AL182: 2.158934586
AB183: Sewerage | AC183: 2.473 | AD183: 1.988 | AE183: 1.947 | AF183: 1.776 | AG183: 1.345 | AH183: 1.816385083 | AI183: 1.871385083 | AJ183: 1.946385083 | AK183: 2.041385083 | AL183: 2.161385083
AB184: Recycled Water | AC184: 0 | AD184: 0 | AE184: 0 | AF184: 0 | AG184: 0 | AH184: 0 | AI184: 0 | AJ184: 0 | AK184: 0 | AL184: 0
AB185: Rural water | AC185: 0 | AD185: 0 | AE185: 0 | AF185: 0 | AG185: 0 | AH185: 0 | AI185: 0 | AJ185: 0 | AK185: 0 | AL185: 0
AB186: Bulk Water | AC186: 0 | AD186: 0 | AE186: 0 | AF186: 0 | AG186: 0 | AH186: 0 | AI186: 0 | AJ186: 0 | AK186: 0 | AL186: 0
AB187: Forecast variations to baseline operating expenditure | AC187: =SUM(AC182:AC186) -> 4.945675878 | AD187: 3.975666288 | AE187: 3.894048456 | AF187: 3.552770167 | AG187: 2.689635581 | AH187: 3.635007645 | AI187: 3.739930504 | AJ187: 3.888886073 | AK187: 4.082226935 | AL187: 4.320319669
AA190: =+AA6 -> 2021-22 | AB190: 2022-23 | AC190: 2023-24 | AD190: 2024-25 | AE190: 2025-26 | AF190: 2026-27 | AG190: 2027-28 | AH190: =+AH6 -> 2028-29 | AI190: =+AI6 -> 2029-30 | AJ190: =+AJ6 -> 2030-31 | AK190: =+AK6 -> 2031-32 | AL190: =+AL6 -> 2032-33
Z191: External bulk water charges (excl. temporary purchases) | AA191: =+AA87 -> 0 | AB191: 0 | AC191: 2.414834007 | AD191: 2.460715853 | AE191: 2.507469454 | AF191: 2.555111374 | AG191: 2.60365849 | AH191: =+AH87 -> 2.653128002 | AI191: 2.703537434 | AJ191: 2.754904645 | AK191: 2.807247833 | AL191: 2.860585542
Z192: External temporary water purchases | AA192: =+AA88 -> 0 | AB192: 0 | AC192: 0 | AD192: 0 | AE192: 0 | AF192: 0 | AG192: 0 | AH192: 0 | AI192: 0 | AJ192: 0 | AK192: 0 | AL192: 0
Z193: Licence fees | AA193: =+AA89 -> 0 | AB193: 0 | AC193: 0.3331 | AD193: 0.3331 | AE193: 0.3331 | AF193: 0.3331 | AG193: 0.3331 | AH193: 0.327026 | AI193: 0.327026 | AJ193: 0.327026 | AK193: 0.327026 | AL193: 0.327026
Z194: Environment Contribution | AA194: =+AA90 -> 0 | AB194: 0 | AC194: 5.567300971 | AD194: 5.405146574 | AE194: 5.24771512 | AF194: 5.094869049 | AG194: 4.946474804 | AH194: 8.054249613 | AI194: 7.819659818 | AJ194: 7.591902736 | AK194: 7.370779356 | AL194: 7.156096462
Z195: Other non-controllable | AA195: =+AA91 -> 0 | AB195: 0 | AC195: 0 | AD195: 0 | AE195: 0 | AF195: 0 | AG195: 0 | AH195: 0 | AI195: 0 | AJ195: 0 | AK195: 0 | AL195: 0
Z196: Total Non-controllable operating expenditure | AA196: =SUM(AA191:AA195) -> 0 | AB196: 0 | AC196: 8.315234978 | AD196: 8.198962427 | AE196: 8.088284575 | AF196: 7.983080423 | AG196: 7.883233295 | AH196: =SUM(AH191:AH195) -> 11.03440361 | AI196: =SUM(AI191:AI195) -> 10.85022325 | AJ196: =SUM(AJ191:AJ195) -> 10.67383338 | AK196: =SUM(AK191:AK195) -> 10.50505319 | AL196: =SUM(AL191:AL195) -> 10.343708
AB198: Check | AC198: =IF(ROUND(AC169,2)=ROUND(AC95,2),0,1) -> 0 | AD198: =IF(ROUND(AD169,2)=ROUND(AD95,2),0,1) -> 0 | AE198: 0 | AF198: 0 | AG198: 0 | AH198: 0 | AI198: 0 | AJ198: 0 | AK198: 0 | AL198: 0
AC199: =IF(ROUND(AC187,2)=ROUND(AC163,2),0,1) -> 0 | AD199: =IF(ROUND(AD187,2)=ROUND(AD163,2),0,1) -> 0 | AE199: 0 | AF199: 0 | AG199: 0 | AH199: 0 | AI199: 0 | AJ199: 0 | AK199: 0 | AL199: 0
AC200: =IF(ROUND(AC150,2)=ROUND(AC169,2),0,1) -> 0 | AD200: =IF(ROUND(AD150,2)=ROUND(AD169,2),0,1) -> 0 | AE200: 0 | AF200: 0 | AG200: 0 | AH200: 0 | AI200: 0 | AJ200: 0 | AK200: 0 | AL200: 0
AC201: =IF(ROUND(AC196,2)=ROUND(AC145,2),0,1) -> 0 | AD201: =IF(ROUND(AD196,2)=ROUND(AD145,2),0,1) -> 0 | AE201: 0 | AF201: 0 | AG201: 0 | AH201: 0 | AI201: 0 | AJ201: 0 | AK201: 0 | AL201: 0

Sheet Capex_FO input
B1: Capital Expenditure - Forecast Input | Q1: =Q36 -> Gross capital expenditure | AB1: =AB36 -> Government contributions | AM1: =AM36 -> Customer contributions | AX1: =AX36 -> Net capital expenditure | BI1: =BI36 -> Regulatory Depreciation | BT1: =BT36 -> Accumulated capex | CE1: =CE36 -> Gross capital expenditure | CP1: =CP36 -> Tax Depreciation
B2: =+Contents!H7 -> Coliban Water | Q2: =Q37 -> $m, 01/01/23 | AB2: =AB37 -> $m, 01/01/23 | AM2: =AM37 -> $m, 01/01/23 | AX2: =AX37 -> $m, 01/01/23 | BI2: =BI37 -> $m, 01/01/23 | BT2: =BT37 -> $m, 01/01/23 | CE2: =CE37 -> Nominal,$ | CP2: =CP37 -> Nominal,$
B3: Go to Table of Contents | Q3: =Q39 -> 2023-24 | R3: =R39 -> 2024-25 | S3: 2025-26 | T3: 2026-27 | U3: 2027-28 | V3: 2028-29 | W3: 2029-30 | X3: 2030-31 | Y3: =Y39 -> 2031-32 | Z3: =Z39 -> 2032-33 | AB3: 2023-24 | AC3: 2024-25 | AD3: 2025-26 | AE3: 2026-27 | AF3: 2027-28 | AG3: 2028-29 | AH3: 2029-30 | AI3: 2030-31 | AJ3: 2031-32 | AK3: 2032-33 | AM3: 2023-24 | AN3: 2024-25 | AO3: 2025-26 | AP3: 2026-27 | AQ3: 2027-28 | AR3: 2028-29 | AS3: 2029-30 | AT3: 2030-31 | AU3: 2031-32 | AV3: 2032-33 | AX3: 2023-24 | AY3: 2024-25 | AZ3: 2025-26 | BA3: 2026-27 | BB3: 2027-28 | BC3: 2028-29 | BD3: 2029-30 | BE3: 2030-31 | BF3: 2031-32 | BG3: 2032-33 | BI3: 2023-24 | BJ3: 2024-25 | BK3: 2025-26 | BL3: 2026-27 | BM3: 2027-28 | BN3: 2028-29 | BO3: 2029-30 | BP3: 2030-31 | BQ3: 2031-32 | BR3: 2032-33 | BT3: 2023-24 | BU3: 2024-25 | BV3: 2025-26 | BW3: 2026-27 | BX3: 2027-28 | BY3: 2028-29 | BZ3: 2029-30 | CA3: 2030-31 | CB3: =CB39 -> 2031-32 | CC3: =CC39 -> 2032-33 | CE3: 2023-24 | CF3: 2024-25 | CG3: 2025-26 | CH3: 2026-27 | CI3: 2027-28 | CJ3: 2028-29 | CK3: 2029-30 | CL3: 2030-31 | CM3: =CM39 -> 2031-32 | CN3: =CN39 -> 2032-33 | CP3: 2023-24 | CQ3: 2024-25 | CR3: =CR39 -> 2025-26 | CS3: 2026-27 | CT3: 2027-28 | CU3: 2028-29 | CV3: 2029-30 | CW3: 2030-31 | CX3: =CX39 -> 2031-32 | CY3: =CY39 -> 2032-33
C7: Input Summary | F7: FIFTH REG PERIOD | K7: SIXTH REG PERIOD
D9: =+Q39 -> 2023-24 | E9: =+R39 -> 2024-25 | F9: 2025-26 | G9: 2026-27 | H9: 2027-28 | I9: 2028-29 | J9: 2029-30 | K9: 2030-31 | L9: =+Y39 -> 2031-32 | M9: =+Z39 -> 2032-33
C10: By Cost Driver
C11: Net capital expenditure - Renewals | D11: =+SUMIF($F$42:$F$1016,"Renewals",AX$42:AX$1016) -> 9.79 | E11: 14.34 | F11: 14.38 | G11: 14.33 | H11: 14.41 | I11: 14.54719643 | J11: 19.78428669 | K11: 25.25123065 | L11: =+SUMIF($F$42:$F$1016,"Renewals",BF$42:BF$1016) -> 25.23092867 | M11: =+SUMIF($F$42:$F$1016,"Renewals",BG$42:BG$1016) -> 25.22334429
C12: Net capital expenditure - Growth | D12: =+SUMIF($F$42:$F$1016,"Growth",AX$42:AX$1016) -> 4.839355782 | E12: -0.8502575924 | F12: 11.03861812 | G12: 14.04024603 | H12: 18.80265973 | I12: 5.47673846 | J12: 13.60052598 | K12: 10.47644146 | L12: =+SUMIF($F$42:$F$1016,"Growth",BF$42:BF$1016) -> 10.19050567 | M12: =+SUMIF($F$42:$F$1016,"Growth",BG$42:BG$1016) -> 9.907422097
C13: Net capital expenditure - Improvements / Compliance | D13: =+SUMIF($F$42:$F$1016,"Improvements / Compliance",AX$42:AX$1016) -> 63.63 | E13: 75.39 | F13: 68.39 | G13: 67.13 | H13: 60.86 | I13: 78.91219953 | J13: 65.23730926 | K13: 62.56907417 | L13: =+SUMIF($F$42:$F$1016,"Improvements / Compliance",BF$42:BF$1016) -> 62.54169414 | M13: =+SUMIF($F$42:$F$1016,"Improvements / Compliance",BG$42:BG$1016) -> 62.48890635
C14: Government Contributions | D14: =+AB41 -> 0 | E14: 0 | F14: 0 | G14: 0 | H14: 0 | I14: 0 | J14: 0 | K14: 0 | L14: =+AJ41 -> 0 | M14: =+AK41 -> 0
C15: Customer Contributions | D15: =+AM41 -> 8.567275146 | E15: 9.743187261 | F15: 11.13270112 | G15: 12.77692905 | H15: 14.75804611 | I15: 15.08964058 | J15: 15.42579612 | K15: 15.77009935 | L15: =+AU41 -> 16.14850488 | M15: =+AV41 -> 16.51710991
C16: Total prescribed capex | D16: =SUM(D11:D15) -> 86.82663093 | E16: 98.62292967 | F16: 104.9413192 | G16: 108.2771751 | H16: 108.8307058 | I16: 114.025775 | J16: 114.0479181 | K16: 114.0668456 | L16: =SUM(L11:L15) -> 114.1116334 | M16: =SUM(M11:M15) -> 114.1367827
C18: By Capital Type
C19: Top 10 Major Projects | D19: =+SUMIF($H$42:$H$1016,$C$19,Q$42:Q$1016) -> 19.49 | E19: 45.79 | F19: 59.16 | G19: 33.01 | H19: 47.53 | I19: 62.39 | J19: 23.54 | K19: 0 | L19: =+SUMIF($H$42:$H$1016,$C$19,Y$42:Y$1016) -> 0 | M19: =+SUMIF($H$42:$H$1016,$C$19,Z$42:Z$1016) -> 0
C20: Significant projects | D20: =+SUMIF($H$42:$H$1016,$C$20,Q$42:Q$1016) -> 10.74 | E20: 10.6 | F20: 10.39 | G20: 9.63 | H20: 3.99 | I20: 0 | J20: 0 | K20: 0 | L20: =+SUMIF($H$42:$H$1016,$C$20,Y$42:Y$1016) -> 0 | M20: =+SUMIF($H$42:$H$1016,$C$20,Z$42:Z$1016) -> 0
C21: Capital Programs / Allocation | D21: =+SUMIF($H$42:$H$1016,$C$21,Q$42:Q$1016) -> 49.84 | E21: 35.44 | F21: 28.08 | G21: 57.95 | H21: 49.83 | I21: 44.18346045 | J21: 81.56407826 | K21: 104.1024822 | L21: =+SUMIF($H$42:$H$1016,$C$21,Y$42:Y$1016) -> 104.0187838 | M21: =+SUMIF($H$42:$H$1016,$C$21,Z$42:Z$1016) -> 103.987516
C22: Other Capital expenditure | D22: =+SUMIF($H$42:$H$1016,$C$22,Q$42:Q$1016) -> 6.756630928 | E22: 6.792929669 | F22: 7.311319243 | G22: 7.687175083 | H22: 7.48070584 | I22: 7.452314544 | J22: 8.943839787 | K22: 9.96436343 | L22: =+SUMIF($H$42:$H$1016,$C$22,Y$42:Y$1016) -> 10.09284951 | M22: =+SUMIF($H$42:$H$1016,$C$22,Z$42:Z$1016) -> 10.1492667
C23: Total prescribed capex | D23: =SUM(D19:D22) -> 86.82663093 | E23: 98.62292967 | F23: 104.9413192 | G23: 108.2771751 | H23: 108.8307058 | I23: 114.025775 | J23: 114.0479181 | K23: 114.0668456 | L23: =SUM(L19:L22) -> 114.1116334 | M23: =SUM(M19:M22) -> 114.1367827
C25: Difference | D25: =+D23-D16 -> 0 | E25: 0 | F25: 0 | G25: 0 | H25: 0 | I25: 0 | J25: 0 | K25: 0 | L25: =+L23-L16 -> 0 | M25: =+M23-M16 -> 0
C26: Test | D26: =IF(+D23=D16,0,1) -> 0 | E26: 0 | F26: 0 | G26: 0 | H26: 0 | I26: 0 | J26: 0 | K26: 0 | L26: 0 | M26: 0
C29: Total prescribed capex | D29: =+D23 -> 86.82663093 | E29: 98.62292967 | F29: 104.9413192 | G29: 108.2771751 | H29: 108.8307058 | I29: 114.025775 | J29: 114.0479181 | K29: 114.0668456 | L29: =+L23 -> 114.1116334 | M29: =+M23 -> 114.1367827
C32: Regulatory Depreciation | D32: =+BI41 -> 0.8805257937 | E32: 2.488518651 | F32: 4.143410119 | G32: 7.871872024 | H32: 11.82941627 | I32: 13.63134987 | J32: 16.12450582 | K32: 21.12891966 | L32: =+BQ41 -> 25.49767434 | M32: =+BR41 -> 27.82992632
B35: =Expenditure_Detail!$B$6 -> $m, 01/01/23
Q36: Gross capital expenditure | AB36: Government contributions | AM36: Customer contributions | AX36: Net capital expenditure | BI36: Regulatory Depreciation | BT36: Accumulated capex | CE36: Gross capital expenditure | CP36: Tax Depreciation
Q37: =Expenditure_Detail!$B$6 -> $m, 01/01/23 | AB37: =Expenditure_Detail!$B$6 -> $m, 01/01/23 | AM37: =Expenditure_Detail!$B$6 -> $m, 01/01/23 | AX37: =Expenditure_Detail!$B$6 -> $m, 01/01/23 | BI37: =Expenditure_Detail!$B$6 -> $m, 01/01/23 | BT37: =Expenditure_Detail!$B$6 -> $m, 01/01/23 | CE37: Nominal,$ | CP37: Nominal,$
Q39: 2023-24 | R39: 2024-25 | S39: 2025-26 | T39: 2026-27 | U39: 2027-28 | V39: 2028-29 | W39: 2029-30 | X39: 2030-31 | Y39: 2031-32 | Z39: 2032-33 | AB39: 2023-24 | AC39: 2024-25 | AD39: 2025-26 | AE39: 2026-27 | AF39: 2027-28 | AG39: 2028-29 | AH39: 2029-30 | AI39: 2030-31 | AJ39: 2031-32 | AK39: 2032-33 | AM39: 2023-24 | AN39: 2024-25 | AO39: 2025-26 | AP39: 2026-27 | AQ39: 2027-28 | AR39: 2028-29 | AS39: 2029-30 | AT39: 2030-31 | AU39: 2031-32 | AV39: 2032-33 | AX39: 2023-24 | AY39: 2024-25 | AZ39: 2025-26 | BA39: 2026-27 | BB39: 2027-28 | BC39: 2028-29 | BD39: 2029-30 | BE39: 2030-31 | BF39: 2031-32 | BG39: 2032-33 | BI39: 2023-24 | BJ39: 2024-25 | BK39: 2025-26 | BL39: 2026-27 | BM39: 2027-28 | BN39: 2028-29 | BO39: 2029-30 | BP39: 2030-31 | BQ39: 2031-32 | BR39: 2032-33 | BT39: 2023-24 | BU39: 2024-25 | BV39: 2025-26 | BW39: 2026-27 | BX39: 2027-28 | BY39: 2028-29 | BZ39: 2029-30 | CA39: 2030-31 | CB39: 2031-32 | CC39: 2032-33 | CE39: 2023-24 | CF39: 2024-25 | CG39: 2025-26 | CH39: 2026-27 | CI39: 2027-28 | CJ39: 2028-29 | CK39: 2029-30 | CL39: 2030-31 | CM39: 2031-32 | CN39: 2032-33 | CP39: 2023-24 | CQ39: 2024-25 | CR39: 2025-26 | CS39: 2026-27 | CT39: 2027-28 | CU39: 2028-29 | CV39: 2029-30 | CW39: 2030-31 | CX39: 2031-32 | CY39: 2032-33
BI40: 1 | BJ40: 2 | BK40: 3 | BL40: 4 | BM40: 5 | BN40: 6 | BO40: 7 | BP40: 8 | BQ40: 9 | BR40: 10 | CP40: 1 | CQ40: 2 | CR40: 3 | CS40: 4 | CT40: 5 | CU40: 6 | CV40: 7 | CW40: 8 | CX40: 9 | CY40: 10
C41: Project/program Name | E41: Service | F41: Major cost driver | G41: Asset category | H41: Capital type | J41: Reg Depreciation Method | K41: Year asset operational | L41: Asset life (Regulatory) | M41: Asset life (Tax) | Q41: =SUM(Q42:Q1016) -> 86.82663093 | R41: 98.62292967 | S41: 104.9413192 | T41: 108.2771751 | U41: 108.8307058 | V41: 114.025775 | W41: 114.0479181 | X41: 114.0668456 | Y41: =SUM(Y42:Y1016) -> 114.1116334 | Z41: =SUM(Z42:Z1016) -> 114.1367827 | AB41: =SUM(AB42:AB1016) -> 0 | AC41: 0 | AD41: 0 | AE41: 0 | AF41: 0 | AG41: 0 | AH41: 0 | AI41: 0 | AJ41: 0 | AK41: 0 | AM41: =SUM(AM42:AM1016) -> 8.567275146 | AN41: 9.743187261 | AO41: 11.13270112 | AP41: 12.77692905 | AQ41: 14.75804611 | AR41: 15.08964058 | AS41: 15.42579612 | AT41: 15.77009935 | AU41: 16.14850488 | AV41: 16.51710991 | AX41: =SUM(AX42:AX1016) -> 78.25935578 | AY41: 88.87974241 | AZ41: 93.80861812 | BA41: 95.50024603 | BB41: 94.07265973 | BC41: 98.93613442 | BD41: 98.62212193 | BE41: 98.29674628 | BF41: 97.96312848 | BG41: 97.61967274 | BI41: =SUM(BI42:BI1016) -> 0.8805257937 | BJ41: 2.488518651 | BK41: 4.143410119 | BL41: 7.871872024 | BM41: 11.82941627 | BN41: 13.63134987 | BO41: 16.12450582 | BP41: 21.12891966 | BQ41: =SUM(BQ42:BQ1016) -> 25.49767434 | BR41: =SUM(BR42:BR1016) -> 27.82992632 | BT41: =SUM(BT42:BT1016) -> 48.02935578 | BU41: 32.48974241 | BV41: 35.50861812 | BW41: 146.920246 | BX41: 62.29265973 | BY41: 56.89613442 | BZ41: 174.5621219 | CA41: 189.6767463 | CB41: =SUM(CB42:CB1016) -> 97.96312848 | CC41: =SUM(CC42:CC1016) -> 97.61967274 | CE41: =SUM(CE42:CE1016) -> 89.43142986 | CF41: 104.6290661 | CG41: 114.672213 | CH41: 121.8669145 | CI41: 126.1646158 | CJ41: 136.1527385 | CK41: 140.2645538 | CL41: 144.4964673 | CM41: =SUM(CM42:CM1016) -> 148.8897992 | CN41: =SUM(CN42:CN1016) -> 153.3902917 | CP41: =SUM(CP42:CP1016) -> 1.117892873 | CQ41: 3.543649072 | CR41: 6.28491506 | CS41: 9.241654153 | CT41: 12.34204828 | CU41: 15.62101521 | CV41: 19.07623136 | CW41: 22.63574413 | CX41: =SUM(CX42:CX1016) -> 26.30307246 | CY41: =SUM(CY42:CY1016) -> 30.08157359
C42: Bendigo WRP Sludge Handling Upgrade | E42: Sewerage | F42: Improvements / Compliance | G42: Treatment | H42: Top 10 Major Projects | J42: Straight line | K42: 2026-27 | L42: 25 | M42: 40 | Q42: 13.07 | R42: 22.94 | S42: 16.69 | T42: 0 | U42: 0 | V42: 0 | W42: 0 | X42: 0 | Y42: 0 | Z42: 0 | AX42: =+Q42-AB42-AM42 -> 13.07 | AY42: =+R42-AC42-AN42 -> 22.94 | AZ42: =+S42-AD42-AO42 -> 16.69 | BA42: =+T42-AE42-AP42 -> 0 | BB42: =+U42-AF42-AQ42 -> 0 | BC42: =+V42-AG42-AR42 -> 0 | BD42: =+W42-AH42-AS42 -> 0 | BE42: =+X42-AI42-AT42 -> 0 | BF42: =+Y42-AJ42-AU42 -> 0 | BG42: =+Z42-AK42-AV42 -> 0 | BI42: =IF($L42=0,0, IF($L42<=0.5,BT42, IF($J42="straight line", IF((LEFT(BI$39,4)*1)-INT($L42)<LEFT($BI$39,4)*1,0,((OFFSET(BT42,0,-INT($L42+0.5),1,1))/$L42)*(IF($L42-INT($L42)>0.5,$L42-0.5-INT($L42),IF($L42-INT($L42)<=0.5,$L42-0.5-INT($L42)+1,0)))) +BT42/$L42*0.5, IF($J42="Declining Balance",-$BI$38,0)))) -> 0 | BJ42: =IF($L42=0,0, IF($L42<=0.5,BU42, IF(AND($J42="straight line",$L42<1.51),(BT42-((BT42/$L42)*0.5))+BU42/$L42*0.5, IF($J42="straight line", IF((LEFT(BJ$39,4)*1)-INT($L42)<LEFT($BI$39,4)*1,0,((OFFSET(BU42,0,-INT($L42+0.5),1,1))/$L42)*(IF($L42-INT($L42)>0.5,$L42-0.5-INT($L42),IF($L42-INT($L42)<=0.5,$L42-0.5-INT($L42)+1,0)))) +BU42/$L42*0.5 +SUM(OFFSET(BU42,0,MAX(-INT($L42+(0.5-(10^-12))),-BJ$40)+1,1,MIN(INT($L42+(0.5-(10^-12))),BJ$40)-1))*1/$L42, IF($J42="Declining Balance",-$BI$38,0))))) -> 0 | BK42: =IF($L42=0,0, IF($L42<=0.5,BV42, IF(AND($J42="straight line",$L42<1.51),(BU42-((BU42/$L42)*0.5))+BV42/$L42*0.5, IF($J42="straight line", IF((LEFT(BK$39,4)*1)-INT($L42)<LEFT($BI$39,4)*1,0,((OFFSET(BV42,0,-INT($L42+0.5),1,1))/$L42)*(IF($L42-INT($L42)>0.5,$L42-0.5-INT($L42),IF($L42-INT($L42)<=0.5,$L42-0.5-INT($L42)+1,0)))) +BV42/$L42*0.5 +SUM(OFFSET(BV42,0,MAX(-INT($L42+(0.5-(10^-12))),-BK$40)+1,1,MIN(INT($L42+(0.5-(10^-12))),BK$40)-1))*1/$L42, IF($J42="Declining Balance",-$BI$38,0))))) -> 0 | BL42: =IF($L42=0,0, IF($L42<=0.5,BW42, IF(AND($J42="straight line",$L42<1.51),(BV42-((BV42/$L42)*0.5))+BW42/$L42*0.5, IF($J42="straight line", IF((LEFT(BL$39,4)*1)-INT($L42)<LEFT($BI$39,4)*1,0,((OFFSET(BW42,0,-INT($L42+0.5),1,1))/$L42)*(IF($L42-INT($L42)>0.5,$L42-0.5-INT($L42),IF($L42-INT($L42)<=0.5,$L42-0.5-INT($L42)+1,0)))) +BW42/$L42*0.5 +SUM(OFFSET(BW42,0,MAX(-INT($L42+(0.5-(10^-12))),-BL$40)+1,1,MIN(INT($L42+(0.5-(10^-12))),BL$40)-1))*1/$L42, IF($J42="Declining Balance",-$BI$38,0))))) -> 1.054 | BM42: =IF($L42=0,0, IF($L42<=0.5,BX42, IF(AND($J42="straight line",$L42<1.51),(BW42-((BW42/$L42)*0.5))+BX42/$L42*0.5, IF($J42="straight line", IF((LEFT(BM$39,4)*1)-INT($L42)<LEFT($BI$39,4)*1,0,((OFFSET(BX42,0,-INT($L42+0.5),1,1))/$L42)*(IF($L42-INT($L42)>0.5,$L42-0.5-INT($L42),IF($L42-INT($L42)<=0.5,$L42-0.5-INT($L42)+1,0)))) +BX42/$L42*0.5 +SUM(OFFSET(BX42,0,MAX(-INT($L42+(0.5-(10^-12))),-BM$40)+1,1,MIN(INT($L42+(0.5-(10^-12))),BM$40)-1))*1/$L42, IF($J42="Declining Balance",-$BI$38,0))))) -> 2.108 | BN42: =IF($L42=0,0, IF($L42<=0.5,BY42, IF(AND($J42="straight line",$L42<1.51),(BX42-((BX42/$L42)*0.5))+BY42/$L42*0.5, IF($J42="straight line", IF((LEFT(BN$39,4)*1)-INT($L42)<LEFT($BI$39,4)*1,0,((OFFSET(BY42,0,-INT($L42+0.5),1,1))/$L42)*(IF($L42-INT($L42)>0.5,$L42-0.5-INT($L42),IF($L42-INT($L42)<=0.5,$L42-0.5-INT($L42)+1,0)))) +BY42/$L42*0.5 +SUM(OFFSET(BY42,0,MAX(-INT($L42+(0.5-(10^-12))),-BN$40)+1,1,MIN(INT($L42+(0.5-(10^-12))),BN$40)-1))*1/$L42, IF($J42="Declining Balance",-$BI$38,0))))) -> 2.108 | BO42: =IF($L42=0,0, IF($L42<=0.5,BZ42, IF(AND($J42="straight line",$L42<1.51),(BY42-((BY42/$L42)*0.5))+BZ42/$L42*0.5, IF($J42="straight line", IF((LEFT(BO$39,4)*1)-INT($L42)<LEFT($BI$39,4)*1,0,((OFFSET(BZ42,0,-INT($L42+0.5),1,1))/$L42)*(IF($L42-INT($L42)>0.5,$L42-0.5-INT($L42),IF($L42-INT($L42)<=0.5,$L42-0.5-INT($L42)+1,0)))) +BZ42/$L42*0.5 +SUM(OFFSET(BZ42,0,MAX(-INT($L42+(0.5-(10^-12))),-BO$40)+1,1,MIN(INT($L42+(0.5-(10^-12))),BO$40)-1))*1/$L42, IF($J42="Declining Balance",-$BI$38,0))))) -> 2.108 | BP42: =IF($L42=0,0, IF($L42<=0.5,CA42, IF(AND($J42="straight line",$L42<1.51),(BZ42-((BZ42/$L42)*0.5))+CA42/$L42*0.5, IF($J42="straight line", IF((LEFT(BP$39,4)*1)-INT($L42)<LEFT($BI$39,4)*1,0,((OFFSET(CA42,0,-INT($L42+0.5),1,1))/$L42)*(IF($L42-INT($L42)>0.5,$L42-0.5-INT($L42),IF($L42-INT($L42)<=0.5,$L42-0.5-INT($L42)+1,0)))) +CA42/$L42*0.5 +SUM(OFFSET(CA42,0,MAX(-INT($L42+(0.5-(10^-12))),-BP$40)+1,1,MIN(INT($L42+(0.5-(10^-12))),BP$40)-1))*1/$L42, IF($J42="Declining Balance",-$BI$38,0))))) -> 2.108 | BQ42: =IF($L42=0,0, IF($L42<=0.5,CB42, IF(AND($J42="straight line",$L42<1.51),(CA42-((CA42/$L42)*0.5))+CB42/$L42*0.5, IF($J42="straight line", IF((LEFT(BQ$39,4)*1)-INT($L42)<LEFT($BI$39,4)*1,0,((OFFSET(CB42,0,-INT($L42+0.5),1,1))/$L42)*(IF($L42-INT($L42)>0.5,$L42-0.5-INT($L42),IF($L42-INT($L42)<=0.5,$L42-0.5-INT($L42)+1,0)))) +CB42/$L42*0.5 +SUM(OFFSET(CB42,0,MAX(-INT($L42+(0.5-(10^-12))),-BQ$40)+1,1,MIN(INT($L42+(0.5-(10^-12))),BQ$40)-1))*1/$L42, IF($J42="Declining Balance",-$BI$38,0))))) -> 2.108 | BR42: =IF($L42=0,0, IF($L42<=0.5,CC42, IF(AND($J42="straight line",$L42<1.51),(CB42-((CB42/$L42)*0.5))+CC42/$L42*0.5, IF($J42="straight line", IF((LEFT(BR$39,4)*1)-INT($L42)<LEFT($BI$39,4)*1,0,((OFFSET(CC42,0,-INT($L42+0.5),1,1))/$L42)*(IF($L42-INT($L42)>0.5,$L42-0.5-INT($L42),IF($L42-INT($L42)<=0.5,$L42-0.5-INT($L42)+1,0)))) +CC42/$L42*0.5 +SUM(OFFSET(CC42,0,MAX(-INT($L42+(0.5-(10^-12))),-BR$40)+1,1,MIN(INT($L42+(0.5-(10^-12))),BR$40)-1))*1/$L42, IF($J42="Declining Balance",-$BI$38,0))))) -> 2.108 | BT42: =+IF($K42="Ongoing",AX42,IF(RIGHT($K42,2)=RIGHT(BT$39,2),SUM($AX42:AX42),0)+IF(RIGHT(BT$39,2)>RIGHT($K42,2),AX42,0)) -> 0 | BU42: =+IF($K42="Ongoing",AY42,IF(RIGHT($K42,2)=RIGHT(BU$39,2),SUM($AX42:AY42),0)+IF(RIGHT(BU$39,2)>RIGHT($K42,2),AY42,0)) -> 0 | BV42: =+IF($K42="Ongoing",AZ42,IF(RIGHT($K42,2)=RIGHT(BV$39,2),SUM($AX42:AZ42),0)+IF(RIGHT(BV$39,2)>RIGHT($K42,2),AZ42,0)) -> 0 | BW42: =+IF($K42="Ongoing",BA42,IF(RIGHT($K42,2)=RIGHT(BW$39,2),SUM($AX42:BA42),0)+IF(RIGHT(BW$39,2)>RIGHT($K42,2),BA42,0)) -> 52.7 | BX42: =+IF($K42="Ongoing",BB42,IF(RIGHT($K42,2)=RIGHT(BX$39,2),SUM($AX42:BB42),0)+IF(RIGHT(BX$39,2)>RIGHT($K42,2),BB42,0)) -> 0 | BY42: =+IF($K42="Ongoing",BC42,IF(RIGHT($K42,2)=RIGHT(BY$39,2),SUM($AX42:BC42),0)+IF(RIGHT(BY$39,2)>RIGHT($K42,2),BC42,0)) -> 0 | BZ42: =+IF($K42="Ongoing",BD42,IF(RIGHT($K42,2)=RIGHT(BZ$39,2),SUM($AX42:BD42),0)+IF(RIGHT(BZ$39,2)>RIGHT($K42,2),BD42,0)) -> 0 | CA42: =+IF($K42="Ongoing",BE42,IF(RIGHT($K42,2)=RIGHT(CA$39,2),SUM($AX42:BE42),0)+IF(RIGHT(CA$39,2)>RIGHT($K42,2),BE42,0)) -> 0 | CB42: =+IF($K42="Ongoing",BF42,IF(RIGHT($K42,2)=RIGHT(CB$39,2),SUM($AX42:BF42),0)+IF(RIGHT(CB$39,2)>RIGHT($K42,2),BF42,0)) -> 0 | CC42: =+IF($K42="Ongoing",BG42,IF(RIGHT($K42,2)=RIGHT(CC$39,2),SUM($AX42:BG42),0)+IF(RIGHT(CC$39,2)>RIGHT($K42,2),BG42,0)) -> 0 | CE42: =+Q42*KeyAssumptionsPriceControl_FO!AC$15 -> 13.4621 | CF42: =+R42*KeyAssumptionsPriceControl_FO!AD$15 -> 24.337046 | CG42: =+S42*KeyAssumptionsPriceControl_FO!AE$15 -> 18.23761363 | CH42: =+T42*KeyAssumptionsPriceControl_FO!AF$15 -> 0 | CI42: =+U42*KeyAssumptionsPriceControl_FO!AG$15 -> 0 | CJ42: =+V42*KeyAssumptionsPriceControl_FO!AH$15 -> 0 | CK42: =+W42*KeyAssumptionsPriceControl_FO!AI$15 -> 0 | CL42: =+X42*KeyAssumptionsPriceControl_FO!AJ$15 -> 0 | CM42: =+Y42*KeyAssumptionsPriceControl_FO!AK$15 -> 0 | CN42: =+Z42*KeyAssumptionsPriceControl_FO!AL$15 -> 0 | CP42: =IF($M42=0,0, IF($M42<=0.5,CE42, IF($J42="straight line", IF((LEFT(CP$39,4)*1)-INT($M42)<LEFT($CP$39,4)*1,0,((OFFSET(CE42,0,-INT($M42+0.5),1,1))/$M42)*(IF($M42-INT($M42)>0.5,$M42-0.5-INT($M42),IF($M42-INT($M42)<=0.5,$M42-0.5-INT($M42)+1,0)))) +CE42/$M42*0.5, IF($J42="Declining Balance",-$CP$38,0)))) -> 0.16827625 | CQ42: =IF($M42=0,0, IF($M42<=0.5,CF42, IF(AND($J42="straight line",$M42<1.51),(CE42-((CE42/$M42)*0.5))+CF42/$M42*0.5, IF($J42="straight line", IF((LEFT(CQ$39,4)*1)-INT($M42)<LEFT($CP$39,4)*1,0,((OFFSET(CF42,0,-INT($M42+0.5),1,1))/$M42)*(IF($M42-INT($M42)>0.5,$M42-0.5-INT($M42),IF($M42-INT($M42)<=0.5,$M42-0.5-INT($M42)+1,0)))) +CF42/$M42*0.5 +SUM(OFFSET(CF42,0,MAX(-INT($M42+(0.5-(10^-12))),-CQ$40)+1,1,MIN(INT($M42+(0.5-(10^-12))),CQ$40)-1))*1/$M42, IF($J42="Declining Balance",-$CP$38,0))))) -> 0.640765575 | CR42: =IF($M42=0,0, IF($M42<=0.5,CG42, IF(AND($J42="straight line",$M42<1.51),(CF42-((CF42/$M42)*0.5))+CG42/$M42*0.5, IF($J42="straight line", IF((LEFT(CR$39,4)*1)-INT($M42)<LEFT($CP$39,4)*1,0,((OFFSET(CG42,0,-INT($M42+0.5),1,1))/$M42)*(IF($M42-INT($M42)>0.5,$M42-0.5-INT($M42),IF($M42-INT($M42)<=0.5,$M42-0.5-INT($M42)+1,0)))) +CG42/$M42*0.5 +SUM(OFFSET(CG42,0,MAX(-INT($M42+(0.5-(10^-12))),-CR$40)+1,1,MIN(INT($M42+(0.5-(10^-12))),CR$40)-1))*1/$M42, IF($J42="Declining Balance",-$CP$38,0))))) -> 1.17294882 | CS42: =IF($M42=0,0, IF($M42<=0.5,CH42, IF(AND($J42="straight line",$M42<1.51),(CG42-((CG42/$M42)*0.5))+CH42/$M42*0.5, IF($J42="straight line", IF((LEFT(CS$39,4)*1)-INT($M42)<LEFT($CP$39,4)*1,0,((OFFSET(CH42,0,-INT($M42+0.5),1,1))/$M42)*(IF($M42-INT($M42)>0.5,$M42-0.5-INT($M42),IF($M42-INT($M42)<=0.5,$M42-0.5-INT($M42)+1,0)))) +CH42/$M42*0.5 +SUM(OFFSET(CH42,0,MAX(-INT($M42+(0.5-(10^-12))),-CS$40)+1,1,MIN(INT($M42+(0.5-(10^-12))),CS$40)-1))*1/$M42, IF($J42="Declining Balance",-$CP$38,0))))) -> 1.400918991 | CT42: =IF($M42=0,0, IF($M42<=0.5,CI42, IF(AND($J42="straight line",$M42<1.51),(CH42-((CH42/$M42)*0.5))+CI42/$M42*0.5, IF($J42="straight line", IF((LEFT(CT$39,4)*1)-INT($M42)<LEFT($CP$39,4)*1,0,((OFFSET(CI42,0,-INT($M42+0.5),1,1))/$M42)*(IF($M42-INT($M42)>0.5,$M42-0.5-INT($M42),IF($M42-INT($M42)<=0.5,$M42-0.5-INT($M42)+1,0)))) +CI42/$M42*0.5 +SUM(OFFSET(CI42,0,MAX(-INT($M42+(0.5-(10^-12))),-CT$40)+1,1,MIN(INT($M42+(0.5-(10^-12))),CT$40)-1))*1/$M42, IF($J42="Declining Balance",-$CP$38,0))))) -> 1.400918991 | CU42: =IF($M42=0,0, IF($M42<=0.5,CJ42, IF(AND($J42="straight line",$M42<1.51),(CI42-((CI42/$M42)*0.5))+CJ42/$M42*0.5, IF($J42="straight line", IF((LEFT(CU$39,4)*1)-INT($M42)<LEFT($CP$39,4)*1,0,((OFFSET(CJ42,0,-INT($M42+0.5),1,1))/$M42)*(IF($M42-INT($M42)>0.5,$M42-0.5-INT($M42),IF($M42-INT($M42)<=0.5,$M42-0.5-INT($M42)+1,0)))) +CJ42/$M42*0.5 +SUM(OFFSET(CJ42,0,MAX(-INT($M42+(0.5-(10^-12))),-CU$40)+1,1,MIN(INT($M42+(0.5-(10^-12))),CU$40)-1))*1/$M42, IF($J42="Declining Balance",-$CP$38,0))))) -> 1.400918991 | CV42: =IF($M42=0,0, IF($M42<=0.5,CK42, IF(AND($J42="straight line",$M42<1.51),(CJ42-((CJ42/$M42)*0.5))+CK42/$M42*0.5, IF($J42="straight line", IF((LEFT(CV$39,4)*1)-INT($M42)<LEFT($CP$39,4)*1,0,((OFFSET(CK42,0,-INT($M42+0.5),1,1))/$M42)*(IF($M42-INT($M42)>0.5,$M42-0.5-INT($M42),IF($M42-INT($M42)<=0.5,$M42-0.5-INT($M42)+1,0)))) +CK42/$M42*0.5 +SUM(OFFSET(CK42,0,MAX(-INT($M42+(0.5-(10^-12))),-CV$40)+1,1,MIN(INT($M42+(0.5-(10^-12))),CV$40)-1))*1/$M42, IF($J42="Declining Balance",-$CP$38,0))))) -> 1.400918991 | CW42: =IF($M42=0,0, IF($M42<=0.5,CL42, IF(AND($J42="straight line",$M42<1.51),(CK42-((CK42/$M42)*0.5))+CL42/$M42*0.5, IF($J42="straight line", IF((LEFT(CW$39,4)*1)-INT($M42)<LEFT($CP$39,4)*1,0,((OFFSET(CL42,0,-INT($M42+0.5),1,1))/$M42)*(IF($M42-INT($M42)>0.5,$M42-0.5-INT($M42),IF($M42-INT($M42)<=0.5,$M42-0.5-INT($M42)+1,0)))) +CL42/$M42*0.5 +SUM(OFFSET(CL42,0,MAX(-INT($M42+(0.5-(10^-12))),-CW$40)+1,1,MIN(INT($M42+(0.5-(10^-12))),CW$40)-1))*1/$M42, IF($J42="Declining Balance",-$CP$38,0))))) -> 1.400918991 | CX42: =IF($M42=0,0, IF($M42<=0.5,CM42, IF(AND($J42="straight line",$M42<1.51),(CL42-((CL42/$M42)*0.5))+CM42/$M42*0.5, IF($J42="straight line", IF((LEFT(CX$39,4)*1)-INT($M42)<LEFT($CP$39,4)*1,0,((OFFSET(CM42,0,-INT($M42+0.5),1,1))/$M42)*(IF($M42-INT($M42)>0.5,$M42-0.5-INT($M42),IF($M42-INT($M42)<=0.5,$M42-0.5-INT($M42)+1,0)))) +CM42/$M42*0.5 +SUM(OFFSET(CM42,0,MAX(-INT($M42+(0.5-(10^-12))),-CX$40)+1,1,MIN(INT($M42+(0.5-(10^-12))),CX$40)-1))*1/$M42, IF($J42="Declining Balance",-$CP$38,0))))) -> 1.400918991 | CY42: =IF($M42=0,0, IF($M42<=0.5,CN42, IF(AND($J42="straight line",$M42<1.51),(CM42-((CM42/$M42)*0.5))+CN42/$M42*0.5, IF($J42="straight line", IF((LEFT(CY$39,4)*1)-INT($M42)<LEFT($CP$39,4)*1,0,((OFFSET(CN42,0,-INT($M42+0.5),1,1))/$M42)*(IF($M42-INT($M42)>0.5,$M42-0.5-INT($M42),IF($M42-INT($M42)<=0.5,$M42-0.5-INT($M42)+1,0)))) +CN42/$M42*0.5 +SUM(OFFSET(CN42,0,MAX(-INT($M42+(0.5-(10^-12))),-CY$40)+1,1,MIN(INT($M42+(0.5-(10^-12))),CY$40)-1))*1/$M42, IF($J42="Declining Balance",-$CP$38,0))))) -> 1.400918991
C43: West Bendigo Sewer Growth & Compliance | E43: Sewerage | F43: Improvements / Compliance | G43: Pipelines/network | H43: Top 10 Major Projects | J43: Straight line | K43: 2029-30 | L43: 60 | M43: 40 | Q43: 1.14 | R43: 3.18 | S43: 5.2 | T43: 4.76 | U43: 10.88 | V43: 9.89 | W43: 0 | X43: 0 | Y43: 0 | Z43: 0 | AX43: 1.14 | AY43: 3.18 | AZ43: 5.2 | BA43: 4.76 | BB43: 10.88 | BC43: 9.89 | BD43: 0 | BE43: 0 | BF43: 0 | BG43: 0 | BI43: =IF($L43=0,0, IF($L43<=0.5,BT43, IF($J43="straight line", IF((LEFT(BI$39,4)*1)-INT($L43)<LEFT($BI$39,4)*1,0,((OFFSET(BT43,0,-INT($L43+0.5),1,1))/$L43)*(IF($L43-INT($L43)>0.5,$L43-0.5-INT($L43),IF($L43-INT($L43)<=0.5,$L43-0.5-INT($L43)+1,0)))) +BT43/$L43*0.5, IF($J43="Declining Balance",-$BI$38,0)))) -> 0 | BJ43: =IF($L43=0,0, IF($L43<=0.5,BU43, IF(AND($J43="straight line",$L43<1.51),(BT43-((BT43/$L43)*0.5))+BU43/$L43*0.5, IF($J43="straight line", IF((LEFT(BJ$39,4)*1)-INT($L43)<LEFT($BI$39,4)*1,0,((OFFSET(BU43,0,-INT($L43+0.5),1,1))/$L43)*(IF($L43-INT($L43)>0.5,$L43-0.5-INT($L43),IF($L43-INT($L43)<=0.5,$L43-0.5-INT($L43)+1,0)))) +BU43/$L43*0.5 +SUM(OFFSET(BU43,0,MAX(-INT($L43+(0.5-(10^-12))),-BJ$40)+1,1,MIN(INT($L43+(0.5-(10^-12))),BJ$40)-1))*1/$L43, IF($J43="Declining Balance",-$BI$38,0))))) -> 0 | BK43: 0 | BL43: 0 | BM43: 0 | BN43: 0 | BO43: 0.2920833333 | BP43: 0.5841666667 | BQ43: 0.5841666667 | BR43: 0.5841666667 | BT43: =+IF($K43="Ongoing",AX43,IF(RIGHT($K43,2)=RIGHT(BT$39,2),SUM($AX43:AX43),0)+IF(RIGHT(BT$39,2)>RIGHT($K43,2),AX43,0)) -> 0 | BU43: =+IF($K43="Ongoing",AY43,IF(RIGHT($K43,2)=RIGHT(BU$39,2),SUM($AX43:AY43),0)+IF(RIGHT(BU$39,2)>RIGHT($K43,2),AY43,0)) -> 0 | BV43: =+IF($K43="Ongoing",AZ43,IF(RIGHT($K43,2)=RIGHT(BV$39,2),SUM($AX43:AZ43),0)+IF(RIGHT(BV$39,2)>RIGHT($K43,2),AZ43,0)) -> 0 | BW43: =+IF($K43="Ongoing",BA43,IF(RIGHT($K43,2)=RIGHT(BW$39,2),SUM($AX43:BA43),0)+IF(RIGHT(BW$39,2)>RIGHT($K43,2),BA43,0)) -> 0 | BX43: =+IF($K43="Ongoing",BB43,IF(RIGHT($K43,2)=RIGHT(BX$39,2),SUM($AX43:BB43),0)+IF(RIGHT(BX$39,2)>RIGHT($K43,2),BB43,0)) -> 0 | BY43: =+IF($K43="Ongoing",BC43,IF(RIGHT($K43,2)=RIGHT(BY$39,2),SUM($AX43:BC43),0)+IF(RIGHT(BY$39,2)>RIGHT($K43,2),BC43,0)) -> 0 | BZ43: =+IF($K43="Ongoing",BD43,IF(RIGHT($K43,2)=RIGHT(BZ$39,2),SUM($AX43:BD43),0)+IF(RIGHT(BZ$39,2)>RIGHT($K43,2),BD43,0)) -> 35.05 | CA43: =+IF($K43="Ongoing",BE43,IF(RIGHT($K43,2)=RIGHT(CA$39,2),SUM($AX43:BE43),0)+IF(RIGHT(CA$39,2)>RIGHT($K43,2),BE43,0)) -> 0 | CB43: =+IF($K43="Ongoing",BF43,IF(RIGHT($K43,2)=RIGHT(CB$39,2),SUM($AX43:BF43),0)+IF(RIGHT(CB$39,2)>RIGHT($K43,2),BF43,0)) -> 0 | CC43: =+IF($K43="Ongoing",BG43,IF(RIGHT($K43,2)=RIGHT(CC$39,2),SUM($AX43:BG43),0)+IF(RIGHT(CC$39,2)>RIGHT($K43,2),BG43,0)) -> 0 | CE43: =+Q43*KeyAssumptionsPriceControl_FO!AC$15 -> 1.1742 | CF43: =+R43*KeyAssumptionsPriceControl_FO!AD$15 -> 3.373662 | CG43: =+S43*KeyAssumptionsPriceControl_FO!AE$15 -> 5.6821804 | CH43: =+T43*KeyAssumptionsPriceControl_FO!AF$15 -> 5.357421936 | CI43: =+U43*KeyAssumptionsPriceControl_FO!AG$15 -> 12.61290193 | CJ43: =+V43*KeyAssumptionsPriceControl_FO!AH$15 -> 11.80917721 | CK43: =+W43*KeyAssumptionsPriceControl_FO!AI$15 -> 0 | CL43: =+X43*KeyAssumptionsPriceControl_FO!AJ$15 -> 0 | CM43: =+Y43*KeyAssumptionsPriceControl_FO!AK$15 -> 0 | CN43: =+Z43*KeyAssumptionsPriceControl_FO!AL$15 -> 0 | CP43: 0.0146775 | CQ43: 0.071525775 | CR43: 0.184723805 | CS43: 0.3227188342 | CT43: 0.5473478825 | CU43: 0.8526238718 | CV43: 1.000238587 | CW43: 1.000238587 | CX43: 1.000238587 | CY43: 1.000238587
C44: Bendigo Trunk & Outfall Sewer Growth & Compliance Upgrade | E44: Sewerage | F44: Improvements / Compliance | G44: Pipelines/network | H44: Top 10 Major Projects | J44: Straight line | K44: 2029-30 | L44: 60 | M44: 40 | Q44: 0.67 | R44: 3.66 | S44: 6.34 | T44: 4.25 | U44: 11.38 | V44: 20.69 | W44: 0 | X44: 0 | Y44: 0 | Z44: 0 | AX44: 0.67 | AY44: 3.66 | AZ44: 6.34 | BA44: 4.25 | BB44: 11.38 | BC44: 20.69 | BD44: 0 | BE44: 0 | BF44: 0 | BG44: 0 | BI44: 0 | BJ44: 0 | BK44: 0 | BL44: 0 | BM44: 0 | BN44: 0 | BO44: 0.3915833333 | BP44: 0.7831666667 | BQ44: 0.7831666667 | BR44: 0.7831666667 | BT44: =+IF($K44="Ongoing",AX44,IF(RIGHT($K44,2)=RIGHT(BT$39,2),SUM($AX44:AX44),0)+IF(RIGHT(BT$39,2)>RIGHT($K44,2),AX44,0)) -> 0 | BU44: =+IF($K44="Ongoing",AY44,IF(RIGHT($K44,2)=RIGHT(BU$39,2),SUM($AX44:AY44),0)+IF(RIGHT(BU$39,2)>RIGHT($K44,2),AY44,0)) -> 0 | BV44: =+IF($K44="Ongoing",AZ44,IF(RIGHT($K44,2)=RIGHT(BV$39,2),SUM($AX44:AZ44),0)+IF(RIGHT(BV$39,2)>RIGHT($K44,2),AZ44,0)) -> 0 | BW44: =+IF($K44="Ongoing",BA44,IF(RIGHT($K44,2)=RIGHT(BW$39,2),SUM($AX44:BA44),0)+IF(RIGHT(BW$39,2)>RIGHT($K44,2),BA44,0)) -> 0 | BX44: =+IF($K44="Ongoing",BB44,IF(RIGHT($K44,2)=RIGHT(BX$39,2),SUM($AX44:BB44),0)+IF(RIGHT(BX$39,2)>RIGHT($K44,2),BB44,0)) -> 0 | BY44: =+IF($K44="Ongoing",BC44,IF(RIGHT($K44,2)=RIGHT(BY$39,2),SUM($AX44:BC44),0)+IF(RIGHT(BY$39,2)>RIGHT($K44,2),BC44,0)) -> 0 | BZ44: =+IF($K44="Ongoing",BD44,IF(RIGHT($K44,2)=RIGHT(BZ$39,2),SUM($AX44:BD44),0)+IF(RIGHT(BZ$39,2)>RIGHT($K44,2),BD44,0)) -> 46.99 | CA44: =+IF($K44="Ongoing",BE44,IF(RIGHT($K44,2)=RIGHT(CA$39,2),SUM($AX44:BE44),0)+IF(RIGHT(CA$39,2)>RIGHT($K44,2),BE44,0)) -> 0 | CB44: =+IF($K44="Ongoing",BF44,IF(RIGHT($K44,2)=RIGHT(CB$39,2),SUM($AX44:BF44),0)+IF(RIGHT(CB$39,2)>RIGHT($K44,2),BF44,0)) -> 0 | CC44: =+IF($K44="Ongoing",BG44,IF(RIGHT($K44,2)=RIGHT(CC$39,2),SUM($AX44:BG44),0)+IF(RIGHT(CC$39,2)>RIGHT($K44,2),BG44,0)) -> 0 | CE44: =+Q44*KeyAssumptionsPriceControl_FO!AC$15 -> 0.6901 | CF44: =+R44*KeyAssumptionsPriceControl_FO!AD$15 -> 3.882894 | CG44: =+S44*KeyAssumptionsPriceControl_FO!AE$15 -> 6.92788918 | CH44: =+T44*KeyAssumptionsPriceControl_FO!AF$15 -> 4.783412443 | CI44: =+U44*KeyAssumptionsPriceControl_FO!AG$15 -> 13.19253897 | CJ44: =+V44*KeyAssumptionsPriceControl_FO!AH$15 -> 24.70494202 | CK44: =+W44*KeyAssumptionsPriceControl_FO!AI$15 -> 0 | CL44: =+X44*KeyAssumptionsPriceControl_FO!AJ$15 -> 0 | CM44: =+Y44*KeyAssumptionsPriceControl_FO!AK$15 -> 0 | CN44: =+Z44*KeyAssumptionsPriceControl_FO!AL$15 -> 0 | CP44: 0.00862625 | CQ44: 0.065788675 | CR44: 0.2009234648 | CS44: 0.347314735 | CT44: 0.5720141276 | CU44: 1.04573264 | CV44: 1.354544415 | CW44: 1.354544415 | CX44: 1.354544415 | CY44: 1.354544415
C45: Castlemaine WRP Upgrades | E45: Sewerage | F45: Growth | G45: Treatment | H45: Top 10 Major Projects | J45: Straight line | K45: 2030-31 | L45: 25 | M45: 40 | Q45: 0.13 | R45: 0 | S45: 1.32 | T45: 8.6 | U45: 15.21 | V45: 7.56 | W45: 7.78 | X45: 0 | Y45: 0 | Z45: 0 | AX45: 0.13 | AY45: 0 | AZ45: 1.32 | BA45: 8.6 | BB45: 15.21 | BC45: 7.56 | BD45: 7.78 | BE45: 0 | BF45: 0 | BG45: 0 | BI45: 0 | BJ45: 0 | BK45: 0 | BL45: 0 | BM45: 0 | BN45: 0 | BO45: 0 | BP45: 0.812 | BQ45: 1.624 | BR45: 1.624 | BT45: =+IF($K45="Ongoing",AX45,IF(RIGHT($K45,2)=RIGHT(BT$39,2),SUM($AX45:AX45),0)+IF(RIGHT(BT$39,2)>RIGHT($K45,2),AX45,0)) -> 0 | BU45: =+IF($K45="Ongoing",AY45,IF(RIGHT($K45,2)=RIGHT(BU$39,2),SUM($AX45:AY45),0)+IF(RIGHT(BU$39,2)>RIGHT($K45,2),AY45,0)) -> 0 | BV45: =+IF($K45="Ongoing",AZ45,IF(RIGHT($K45,2)=RIGHT(BV$39,2),SUM($AX45:AZ45),0)+IF(RIGHT(BV$39,2)>RIGHT($K45,2),AZ45,0)) -> 0 | BW45: =+IF($K45="Ongoing",BA45,IF(RIGHT($K45,2)=RIGHT(BW$39,2),SUM($AX45:BA45),0)+IF(RIGHT(BW$39,2)>RIGHT($K45,2),BA45,0)) -> 0 | BX45: =+IF($K45="Ongoing",BB45,IF(RIGHT($K45,2)=RIGHT(BX$39,2),SUM($AX45:BB45),0)+IF(RIGHT(BX$39,2)>RIGHT($K45,2),BB45,0)) -> 0 | BY45: =+IF($K45="Ongoing",BC45,IF(RIGHT($K45,2)=RIGHT(BY$39,2),SUM($AX45:BC45),0)+IF(RIGHT(BY$39,2)>RIGHT($K45,2),BC45,0)) -> 0 | BZ45: =+IF($K45="Ongoing",BD45,IF(RIGHT($K45,2)=RIGHT(BZ$39,2),SUM($AX45:BD45),0)+IF(RIGHT(BZ$39,2)>RIGHT($K45,2),BD45,0)) -> 0 | CA45: =+IF($K45="Ongoing",BE45,IF(RIGHT($K45,2)=RIGHT(CA$39,2),SUM($AX45:BE45),0)+IF(RIGHT(CA$39,2)>RIGHT($K45,2),BE45,0)) -> 40.6 | CB45: =+IF($K45="Ongoing",BF45,IF(RIGHT($K45,2)=RIGHT(CB$39,2),SUM($AX45:BF45),0)+IF(RIGHT(CB$39,2)>RIGHT($K45,2),BF45,0)) -> 0 | CC45: =+IF($K45="Ongoing",BG45,IF(RIGHT($K45,2)=RIGHT(CC$39,2),SUM($AX45:BG45),0)+IF(RIGHT(CC$39,2)>RIGHT($K45,2),BG45,0)) -> 0 | CE45: =+Q45*KeyAssumptionsPriceControl_FO!AC$15 -> 0.1339 | CF45: =+R45*KeyAssumptionsPriceControl_FO!AD$15 -> 0 | CG45: =+S45*KeyAssumptionsPriceControl_FO!AE$15 -> 1.44239964 | CH45: =+T45*KeyAssumptionsPriceControl_FO!AF$15 -> 9.679375766 | CI45: =+U45*KeyAssumptionsPriceControl_FO!AG$15 -> 17.63255867 | CJ45: =+V45*KeyAssumptionsPriceControl_FO!AH$15 -> 9.027035362 | CK45: =+W45*KeyAssumptionsPriceControl_FO!AI$15 -> 9.568418673 | CL45: =+X45*KeyAssumptionsPriceControl_FO!AJ$15 -> 0 | CM45: =+Y45*KeyAssumptionsPriceControl_FO!AK$15 -> 0 | CN45: =+Z45*KeyAssumptionsPriceControl_FO!AL$15 -> 0 | CP45: 0.00167375 | CQ45: 0.0033475 | CR45: 0.0213774955 | CS45: 0.1603996881 | CT45: 0.5017988685 | CU45: 0.8350437939 | CV45: 1.067486969 | CW45: 1.187092203 | CX45: 1.187092203 | CY45: 1.187092203
C46: Trentham WTP Capacity Upgrade | E46: Water | F46: Growth | G46: Treatment | H46: Top 10 Major Projects | J46: Straight line | K46: 2027-28 | L46: 45 | M46: 40 | Q46: 0 | R46: 0.12 | S46: 14.94 | T46: 0.69 | U46: 0 | V46: 0 | W46: 0 | X46: 0 | Y46: 0 | Z46: 0 | AX46: 0 | AY46: 0.12 | AZ46: 14.94 | BA46: 0.69 | BB46: 0 | BC46: 0 | BD46: 0 | BE46: 0 | BF46: 0 | BG46: 0 | BI46: 0 | BJ46: 0 | BK46: 0 | BL46: 0 | BM46: 0.175 | BN46: 0.35 | BO46: 0.35 | BP46: 0.35 | BQ46: 0.35 | BR46: 0.35 | BT46: =+IF($K46="Ongoing",AX46,IF(RIGHT($K46,2)=RIGHT(BT$39,2),SUM($AX46:AX46),0)+IF(RIGHT(BT$39,2)>RIGHT($K46,2),AX46,0)) -> 0 | BU46: =+IF($K46="Ongoing",AY46,IF(RIGHT($K46,2)=RIGHT(BU$39,2),SUM($AX46:AY46),0)+IF(RIGHT(BU$39,2)>RIGHT($K46,2),AY46,0)) -> 0 | BV46: =+IF($K46="Ongoing",AZ46,IF(RIGHT($K46,2)=RIGHT(BV$39,2),SUM($AX46:AZ46),0)+IF(RIGHT(BV$39,2)>RIGHT($K46,2),AZ46,0)) -> 0 | BW46: =+IF($K46="Ongoing",BA46,IF(RIGHT($K46,2)=RIGHT(BW$39,2),SUM($AX46:BA46),0)+IF(RIGHT(BW$39,2)>RIGHT($K46,2),BA46,0)) -> 0 | BX46: =+IF($K46="Ongoing",BB46,IF(RIGHT($K46,2)=RIGHT(BX$39,2),SUM($AX46:BB46),0)+IF(RIGHT(BX$39,2)>RIGHT($K46,2),BB46,0)) -> 15.75 | BY46: =+IF($K46="Ongoing",BC46,IF(RIGHT($K46,2)=RIGHT(BY$39,2),SUM($AX46:BC46),0)+IF(RIGHT(BY$39,2)>RIGHT($K46,2),BC46,0)) -> 0 | BZ46: =+IF($K46="Ongoing",BD46,IF(RIGHT($K46,2)=RIGHT(BZ$39,2),SUM($AX46:BD46),0)+IF(RIGHT(BZ$39,2)>RIGHT($K46,2),BD46,0)) -> 0 | CA46: =+IF($K46="Ongoing",BE46,IF(RIGHT($K46,2)=RIGHT(CA$39,2),SUM($AX46:BE46),0)+IF(RIGHT(CA$39,2)>RIGHT($K46,2),BE46,0)) -> 0 | CB46: =+IF($K46="Ongoing",BF46,IF(RIGHT($K46,2)=RIGHT(CB$39,2),SUM($AX46:BF46),0)+IF(RIGHT(CB$39,2)>RIGHT($K46,2),BF46,0)) -> 0 | CC46: =+IF($K46="Ongoing",BG46,IF(RIGHT($K46,2)=RIGHT(CC$39,2),SUM($AX46:BG46),0)+IF(RIGHT(CC$39,2)>RIGHT($K46,2),BG46,0)) -> 0 | CE46: =+Q46*KeyAssumptionsPriceControl_FO!AC$15 -> 0 | CF46: =+R46*KeyAssumptionsPriceControl_FO!AD$15 -> 0.127308 | CG46: =+S46*KeyAssumptionsPriceControl_FO!AE$15 -> 16.32534138 | CH46: =+T46*KeyAssumptionsPriceControl_FO!AF$15 -> 0.7766010789 | CI46: =+U46*KeyAssumptionsPriceControl_FO!AG$15 -> 0 | CJ46: =+V46*KeyAssumptionsPriceControl_FO!AH$15 -> 0 | CK46: =+W46*KeyAssumptionsPriceControl_FO!AI$15 -> 0 | CL46: =+X46*KeyAssumptionsPriceControl_FO!AJ$15 -> 0 | CM46: =+Y46*KeyAssumptionsPriceControl_FO!AK$15 -> 0 | CN46: =+Z46*KeyAssumptionsPriceControl_FO!AL$15 -> 0 | CP46: 0 | CQ46: 0.00159135 | CR46: 0.2072494673 | CS46: 0.421023748 | CT46: 0.4307312615 | CU46: 0.4307312615 | CV46: 0.4307312615 | CW46: 0.4307312615 | CX46: 0.4307312615 | CY46: 0.4307312615
C47: Bendigo Water Reclamation Plant Upgrades & Tertiary Filter Expansion | E47: Sewerage | F47: Improvements / Compliance | G47: Treatment | H47: Top 10 Major Projects | J47: Straight line | K47: 2030-31 | L47: 25 | M47: 40 | Q47: 0 | R47: 2.22 | S47: 6.19 | T47: 6.19 | U47: 0 | V47: 20.42 | W47: 15.76 | X47: 0 | Y47: 0 | Z47: 0 | AX47: 0 | AY47: 2.22 | AZ47: 6.19 | BA47: 6.19 | BB47: 0 | BC47: 20.42 | BD47: 15.76 | BE47: 0 | BF47: 0 | BG47: 0 | BI47: 0 | BJ47: 0 | BK47: 0 | BL47: 0 | BM47: 0 | BN47: 0 | BO47: 0 | BP47: 1.0156 | BQ47: 2.0312 | BR47: 2.0312 | BT47: =+IF($K47="Ongoing",AX47,IF(RIGHT($K47,2)=RIGHT(BT$39,2),SUM($AX47:AX47),0)+IF(RIGHT(BT$39,2)>RIGHT($K47,2),AX47,0)) -> 0 | BU47: =+IF($K47="Ongoing",AY47,IF(RIGHT($K47,2)=RIGHT(BU$39,2),SUM($AX47:AY47),0)+IF(RIGHT(BU$39,2)>RIGHT($K47,2),AY47,0)) -> 0 | BV47: =+IF($K47="Ongoing",AZ47,IF(RIGHT($K47,2)=RIGHT(BV$39,2),SUM($AX47:AZ47),0)+IF(RIGHT(BV$39,2)>RIGHT($K47,2),AZ47,0)) -> 0 | BW47: =+IF($K47="Ongoing",BA47,IF(RIGHT($K47,2)=RIGHT(BW$39,2),SUM($AX47:BA47),0)+IF(RIGHT(BW$39,2)>RIGHT($K47,2),BA47,0)) -> 0 | BX47: =+IF($K47="Ongoing",BB47,IF(RIGHT($K47,2)=RIGHT(BX$39,2),SUM($AX47:BB47),0)+IF(RIGHT(BX$39,2)>RIGHT($K47,2),BB47,0)) -> 0 | BY47: =+IF($K47="Ongoing",BC47,IF(RIGHT($K47,2)=RIGHT(BY$39,2),SUM($AX47:BC47),0)+IF(RIGHT(BY$39,2)>RIGHT($K47,2),BC47,0)) -> 0 | BZ47: =+IF($K47="Ongoing",BD47,IF(RIGHT($K47,2)=RIGHT(BZ$39,2),SUM($AX47:BD47),0)+IF(RIGHT(BZ$39,2)>RIGHT($K47,2),BD47,0)) -> 0 | CA47: =+IF($K47="Ongoing",BE47,IF(RIGHT($K47,2)=RIGHT(CA$39,2),SUM($AX47:BE47),0)+IF(RIGHT(CA$39,2)>RIGHT($K47,2),BE47,0)) -> 50.78 | CB47: =+IF($K47="Ongoing",BF47,IF(RIGHT($K47,2)=RIGHT(CB$39,2),SUM($AX47:BF47),0)+IF(RIGHT(CB$39,2)>RIGHT($K47,2),BF47,0)) -> 0 | CC47: =+IF($K47="Ongoing",BG47,IF(RIGHT($K47,2)=RIGHT(CC$39,2),SUM($AX47:BG47),0)+IF(RIGHT(CC$39,2)>RIGHT($K47,2),BG47,0)) -> 0 | CE47: =+Q47*KeyAssumptionsPriceControl_FO!AC$15 -> 0 | CF47: =+R47*KeyAssumptionsPriceControl_FO!AD$15 -> 2.355198 | CG47: =+S47*KeyAssumptionsPriceControl_FO!AE$15 -> 6.76398013 | CH47: =+T47*KeyAssumptionsPriceControl_FO!AF$15 -> 6.966899534 | CI47: =+U47*KeyAssumptionsPriceControl_FO!AG$15 -> 0 | CJ47: =+V47*KeyAssumptionsPriceControl_FO!AH$15 -> 24.3825479 | CK47: =+W47*KeyAssumptionsPriceControl_FO!AI$15 -> 19.38281212 | CL47: =+X47*KeyAssumptionsPriceControl_FO!AJ$15 -> 0 | CM47: =+Y47*KeyAssumptionsPriceControl_FO!AK$15 -> 0 | CN47: =+Z47*KeyAssumptionsPriceControl_FO!AL$15 -> 0 | CP47: 0 | CQ47: 0.029439975 | CR47: 0.1434297016 | CS47: 0.3150656974 | CT47: 0.4021519416 | CU47: 0.7069337903 | CV47: 1.25400079 | CW47: 1.496285942 | CX47: 1.496285942 | CY47: 1.496285942
C48: Goornong Treated Water Supply Upgrade | E48: Water | F48: Renewals | G48: Treatment | H48: Top 10 Major Projects | J48: Straight line | K48: 2029-30 | L48: 70 | M48: 40 | Q48: 0.19 | R48: 6.71 | S48: 6.71 | T48: 0 | U48: 0 | V48: 3.83 | W48: 0 | X48: 0 | Y48: 0 | Z48: 0 | AX48: 0.19 | AY48: 6.71 | AZ48: 6.71 | BA48: 0 | BB48: 0 | BC48: 3.83 | BD48: 0 | BE48: 0 | BF48: 0 | BG48: 0 | BI48: 0 | BJ48: 0 | BK48: 0 | BL48: 0 | BM48: 0 | BN48: 0 | BO48: 0.1245714286 | BP48: 0.2491428571 | BQ48: 0.2491428571 | BR48: 0.2491428571 | BT48: =+IF($K48="Ongoing",AX48,IF(RIGHT($K48,2)=RIGHT(BT$39,2),SUM($AX48:AX48),0)+IF(RIGHT(BT$39,2)>RIGHT($K48,2),AX48,0)) -> 0 | BU48: =+IF($K48="Ongoing",AY48,IF(RIGHT($K48,2)=RIGHT(BU$39,2),SUM($AX48:AY48),0)+IF(RIGHT(BU$39,2)>RIGHT($K48,2),AY48,0)) -> 0 | BV48: =+IF($K48="Ongoing",AZ48,IF(RIGHT($K48,2)=RIGHT(BV$39,2),SUM($AX48:AZ48),0)+IF(RIGHT(BV$39,2)>RIGHT($K48,2),AZ48,0)) -> 0 | BW48: =+IF($K48="Ongoing",BA48,IF(RIGHT($K48,2)=RIGHT(BW$39,2),SUM($AX48:BA48),0)+IF(RIGHT(BW$39,2)>RIGHT($K48,2),BA48,0)) -> 0 | BX48: =+IF($K48="Ongoing",BB48,IF(RIGHT($K48,2)=RIGHT(BX$39,2),SUM($AX48:BB48),0)+IF(RIGHT(BX$39,2)>RIGHT($K48,2),BB48,0)) -> 0 | BY48: =+IF($K48="Ongoing",BC48,IF(RIGHT($K48,2)=RIGHT(BY$39,2),SUM($AX48:BC48),0)+IF(RIGHT(BY$39,2)>RIGHT($K48,2),BC48,0)) -> 0 | BZ48: =+IF($K48="Ongoing",BD48,IF(RIGHT($K48,2)=RIGHT(BZ$39,2),SUM($AX48:BD48),0)+IF(RIGHT(BZ$39,2)>RIGHT($K48,2),BD48,0)) -> 17.44 | CA48: =+IF($K48="Ongoing",BE48,IF(RIGHT($K48,2)=RIGHT(CA$39,2),SUM($AX48:BE48),0)+IF(RIGHT(CA$39,2)>RIGHT($K48,2),BE48,0)) -> 0 | CB48: =+IF($K48="Ongoing",BF48,IF(RIGHT($K48,2)=RIGHT(CB$39,2),SUM($AX48:BF48),0)+IF(RIGHT(CB$39,2)>RIGHT($K48,2),BF48,0)) -> 0 | CC48: =+IF($K48="Ongoing",BG48,IF(RIGHT($K48,2)=RIGHT(CC$39,2),SUM($AX48:BG48),0)+IF(RIGHT(CC$39,2)>RIGHT($K48,2),BG48,0)) -> 0 | CE48: =+Q48*KeyAssumptionsPriceControl_FO!AC$15 -> 0.1957 | CF48: =+R48*KeyAssumptionsPriceControl_FO!AD$15 -> 7.118639 | CG48: =+S48*KeyAssumptionsPriceControl_FO!AE$15 -> 7.33219817 | CH48: =+T48*KeyAssumptionsPriceControl_FO!AF$15 -> 0 | CI48: =+U48*KeyAssumptionsPriceControl_FO!AG$15 -> 0 | CJ48: =+V48*KeyAssumptionsPriceControl_FO!AH$15 -> 4.573220296 | CK48: =+W48*KeyAssumptionsPriceControl_FO!AI$15 -> 0 | CL48: =+X48*KeyAssumptionsPriceControl_FO!AJ$15 -> 0 | CM48: =+Y48*KeyAssumptionsPriceControl_FO!AK$15 -> 0 | CN48: =+Z48*KeyAssumptionsPriceControl_FO!AL$15 -> 0 | CP48: 0.00244625 | CQ48: 0.0938754875 | CR48: 0.2745109521 | CS48: 0.3661634293 | CT48: 0.3661634293 | CU48: 0.4233286829 | CV48: 0.4804939366 | CW48: 0.4804939366 | CX48: 0.4804939366 | CY48: 0.4804939366
C49: Bendigo WRP Recycled Water Factory Upgrade | E49: Recycled Water | F49: Improvements / Compliance | G49: Treatment | H49: Top 10 Major Projects | J49: Straight line | K49: 2028-29 | L49: 50 | M49: 40 | Q49: 0 | R49: 0 | S49: 0.43 | T49: 5.5 | U49: 5.5 | V49: 0 | W49: 0 | X49: 0 | Y49: 0 | Z49: 0 | AX49: 0 | AY49: 0 | AZ49: 0.43 | BA49: 5.5 | BB49: 5.5 | BC49: 0 | BD49: 0 | BE49: 0 | BF49: 0 | BG49: 0 | BI49: 0 | BJ49: 0 | BK49: 0 | BL49: 0 | BM49: 0 | BN49: 0.1143 | BO49: 0.2286 | BP49: 0.2286 | BQ49: 0.2286 | BR49: 0.2286 | BT49: =+IF($K49="Ongoing",AX49,IF(RIGHT($K49,2)=RIGHT(BT$39,2),SUM($AX49:AX49),0)+IF(RIGHT(BT$39,2)>RIGHT($K49,2),AX49,0)) -> 0 | BU49: =+IF($K49="Ongoing",AY49,IF(RIGHT($K49,2)=RIGHT(BU$39,2),SUM($AX49:AY49),0)+IF(RIGHT(BU$39,2)>RIGHT($K49,2),AY49,0)) -> 0 | BV49: =+IF($K49="Ongoing",AZ49,IF(RIGHT($K49,2)=RIGHT(BV$39,2),SUM($AX49:AZ49),0)+IF(RIGHT(BV$39,2)>RIGHT($K49,2),AZ49,0)) -> 0 | BW49: =+IF($K49="Ongoing",BA49,IF(RIGHT($K49,2)=RIGHT(BW$39,2),SUM($AX49:BA49),0)+IF(RIGHT(BW$39,2)>RIGHT($K49,2),BA49,0)) -> 0 | BX49: =+IF($K49="Ongoing",BB49,IF(RIGHT($K49,2)=RIGHT(BX$39,2),SUM($AX49:BB49),0)+IF(RIGHT(BX$39,2)>RIGHT($K49,2),BB49,0)) -> 0 | BY49: =+IF($K49="Ongoing",BC49,IF(RIGHT($K49,2)=RIGHT(BY$39,2),SUM($AX49:BC49),0)+IF(RIGHT(BY$39,2)>RIGHT($K49,2),BC49,0)) -> 11.43 | BZ49: =+IF($K49="Ongoing",BD49,IF(RIGHT($K49,2)=RIGHT(BZ$39,2),SUM($AX49:BD49),0)+IF(RIGHT(BZ$39,2)>RIGHT($K49,2),BD49,0)) -> 0 | CA49: =+IF($K49="Ongoing",BE49,IF(RIGHT($K49,2)=RIGHT(CA$39,2),SUM($AX49:BE49),0)+IF(RIGHT(CA$39,2)>RIGHT($K49,2),BE49,0)) -> 0 | CB49: =+IF($K49="Ongoing",BF49,IF(RIGHT($K49,2)=RIGHT(CB$39,2),SUM($AX49:BF49),0)+IF(RIGHT(CB$39,2)>RIGHT($K49,2),BF49,0)) -> 0 | CC49: =+IF($K49="Ongoing",BG49,IF(RIGHT($K49,2)=RIGHT(CC$39,2),SUM($AX49:BG49),0)+IF(RIGHT(CC$39,2)>RIGHT($K49,2),BG49,0)) -> 0 | CE49: =+Q49*KeyAssumptionsPriceControl_FO!AC$15 -> 0 | CF49: =+R49*KeyAssumptionsPriceControl_FO!AD$15 -> 0 | CG49: =+S49*KeyAssumptionsPriceControl_FO!AE$15 -> 0.46987261 | CH49: =+T49*KeyAssumptionsPriceControl_FO!AF$15 -> 6.190298455 | CI49: =+U49*KeyAssumptionsPriceControl_FO!AG$15 -> 6.376007409 | CJ49: =+V49*KeyAssumptionsPriceControl_FO!AH$15 -> 0 | CK49: =+W49*KeyAssumptionsPriceControl_FO!AI$15 -> 0 | CL49: =+X49*KeyAssumptionsPriceControl_FO!AJ$15 -> 0 | CM49: =+Y49*KeyAssumptionsPriceControl_FO!AK$15 -> 0 | CN49: =+Z49*KeyAssumptionsPriceControl_FO!AL$15 -> 0 | CP49: 0 | CQ49: 0 | CR49: 0.005873407625 | CS49: 0.08912554594 | CT49: 0.2462043692 | CU49: 0.3259044618 | CV49: 0.3259044618 | CW49: 0.3259044618 | CX49: 0.3259044618 | CY49: 0.3259044618
C50: Bendigo, Castlemaine and Kyneton WTP Water Quality Upgrades | E50: Water | F50: Improvements / Compliance | G50: Treatment | H50: Top 10 Major Projects | J50: Straight line | K50: 2025-26 | L50: 25 | M50: 40 | Q50: 4.29 | R50: 6.96 | S50: 0 | T50: 0 | U50: 0 | V50: 0 | W50: 0 | X50: 0 | Y50: 0 | Z50: 0 | AX50: 4.29 | AY50: 6.96 | AZ50: 0 | BA50: 0 | BB50: 0 | BC50: 0 | BD50: 0 | BE50: 0 | BF50: 0 | BG50: 0 | BI50: 0 | BJ50: 0 | BK50: 0.225 | BL50: 0.45 | BM50: 0.45 | BN50: 0.45 | BO50: 0.45 | BP50: 0.45 | BQ50: 0.45 | BR50: 0.45 | BT50: =+IF($K50="Ongoing",AX50,IF(RIGHT($K50,2)=RIGHT(BT$39,2),SUM($AX50:AX50),0)+IF(RIGHT(BT$39,2)>RIGHT($K50,2),AX50,0)) -> 0 | BU50: =+IF($K50="Ongoing",AY50,IF(RIGHT($K50,2)=RIGHT(BU$39,2),SUM($AX50:AY50),0)+IF(RIGHT(BU$39,2)>RIGHT($K50,2),AY50,0)) -> 0 | BV50: =+IF($K50="Ongoing",AZ50,IF(RIGHT($K50,2)=RIGHT(BV$39,2),SUM($AX50:AZ50),0)+IF(RIGHT(BV$39,2)>RIGHT($K50,2),AZ50,0)) -> 11.25 | BW50: =+IF($K50="Ongoing",BA50,IF(RIGHT($K50,2)=RIGHT(BW$39,2),SUM($AX50:BA50),0)+IF(RIGHT(BW$39,2)>RIGHT($K50,2),BA50,0)) -> 0 | BX50: =+IF($K50="Ongoing",BB50,IF(RIGHT($K50,2)=RIGHT(BX$39,2),SUM($AX50:BB50),0)+IF(RIGHT(BX$39,2)>RIGHT($K50,2),BB50,0)) -> 0 | BY50: =+IF($K50="Ongoing",BC50,IF(RIGHT($K50,2)=RIGHT(BY$39,2),SUM($AX50:BC50),0)+IF(RIGHT(BY$39,2)>RIGHT($K50,2),BC50,0)) -> 0 | BZ50: =+IF($K50="Ongoing",BD50,IF(RIGHT($K50,2)=RIGHT(BZ$39,2),SUM($AX50:BD50),0)+IF(RIGHT(BZ$39,2)>RIGHT($K50,2),BD50,0)) -> 0 | CA50: =+IF($K50="Ongoing",BE50,IF(RIGHT($K50,2)=RIGHT(CA$39,2),SUM($AX50:BE50),0)+IF(RIGHT(CA$39,2)>RIGHT($K50,2),BE50,0)) -> 0 | CB50: =+IF($K50="Ongoing",BF50,IF(RIGHT($K50,2)=RIGHT(CB$39,2),SUM($AX50:BF50),0)+IF(RIGHT(CB$39,2)>RIGHT($K50,2),BF50,0)) -> 0 | CC50: =+IF($K50="Ongoing",BG50,IF(RIGHT($K50,2)=RIGHT(CC$39,2),SUM($AX50:BG50),0)+IF(RIGHT(CC$39,2)>RIGHT($K50,2),BG50,0)) -> 0 | CE50: =+Q50*KeyAssumptionsPriceControl_FO!AC$15 -> 4.4187 | CF50: =+R50*KeyAssumptionsPriceControl_FO!AD$15 -> 7.383864 | CG50: =+S50*KeyAssumptionsPriceControl_FO!AE$15 -> 0 | CH50: =+T50*KeyAssumptionsPriceControl_FO!AF$15 -> 0 | CI50: =+U50*KeyAssumptionsPriceControl_FO!AG$15 -> 0 | CJ50: =+V50*KeyAssumptionsPriceControl_FO!AH$15 -> 0 | CK50: =+W50*KeyAssumptionsPriceControl_FO!AI$15 -> 0 | CL50: =+X50*KeyAssumptionsPriceControl_FO!AJ$15 -> 0 | CM50: =+Y50*KeyAssumptionsPriceControl_FO!AK$15 -> 0 | CN50: =+Z50*KeyAssumptionsPriceControl_FO!AL$15 -> 0 | CP50: 0.05523375 | CQ50: 0.2027658 | CR50: 0.2950641 | CS50: 0.2950641 | CT50: 0.2950641 | CU50: 0.2950641 | CV50: 0.2950641 | CW50: 0.2950641 | CX50: 0.2950641 | CY50: 0.2950641
C51: Cohuna WRP Capacity Increase | E51: Sewerage | F51: Improvements / Compliance | G51: Treatment | H51: Top 10 Major Projects | J51: Straight line | K51: 2028-29 | L51: 60 | M51: 40 | Q51: 0 | R51: 0 | S51: 1.34 | T51: 3.02 | U51: 4.56 | V51: 0 | W51: 0 | X51: 0 | Y51: 0 | Z51: 0 | AX51: 0 | AY51: 0 | AZ51: 1.34 | BA51: 3.02 | BB51: 4.56 | BC51: 0 | BD51: 0 | BE51: 0 | BF51: 0 | BG51: 0 | BI51: 0 | BJ51: 0 | BK51: 0 | BL51: 0 | BM51: 0 | BN51: 0.07433333333 | BO51: 0.1486666667 | BP51: 0.1486666667 | BQ51: 0.1486666667 | BR51: 0.1486666667 | BT51: =+IF($K51="Ongoing",AX51,IF(RIGHT($K51,2)=RIGHT(BT$39,2),SUM($AX51:AX51),0)+IF(RIGHT(BT$39,2)>RIGHT($K51,2),AX51,0)) -> 0 | BU51: =+IF($K51="Ongoing",AY51,IF(RIGHT($K51,2)=RIGHT(BU$39,2),SUM($AX51:AY51),0)+IF(RIGHT(BU$39,2)>RIGHT($K51,2),AY51,0)) -> 0 | BV51: =+IF($K51="Ongoing",AZ51,IF(RIGHT($K51,2)=RIGHT(BV$39,2),SUM($AX51:AZ51),0)+IF(RIGHT(BV$39,2)>RIGHT($K51,2),AZ51,0)) -> 0 | BW51: =+IF($K51="Ongoing",BA51,IF(RIGHT($K51,2)=RIGHT(BW$39,2),SUM($AX51:BA51),0)+IF(RIGHT(BW$39,2)>RIGHT($K51,2),BA51,0)) -> 0 | BX51: =+IF($K51="Ongoing",BB51,IF(RIGHT($K51,2)=RIGHT(BX$39,2),SUM($AX51:BB51),0)+IF(RIGHT(BX$39,2)>RIGHT($K51,2),BB51,0)) -> 0 | BY51: =+IF($K51="Ongoing",BC51,IF(RIGHT($K51,2)=RIGHT(BY$39,2),SUM($AX51:BC51),0)+IF(RIGHT(BY$39,2)>RIGHT($K51,2),BC51,0)) -> 8.92 | BZ51: =+IF($K51="Ongoing",BD51,IF(RIGHT($K51,2)=RIGHT(BZ$39,2),SUM($AX51:BD51),0)+IF(RIGHT(BZ$39,2)>RIGHT($K51,2),BD51,0)) -> 0 | CA51: =+IF($K51="Ongoing",BE51,IF(RIGHT($K51,2)=RIGHT(CA$39,2),SUM($AX51:BE51),0)+IF(RIGHT(CA$39,2)>RIGHT($K51,2),BE51,0)) -> 0 | CB51: =+IF($K51="Ongoing",BF51,IF(RIGHT($K51,2)=RIGHT(CB$39,2),SUM($AX51:BF51),0)+IF(RIGHT(CB$39,2)>RIGHT($K51,2),BF51,0)) -> 0 | CC51: =+IF($K51="Ongoing",BG51,IF(RIGHT($K51,2)=RIGHT(CC$39,2),SUM($AX51:BG51),0)+IF(RIGHT(CC$39,2)>RIGHT($K51,2),BG51,0)) -> 0 | CE51: =+Q51*KeyAssumptionsPriceControl_FO!AC$15 -> 0 | CF51: =+R51*KeyAssumptionsPriceControl_FO!AD$15 -> 0 | CG51: =+S51*KeyAssumptionsPriceControl_FO!AE$15 -> 1.46425418 | CH51: =+T51*KeyAssumptionsPriceControl_FO!AF$15 -> 3.399036606 | CI51: =+U51*KeyAssumptionsPriceControl_FO!AG$15 -> 5.286289779 | CJ51: =+V51*KeyAssumptionsPriceControl_FO!AH$15 -> 0 | CK51: =+W51*KeyAssumptionsPriceControl_FO!AI$15 -> 0 | CL51: =+X51*KeyAssumptionsPriceControl_FO!AJ$15 -> 0 | CM51: =+Y51*KeyAssumptionsPriceControl_FO!AK$15 -> 0 | CN51: =+Z51*KeyAssumptionsPriceControl_FO!AL$15 -> 0 | CP51: 0 | CQ51: 0 | CR51: 0.01830317725 | CS51: 0.07909431208 | CT51: 0.1876608919 | CU51: 0.2537395141 | CV51: 0.2537395141 | CW51: 0.2537395141 | CX51: 0.2537395141 | CY51: 0.2537395141
C53: NOTE: Most of our projects have multiple drivers. e.g. a "Compliance" project will cost more due to having a "Growth" component, and a "Growth" project will also be sized for future compliance. | AX53: =+Q53-AB53-AM53 -> 0 | AY53: =+R53-AC53-AN53 -> 0 | AZ53: =+S53-AD53-AO53 -> 0 | BA53: =+T53-AE53-AP53 -> 0 | BB53: =+U53-AF53-AQ53 -> 0 | BC53: =+V53-AG53-AR53 -> 0 | BD53: =+W53-AH53-AS53 -> 0 | BE53: =+X53-AI53-AT53 -> 0 | BF53: =+Y53-AJ53-AU53 -> 0 | BG53: =+Z53-AK53-AV53 -> 0 | BI53: =IF($L53=0,0, IF($L53<=0.5,BT53, IF($J53="straight line", IF((LEFT(BI$39,4)*1)-INT($L53)<LEFT($BI$39,4)*1,0,((OFFSET(BT53,0,-INT($L53+0.5),1,1))/$L53)*(IF($L53-INT($L53)>0.5,$L53-0.5-INT($L53),IF($L53-INT($L53)<=0.5,$L53-0.5-INT($L53)+1,0)))) +BT53/$L53*0.5, IF($J53="Declining Balance",-$BI$38,0)))) -> 0 | BJ53: =IF($L53=0,0, IF($L53<=0.5,BU53, IF(AND($J53="straight line",$L53<1.51),(BT53-((BT53/$L53)*0.5))+BU53/$L53*0.5, IF($J53="straight line", IF((LEFT(BJ$39,4)*1)-INT($L53)<LEFT($BI$39,4)*1,0,((OFFSET(BU53,0,-INT($L53+0.5),1,1))/$L53)*(IF($L53-INT($L53)>0.5,$L53-0.5-INT($L53),IF($L53-INT($L53)<=0.5,$L53-0.5-INT($L53)+1,0)))) +BU53/$L53*0.5 +SUM(OFFSET(BU53,0,MAX(-INT($L53+(0.5-(10^-12))),-BJ$40)+1,1,MIN(INT($L53+(0.5-(10^-12))),BJ$40)-1))*1/$L53, IF($J53="Declining Balance",-$BI$38,0))))) -> 0 | BK53: =IF($L53=0,0, IF($L53<=0.5,BV53, IF(AND($J53="straight line",$L53<1.51),(BU53-((BU53/$L53)*0.5))+BV53/$L53*0.5, IF($J53="straight line", IF((LEFT(BK$39,4)*1)-INT($L53)<LEFT($BI$39,4)*1,0,((OFFSET(BV53,0,-INT($L53+0.5),1,1))/$L53)*(IF($L53-INT($L53)>0.5,$L53-0.5-INT($L53),IF($L53-INT($L53)<=0.5,$L53-0.5-INT($L53)+1,0)))) +BV53/$L53*0.5 +SUM(OFFSET(BV53,0,MAX(-INT($L53+(0.5-(10^-12))),-BK$40)+1,1,MIN(INT($L53+(0.5-(10^-12))),BK$40)-1))*1/$L53, IF($J53="Declining Balance",-$BI$38,0))))) -> 0 | BL53: =IF($L53=0,0, IF($L53<=0.5,BW53, IF(AND($J53="straight line",$L53<1.51),(BV53-((BV53/$L53)*0.5))+BW53/$L53*0.5, IF($J53="straight line", IF((LEFT(BL$39,4)*1)-INT($L53)<LEFT($BI$39,4)*1,0,((OFFSET(BW53,0,-INT($L53+0.5),1,1))/$L53)*(IF($L53-INT($L53)>0.5,$L53-0.5-INT($L53),IF($L53-INT($L53)<=0.5,$L53-0.5-INT($L53)+1,0)))) +BW53/$L53*0.5 +SUM(OFFSET(BW53,0,MAX(-INT($L53+(0.5-(10^-12))),-BL$40)+1,1,MIN(INT($L53+(0.5-(10^-12))),BL$40)-1))*1/$L53, IF($J53="Declining Balance",-$BI$38,0))))) -> 0 | BM53: =IF($L53=0,0, IF($L53<=0.5,BX53, IF(AND($J53="straight line",$L53<1.51),(BW53-((BW53/$L53)*0.5))+BX53/$L53*0.5, IF($J53="straight line", IF((LEFT(BM$39,4)*1)-INT($L53)<LEFT($BI$39,4)*1,0,((OFFSET(BX53,0,-INT($L53+0.5),1,1))/$L53)*(IF($L53-INT($L53)>0.5,$L53-0.5-INT($L53),IF($L53-INT($L53)<=0.5,$L53-0.5-INT($L53)+1,0)))) +BX53/$L53*0.5 +SUM(OFFSET(BX53,0,MAX(-INT($L53+(0.5-(10^-12))),-BM$40)+1,1,MIN(INT($L53+(0.5-(10^-12))),BM$40)-1))*1/$L53, IF($J53="Declining Balance",-$BI$38,0))))) -> 0 | BN53: =IF($L53=0,0, IF($L53<=0.5,BY53, IF(AND($J53="straight line",$L53<1.51),(BX53-((BX53/$L53)*0.5))+BY53/$L53*0.5, IF($J53="straight line", IF((LEFT(BN$39,4)*1)-INT($L53)<LEFT($BI$39,4)*1,0,((OFFSET(BY53,0,-INT($L53+0.5),1,1))/$L53)*(IF($L53-INT($L53)>0.5,$L53-0.5-INT($L53),IF($L53-INT($L53)<=0.5,$L53-0.5-INT($L53)+1,0)))) +BY53/$L53*0.5 +SUM(OFFSET(BY53,0,MAX(-INT($L53+(0.5-(10^-12))),-BN$40)+1,1,MIN(INT($L53+(0.5-(10^-12))),BN$40)-1))*1/$L53, IF($J53="Declining Balance",-$BI$38,0))))) -> 0 | BO53: =IF($L53=0,0, IF($L53<=0.5,BZ53, IF(AND($J53="straight line",$L53<1.51),(BY53-((BY53/$L53)*0.5))+BZ53/$L53*0.5, IF($J53="straight line", IF((LEFT(BO$39,4)*1)-INT($L53)<LEFT($BI$39,4)*1,0,((OFFSET(BZ53,0,-INT($L53+0.5),1,1))/$L53)*(IF($L53-INT($L53)>0.5,$L53-0.5-INT($L53),IF($L53-INT($L53)<=0.5,$L53-0.5-INT($L53)+1,0)))) +BZ53/$L53*0.5 +SUM(OFFSET(BZ53,0,MAX(-INT($L53+(0.5-(10^-12))),-BO$40)+1,1,MIN(INT($L53+(0.5-(10^-12))),BO$40)-1))*1/$L53, IF($J53="Declining Balance",-$BI$38,0))))) -> 0 | BP53: =IF($L53=0,0, IF($L53<=0.5,CA53, IF(AND($J53="straight line",$L53<1.51),(BZ53-((BZ53/$L53)*0.5))+CA53/$L53*0.5, IF($J53="straight line", IF((LEFT(BP$39,4)*1)-INT($L53)<LEFT($BI$39,4)*1,0,((OFFSET(CA53,0,-INT($L53+0.5),1,1))/$L53)*(IF($L53-INT($L53)>0.5,$L53-0.5-INT($L53),IF($L53-INT($L53)<=0.5,$L53-0.5-INT($L53)+1,0)))) +CA53/$L53*0.5 +SUM(OFFSET(CA53,0,MAX(-INT($L53+(0.5-(10^-12))),-BP$40)+1,1,MIN(INT($L53+(0.5-(10^-12))),BP$40)-1))*1/$L53, IF($J53="Declining Balance",-$BI$38,0))))) -> 0 | BQ53: =IF($L53=0,0, IF($L53<=0.5,CB53, IF(AND($J53="straight line",$L53<1.51),(CA53-((CA53/$L53)*0.5))+CB53/$L53*0.5, IF($J53="straight line", IF((LEFT(BQ$39,4)*1)-INT($L53)<LEFT($BI$39,4)*1,0,((OFFSET(CB53,0,-INT($L53+0.5),1,1))/$L53)*(IF($L53-INT($L53)>0.5,$L53-0.5-INT($L53),IF($L53-INT($L53)<=0.5,$L53-0.5-INT($L53)+1,0)))) +CB53/$L53*0.5 +SUM(OFFSET(CB53,0,MAX(-INT($L53+(0.5-(10^-12))),-BQ$40)+1,1,MIN(INT($L53+(0.5-(10^-12))),BQ$40)-1))*1/$L53, IF($J53="Declining Balance",-$BI$38,0))))) -> 0 | BR53: =IF($L53=0,0, IF($L53<=0.5,CC53, IF(AND($J53="straight line",$L53<1.51),(CB53-((CB53/$L53)*0.5))+CC53/$L53*0.5, IF($J53="straight line", IF((LEFT(BR$39,4)*1)-INT($L53)<LEFT($BI$39,4)*1,0,((OFFSET(CC53,0,-INT($L53+0.5),1,1))/$L53)*(IF($L53-INT($L53)>0.5,$L53-0.5-INT($L53),IF($L53-INT($L53)<=0.5,$L53-0.5-INT($L53)+1,0)))) +CC53/$L53*0.5 +SUM(OFFSET(CC53,0,MAX(-INT($L53+(0.5-(10^-12))),-BR$40)+1,1,MIN(INT($L53+(0.5-(10^-12))),BR$40)-1))*1/$L53, IF($J53="Declining Balance",-$BI$38,0))))) -> 0 | BT53: =+IF($K53="Ongoing",AX53,IF(RIGHT($K53,2)=RIGHT(BT$39,2),SUM($AX53:AX53),0)+IF(RIGHT(BT$39,2)>RIGHT($K53,2),AX53,0)) -> 0 | BU53: =+IF($K53="Ongoing",AY53,IF(RIGHT($K53,2)=RIGHT(BU$39,2),SUM($AX53:AY53),0)+IF(RIGHT(BU$39,2)>RIGHT($K53,2),AY53,0)) -> 0 | BV53: =+IF($K53="Ongoing",AZ53,IF(RIGHT($K53,2)=RIGHT(BV$39,2),SUM($AX53:AZ53),0)+IF(RIGHT(BV$39,2)>RIGHT($K53,2),AZ53,0)) -> 0 | BW53: =+IF($K53="Ongoing",BA53,IF(RIGHT($K53,2)=RIGHT(BW$39,2),SUM($AX53:BA53),0)+IF(RIGHT(BW$39,2)>RIGHT($K53,2),BA53,0)) -> 0 | BX53: =+IF($K53="Ongoing",BB53,IF(RIGHT($K53,2)=RIGHT(BX$39,2),SUM($AX53:BB53),0)+IF(RIGHT(BX$39,2)>RIGHT($K53,2),BB53,0)) -> 0 | BY53: =+IF($K53="Ongoing",BC53,IF(RIGHT($K53,2)=RIGHT(BY$39,2),SUM($AX53:BC53),0)+IF(RIGHT(BY$39,2)>RIGHT($K53,2),BC53,0)) -> 0 | BZ53: =+IF($K53="Ongoing",BD53,IF(RIGHT($K53,2)=RIGHT(BZ$39,2),SUM($AX53:BD53),0)+IF(RIGHT(BZ$39,2)>RIGHT($K53,2),BD53,0)) -> 0 | CA53: =+IF($K53="Ongoing",BE53,IF(RIGHT($K53,2)=RIGHT(CA$39,2),SUM($AX53:BE53),0)+IF(RIGHT(CA$39,2)>RIGHT($K53,2),BE53,0)) -> 0 | CB53: =+IF($K53="Ongoing",BF53,IF(RIGHT($K53,2)=RIGHT(CB$39,2),SUM($AX53:BF53),0)+IF(RIGHT(CB$39,2)>RIGHT($K53,2),BF53,0)) -> 0 | CC53: =+IF($K53="Ongoing",BG53,IF(RIGHT($K53,2)=RIGHT(CC$39,2),SUM($AX53:BG53),0)+IF(RIGHT(CC$39,2)>RIGHT($K53,2),BG53,0)) -> 0 | CE53: =+Q53*KeyAssumptionsPriceControl_FO!AC$15 -> 0 | CF53: =+R53*KeyAssumptionsPriceControl_FO!AD$15 -> 0 | CG53: =+S53*KeyAssumptionsPriceControl_FO!AE$15 -> 0 | CH53: =+T53*KeyAssumptionsPriceControl_FO!AF$15 -> 0 | CI53: =+U53*KeyAssumptionsPriceControl_FO!AG$15 -> 0 | CJ53: =+V53*KeyAssumptionsPriceControl_FO!AH$15 -> 0 | CK53: =+W53*KeyAssumptionsPriceControl_FO!AI$15 -> 0 | CL53: =+X53*KeyAssumptionsPriceControl_FO!AJ$15 -> 0 | CM53: =+Y53*KeyAssumptionsPriceControl_FO!AK$15 -> 0 | CN53: =+Z53*KeyAssumptionsPriceControl_FO!AL$15 -> 0 | CP53: =IF($M53=0,0, IF($M53<=0.5,CE53, IF($J53="straight line", IF((LEFT(CP$39,4)*1)-INT($M53)<LEFT($CP$39,4)*1,0,((OFFSET(CE53,0,-INT($M53+0.5),1,1))/$M53)*(IF($M53-INT($M53)>0.5,$M53-0.5-INT($M53),IF($M53-INT($M53)<=0.5,$M53-0.5-INT($M53)+1,0)))) +CE53/$M53*0.5, IF($J53="Declining Balance",-$CP$38,0)))) -> 0 | CQ53: =IF($M53=0,0, IF($M53<=0.5,CF53, IF(AND($J53="straight line",$M53<1.51),(CE53-((CE53/$M53)*0.5))+CF53/$M53*0.5, IF($J53="straight line", IF((LEFT(CQ$39,4)*1)-INT($M53)<LEFT($CP$39,4)*1,0,((OFFSET(CF53,0,-INT($M53+0.5),1,1))/$M53)*(IF($M53-INT($M53)>0.5,$M53-0.5-INT($M53),IF($M53-INT($M53)<=0.5,$M53-0.5-INT($M53)+1,0)))) +CF53/$M53*0.5 +SUM(OFFSET(CF53,0,MAX(-INT($M53+(0.5-(10^-12))),-CQ$40)+1,1,MIN(INT($M53+(0.5-(10^-12))),CQ$40)-1))*1/$M53, IF($J53="Declining Balance",-$CP$38,0))))) -> 0 | CR53: =IF($M53=0,0, IF($M53<=0.5,CG53, IF(AND($J53="straight line",$M53<1.51),(CF53-((CF53/$M53)*0.5))+CG53/$M53*0.5, IF($J53="straight line", IF((LEFT(CR$39,4)*1)-INT($M53)<LEFT($CP$39,4)*1,0,((OFFSET(CG53,0,-INT($M53+0.5),1,1))/$M53)*(IF($M53-INT($M53)>0.5,$M53-0.5-INT($M53),IF($M53-INT($M53)<=0.5,$M53-0.5-INT($M53)+1,0)))) +CG53/$M53*0.5 +SUM(OFFSET(CG53,0,MAX(-INT($M53+(0.5-(10^-12))),-CR$40)+1,1,MIN(INT($M53+(0.5-(10^-12))),CR$40)-1))*1/$M53, IF($J53="Declining Balance",-$CP$38,0))))) -> 0 | CS53: =IF($M53=0,0, IF($M53<=0.5,CH53, IF(AND($J53="straight line",$M53<1.51),(CG53-((CG53/$M53)*0.5))+CH53/$M53*0.5, IF($J53="straight line", IF((LEFT(CS$39,4)*1)-INT($M53)<LEFT($CP$39,4)*1,0,((OFFSET(CH53,0,-INT($M53+0.5),1,1))/$M53)*(IF($M53-INT($M53)>0.5,$M53-0.5-INT($M53),IF($M53-INT($M53)<=0.5,$M53-0.5-INT($M53)+1,0)))) +CH53/$M53*0.5 +SUM(OFFSET(CH53,0,MAX(-INT($M53+(0.5-(10^-12))),-CS$40)+1,1,MIN(INT($M53+(0.5-(10^-12))),CS$40)-1))*1/$M53, IF($J53="Declining Balance",-$CP$38,0))))) -> 0 | CT53: =IF($M53=0,0, IF($M53<=0.5,CI53, IF(AND($J53="straight line",$M53<1.51),(CH53-((CH53/$M53)*0.5))+CI53/$M53*0.5, IF($J53="straight line", IF((LEFT(CT$39,4)*1)-INT($M53)<LEFT($CP$39,4)*1,0,((OFFSET(CI53,0,-INT($M53+0.5),1,1))/$M53)*(IF($M53-INT($M53)>0.5,$M53-0.5-INT($M53),IF($M53-INT($M53)<=0.5,$M53-0.5-INT($M53)+1,0)))) +CI53/$M53*0.5 +SUM(OFFSET(CI53,0,MAX(-INT($M53+(0.5-(10^-12))),-CT$40)+1,1,MIN(INT($M53+(0.5-(10^-12))),CT$40)-1))*1/$M53, IF($J53="Declining Balance",-$CP$38,0))))) -> 0 | CU53: =IF($M53=0,0, IF($M53<=0.5,CJ53, IF(AND($J53="straight line",$M53<1.51),(CI53-((CI53/$M53)*0.5))+CJ53/$M53*0.5, IF($J53="straight line", IF((LEFT(CU$39,4)*1)-INT($M53)<LEFT($CP$39,4)*1,0,((OFFSET(CJ53,0,-INT($M53+0.5),1,1))/$M53)*(IF($M53-INT($M53)>0.5,$M53-0.5-INT($M53),IF($M53-INT($M53)<=0.5,$M53-0.5-INT($M53)+1,0)))) +CJ53/$M53*0.5 +SUM(OFFSET(CJ53,0,MAX(-INT($M53+(0.5-(10^-12))),-CU$40)+1,1,MIN(INT($M53+(0.5-(10^-12))),CU$40)-1))*1/$M53, IF($J53="Declining Balance",-$CP$38,0))))) -> 0 | CV53: =IF($M53=0,0, IF($M53<=0.5,CK53, IF(AND($J53="straight line",$M53<1.51),(CJ53-((CJ53/$M53)*0.5))+CK53/$M53*0.5, IF($J53="straight line", IF((LEFT(CV$39,4)*1)-INT($M53)<LEFT($CP$39,4)*1,0,((OFFSET(CK53,0,-INT($M53+0.5),1,1))/$M53)*(IF($M53-INT($M53)>0.5,$M53-0.5-INT($M53),IF($M53-INT($M53)<=0.5,$M53-0.5-INT($M53)+1,0)))) +CK53/$M53*0.5 +SUM(OFFSET(CK53,0,MAX(-INT($M53+(0.5-(10^-12))),-CV$40)+1,1,MIN(INT($M53+(0.5-(10^-12))),CV$40)-1))*1/$M53, IF($J53="Declining Balance",-$CP$38,0))))) -> 0 | CW53: =IF($M53=0,0, IF($M53<=0.5,CL53, IF(AND($J53="straight line",$M53<1.51),(CK53-((CK53/$M53)*0.5))+CL53/$M53*0.5, IF($J53="straight line", IF((LEFT(CW$39,4)*1)-INT($M53)<LEFT($CP$39,4)*1,0,((OFFSET(CL53,0,-INT($M53+0.5),1,1))/$M53)*(IF($M53-INT($M53)>0.5,$M53-0.5-INT($M53),IF($M53-INT($M53)<=0.5,$M53-0.5-INT($M53)+1,0)))) +CL53/$M53*0.5 +SUM(OFFSET(CL53,0,MAX(-INT($M53+(0.5-(10^-12))),-CW$40)+1,1,MIN(INT($M53+(0.5-(10^-12))),CW$40)-1))*1/$M53, IF($J53="Declining Balance",-$CP$38,0))))) -> 0 | CX53: =IF($M53=0,0, IF($M53<=0.5,CM53, IF(AND($J53="straight line",$M53<1.51),(CL53-((CL53/$M53)*0.5))+CM53/$M53*0.5, IF($J53="straight line", IF((LEFT(CX$39,4)*1)-INT($M53)<LEFT($CP$39,4)*1,0,((OFFSET(CM53,0,-INT($M53+0.5),1,1))/$M53)*(IF($M53-INT($M53)>0.5,$M53-0.5-INT($M53),IF($M53-INT($M53)<=0.5,$M53-0.5-INT($M53)+1,0)))) +CM53/$M53*0.5 +SUM(OFFSET(CM53,0,MAX(-INT($M53+(0.5-(10^-12))),-CX$40)+1,1,MIN(INT($M53+(0.5-(10^-12))),CX$40)-1))*1/$M53, IF($J53="Declining Balance",-$CP$38,0))))) -> 0 | CY53: =IF($M53=0,0, IF($M53<=0.5,CN53, IF(AND($J53="straight line",$M53<1.51),(CM53-((CM53/$M53)*0.5))+CN53/$M53*0.5, IF($J53="straight line", IF((LEFT(CY$39,4)*1)-INT($M53)<LEFT($CP$39,4)*1,0,((OFFSET(CN53,0,-INT($M53+0.5),1,1))/$M53)*(IF($M53-INT($M53)>0.5,$M53-0.5-INT($M53),IF($M53-INT($M53)<=0.5,$M53-0.5-INT($M53)+1,0)))) +CN53/$M53*0.5 +SUM(OFFSET(CN53,0,MAX(-INT($M53+(0.5-(10^-12))),-CY$40)+1,1,MIN(INT($M53+(0.5-(10^-12))),CY$40)-1))*1/$M53, IF($J53="Declining Balance",-$CP$38,0))))) -> 0
C54: - Only the primary driver is listed in Column F. But a percentage of several programs is related to multiple drivers. | AX54: 0 | AY54: 0 | AZ54: 0 | BA54: 0 | BB54: 0 | BC54: 0 | BD54: 0 | BE54: 0 | BF54: 0 | BG54: 0 | BI54: 0 | BJ54: 0 | BK54: 0 | BL54: 0 | BM54: 0 | BN54: 0 | BO54: 0 | BP54: 0 | BQ54: 0 | BR54: 0 | BT54: =+IF($K54="Ongoing",AX54,IF(RIGHT($K54,2)=RIGHT(BT$39,2),SUM($AX54:AX54),0)+IF(RIGHT(BT$39,2)>RIGHT($K54,2),AX54,0)) -> 0 | BU54: =+IF($K54="Ongoing",AY54,IF(RIGHT($K54,2)=RIGHT(BU$39,2),SUM($AX54:AY54),0)+IF(RIGHT(BU$39,2)>RIGHT($K54,2),AY54,0)) -> 0 | BV54: =+IF($K54="Ongoing",AZ54,IF(RIGHT($K54,2)=RIGHT(BV$39,2),SUM($AX54:AZ54),0)+IF(RIGHT(BV$39,2)>RIGHT($K54,2),AZ54,0)) -> 0 | BW54: =+IF($K54="Ongoing",BA54,IF(RIGHT($K54,2)=RIGHT(BW$39,2),SUM($AX54:BA54),0)+IF(RIGHT(BW$39,2)>RIGHT($K54,2),BA54,0)) -> 0 | BX54: =+IF($K54="Ongoing",BB54,IF(RIGHT($K54,2)=RIGHT(BX$39,2),SUM($AX54:BB54),0)+IF(RIGHT(BX$39,2)>RIGHT($K54,2),BB54,0)) -> 0 | BY54: =+IF($K54="Ongoing",BC54,IF(RIGHT($K54,2)=RIGHT(BY$39,2),SUM($AX54:BC54),0)+IF(RIGHT(BY$39,2)>RIGHT($K54,2),BC54,0)) -> 0 | BZ54: =+IF($K54="Ongoing",BD54,IF(RIGHT($K54,2)=RIGHT(BZ$39,2),SUM($AX54:BD54),0)+IF(RIGHT(BZ$39,2)>RIGHT($K54,2),BD54,0)) -> 0 | CA54: =+IF($K54="Ongoing",BE54,IF(RIGHT($K54,2)=RIGHT(CA$39,2),SUM($AX54:BE54),0)+IF(RIGHT(CA$39,2)>RIGHT($K54,2),BE54,0)) -> 0 | CB54: =+IF($K54="Ongoing",BF54,IF(RIGHT($K54,2)=RIGHT(CB$39,2),SUM($AX54:BF54),0)+IF(RIGHT(CB$39,2)>RIGHT($K54,2),BF54,0)) -> 0 | CC54: =+IF($K54="Ongoing",BG54,IF(RIGHT($K54,2)=RIGHT(CC$39,2),SUM($AX54:BG54),0)+IF(RIGHT(CC$39,2)>RIGHT($K54,2),BG54,0)) -> 0 | CE54: =+Q54*KeyAssumptionsPriceControl_FO!AC$15 -> 0 | CF54: =+R54*KeyAssumptionsPriceControl_FO!AD$15 -> 0 | CG54: =+S54*KeyAssumptionsPriceControl_FO!AE$15 -> 0 | CH54: =+T54*KeyAssumptionsPriceControl_FO!AF$15 -> 0 | CI54: =+U54*KeyAssumptionsPriceControl_FO!AG$15 -> 0 | CJ54: =+V54*KeyAssumptionsPriceControl_FO!AH$15 -> 0 | CK54: =+W54*KeyAssumptionsPriceControl_FO!AI$15 -> 0 | CL54: =+X54*KeyAssumptionsPriceControl_FO!AJ$15 -> 0 | CM54: =+Y54*KeyAssumptionsPriceControl_FO!AK$15 -> 0 | CN54: =+Z54*KeyAssumptionsPriceControl_FO!AL$15 -> 0 | CP54: 0 | CQ54: 0 | CR54: 0 | CS54: 0 | CT54: 0 | CU54: 0 | CV54: 0 | CW54: 0 | CX54: 0 | CY54: 0
AX55: 0 | AY55: 0 | AZ55: 0 | BA55: 0 | BB55: 0 | BC55: 0 | BD55: 0 | BE55: 0 | BF55: 0 | BG55: 0 | BI55: 0 | BJ55: 0 | BK55: 0 | BL55: 0 | BM55: 0 | BN55: 0 | BO55: 0 | BP55: 0 | BQ55: 0 | BR55: 0 | BT55: =+IF($K55="Ongoing",AX55,IF(RIGHT($K55,2)=RIGHT(BT$39,2),SUM($AX55:AX55),0)+IF(RIGHT(BT$39,2)>RIGHT($K55,2),AX55,0)) -> 0 | BU55: =+IF($K55="Ongoing",AY55,IF(RIGHT($K55,2)=RIGHT(BU$39,2),SUM($AX55:AY55),0)+IF(RIGHT(BU$39,2)>RIGHT($K55,2),AY55,0)) -> 0 | BV55: =+IF($K55="Ongoing",AZ55,IF(RIGHT($K55,2)=RIGHT(BV$39,2),SUM($AX55:AZ55),0)+IF(RIGHT(BV$39,2)>RIGHT($K55,2),AZ55,0)) -> 0 | BW55: =+IF($K55="Ongoing",BA55,IF(RIGHT($K55,2)=RIGHT(BW$39,2),SUM($AX55:BA55),0)+IF(RIGHT(BW$39,2)>RIGHT($K55,2),BA55,0)) -> 0 | BX55: =+IF($K55="Ongoing",BB55,IF(RIGHT($K55,2)=RIGHT(BX$39,2),SUM($AX55:BB55),0)+IF(RIGHT(BX$39,2)>RIGHT($K55,2),BB55,0)) -> 0 | BY55: =+IF($K55="Ongoing",BC55,IF(RIGHT($K55,2)=RIGHT(BY$39,2),SUM($AX55:BC55),0)+IF(RIGHT(BY$39,2)>RIGHT($K55,2),BC55,0)) -> 0 | BZ55: =+IF($K55="Ongoing",BD55,IF(RIGHT($K55,2)=RIGHT(BZ$39,2),SUM($AX55:BD55),0)+IF(RIGHT(BZ$39,2)>RIGHT($K55,2),BD55,0)) -> 0 | CA55: =+IF($K55="Ongoing",BE55,IF(RIGHT($K55,2)=RIGHT(CA$39,2),SUM($AX55:BE55),0)+IF(RIGHT(CA$39,2)>RIGHT($K55,2),BE55,0)) -> 0 | CB55: =+IF($K55="Ongoing",BF55,IF(RIGHT($K55,2)=RIGHT(CB$39,2),SUM($AX55:BF55),0)+IF(RIGHT(CB$39,2)>RIGHT($K55,2),BF55,0)) -> 0 | CC55: =+IF($K55="Ongoing",BG55,IF(RIGHT($K55,2)=RIGHT(CC$39,2),SUM($AX55:BG55),0)+IF(RIGHT(CC$39,2)>RIGHT($K55,2),BG55,0)) -> 0 | CE55: =+Q55*KeyAssumptionsPriceControl_FO!AC$15 -> 0 | CF55: =+R55*KeyAssumptionsPriceControl_FO!AD$15 -> 0 | CG55: =+S55*KeyAssumptionsPriceControl_FO!AE$15 -> 0 | CH55: =+T55*KeyAssumptionsPriceControl_FO!AF$15 -> 0 | CI55: =+U55*KeyAssumptionsPriceControl_FO!AG$15 -> 0 | CJ55: =+V55*KeyAssumptionsPriceControl_FO!AH$15 -> 0 | CK55: =+W55*KeyAssumptionsPriceControl_FO!AI$15 -> 0 | CL55: =+X55*KeyAssumptionsPriceControl_FO!AJ$15 -> 0 | CM55: =+Y55*KeyAssumptionsPriceControl_FO!AK$15 -> 0 | CN55: =+Z55*KeyAssumptionsPriceControl_FO!AL$15 -> 0 | CP55: 0 | CQ55: 0 | CR55: 0 | CS55: 0 | CT55: 0 | CU55: 0 | CV55: 0 | CW55: 0 | CX55: 0 | CY55: 0
C56: Major Program - Water Reclamation Plant Renewals | E56: Sewerage | F56: Improvements / Compliance | G56: Treatment | H56: Capital Programs / Allocation | J56: Straight line | K56: Ongoing | L56: 50 | M56: 40 | Q56: 2.55 | R56: 1.61 | S56: 1.61 | T56: 6.78 | U56: 7.84 | V56: 4.073893274 | W56: 7.520537016 | X56: 9.598668771 | Y56: 9.590951446 | Z56: 9.588068419 | AX56: 2.55 | AY56: 1.61 | AZ56: 1.61 | BA56: 6.78 | BB56: 7.84 | BC56: 4.073893274 | BD56: 7.520537016 | BE56: 9.598668771 | BF56: 9.590951446 | BG56: 9.588068419 | BI56: 0.0255 | BJ56: 0.0671 | BK56: 0.0993 | BL56: 0.1832 | BM56: 0.3294 | BN56: 0.4485389327 | BO56: 0.5644832356 | BP56: 0.7356752935 | BQ56: 0.9275714957 | BR56: 1.119361694 | BT56: =+IF($K56="Ongoing",AX56,IF(RIGHT($K56,2)=RIGHT(BT$39,2),SUM($AX56:AX56),0)+IF(RIGHT(BT$39,2)>RIGHT($K56,2),AX56,0)) -> 2.55 | BU56: =+IF($K56="Ongoing",AY56,IF(RIGHT($K56,2)=RIGHT(BU$39,2),SUM($AX56:AY56),0)+IF(RIGHT(BU$39,2)>RIGHT($K56,2),AY56,0)) -> 1.61 | BV56: =+IF($K56="Ongoing",AZ56,IF(RIGHT($K56,2)=RIGHT(BV$39,2),SUM($AX56:AZ56),0)+IF(RIGHT(BV$39,2)>RIGHT($K56,2),AZ56,0)) -> 1.61 | BW56: =+IF($K56="Ongoing",BA56,IF(RIGHT($K56,2)=RIGHT(BW$39,2),SUM($AX56:BA56),0)+IF(RIGHT(BW$39,2)>RIGHT($K56,2),BA56,0)) -> 6.78 | BX56: =+IF($K56="Ongoing",BB56,IF(RIGHT($K56,2)=RIGHT(BX$39,2),SUM($AX56:BB56),0)+IF(RIGHT(BX$39,2)>RIGHT($K56,2),BB56,0)) -> 7.84 | BY56: =+IF($K56="Ongoing",BC56,IF(RIGHT($K56,2)=RIGHT(BY$39,2),SUM($AX56:BC56),0)+IF(RIGHT(BY$39,2)>RIGHT($K56,2),BC56,0)) -> 4.073893274 | BZ56: =+IF($K56="Ongoing",BD56,IF(RIGHT($K56,2)=RIGHT(BZ$39,2),SUM($AX56:BD56),0)+IF(RIGHT(BZ$39,2)>RIGHT($K56,2),BD56,0)) -> 7.520537016 | CA56: =+IF($K56="Ongoing",BE56,IF(RIGHT($K56,2)=RIGHT(CA$39,2),SUM($AX56:BE56),0)+IF(RIGHT(CA$39,2)>RIGHT($K56,2),BE56,0)) -> 9.598668771 | CB56: =+IF($K56="Ongoing",BF56,IF(RIGHT($K56,2)=RIGHT(CB$39,2),SUM($AX56:BF56),0)+IF(RIGHT(CB$39,2)>RIGHT($K56,2),BF56,0)) -> 9.590951446 | CC56: =+IF($K56="Ongoing",BG56,IF(RIGHT($K56,2)=RIGHT(CC$39,2),SUM($AX56:BG56),0)+IF(RIGHT(CC$39,2)>RIGHT($K56,2),BG56,0)) -> 9.588068419 | CE56: =+Q56*KeyAssumptionsPriceControl_FO!AC$15 -> 2.6265 | CF56: =+R56*KeyAssumptionsPriceControl_FO!AD$15 -> 1.708049 | CG56: =+S56*KeyAssumptionsPriceControl_FO!AE$15 -> 1.75929047 | CH56: =+T56*KeyAssumptionsPriceControl_FO!AF$15 -> 7.630949732 | CI56: =+U56*KeyAssumptionsPriceControl_FO!AG$15 -> 9.088708743 | CJ56: =+V56*KeyAssumptionsPriceControl_FO!AH$15 -> 4.86444162 | CK56: =+W56*KeyAssumptionsPriceControl_FO!AI$15 -> 9.24931193 | CL56: =+X56*KeyAssumptionsPriceControl_FO!AJ$15 -> 12.15930642 | CM56: =+Y56*KeyAssumptionsPriceControl_FO!AK$15 -> 12.51401625 | CN56: =+Z56*KeyAssumptionsPriceControl_FO!AL$15 -> 12.88556219 | CP56: 0.03283125 | CQ56: 0.0870131125 | CR56: 0.1303548559 | CS56: 0.2477328584 | CT56: 0.4567285893 | CU56: 0.6311429689 | CV56: 0.8075648882 | CW56: 1.075172618 | CX56: 1.383589151 | CY56: 1.701083882
C57: Major Program - Water Main Renewals | E57: Water | F57: Renewals | G57: Pipelines/network | H57: Capital Programs / Allocation | J57: Straight line | K57: Ongoing | L57: 70 | M57: 40 | Q57: 2.04 | R57: 1.24 | S57: 1.24 | T57: 4.99 | U57: 6.07 | V57: 3.112862051 | W57: 5.746442703 | X57: 7.334343279 | Y57: 7.32844647 | Z57: 7.326243549 | AX57: 2.04 | AY57: 1.24 | AZ57: 1.24 | BA57: 4.99 | BB57: 6.07 | BC57: 3.112862051 | BD57: 5.746442703 | BE57: 7.334343279 | BF57: 7.32844647 | BG57: 7.326243549 | BI57: 0.01457142857 | BJ57: 0.038 | BK57: 0.05571428571 | BL57: 0.1002142857 | BM57: 0.1792142857 | BN57: 0.2448061575 | BO57: 0.3080869057 | BP57: 0.4015210913 | BQ57: 0.5062553038 | BR57: 0.6109316611 | BT57: =+IF($K57="Ongoing",AX57,IF(RIGHT($K57,2)=RIGHT(BT$39,2),SUM($AX57:AX57),0)+IF(RIGHT(BT$39,2)>RIGHT($K57,2),AX57,0)) -> 2.04 | BU57: =+IF($K57="Ongoing",AY57,IF(RIGHT($K57,2)=RIGHT(BU$39,2),SUM($AX57:AY57),0)+IF(RIGHT(BU$39,2)>RIGHT($K57,2),AY57,0)) -> 1.24 | BV57: =+IF($K57="Ongoing",AZ57,IF(RIGHT($K57,2)=RIGHT(BV$39,2),SUM($AX57:AZ57),0)+IF(RIGHT(BV$39,2)>RIGHT($K57,2),AZ57,0)) -> 1.24 | BW57: =+IF($K57="Ongoing",BA57,IF(RIGHT($K57,2)=RIGHT(BW$39,2),SUM($AX57:BA57),0)+IF(RIGHT(BW$39,2)>RIGHT($K57,2),BA57,0)) -> 4.99 | BX57: =+IF($K57="Ongoing",BB57,IF(RIGHT($K57,2)=RIGHT(BX$39,2),SUM($AX57:BB57),0)+IF(RIGHT(BX$39,2)>RIGHT($K57,2),BB57,0)) -> 6.07 | BY57: =+IF($K57="Ongoing",BC57,IF(RIGHT($K57,2)=RIGHT(BY$39,2),SUM($AX57:BC57),0)+IF(RIGHT(BY$39,2)>RIGHT($K57,2),BC57,0)) -> 3.112862051 | BZ57: =+IF($K57="Ongoing",BD57,IF(RIGHT($K57,2)=RIGHT(BZ$39,2),SUM($AX57:BD57),0)+IF(RIGHT(BZ$39,2)>RIGHT($K57,2),BD57,0)) -> 5.746442703 | CA57: =+IF($K57="Ongoing",BE57,IF(RIGHT($K57,2)=RIGHT(CA$39,2),SUM($AX57:BE57),0)+IF(RIGHT(CA$39,2)>RIGHT($K57,2),BE57,0)) -> 7.334343279 | CB57: =+IF($K57="Ongoing",BF57,IF(RIGHT($K57,2)=RIGHT(CB$39,2),SUM($AX57:BF57),0)+IF(RIGHT(CB$39,2)>RIGHT($K57,2),BF57,0)) -> 7.32844647 | CC57: =+IF($K57="Ongoing",BG57,IF(RIGHT($K57,2)=RIGHT(CC$39,2),SUM($AX57:BG57),0)+IF(RIGHT(CC$39,2)>RIGHT($K57,2),BG57,0)) -> 7.326243549 | CE57: =+Q57*KeyAssumptionsPriceControl_FO!AC$15 -> 2.1012 | CF57: =+R57*KeyAssumptionsPriceControl_FO!AD$15 -> 1.315516 | CG57: =+S57*KeyAssumptionsPriceControl_FO!AE$15 -> 1.35498148 | CH57: =+T57*KeyAssumptionsPriceControl_FO!AF$15 -> 5.616288962 | CI57: =+U57*KeyAssumptionsPriceControl_FO!AG$15 -> 7.036793631 | CJ57: =+V57*KeyAssumptionsPriceControl_FO!AH$15 -> 3.71692008 | CK57: =+W57*KeyAssumptionsPriceControl_FO!AI$15 -> 7.0673997 | CL57: =+X57*KeyAssumptionsPriceControl_FO!AJ$15 -> 9.290926632 | CM57: =+Y57*KeyAssumptionsPriceControl_FO!AK$15 -> 9.561960433 | CN57: =+Z57*KeyAssumptionsPriceControl_FO!AL$15 -> 9.845858705 | CP57: 0.026265 | CQ57: 0.06897395 | CR57: 0.1023551685 | CS57: 0.189496049 | CT57: 0.3476595814 | CU57: 0.4820810028 | CV57: 0.6168850001 | CW57: 0.8213640792 | CX57: 1.057025168 | CY57: 1.299622907
C58: Major Program - Purchase Water Shares | E58: Water | F58: Growth | G58: Headworks | H58: Capital Programs / Allocation | J58: Straight line | K58: Ongoing | L58: 0 | M58: 40 | Q58: 1.05 | R58: 0 | S58: 0 | T58: 5.78 | U58: 5.78 | V58: 2.519460235 | W58: 4.651004011 | X58: 5.936204669 | Y58: 5.931431963 | Z58: 5.929648983 | AX58: 1.05 | AY58: 0 | AZ58: 0 | BA58: 5.78 | BB58: 5.78 | BC58: 2.519460235 | BD58: 4.651004011 | BE58: 5.936204669 | BF58: 5.931431963 | BG58: 5.929648983 | BI58: 0 | BJ58: 0 | BK58: 0 | BL58: 0 | BM58: 0 | BN58: 0 | BO58: 0 | BP58: 0 | BQ58: 0 | BR58: 0 | BT58: =+IF($K58="Ongoing",AX58,IF(RIGHT($K58,2)=RIGHT(BT$39,2),SUM($AX58:AX58),0)+IF(RIGHT(BT$39,2)>RIGHT($K58,2),AX58,0)) -> 1.05 | BU58: =+IF($K58="Ongoing",AY58,IF(RIGHT($K58,2)=RIGHT(BU$39,2),SUM($AX58:AY58),0)+IF(RIGHT(BU$39,2)>RIGHT($K58,2),AY58,0)) -> 0 | BV58: =+IF($K58="Ongoing",AZ58,IF(RIGHT($K58,2)=RIGHT(BV$39,2),SUM($AX58:AZ58),0)+IF(RIGHT(BV$39,2)>RIGHT($K58,2),AZ58,0)) -> 0 | BW58: =+IF($K58="Ongoing",BA58,IF(RIGHT($K58,2)=RIGHT(BW$39,2),SUM($AX58:BA58),0)+IF(RIGHT(BW$39,2)>RIGHT($K58,2),BA58,0)) -> 5.78 | BX58: =+IF($K58="Ongoing",BB58,IF(RIGHT($K58,2)=RIGHT(BX$39,2),SUM($AX58:BB58),0)+IF(RIGHT(BX$39,2)>RIGHT($K58,2),BB58,0)) -> 5.78 | BY58: =+IF($K58="Ongoing",BC58,IF(RIGHT($K58,2)=RIGHT(BY$39,2),SUM($AX58:BC58),0)+IF(RIGHT(BY$39,2)>RIGHT($K58,2),BC58,0)) -> 2.519460235 | BZ58: =+IF($K58="Ongoing",BD58,IF(RIGHT($K58,2)=RIGHT(BZ$39,2),SUM($AX58:BD58),0)+IF(RIGHT(BZ$39,2)>RIGHT($K58,2),BD58,0)) -> 4.651004011 | CA58: =+IF($K58="Ongoing",BE58,IF(RIGHT($K58,2)=RIGHT(CA$39,2),SUM($AX58:BE58),0)+IF(RIGHT(CA$39,2)>RIGHT($K58,2),BE58,0)) -> 5.936204669 | CB58: =+IF($K58="Ongoing",BF58,IF(RIGHT($K58,2)=RIGHT(CB$39,2),SUM($AX58:BF58),0)+IF(RIGHT(CB$39,2)>RIGHT($K58,2),BF58,0)) -> 5.931431963 | CC58: =+IF($K58="Ongoing",BG58,IF(RIGHT($K58,2)=RIGHT(CC$39,2),SUM($AX58:BG58),0)+IF(RIGHT(CC$39,2)>RIGHT($K58,2),BG58,0)) -> 5.929648983 | CE58: =+Q58*KeyAssumptionsPriceControl_FO!AC$15 -> 1.0815 | CF58: =+R58*KeyAssumptionsPriceControl_FO!AD$15 -> 0 | CG58: =+S58*KeyAssumptionsPriceControl_FO!AE$15 -> 0 | CH58: =+T58*KeyAssumptionsPriceControl_FO!AF$15 -> 6.505440922 | CI58: =+U58*KeyAssumptionsPriceControl_FO!AG$15 -> 6.700604149 | CJ58: =+V58*KeyAssumptionsPriceControl_FO!AH$15 -> 3.008367279 | CK58: =+W58*KeyAssumptionsPriceControl_FO!AI$15 -> 5.720148281 | CL58: =+X58*KeyAssumptionsPriceControl_FO!AJ$15 -> 7.519806472 | CM58: =+Y58*KeyAssumptionsPriceControl_FO!AK$15 -> 7.739173367 | CN58: =+Z58*KeyAssumptionsPriceControl_FO!AL$15 -> 7.968952392 | CP58: 0.01351875 | CQ58: 0.0270375 | CR58: 0.0270375 | CS58: 0.1083555115 | CT58: 0.2734310749 | CU58: 0.3947932178 | CV58: 0.5038996623 | CW58: 0.6693990967 | CX58: 0.8601363447 | CY58: 1.056487917
C59: Major Program - Sewer Network Renewals | E59: Sewerage | F59: Renewals | G59: Pipelines/network | H59: Capital Programs / Allocation | J59: Straight line | K59: Ongoing | L59: 60 | M59: 40 | Q59: 1.89 | R59: 1.07 | S59: 1.05 | T59: 3.96 | U59: 4.09 | V59: 2.40957101 | W59: 4.448144993 | X59: 5.677290112 | Y59: 5.672725573 | Z59: 5.67102036 | AX59: 1.89 | AY59: 1.07 | AZ59: 1.05 | BA59: 3.96 | BB59: 4.09 | BC59: 2.40957101 | BD59: 4.448144993 | BE59: 5.677290112 | BF59: 5.672725573 | BG59: 5.67102036 | BI59: 0.01575 | BJ59: 0.04041666667 | BK59: 0.05808333333 | BL59: 0.09983333333 | BM59: 0.1669166667 | BN59: 0.2210797584 | BO59: 0.2782273918 | BP59: 0.3626060176 | BQ59: 0.4571894817 | BR59: 0.5517206978 | BT59: =+IF($K59="Ongoing",AX59,IF(RIGHT($K59,2)=RIGHT(BT$39,2),SUM($AX59:AX59),0)+IF(RIGHT(BT$39,2)>RIGHT($K59,2),AX59,0)) -> 1.89 | BU59: =+IF($K59="Ongoing",AY59,IF(RIGHT($K59,2)=RIGHT(BU$39,2),SUM($AX59:AY59),0)+IF(RIGHT(BU$39,2)>RIGHT($K59,2),AY59,0)) -> 1.07 | BV59: =+IF($K59="Ongoing",AZ59,IF(RIGHT($K59,2)=RIGHT(BV$39,2),SUM($AX59:AZ59),0)+IF(RIGHT(BV$39,2)>RIGHT($K59,2),AZ59,0)) -> 1.05 | BW59: =+IF($K59="Ongoing",BA59,IF(RIGHT($K59,2)=RIGHT(BW$39,2),SUM($AX59:BA59),0)+IF(RIGHT(BW$39,2)>RIGHT($K59,2),BA59,0)) -> 3.96 | BX59: =+IF($K59="Ongoing",BB59,IF(RIGHT($K59,2)=RIGHT(BX$39,2),SUM($AX59:BB59),0)+IF(RIGHT(BX$39,2)>RIGHT($K59,2),BB59,0)) -> 4.09 | BY59: =+IF($K59="Ongoing",BC59,IF(RIGHT($K59,2)=RIGHT(BY$39,2),SUM($AX59:BC59),0)+IF(RIGHT(BY$39,2)>RIGHT($K59,2),BC59,0)) -> 2.40957101 | BZ59: =+IF($K59="Ongoing",BD59,IF(RIGHT($K59,2)=RIGHT(BZ$39,2),SUM($AX59:BD59),0)+IF(RIGHT(BZ$39,2)>RIGHT($K59,2),BD59,0)) -> 4.448144993 | CA59: =+IF($K59="Ongoing",BE59,IF(RIGHT($K59,2)=RIGHT(CA$39,2),SUM($AX59:BE59),0)+IF(RIGHT(CA$39,2)>RIGHT($K59,2),BE59,0)) -> 5.677290112 | CB59: =+IF($K59="Ongoing",BF59,IF(RIGHT($K59,2)=RIGHT(CB$39,2),SUM($AX59:BF59),0)+IF(RIGHT(CB$39,2)>RIGHT($K59,2),BF59,0)) -> 5.672725573 | CC59: =+IF($K59="Ongoing",BG59,IF(RIGHT($K59,2)=RIGHT(CC$39,2),SUM($AX59:BG59),0)+IF(RIGHT(CC$39,2)>RIGHT($K59,2),BG59,0)) -> 5.67102036 | CE59: =+Q59*KeyAssumptionsPriceControl_FO!AC$15 -> 1.9467 | CF59: =+R59*KeyAssumptionsPriceControl_FO!AD$15 -> 1.135163 | CG59: =+S59*KeyAssumptionsPriceControl_FO!AE$15 -> 1.14736335 | CH59: =+T59*KeyAssumptionsPriceControl_FO!AF$15 -> 4.457014888 | CI59: =+U59*KeyAssumptionsPriceControl_FO!AG$15 -> 4.741430964 | CJ59: =+V59*KeyAssumptionsPriceControl_FO!AH$15 -> 2.877153798 | CK59: =+W59*KeyAssumptionsPriceControl_FO!AI$15 -> 5.470657277 | CL59: =+X59*KeyAssumptionsPriceControl_FO!AJ$15 -> 7.191821257 | CM59: =+Y59*KeyAssumptionsPriceControl_FO!AK$15 -> 7.401620207 | CN59: =+Z59*KeyAssumptionsPriceControl_FO!AL$15 -> 7.621377149 | CP59: 0.02433375 | CQ59: 0.0628570375 | CR59: 0.09138861687 | CS59: 0.1614433448 | CT59: 0.276423918 | CU59: 0.3716562275 | CV59: 0.4760038659 | CW59: 0.6342848476 | CX59: 0.8167028659 | CY59: 1.004490333
C60: Major Program - PCRM Capitalisation | E60: Sewerage | F60: Renewals | G60: Treatment | H60: Capital Programs / Allocation | J60: Straight line | K60: Ongoing | L60: 50 | M60: 40 | Q60: 0.7 | R60: 0.71 | S60: 0.72 | T60: 0.73 | U60: 0.74 | V60: 0.7192749283 | W60: 1.327804476 | X60: 1.694713466 | Y60: 1.693350917 | Z60: 1.692841898 | AX60: 0.7 | AY60: 0.71 | AZ60: 0.72 | BA60: 0.73 | BB60: 0.74 | BC60: 0.7192749283 | BD60: 1.327804476 | BE60: 1.694713466 | BF60: 1.693350917 | BG60: 1.692841898 | BI60: 0.007 | BJ60: 0.0211 | BK60: 0.0354 | BL60: 0.0499 | BM60: 0.0646 | BN60: 0.07919274928 | BO60: 0.09966354332 | BP60: 0.1298887227 | BQ60: 0.1637693666 | BR60: 0.1976312947 | BT60: =+IF($K60="Ongoing",AX60,IF(RIGHT($K60,2)=RIGHT(BT$39,2),SUM($AX60:AX60),0)+IF(RIGHT(BT$39,2)>RIGHT($K60,2),AX60,0)) -> 0.7 | BU60: =+IF($K60="Ongoing",AY60,IF(RIGHT($K60,2)=RIGHT(BU$39,2),SUM($AX60:AY60),0)+IF(RIGHT(BU$39,2)>RIGHT($K60,2),AY60,0)) -> 0.71 | BV60: =+IF($K60="Ongoing",AZ60,IF(RIGHT($K60,2)=RIGHT(BV$39,2),SUM($AX60:AZ60),0)+IF(RIGHT(BV$39,2)>RIGHT($K60,2),AZ60,0)) -> 0.72 | BW60: =+IF($K60="Ongoing",BA60,IF(RIGHT($K60,2)=RIGHT(BW$39,2),SUM($AX60:BA60),0)+IF(RIGHT(BW$39,2)>RIGHT($K60,2),BA60,0)) -> 0.73 | BX60: =+IF($K60="Ongoing",BB60,IF(RIGHT($K60,2)=RIGHT(BX$39,2),SUM($AX60:BB60),0)+IF(RIGHT(BX$39,2)>RIGHT($K60,2),BB60,0)) -> 0.74 | BY60: =+IF($K60="Ongoing",BC60,IF(RIGHT($K60,2)=RIGHT(BY$39,2),SUM($AX60:BC60),0)+IF(RIGHT(BY$39,2)>RIGHT($K60,2),BC60,0)) -> 0.7192749283 | BZ60: =+IF($K60="Ongoing",BD60,IF(RIGHT($K60,2)=RIGHT(BZ$39,2),SUM($AX60:BD60),0)+IF(RIGHT(BZ$39,2)>RIGHT($K60,2),BD60,0)) -> 1.327804476 | CA60: =+IF($K60="Ongoing",BE60,IF(RIGHT($K60,2)=RIGHT(CA$39,2),SUM($AX60:BE60),0)+IF(RIGHT(CA$39,2)>RIGHT($K60,2),BE60,0)) -> 1.694713466 | CB60: =+IF($K60="Ongoing",BF60,IF(RIGHT($K60,2)=RIGHT(CB$39,2),SUM($AX60:BF60),0)+IF(RIGHT(CB$39,2)>RIGHT($K60,2),BF60,0)) -> 1.693350917 | CC60: =+IF($K60="Ongoing",BG60,IF(RIGHT($K60,2)=RIGHT(CC$39,2),SUM($AX60:BG60),0)+IF(RIGHT(CC$39,2)>RIGHT($K60,2),BG60,0)) -> 1.692841898 | CE60: =+Q60*KeyAssumptionsPriceControl_FO!AC$15 -> 0.721 | CF60: =+R60*KeyAssumptionsPriceControl_FO!AD$15 -> 0.753239 | CG60: =+S60*KeyAssumptionsPriceControl_FO!AE$15 -> 0.78676344 | CH60: =+T60*KeyAssumptionsPriceControl_FO!AF$15 -> 0.8216214313 | CI60: =+U60*KeyAssumptionsPriceControl_FO!AG$15 -> 0.857862815 | CJ60: =+V60*KeyAssumptionsPriceControl_FO!AH$15 -> 0.8588518799 | CK60: =+W60*KeyAssumptionsPriceControl_FO!AI$15 -> 1.633032023 | CL60: =+X60*KeyAssumptionsPriceControl_FO!AJ$15 -> 2.146812315 | CM60: =+Y60*KeyAssumptionsPriceControl_FO!AK$15 -> 2.209438868 | CN60: =+Z60*KeyAssumptionsPriceControl_FO!AL$15 -> 2.275037955 | CP60: 0.0090125 | CQ60: 0.0274404875 | CR60: 0.046690518 | CS60: 0.06679532889 | CT60: 0.08778888197 | CU60: 0.1092478157 | CV60: 0.1403963644 | CW60: 0.1876444187 | CX60: 0.2420975585 | CY60: 0.2981535187
C61: Major Program - PCRM Capitalisation | E61: Sewerage | F61: Renewals | G61: Pipelines/network | H61: Capital Programs / Allocation | J61: Straight line | K61: Ongoing | L61: 60 | M61: 40 | Q61: 0.26 | R61: 0.27 | S61: 0.27 | T61: 0.27 | U61: 0.28 | V61: 0.2697280981 | W61: 0.4979266784 | X61: 0.6355175498 | Y61: 0.635006594 | Z61: 0.6348157119 | AX61: 0.26 | AY61: 0.27 | AZ61: 0.27 | BA61: 0.27 | BB61: 0.28 | BC61: 0.2697280981 | BD61: 0.4979266784 | BE61: 0.6355175498 | BF61: 0.635006594 | BG61: 0.6348157119 | BI61: 0.002166666667 | BJ61: 0.006583333333 | BK61: 0.01108333333 | BL61: 0.01558333333 | BM61: 0.02016666667 | BN61: 0.02474773415 | BO61: 0.03114485729 | BP61: 0.04059022586 | BQ61: 0.05117792705 | BR61: 0.0617597796 | BT61: =+IF($K61="Ongoing",AX61,IF(RIGHT($K61,2)=RIGHT(BT$39,2),SUM($AX61:AX61),0)+IF(RIGHT(BT$39,2)>RIGHT($K61,2),AX61,0)) -> 0.26 | BU61: =+IF($K61="Ongoing",AY61,IF(RIGHT($K61,2)=RIGHT(BU$39,2),SUM($AX61:AY61),0)+IF(RIGHT(BU$39,2)>RIGHT($K61,2),AY61,0)) -> 0.27 | BV61: =+IF($K61="Ongoing",AZ61,IF(RIGHT($K61,2)=RIGHT(BV$39,2),SUM($AX61:AZ61),0)+IF(RIGHT(BV$39,2)>RIGHT($K61,2),AZ61,0)) -> 0.27 | BW61: =+IF($K61="Ongoing",BA61,IF(RIGHT($K61,2)=RIGHT(BW$39,2),SUM($AX61:BA61),0)+IF(RIGHT(BW$39,2)>RIGHT($K61,2),BA61,0)) -> 0.27 | BX61: =+IF($K61="Ongoing",BB61,IF(RIGHT($K61,2)=RIGHT(BX$39,2),SUM($AX61:BB61),0)+IF(RIGHT(BX$39,2)>RIGHT($K61,2),BB61,0)) -> 0.28 | BY61: =+IF($K61="Ongoing",BC61,IF(RIGHT($K61,2)=RIGHT(BY$39,2),SUM($AX61:BC61),0)+IF(RIGHT(BY$39,2)>RIGHT($K61,2),BC61,0)) -> 0.2697280981 | BZ61: =+IF($K61="Ongoing",BD61,IF(RIGHT($K61,2)=RIGHT(BZ$39,2),SUM($AX61:BD61),0)+IF(RIGHT(BZ$39,2)>RIGHT($K61,2),BD61,0)) -> 0.4979266784 | CA61: =+IF($K61="Ongoing",BE61,IF(RIGHT($K61,2)=RIGHT(CA$39,2),SUM($AX61:BE61),0)+IF(RIGHT(CA$39,2)>RIGHT($K61,2),BE61,0)) -> 0.6355175498 | CB61: =+IF($K61="Ongoing",BF61,IF(RIGHT($K61,2)=RIGHT(CB$39,2),SUM($AX61:BF61),0)+IF(RIGHT(CB$39,2)>RIGHT($K61,2),BF61,0)) -> 0.635006594 | CC61: =+IF($K61="Ongoing",BG61,IF(RIGHT($K61,2)=RIGHT(CC$39,2),SUM($AX61:BG61),0)+IF(RIGHT(CC$39,2)>RIGHT($K61,2),BG61,0)) -> 0.6348157119 | CE61: =+Q61*KeyAssumptionsPriceControl_FO!AC$15 -> 0.2678 | CF61: =+R61*KeyAssumptionsPriceControl_FO!AD$15 -> 0.286443 | CG61: =+S61*KeyAssumptionsPriceControl_FO!AE$15 -> 0.29503629 | CH61: =+T61*KeyAssumptionsPriceControl_FO!AF$15 -> 0.3038873787 | CI61: =+U61*KeyAssumptionsPriceControl_FO!AG$15 -> 0.3245967408 | CJ61: =+V61*KeyAssumptionsPriceControl_FO!AH$15 -> 0.322069455 | CK61: =+W61*KeyAssumptionsPriceControl_FO!AI$15 -> 0.6123870086 | CL61: =+X61*KeyAssumptionsPriceControl_FO!AJ$15 -> 0.8050546183 | CM61: =+Y61*KeyAssumptionsPriceControl_FO!AK$15 -> 0.8285395754 | CN61: =+Z61*KeyAssumptionsPriceControl_FO!AL$15 -> 0.8531392331 | CP61: 0.0033475 | CQ61: 0.0102755375 | CR61: 0.01754402862 | CS61: 0.02503057448 | CT61: 0.03288662598 | CU61: 0.04096995342 | CV61: 0.05265065922 | CW61: 0.07036867956 | CX61: 0.09078860698 | CY61: 0.1118095921
C62: Major Program - PCRM Capitalisation | E62: Water | F62: Renewals | G62: Treatment | H62: Capital Programs / Allocation | J62: Straight line | K62: Ongoing | L62: 45 | M62: 40 | Q62: 0.52 | R62: 0.53 | S62: 0.54 | T62: 0.55 | U62: 0.56 | V62: 0.5394561962 | W62: 0.9958533567 | X62: 1.2710351 | Y62: 1.270013188 | Z62: 1.269631424 | AX62: 0.52 | AY62: 0.53 | AZ62: 0.54 | BA62: 0.55 | BB62: 0.56 | BC62: 0.5394561962 | BD62: 0.9958533567 | BE62: 1.2710351 | BF62: 1.270013188 | BG62: 1.269631424 | BI62: 0.005777777778 | BJ62: 0.01744444444 | BK62: 0.02933333333 | BL62: 0.04144444444 | BM62: 0.05377777778 | BN62: 0.06599395774 | BO62: 0.08305295277 | BP62: 0.1082406023 | BQ62: 0.1364744721 | BR62: 0.1646927456 | BT62: =+IF($K62="Ongoing",AX62,IF(RIGHT($K62,2)=RIGHT(BT$39,2),SUM($AX62:AX62),0)+IF(RIGHT(BT$39,2)>RIGHT($K62,2),AX62,0)) -> 0.52 | BU62: =+IF($K62="Ongoing",AY62,IF(RIGHT($K62,2)=RIGHT(BU$39,2),SUM($AX62:AY62),0)+IF(RIGHT(BU$39,2)>RIGHT($K62,2),AY62,0)) -> 0.53 | BV62: =+IF($K62="Ongoing",AZ62,IF(RIGHT($K62,2)=RIGHT(BV$39,2),SUM($AX62:AZ62),0)+IF(RIGHT(BV$39,2)>RIGHT($K62,2),AZ62,0)) -> 0.54 | BW62: =+IF($K62="Ongoing",BA62,IF(RIGHT($K62,2)=RIGHT(BW$39,2),SUM($AX62:BA62),0)+IF(RIGHT(BW$39,2)>RIGHT($K62,2),BA62,0)) -> 0.55 | BX62: =+IF($K62="Ongoing",BB62,IF(RIGHT($K62,2)=RIGHT(BX$39,2),SUM($AX62:BB62),0)+IF(RIGHT(BX$39,2)>RIGHT($K62,2),BB62,0)) -> 0.56 | BY62: =+IF($K62="Ongoing",BC62,IF(RIGHT($K62,2)=RIGHT(BY$39,2),SUM($AX62:BC62),0)+IF(RIGHT(BY$39,2)>RIGHT($K62,2),BC62,0)) -> 0.5394561962 | BZ62: =+IF($K62="Ongoing",BD62,IF(RIGHT($K62,2)=RIGHT(BZ$39,2),SUM($AX62:BD62),0)+IF(RIGHT(BZ$39,2)>RIGHT($K62,2),BD62,0)) -> 0.9958533567 | CA62: =+IF($K62="Ongoing",BE62,IF(RIGHT($K62,2)=RIGHT(CA$39,2),SUM($AX62:BE62),0)+IF(RIGHT(CA$39,2)>RIGHT($K62,2),BE62,0)) -> 1.2710351 | CB62: =+IF($K62="Ongoing",BF62,IF(RIGHT($K62,2)=RIGHT(CB$39,2),SUM($AX62:BF62),0)+IF(RIGHT(CB$39,2)>RIGHT($K62,2),BF62,0)) -> 1.270013188 | CC62: =+IF($K62="Ongoing",BG62,IF(RIGHT($K62,2)=RIGHT(CC$39,2),SUM($AX62:BG62),0)+IF(RIGHT(CC$39,2)>RIGHT($K62,2),BG62,0)) -> 1.269631424 | CE62: =+Q62*KeyAssumptionsPriceControl_FO!AC$15 -> 0.5356 | CF62: =+R62*KeyAssumptionsPriceControl_FO!AD$15 -> 0.562277 | CG62: =+S62*KeyAssumptionsPriceControl_FO!AE$15 -> 0.59007258 | CH62: =+T62*KeyAssumptionsPriceControl_FO!AF$15 -> 0.6190298455 | CI62: =+U62*KeyAssumptionsPriceControl_FO!AG$15 -> 0.6491934816 | CJ62: =+V62*KeyAssumptionsPriceControl_FO!AH$15 -> 0.6441389099 | CK62: =+W62*KeyAssumptionsPriceControl_FO!AI$15 -> 1.224774017 | CL62: =+X62*KeyAssumptionsPriceControl_FO!AJ$15 -> 1.610109237 | CM62: =+Y62*KeyAssumptionsPriceControl_FO!AK$15 -> 1.657079151 | CN62: =+Z62*KeyAssumptionsPriceControl_FO!AL$15 -> 1.706278466 | CP62: 0.006695 | CQ62: 0.0204184625 | CR62: 0.03482283225 | CS62: 0.04993661257 | CT62: 0.06578940416 | CU62: 0.08195605905 | CV62: 0.1053174706 | CW62: 0.1407535113 | CX62: 0.1815933662 | CY62: 0.2236353364
C63: Major Program - PCRM Capitalisation | E63: Water | F63: Renewals | G63: Pipelines/network | H63: Capital Programs / Allocation | J63: Straight line | K63: Ongoing | L63: 70 | M63: 40 | Q63: 0.26 | R63: 0.27 | S63: 0.27 | T63: 0.27 | U63: 0.28 | V63: 0.2697280981 | W63: 0.4979266784 | X63: 0.6355175498 | Y63: 0.635006594 | Z63: 0.6348157119 | AX63: 0.26 | AY63: 0.27 | AZ63: 0.27 | BA63: 0.27 | BB63: 0.28 | BC63: 0.2697280981 | BD63: 0.4979266784 | BE63: 0.6355175498 | BF63: 0.635006594 | BG63: 0.6348157119 | BI63: 0.001857142857 | BJ63: 0.005642857143 | BK63: 0.0095 | BL63: 0.01335714286 | BM63: 0.01728571429 | BN63: 0.02121234356 | BO63: 0.02669559196 | BP63: 0.03479162216 | BQ63: 0.04386679462 | BR63: 0.05293695395 | BT63: =+IF($K63="Ongoing",AX63,IF(RIGHT($K63,2)=RIGHT(BT$39,2),SUM($AX63:AX63),0)+IF(RIGHT(BT$39,2)>RIGHT($K63,2),AX63,0)) -> 0.26 | BU63: =+IF($K63="Ongoing",AY63,IF(RIGHT($K63,2)=RIGHT(BU$39,2),SUM($AX63:AY63),0)+IF(RIGHT(BU$39,2)>RIGHT($K63,2),AY63,0)) -> 0.27 | BV63: =+IF($K63="Ongoing",AZ63,IF(RIGHT($K63,2)=RIGHT(BV$39,2),SUM($AX63:AZ63),0)+IF(RIGHT(BV$39,2)>RIGHT($K63,2),AZ63,0)) -> 0.27 | BW63: =+IF($K63="Ongoing",BA63,IF(RIGHT($K63,2)=RIGHT(BW$39,2),SUM($AX63:BA63),0)+IF(RIGHT(BW$39,2)>RIGHT($K63,2),BA63,0)) -> 0.27 | BX63: =+IF($K63="Ongoing",BB63,IF(RIGHT($K63,2)=RIGHT(BX$39,2),SUM($AX63:BB63),0)+IF(RIGHT(BX$39,2)>RIGHT($K63,2),BB63,0)) -> 0.28 | BY63: =+IF($K63="Ongoing",BC63,IF(RIGHT($K63,2)=RIGHT(BY$39,2),SUM($AX63:BC63),0)+IF(RIGHT(BY$39,2)>RIGHT($K63,2),BC63,0)) -> 0.2697280981 | BZ63: =+IF($K63="Ongoing",BD63,IF(RIGHT($K63,2)=RIGHT(BZ$39,2),SUM($AX63:BD63),0)+IF(RIGHT(BZ$39,2)>RIGHT($K63,2),BD63,0)) -> 0.4979266784 | CA63: =+IF($K63="Ongoing",BE63,IF(RIGHT($K63,2)=RIGHT(CA$39,2),SUM($AX63:BE63),0)+IF(RIGHT(CA$39,2)>RIGHT($K63,2),BE63,0)) -> 0.6355175498 | CB63: =+IF($K63="Ongoing",BF63,IF(RIGHT($K63,2)=RIGHT(CB$39,2),SUM($AX63:BF63),0)+IF(RIGHT(CB$39,2)>RIGHT($K63,2),BF63,0)) -> 0.635006594 | CC63: =+IF($K63="Ongoing",BG63,IF(RIGHT($K63,2)=RIGHT(CC$39,2),SUM($AX63:BG63),0)+IF(RIGHT(CC$39,2)>RIGHT($K63,2),BG63,0)) -> 0.6348157119 | CE63: =+Q63*KeyAssumptionsPriceControl_FO!AC$15 -> 0.2678 | CF63: =+R63*KeyAssumptionsPriceControl_FO!AD$15 -> 0.286443 | CG63: =+S63*KeyAssumptionsPriceControl_FO!AE$15 -> 0.29503629 | CH63: =+T63*KeyAssumptionsPriceControl_FO!AF$15 -> 0.3038873787 | CI63: =+U63*KeyAssumptionsPriceControl_FO!AG$15 -> 0.3245967408 | CJ63: =+V63*KeyAssumptionsPriceControl_FO!AH$15 -> 0.322069455 | CK63: =+W63*KeyAssumptionsPriceControl_FO!AI$15 -> 0.6123870086 | CL63: =+X63*KeyAssumptionsPriceControl_FO!AJ$15 -> 0.8050546183 | CM63: =+Y63*KeyAssumptionsPriceControl_FO!AK$15 -> 0.8285395754 | CN63: =+Z63*KeyAssumptionsPriceControl_FO!AL$15 -> 0.8531392331 | CP63: 0.0033475 | CQ63: 0.0102755375 | CR63: 0.01754402862 | CS63: 0.02503057448 | CT63: 0.03288662598 | CU63: 0.04096995342 | CV63: 0.05265065922 | CW63: 0.07036867956 | CX63: 0.09078860698 | CY63: 0.1118095921
C64: Major Program - Developer Shared Assets - Sewer | E64: Sewerage | F64: Growth | G64: Pipelines/network | H64: Capital Programs / Allocation | J64: Straight line | K64: Ongoing | L64: 60 | M64: 40 | Q64: 1.18 | R64: 0.55 | S64: 0.55 | T64: 2.76 | U64: 2.84 | V64: 1.574412899 | W64: 2.906416463 | X64: 3.709539476 | Y64: 3.706557008 | Z64: 3.705442822 | AX64: 1.18 | AY64: 0.55 | AZ64: 0.55 | BA64: 2.76 | BB64: 2.84 | BC64: 1.574412899 | BD64: 2.906416463 | BE64: 3.709539476 | BF64: 3.706557008 | BG64: 3.705442822 | BI64: 0.009833333333 | BJ64: 0.02425 | BK64: 0.03341666667 | BL64: 0.061 | BM64: 0.1076666667 | BN64: 0.1444534408 | BO64: 0.1817936855 | BP64: 0.2369266517 | BQ64: 0.2987274557 | BR64: 0.3604941209 | BT64: =+IF($K64="Ongoing",AX64,IF(RIGHT($K64,2)=RIGHT(BT$39,2),SUM($AX64:AX64),0)+IF(RIGHT(BT$39,2)>RIGHT($K64,2),AX64,0)) -> 1.18 | BU64: =+IF($K64="Ongoing",AY64,IF(RIGHT($K64,2)=RIGHT(BU$39,2),SUM($AX64:AY64),0)+IF(RIGHT(BU$39,2)>RIGHT($K64,2),AY64,0)) -> 0.55 | BV64: =+IF($K64="Ongoing",AZ64,IF(RIGHT($K64,2)=RIGHT(BV$39,2),SUM($AX64:AZ64),0)+IF(RIGHT(BV$39,2)>RIGHT($K64,2),AZ64,0)) -> 0.55 | BW64: =+IF($K64="Ongoing",BA64,IF(RIGHT($K64,2)=RIGHT(BW$39,2),SUM($AX64:BA64),0)+IF(RIGHT(BW$39,2)>RIGHT($K64,2),BA64,0)) -> 2.76 | BX64: =+IF($K64="Ongoing",BB64,IF(RIGHT($K64,2)=RIGHT(BX$39,2),SUM($AX64:BB64),0)+IF(RIGHT(BX$39,2)>RIGHT($K64,2),BB64,0)) -> 2.84 | BY64: =+IF($K64="Ongoing",BC64,IF(RIGHT($K64,2)=RIGHT(BY$39,2),SUM($AX64:BC64),0)+IF(RIGHT(BY$39,2)>RIGHT($K64,2),BC64,0)) -> 1.574412899 | BZ64: =+IF($K64="Ongoing",BD64,IF(RIGHT($K64,2)=RIGHT(BZ$39,2),SUM($AX64:BD64),0)+IF(RIGHT(BZ$39,2)>RIGHT($K64,2),BD64,0)) -> 2.906416463 | CA64: =+IF($K64="Ongoing",BE64,IF(RIGHT($K64,2)=RIGHT(CA$39,2),SUM($AX64:BE64),0)+IF(RIGHT(CA$39,2)>RIGHT($K64,2),BE64,0)) -> 3.709539476 | CB64: =+IF($K64="Ongoing",BF64,IF(RIGHT($K64,2)=RIGHT(CB$39,2),SUM($AX64:BF64),0)+IF(RIGHT(CB$39,2)>RIGHT($K64,2),BF64,0)) -> 3.706557008 | CC64: =+IF($K64="Ongoing",BG64,IF(RIGHT($K64,2)=RIGHT(CC$39,2),SUM($AX64:BG64),0)+IF(RIGHT(CC$39,2)>RIGHT($K64,2),BG64,0)) -> 3.705442822 | CE64: =+Q64*KeyAssumptionsPriceControl_FO!AC$15 -> 1.2154 | CF64: =+R64*KeyAssumptionsPriceControl_FO!AD$15 -> 0.583495 | CG64: =+S64*KeyAssumptionsPriceControl_FO!AE$15 -> 0.60099985 | CH64: =+T64*KeyAssumptionsPriceControl_FO!AF$15 -> 3.106404316 | CI64: =+U64*KeyAssumptionsPriceControl_FO!AG$15 -> 3.292338371 | CJ64: =+V64*KeyAssumptionsPriceControl_FO!AH$15 -> 1.879931337 | CK64: =+W64*KeyAssumptionsPriceControl_FO!AI$15 -> 3.57452565 | CL64: =+X64*KeyAssumptionsPriceControl_FO!AJ$15 -> 4.699133624 | CM64: =+Y64*KeyAssumptionsPriceControl_FO!AK$15 -> 4.836216188 | CN64: =+Z64*KeyAssumptionsPriceControl_FO!AL$15 -> 4.979805301 | CP64: 0.0151925 | CQ64: 0.0376786875 | CR64: 0.05248487312 | CS64: 0.0988274252 | CT64: 0.1788117088 | CU64: 0.2434650801 | CV64: 0.3116457925 | CW64: 0.4150665334 | CX64: 0.5342584061 | CY64: 0.6569586747
C65: Major Program - SCADA Hardware | E65: Water | F65: Renewals | G65: Corporate | H65: Capital Programs / Allocation | J65: Straight line | K65: Ongoing | L65: 15 | M65: 40 | Q65: 0.78 | R65: 0.78 | S65: 0.78 | T65: 0.78 | U65: 0.14 | V65: 0.6513434073 | W65: 1.20240072 | X65: 1.534657194 | Y65: 1.533423331 | Z65: 1.532962386 | AX65: 0.78 | AY65: 0.78 | AZ65: 0.78 | BA65: 0.78 | BB65: 0.14 | BC65: 0.6513434073 | BD65: 1.20240072 | BE65: 1.534657194 | BF65: 1.533423331 | BG65: 1.532962386 | BI65: 0.026 | BJ65: 0.078 | BK65: 0.13 | BL65: 0.182 | BM65: 0.2126666667 | BN65: 0.2390447802 | BO65: 0.3008362511 | BP65: 0.3920715149 | BQ65: 0.4943408658 | BR65: 0.596553723 | BT65: =+IF($K65="Ongoing",AX65,IF(RIGHT($K65,2)=RIGHT(BT$39,2),SUM($AX65:AX65),0)+IF(RIGHT(BT$39,2)>RIGHT($K65,2),AX65,0)) -> 0.78 | BU65: =+IF($K65="Ongoing",AY65,IF(RIGHT($K65,2)=RIGHT(BU$39,2),SUM($AX65:AY65),0)+IF(RIGHT(BU$39,2)>RIGHT($K65,2),AY65,0)) -> 0.78 | BV65: =+IF($K65="Ongoing",AZ65,IF(RIGHT($K65,2)=RIGHT(BV$39,2),SUM($AX65:AZ65),0)+IF(RIGHT(BV$39,2)>RIGHT($K65,2),AZ65,0)) -> 0.78 | BW65: =+IF($K65="Ongoing",BA65,IF(RIGHT($K65,2)=RIGHT(BW$39,2),SUM($AX65:BA65),0)+IF(RIGHT(BW$39,2)>RIGHT($K65,2),BA65,0)) -> 0.78 | BX65: =+IF($K65="Ongoing",BB65,IF(RIGHT($K65,2)=RIGHT(BX$39,2),SUM($AX65:BB65),0)+IF(RIGHT(BX$39,2)>RIGHT($K65,2),BB65,0)) -> 0.14 | BY65: =+IF($K65="Ongoing",BC65,IF(RIGHT($K65,2)=RIGHT(BY$39,2),SUM($AX65:BC65),0)+IF(RIGHT(BY$39,2)>RIGHT($K65,2),BC65,0)) -> 0.6513434073 | BZ65: =+IF($K65="Ongoing",BD65,IF(RIGHT($K65,2)=RIGHT(BZ$39,2),SUM($AX65:BD65),0)+IF(RIGHT(BZ$39,2)>RIGHT($K65,2),BD65,0)) -> 1.20240072 | CA65: =+IF($K65="Ongoing",BE65,IF(RIGHT($K65,2)=RIGHT(CA$39,2),SUM($AX65:BE65),0)+IF(RIGHT(CA$39,2)>RIGHT($K65,2),BE65,0)) -> 1.534657194 | CB65: =+IF($K65="Ongoing",BF65,IF(RIGHT($K65,2)=RIGHT(CB$39,2),SUM($AX65:BF65),0)+IF(RIGHT(CB$39,2)>RIGHT($K65,2),BF65,0)) -> 1.533423331 | CC65: =+IF($K65="Ongoing",BG65,IF(RIGHT($K65,2)=RIGHT(CC$39,2),SUM($AX65:BG65),0)+IF(RIGHT(CC$39,2)>RIGHT($K65,2),BG65,0)) -> 1.532962386 | CE65: =+Q65*KeyAssumptionsPriceControl_FO!AC$15 -> 0.8034 | CF65: =+R65*KeyAssumptionsPriceControl_FO!AD$15 -> 0.827502 | CG65: =+S65*KeyAssumptionsPriceControl_FO!AE$15 -> 0.85232706 | CH65: =+T65*KeyAssumptionsPriceControl_FO!AF$15 -> 0.8778968718 | CI65: =+U65*KeyAssumptionsPriceControl_FO!AG$15 -> 0.1622983704 | CJ65: =+V65*KeyAssumptionsPriceControl_FO!AH$15 -> 0.7777380913 | CK65: =+W65*KeyAssumptionsPriceControl_FO!AI$15 -> 1.478801221 | CL65: =+X65*KeyAssumptionsPriceControl_FO!AJ$15 -> 1.944057819 | CM65: =+Y65*KeyAssumptionsPriceControl_FO!AK$15 -> 2.000769641 | CN65: =+Z65*KeyAssumptionsPriceControl_FO!AL$15 -> 2.060173259 | CP65: 0.0100425 | CQ65: 0.030428775 | CR65: 0.05142663825 | CS65: 0.0730544374 | CT65: 0.08605687793 | CU65: 0.0978073337 | CV65: 0.1260140751 | CW65: 0.1687998131 | CX65: 0.2181101563 | CY65: 0.2688719426
C66: Major Program - SCADA Hardware | E66: Sewerage | F66: Renewals | G66: Corporate | H66: Capital Programs / Allocation | J66: Straight line | K66: Ongoing | L66: 15 | M66: 40 | Q66: 0.78 | R66: 0.78 | S66: 0.78 | T66: 0.78 | U66: 0.14 | V66: 0.6513434073 | W66: 1.20240072 | X66: 1.534657194 | Y66: 1.533423331 | Z66: 1.532962386 | AX66: 0.78 | AY66: 0.78 | AZ66: 0.78 | BA66: 0.78 | BB66: 0.14 | BC66: 0.6513434073 | BD66: 1.20240072 | BE66: 1.534657194 | BF66: 1.533423331 | BG66: 1.532962386 | BI66: 0.026 | BJ66: 0.078 | BK66: 0.13 | BL66: 0.182 | BM66: 0.2126666667 | BN66: 0.2390447802 | BO66: 0.3008362511 | BP66: 0.3920715149 | BQ66: 0.4943408658 | BR66: 0.596553723 | BT66: =+IF($K66="Ongoing",AX66,IF(RIGHT($K66,2)=RIGHT(BT$39,2),SUM($AX66:AX66),0)+IF(RIGHT(BT$39,2)>RIGHT($K66,2),AX66,0)) -> 0.78 | BU66: =+IF($K66="Ongoing",AY66,IF(RIGHT($K66,2)=RIGHT(BU$39,2),SUM($AX66:AY66),0)+IF(RIGHT(BU$39,2)>RIGHT($K66,2),AY66,0)) -> 0.78 | BV66: =+IF($K66="Ongoing",AZ66,IF(RIGHT($K66,2)=RIGHT(BV$39,2),SUM($AX66:AZ66),0)+IF(RIGHT(BV$39,2)>RIGHT($K66,2),AZ66,0)) -> 0.78 | BW66: =+IF($K66="Ongoing",BA66,IF(RIGHT($K66,2)=RIGHT(BW$39,2),SUM($AX66:BA66),0)+IF(RIGHT(BW$39,2)>RIGHT($K66,2),BA66,0)) -> 0.78 | BX66: =+IF($K66="Ongoing",BB66,IF(RIGHT($K66,2)=RIGHT(BX$39,2),SUM($AX66:BB66),0)+IF(RIGHT(BX$39,2)>RIGHT($K66,2),BB66,0)) -> 0.14 | BY66: =+IF($K66="Ongoing",BC66,IF(RIGHT($K66,2)=RIGHT(BY$39,2),SUM($AX66:BC66),0)+IF(RIGHT(BY$39,2)>RIGHT($K66,2),BC66,0)) -> 0.6513434073 | BZ66: =+IF($K66="Ongoing",BD66,IF(RIGHT($K66,2)=RIGHT(BZ$39,2),SUM($AX66:BD66),0)+IF(RIGHT(BZ$39,2)>RIGHT($K66,2),BD66,0)) -> 1.20240072 | CA66: =+IF($K66="Ongoing",BE66,IF(RIGHT($K66,2)=RIGHT(CA$39,2),SUM($AX66:BE66),0)+IF(RIGHT(CA$39,2)>RIGHT($K66,2),BE66,0)) -> 1.534657194 | CB66: =+IF($K66="Ongoing",BF66,IF(RIGHT($K66,2)=RIGHT(CB$39,2),SUM($AX66:BF66),0)+IF(RIGHT(CB$39,2)>RIGHT($K66,2),BF66,0)) -> 1.533423331 | CC66: =+IF($K66="Ongoing",BG66,IF(RIGHT($K66,2)=RIGHT(CC$39,2),SUM($AX66:BG66),0)+IF(RIGHT(CC$39,2)>RIGHT($K66,2),BG66,0)) -> 1.532962386 | CE66: =+Q66*KeyAssumptionsPriceControl_FO!AC$15 -> 0.8034 | CF66: =+R66*KeyAssumptionsPriceControl_FO!AD$15 -> 0.827502 | CG66: =+S66*KeyAssumptionsPriceControl_FO!AE$15 -> 0.85232706 | CH66: =+T66*KeyAssumptionsPriceControl_FO!AF$15 -> 0.8778968718 | CI66: =+U66*KeyAssumptionsPriceControl_FO!AG$15 -> 0.1622983704 | CJ66: =+V66*KeyAssumptionsPriceControl_FO!AH$15 -> 0.7777380913 | CK66: =+W66*KeyAssumptionsPriceControl_FO!AI$15 -> 1.478801221 | CL66: =+X66*KeyAssumptionsPriceControl_FO!AJ$15 -> 1.944057819 | CM66: =+Y66*KeyAssumptionsPriceControl_FO!AK$15 -> 2.000769641 | CN66: =+Z66*KeyAssumptionsPriceControl_FO!AL$15 -> 2.060173259 | CP66: 0.0100425 | CQ66: 0.030428775 | CR66: 0.05142663825 | CS66: 0.0730544374 | CT66: 0.08605687793 | CU66: 0.0978073337 | CV66: 0.1260140751 | CW66: 0.1687998131 | CX66: 0.2181101563 | CY66: 0.2688719426
C67: Major Program - Coliban Main Channel Renewals | E67: Rural water | F67: Renewals | G67: Pipelines/network | H67: Capital Programs / Allocation | J67: Straight line | K67: Ongoing | L67: 100 | M67: 40 | Q67: 1.32 | R67: 1.32 | S67: 1.32 | T67: 1.06 | U67: 1.06 | V67: 1.214775434 | W67: 2.242514226 | X67: 2.862182743 | Y67: 2.859881549 | Z67: 2.859021873 | AX67: 1.32 | AY67: 1.32 | AZ67: 1.32 | BA67: 1.06 | BB67: 1.06 | BC67: 1.214775434 | BD67: 2.242514226 | BE67: 2.862182743 | BF67: 2.859881549 | BG67: 2.859021873 | BI67: 0.0066 | BJ67: 0.0198 | BK67: 0.033 | BL67: 0.0449 | BM67: 0.0555 | BN67: 0.06687387717 | BO67: 0.08416032547 | BP67: 0.1096838103 | BQ67: 0.1382941318 | BR67: 0.1668886489 | BT67: =+IF($K67="Ongoing",AX67,IF(RIGHT($K67,2)=RIGHT(BT$39,2),SUM($AX67:AX67),0)+IF(RIGHT(BT$39,2)>RIGHT($K67,2),AX67,0)) -> 1.32 | BU67: =+IF($K67="Ongoing",AY67,IF(RIGHT($K67,2)=RIGHT(BU$39,2),SUM($AX67:AY67),0)+IF(RIGHT(BU$39,2)>RIGHT($K67,2),AY67,0)) -> 1.32 | BV67: =+IF($K67="Ongoing",AZ67,IF(RIGHT($K67,2)=RIGHT(BV$39,2),SUM($AX67:AZ67),0)+IF(RIGHT(BV$39,2)>RIGHT($K67,2),AZ67,0)) -> 1.32 | BW67: =+IF($K67="Ongoing",BA67,IF(RIGHT($K67,2)=RIGHT(BW$39,2),SUM($AX67:BA67),0)+IF(RIGHT(BW$39,2)>RIGHT($K67,2),BA67,0)) -> 1.06 | BX67: =+IF($K67="Ongoing",BB67,IF(RIGHT($K67,2)=RIGHT(BX$39,2),SUM($AX67:BB67),0)+IF(RIGHT(BX$39,2)>RIGHT($K67,2),BB67,0)) -> 1.06 | BY67: =+IF($K67="Ongoing",BC67,IF(RIGHT($K67,2)=RIGHT(BY$39,2),SUM($AX67:BC67),0)+IF(RIGHT(BY$39,2)>RIGHT($K67,2),BC67,0)) -> 1.214775434 | BZ67: =+IF($K67="Ongoing",BD67,IF(RIGHT($K67,2)=RIGHT(BZ$39,2),SUM($AX67:BD67),0)+IF(RIGHT(BZ$39,2)>RIGHT($K67,2),BD67,0)) -> 2.242514226 | CA67: =+IF($K67="Ongoing",BE67,IF(RIGHT($K67,2)=RIGHT(CA$39,2),SUM($AX67:BE67),0)+IF(RIGHT(CA$39,2)>RIGHT($K67,2),BE67,0)) -> 2.862182743 | CB67: =+IF($K67="Ongoing",BF67,IF(RIGHT($K67,2)=RIGHT(CB$39,2),SUM($AX67:BF67),0)+IF(RIGHT(CB$39,2)>RIGHT($K67,2),BF67,0)) -> 2.859881549 | CC67: =+IF($K67="Ongoing",BG67,IF(RIGHT($K67,2)=RIGHT(CC$39,2),SUM($AX67:BG67),0)+IF(RIGHT(CC$39,2)>RIGHT($K67,2),BG67,0)) -> 2.859021873 | CE67: =+Q67*KeyAssumptionsPriceControl_FO!AC$15 -> 1.3596 | CF67: =+R67*KeyAssumptionsPriceControl_FO!AD$15 -> 1.400388 | CG67: =+S67*KeyAssumptionsPriceControl_FO!AE$15 -> 1.44239964 | CH67: =+T67*KeyAssumptionsPriceControl_FO!AF$15 -> 1.193039339 | CI67: =+U67*KeyAssumptionsPriceControl_FO!AG$15 -> 1.228830519 | CJ67: =+V67*KeyAssumptionsPriceControl_FO!AH$15 -> 1.450505397 | CK67: =+W67*KeyAssumptionsPriceControl_FO!AI$15 -> 2.758009639 | CL67: =+X67*KeyAssumptionsPriceControl_FO!AJ$15 -> 3.625727466 | CM67: =+Y67*KeyAssumptionsPriceControl_FO!AK$15 -> 3.731496754 | CN67: =+Z67*KeyAssumptionsPriceControl_FO!AL$15 -> 3.842286324 | CP67: 0.016995 | CQ67: 0.05149485 | CR67: 0.0870296955 | CS67: 0.1199726827 | CT67: 0.1502460559 | CU67: 0.1837377549 | CV67: 0.2363441928 | CW67: 0.3161409067 | CX67: 0.4081062094 | CY67: 0.5027784979
C68: Major Program - Water Treatment Plant Renewals | E68: Water | F68: Improvements / Compliance | G68: Treatment | H68: Capital Programs / Allocation | J68: Straight line | K68: Ongoing | L68: 45 | M68: 40 | Q68: 0.75 | R68: 0.75 | S68: 0.75 | T68: 1.25 | U68: 1.5 | V68: 0.9989929559 | W68: 1.844172883 | X68: 2.353768703 | Y68: 2.351876274 | Z68: 2.351169303 | AX68: 0.75 | AY68: 0.75 | AZ68: 0.75 | BA68: 1.25 | BB68: 1.5 | BC68: 0.9989929559 | BD68: 1.844172883 | BE68: 2.353768703 | BF68: 2.351876274 | BG68: 2.351169303 | BI68: 0.008333333333 | BJ68: 0.025 | BK68: 0.04166666667 | BL68: 0.06388888889 | BM68: 0.09444444444 | BN68: 0.1222110328 | BO68: 0.1538017644 | BP68: 0.2004455598 | BQ68: 0.252730504 | BR68: 0.3049865659 | BT68: =+IF($K68="Ongoing",AX68,IF(RIGHT($K68,2)=RIGHT(BT$39,2),SUM($AX68:AX68),0)+IF(RIGHT(BT$39,2)>RIGHT($K68,2),AX68,0)) -> 0.75 | BU68: =+IF($K68="Ongoing",AY68,IF(RIGHT($K68,2)=RIGHT(BU$39,2),SUM($AX68:AY68),0)+IF(RIGHT(BU$39,2)>RIGHT($K68,2),AY68,0)) -> 0.75 | BV68: =+IF($K68="Ongoing",AZ68,IF(RIGHT($K68,2)=RIGHT(BV$39,2),SUM($AX68:AZ68),0)+IF(RIGHT(BV$39,2)>RIGHT($K68,2),AZ68,0)) -> 0.75 | BW68: =+IF($K68="Ongoing",BA68,IF(RIGHT($K68,2)=RIGHT(BW$39,2),SUM($AX68:BA68),0)+IF(RIGHT(BW$39,2)>RIGHT($K68,2),BA68,0)) -> 1.25 | BX68: =+IF($K68="Ongoing",BB68,IF(RIGHT($K68,2)=RIGHT(BX$39,2),SUM($AX68:BB68),0)+IF(RIGHT(BX$39,2)>RIGHT($K68,2),BB68,0)) -> 1.5 | BY68: =+IF($K68="Ongoing",BC68,IF(RIGHT($K68,2)=RIGHT(BY$39,2),SUM($AX68:BC68),0)+IF(RIGHT(BY$39,2)>RIGHT($K68,2),BC68,0)) -> 0.9989929559 | BZ68: =+IF($K68="Ongoing",BD68,IF(RIGHT($K68,2)=RIGHT(BZ$39,2),SUM($AX68:BD68),0)+IF(RIGHT(BZ$39,2)>RIGHT($K68,2),BD68,0)) -> 1.844172883 | CA68: =+IF($K68="Ongoing",BE68,IF(RIGHT($K68,2)=RIGHT(CA$39,2),SUM($AX68:BE68),0)+IF(RIGHT(CA$39,2)>RIGHT($K68,2),BE68,0)) -> 2.353768703 | CB68: =+IF($K68="Ongoing",BF68,IF(RIGHT($K68,2)=RIGHT(CB$39,2),SUM($AX68:BF68),0)+IF(RIGHT(CB$39,2)>RIGHT($K68,2),BF68,0)) -> 2.351876274 | CC68: =+IF($K68="Ongoing",BG68,IF(RIGHT($K68,2)=RIGHT(CC$39,2),SUM($AX68:BG68),0)+IF(RIGHT(CC$39,2)>RIGHT($K68,2),BG68,0)) -> 2.351169303 | CE68: =+Q68*KeyAssumptionsPriceControl_FO!AC$15 -> 0.7725 | CF68: =+R68*KeyAssumptionsPriceControl_FO!AD$15 -> 0.795675 | CG68: =+S68*KeyAssumptionsPriceControl_FO!AE$15 -> 0.81954525 | CH68: =+T68*KeyAssumptionsPriceControl_FO!AF$15 -> 1.406886013 | CI68: =+U68*KeyAssumptionsPriceControl_FO!AG$15 -> 1.738911111 | CJ68: =+V68*KeyAssumptionsPriceControl_FO!AH$15 -> 1.192849833 | CK68: =+W68*KeyAssumptionsPriceControl_FO!AI$15 -> 2.268100032 | CL68: =+X68*KeyAssumptionsPriceControl_FO!AJ$15 -> 2.981683771 | CM68: =+Y68*KeyAssumptionsPriceControl_FO!AK$15 -> 3.068665094 | CN68: =+Z68*KeyAssumptionsPriceControl_FO!AL$15 -> 3.159774937 | CP68: 0.00965625 | CQ68: 0.0292584375 | CR68: 0.04944869062 | CS68: 0.07727908141 | CT68: 0.1166015455 | CU68: 0.1532485573 | CV68: 0.1965104306 | CW68: 0.2621327281 | CX68: 0.3377620889 | CY68: 0.4156175893
C69: Other Capex - Corporate Improvements/Compliance | E69: Water | F69: Improvements / Compliance | G69: Corporate | H69: Capital Programs / Allocation | J69: Straight line | K69: Ongoing | L69: 20 | M69: 40 | Q69: 1.98 | R69: 2.35 | S69: 1.64 | T69: 0.85 | U69: 0.63 | V69: 1.488499504 | W69: 2.747817595 | X69: 3.507115367 | Y69: 3.504295648 | Z69: 3.503242262 | AX69: 1.98 | AY69: 2.35 | AZ69: 1.64 | BA69: 0.85 | BB69: 0.63 | BC69: 1.488499504 | BD69: 2.747817595 | BE69: 3.507115367 | BF69: 3.504295648 | BG69: 3.503242262 | BI69: 0.0495 | BJ69: 0.15775 | BK69: 0.2575 | BL69: 0.31975 | BM69: 0.35675 | BN69: 0.4097124876 | BO69: 0.5156204151 | BP69: 0.6719937392 | BQ69: 0.8472790146 | BR69: 1.022467462 | BT69: =+IF($K69="Ongoing",AX69,IF(RIGHT($K69,2)=RIGHT(BT$39,2),SUM($AX69:AX69),0)+IF(RIGHT(BT$39,2)>RIGHT($K69,2),AX69,0)) -> 1.98 | BU69: =+IF($K69="Ongoing",AY69,IF(RIGHT($K69,2)=RIGHT(BU$39,2),SUM($AX69:AY69),0)+IF(RIGHT(BU$39,2)>RIGHT($K69,2),AY69,0)) -> 2.35 | BV69: =+IF($K69="Ongoing",AZ69,IF(RIGHT($K69,2)=RIGHT(BV$39,2),SUM($AX69:AZ69),0)+IF(RIGHT(BV$39,2)>RIGHT($K69,2),AZ69,0)) -> 1.64 | BW69: =+IF($K69="Ongoing",BA69,IF(RIGHT($K69,2)=RIGHT(BW$39,2),SUM($AX69:BA69),0)+IF(RIGHT(BW$39,2)>RIGHT($K69,2),BA69,0)) -> 0.85 | BX69: =+IF($K69="Ongoing",BB69,IF(RIGHT($K69,2)=RIGHT(BX$39,2),SUM($AX69:BB69),0)+IF(RIGHT(BX$39,2)>RIGHT($K69,2),BB69,0)) -> 0.63 | BY69: =+IF($K69="Ongoing",BC69,IF(RIGHT($K69,2)=RIGHT(BY$39,2),SUM($AX69:BC69),0)+IF(RIGHT(BY$39,2)>RIGHT($K69,2),BC69,0)) -> 1.488499504 | BZ69: =+IF($K69="Ongoing",BD69,IF(RIGHT($K69,2)=RIGHT(BZ$39,2),SUM($AX69:BD69),0)+IF(RIGHT(BZ$39,2)>RIGHT($K69,2),BD69,0)) -> 2.747817595 | CA69: =+IF($K69="Ongoing",BE69,IF(RIGHT($K69,2)=RIGHT(CA$39,2),SUM($AX69:BE69),0)+IF(RIGHT(CA$39,2)>RIGHT($K69,2),BE69,0)) -> 3.507115367 | CB69: =+IF($K69="Ongoing",BF69,IF(RIGHT($K69,2)=RIGHT(CB$39,2),SUM($AX69:BF69),0)+IF(RIGHT(CB$39,2)>RIGHT($K69,2),BF69,0)) -> 3.504295648 | CC69: =+IF($K69="Ongoing",BG69,IF(RIGHT($K69,2)=RIGHT(CC$39,2),SUM($AX69:BG69),0)+IF(RIGHT(CC$39,2)>RIGHT($K69,2),BG69,0)) -> 3.503242262 | CE69: =+Q69*KeyAssumptionsPriceControl_FO!AC$15 -> 2.0394 | CF69: =+R69*KeyAssumptionsPriceControl_FO!AD$15 -> 2.493115 | CG69: =+S69*KeyAssumptionsPriceControl_FO!AE$15 -> 1.79207228 | CH69: =+T69*KeyAssumptionsPriceControl_FO!AF$15 -> 0.9566824885 | CI69: =+U69*KeyAssumptionsPriceControl_FO!AG$15 -> 0.7303426668 | CJ69: =+V69*KeyAssumptionsPriceControl_FO!AH$15 -> 1.777346251 | CK69: =+W69*KeyAssumptionsPriceControl_FO!AI$15 -> 3.379469048 | CL69: =+X69*KeyAssumptionsPriceControl_FO!AJ$15 -> 4.442708819 | CM69: =+Y69*KeyAssumptionsPriceControl_FO!AK$15 -> 4.57231099 | CN69: =+Z69*KeyAssumptionsPriceControl_FO!AL$15 -> 4.708064657 | CP69: 0.0254925 | CQ69: 0.0821489375 | CR69: 0.1357137785 | CS69: 0.1700732131 | CT69: 0.1911610275 | CU69: 0.222507139 | CV69: 0.2869673303 | CW69: 0.3847445536 | CX69: 0.4974323012 | CY69: 0.6134369968
C70: Other Capex - Corporate Renewals | E70: Sewerage | F70: Renewals | G70: Corporate | H70: Capital Programs / Allocation | J70: Straight line | K70: Ongoing | L70: 5 | M70: 40 | Q70: 0.17 | R70: 0.11 | S70: 0.17 | T70: 0.11 | U70: 0.17 | V70: 0.1458529716 | W70: 0.2692492409 | X70: 0.3436502306 | Y70: 0.343373936 | Z70: 0.3432707183 | AX70: 0.17 | AY70: 0.11 | AZ70: 0.17 | BA70: 0.11 | BB70: 0.17 | BC70: 0.1458529716 | BD70: 0.2692492409 | BE70: 0.3436502306 | BF70: 0.343373936 | BG70: 0.3432707183 | BI70: 0.017 | BJ70: 0.045 | BK70: 0.073 | BL70: 0.101 | BM70: 0.129 | BN70: 0.1435852972 | BO70: 0.1570955184 | BP70: 0.1903854656 | BQ70: 0.2310878822 | BR70: 0.2717523477 | BT70: =+IF($K70="Ongoing",AX70,IF(RIGHT($K70,2)=RIGHT(BT$39,2),SUM($AX70:AX70),0)+IF(RIGHT(BT$39,2)>RIGHT($K70,2),AX70,0)) -> 0.17 | BU70: =+IF($K70="Ongoing",AY70,IF(RIGHT($K70,2)=RIGHT(BU$39,2),SUM($AX70:AY70),0)+IF(RIGHT(BU$39,2)>RIGHT($K70,2),AY70,0)) -> 0.11 | BV70: =+IF($K70="Ongoing",AZ70,IF(RIGHT($K70,2)=RIGHT(BV$39,2),SUM($AX70:AZ70),0)+IF(RIGHT(BV$39,2)>RIGHT($K70,2),AZ70,0)) -> 0.17 | BW70: =+IF($K70="Ongoing",BA70,IF(RIGHT($K70,2)=RIGHT(BW$39,2),SUM($AX70:BA70),0)+IF(RIGHT(BW$39,2)>RIGHT($K70,2),BA70,0)) -> 0.11 | BX70: =+IF($K70="Ongoing",BB70,IF(RIGHT($K70,2)=RIGHT(BX$39,2),SUM($AX70:BB70),0)+IF(RIGHT(BX$39,2)>RIGHT($K70,2),BB70,0)) -> 0.17 | BY70: =+IF($K70="Ongoing",BC70,IF(RIGHT($K70,2)=RIGHT(BY$39,2),SUM($AX70:BC70),0)+IF(RIGHT(BY$39,2)>RIGHT($K70,2),BC70,0)) -> 0.1458529716 | BZ70: =+IF($K70="Ongoing",BD70,IF(RIGHT($K70,2)=RIGHT(BZ$39,2),SUM($AX70:BD70),0)+IF(RIGHT(BZ$39,2)>RIGHT($K70,2),BD70,0)) -> 0.2692492409 | CA70: =+IF($K70="Ongoing",BE70,IF(RIGHT($K70,2)=RIGHT(CA$39,2),SUM($AX70:BE70),0)+IF(RIGHT(CA$39,2)>RIGHT($K70,2),BE70,0)) -> 0.3436502306 | CB70: =+IF($K70="Ongoing",BF70,IF(RIGHT($K70,2)=RIGHT(CB$39,2),SUM($AX70:BF70),0)+IF(RIGHT(CB$39,2)>RIGHT($K70,2),BF70,0)) -> 0.343373936 | CC70: =+IF($K70="Ongoing",BG70,IF(RIGHT($K70,2)=RIGHT(CC$39,2),SUM($AX70:BG70),0)+IF(RIGHT(CC$39,2)>RIGHT($K70,2),BG70,0)) -> 0.3432707183 | CE70: =+Q70*KeyAssumptionsPriceControl_FO!AC$15 -> 0.1751 | CF70: =+R70*KeyAssumptionsPriceControl_FO!AD$15 -> 0.116699 | CG70: =+S70*KeyAssumptionsPriceControl_FO!AE$15 -> 0.18576359 | CH70: =+T70*KeyAssumptionsPriceControl_FO!AF$15 -> 0.1238059691 | CI70: =+U70*KeyAssumptionsPriceControl_FO!AG$15 -> 0.1970765926 | CJ70: =+V70*KeyAssumptionsPriceControl_FO!AH$15 -> 0.1741560757 | CK70: =+W70*KeyAssumptionsPriceControl_FO!AI$15 -> 0.3311426047 | CL70: =+X70*KeyAssumptionsPriceControl_FO!AJ$15 -> 0.4353258306 | CM70: =+Y70*KeyAssumptionsPriceControl_FO!AK$15 -> 0.4480251037 | CN70: =+Z70*KeyAssumptionsPriceControl_FO!AL$15 -> 0.4613271409 | CP70: 0.00218875 | CQ70: 0.0058362375 | CR70: 0.009617019875 | CS70: 0.01348663936 | CT70: 0.01749767139 | CU70: 0.02213807974 | CV70: 0.02845431324 | CW70: 0.03803516868 | CX70: 0.04907705536 | CY70: 0.06044395842
C71: Other Capex - Headworks - Compliance | E71: Water | F71: Improvements / Compliance | G71: Headworks | H71: Capital Programs / Allocation | J71: Straight line | K71: Ongoing | L71: 80 | M71: 40 | Q71: 3.34 | R71: 1.25 | S71: 0.5 | T71: 1.93 | U71: 3.17 | V71: 2.035947644 | W71: 3.758424335 | X71: 4.796980617 | Y71: 4.793123847 | Z71: 4.79168304 | AX71: 3.34 | AY71: 1.25 | AZ71: 0.5 | BA71: 1.93 | BB71: 3.17 | BC71: 2.035947644 | BD71: 3.758424335 | BE71: 4.796980617 | BF71: 4.793123847 | BG71: 4.79168304 | BI71: 0.020875 | BJ71: 0.0495625 | BK71: 0.0605 | BL71: 0.0756875 | BM71: 0.1075625 | BN71: 0.1400996728 | BO71: 0.1763144976 | BP71: 0.2297857786 | BQ71: 0.2897239315 | BR71: 0.3496289745 | BT71: =+IF($K71="Ongoing",AX71,IF(RIGHT($K71,2)=RIGHT(BT$39,2),SUM($AX71:AX71),0)+IF(RIGHT(BT$39,2)>RIGHT($K71,2),AX71,0)) -> 3.34 | BU71: =+IF($K71="Ongoing",AY71,IF(RIGHT($K71,2)=RIGHT(BU$39,2),SUM($AX71:AY71),0)+IF(RIGHT(BU$39,2)>RIGHT($K71,2),AY71,0)) -> 1.25 | BV71: =+IF($K71="Ongoing",AZ71,IF(RIGHT($K71,2)=RIGHT(BV$39,2),SUM($AX71:AZ71),0)+IF(RIGHT(BV$39,2)>RIGHT($K71,2),AZ71,0)) -> 0.5 | BW71: =+IF($K71="Ongoing",BA71,IF(RIGHT($K71,2)=RIGHT(BW$39,2),SUM($AX71:BA71),0)+IF(RIGHT(BW$39,2)>RIGHT($K71,2),BA71,0)) -> 1.93 | BX71: =+IF($K71="Ongoing",BB71,IF(RIGHT($K71,2)=RIGHT(BX$39,2),SUM($AX71:BB71),0)+IF(RIGHT(BX$39,2)>RIGHT($K71,2),BB71,0)) -> 3.17 | BY71: =+IF($K71="Ongoing",BC71,IF(RIGHT($K71,2)=RIGHT(BY$39,2),SUM($AX71:BC71),0)+IF(RIGHT(BY$39,2)>RIGHT($K71,2),BC71,0)) -> 2.035947644 | BZ71: =+IF($K71="Ongoing",BD71,IF(RIGHT($K71,2)=RIGHT(BZ$39,2),SUM($AX71:BD71),0)+IF(RIGHT(BZ$39,2)>RIGHT($K71,2),BD71,0)) -> 3.758424335 | CA71: =+IF($K71="Ongoing",BE71,IF(RIGHT($K71,2)=RIGHT(CA$39,2),SUM($AX71:BE71),0)+IF(RIGHT(CA$39,2)>RIGHT($K71,2),BE71,0)) -> 4.796980617 | CB71: =+IF($K71="Ongoing",BF71,IF(RIGHT($K71,2)=RIGHT(CB$39,2),SUM($AX71:BF71),0)+IF(RIGHT(CB$39,2)>RIGHT($K71,2),BF71,0)) -> 4.793123847 | CC71: =+IF($K71="Ongoing",BG71,IF(RIGHT($K71,2)=RIGHT(CC$39,2),SUM($AX71:BG71),0)+IF(RIGHT(CC$39,2)>RIGHT($K71,2),BG71,0)) -> 4.79168304 | CE71: =+Q71*KeyAssumptionsPriceControl_FO!AC$15 -> 3.4402 | CF71: =+R71*KeyAssumptionsPriceControl_FO!AD$15 -> 1.326125 | CG71: =+S71*KeyAssumptionsPriceControl_FO!AE$15 -> 0.5463635 | CH71: =+T71*KeyAssumptionsPriceControl_FO!AF$15 -> 2.172232003 | CI71: =+U71*KeyAssumptionsPriceControl_FO!AG$15 -> 3.674898816 | CJ71: =+V71*KeyAssumptionsPriceControl_FO!AH$15 -> 2.43102796 | CK71: =+W71*KeyAssumptionsPriceControl_FO!AI$15 -> 4.622387865 | CL71: =+X71*KeyAssumptionsPriceControl_FO!AJ$15 -> 6.076671526 | CM71: =+Y71*KeyAssumptionsPriceControl_FO!AK$15 -> 6.253939462 | CN71: =+Z71*KeyAssumptionsPriceControl_FO!AL$15 -> 6.439621323 | CP71: 0.0430025 | CQ71: 0.1025815625 | CR71: 0.1259876688 | CS71: 0.1599701125 | CT71: 0.2330592478 | CU71: 0.3093833325 | CV71: 0.3975510303 | CW71: 0.5312892727 | CX71: 0.68542191 | CY71: 0.8440914198
C72: Other Capex - Headworks Growth | E72: Water | F72: Growth | G72: Headworks | H72: Capital Programs / Allocation | J72: Straight line | K72: Ongoing | L72: 80 | M72: 40 | Q72: 0.24 | R72: 0.19 | S72: 0.29 | T72: 0.92 | U72: 0.57 | V72: 0.4415548865 | W72: 0.8151244142 | X72: 1.040365767 | Y72: 1.039529313 | Z72: 1.039216832 | AX72: 0.24 | AY72: 0.19 | AZ72: 0.29 | BA72: 0.92 | BB72: 0.57 | BC72: 0.4415548865 | BD72: 0.8151244142 | BE72: 1.040365767 | BF72: 1.039529313 | BG72: 1.039216832 | BI72: 0.0015 | BJ72: 0.0041875 | BK72: 0.0071875 | BL72: 0.01475 | BM72: 0.0240625 | BN72: 0.03038471804 | BO72: 0.03823896367 | BP72: 0.0498357773 | BQ72: 0.06283512155 | BR72: 0.07582728496 | BT72: =+IF($K72="Ongoing",AX72,IF(RIGHT($K72,2)=RIGHT(BT$39,2),SUM($AX72:AX72),0)+IF(RIGHT(BT$39,2)>RIGHT($K72,2),AX72,0)) -> 0.24 | BU72: =+IF($K72="Ongoing",AY72,IF(RIGHT($K72,2)=RIGHT(BU$39,2),SUM($AX72:AY72),0)+IF(RIGHT(BU$39,2)>RIGHT($K72,2),AY72,0)) -> 0.19 | BV72: =+IF($K72="Ongoing",AZ72,IF(RIGHT($K72,2)=RIGHT(BV$39,2),SUM($AX72:AZ72),0)+IF(RIGHT(BV$39,2)>RIGHT($K72,2),AZ72,0)) -> 0.29 | BW72: =+IF($K72="Ongoing",BA72,IF(RIGHT($K72,2)=RIGHT(BW$39,2),SUM($AX72:BA72),0)+IF(RIGHT(BW$39,2)>RIGHT($K72,2),BA72,0)) -> 0.92 | BX72: =+IF($K72="Ongoing",BB72,IF(RIGHT($K72,2)=RIGHT(BX$39,2),SUM($AX72:BB72),0)+IF(RIGHT(BX$39,2)>RIGHT($K72,2),BB72,0)) -> 0.57 | BY72: =+IF($K72="Ongoing",BC72,IF(RIGHT($K72,2)=RIGHT(BY$39,2),SUM($AX72:BC72),0)+IF(RIGHT(BY$39,2)>RIGHT($K72,2),BC72,0)) -> 0.4415548865 | BZ72: =+IF($K72="Ongoing",BD72,IF(RIGHT($K72,2)=RIGHT(BZ$39,2),SUM($AX72:BD72),0)+IF(RIGHT(BZ$39,2)>RIGHT($K72,2),BD72,0)) -> 0.8151244142 | CA72: =+IF($K72="Ongoing",BE72,IF(RIGHT($K72,2)=RIGHT(CA$39,2),SUM($AX72:BE72),0)+IF(RIGHT(CA$39,2)>RIGHT($K72,2),BE72,0)) -> 1.040365767 | CB72: =+IF($K72="Ongoing",BF72,IF(RIGHT($K72,2)=RIGHT(CB$39,2),SUM($AX72:BF72),0)+IF(RIGHT(CB$39,2)>RIGHT($K72,2),BF72,0)) -> 1.039529313 | CC72: =+IF($K72="Ongoing",BG72,IF(RIGHT($K72,2)=RIGHT(CC$39,2),SUM($AX72:BG72),0)+IF(RIGHT(CC$39,2)>RIGHT($K72,2),BG72,0)) -> 1.039216832 | CE72: =+Q72*KeyAssumptionsPriceControl_FO!AC$15 -> 0.2472 | CF72: =+R72*KeyAssumptionsPriceControl_FO!AD$15 -> 0.201571 | CG72: =+S72*KeyAssumptionsPriceControl_FO!AE$15 -> 0.31689083 | CH72: =+T72*KeyAssumptionsPriceControl_FO!AF$15 -> 1.035468105 | CI72: =+U72*KeyAssumptionsPriceControl_FO!AG$15 -> 0.6607862224 | CJ72: =+V72*KeyAssumptionsPriceControl_FO!AH$15 -> 0.5272396263 | CK72: =+W72*KeyAssumptionsPriceControl_FO!AI$15 -> 1.002500214 | CL72: =+X72*KeyAssumptionsPriceControl_FO!AJ$15 -> 1.317904227 | CM72: =+Y72*KeyAssumptionsPriceControl_FO!AK$15 -> 1.356349972 | CN72: =+Z72*KeyAssumptionsPriceControl_FO!AL$15 -> 1.396620522 | CP72: 0.00309 | CQ72: 0.0086996375 | CR72: 0.01518041037 | CS72: 0.03208489706 | CT72: 0.05328807616 | CU72: 0.06813839927 | CV72: 0.08726014727 | CW72: 0.1162652028 | CX72: 0.1496933803 | CY72: 0.1841055114
C73: Other Capex - Integrated Water & Sewer Planning - water | E73: Water | F73: Growth | G73: Pipelines/network | H73: Capital Programs / Allocation | J73: Straight line | K73: Ongoing | L73: 5 | M73: 40 | Q73: 0.38 | R73: 0.32 | S73: 0.32 | T73: 0.79 | U73: 1.35 | V73: 0.6313635481 | W73: 1.165517262 | X73: 1.48758182 | Y73: 1.486385805 | Z73: 1.485939 | AX73: 0.38 | AY73: 0.32 | AZ73: 0.32 | BA73: 0.79 | BB73: 1.35 | BC73: 0.6313635481 | BD73: 1.165517262 | BE73: 1.48758182 | BF73: 1.486385805 | BG73: 1.485939 | BI73: 0.038 | BJ73: 0.108 | BK73: 0.172 | BL73: 0.283 | BM73: 0.497 | BN73: 0.6571363548 | BO73: 0.7668244358 | BP73: 0.968134344 | BQ73: 1.154531107 | BR73: 1.237763587 | BT73: =+IF($K73="Ongoing",AX73,IF(RIGHT($K73,2)=RIGHT(BT$39,2),SUM($AX73:AX73),0)+IF(RIGHT(BT$39,2)>RIGHT($K73,2),AX73,0)) -> 0.38 | BU73: =+IF($K73="Ongoing",AY73,IF(RIGHT($K73,2)=RIGHT(BU$39,2),SUM($AX73:AY73),0)+IF(RIGHT(BU$39,2)>RIGHT($K73,2),AY73,0)) -> 0.32 | BV73: =+IF($K73="Ongoing",AZ73,IF(RIGHT($K73,2)=RIGHT(BV$39,2),SUM($AX73:AZ73),0)+IF(RIGHT(BV$39,2)>RIGHT($K73,2),AZ73,0)) -> 0.32 | BW73: =+IF($K73="Ongoing",BA73,IF(RIGHT($K73,2)=RIGHT(BW$39,2),SUM($AX73:BA73),0)+IF(RIGHT(BW$39,2)>RIGHT($K73,2),BA73,0)) -> 0.79 | BX73: =+IF($K73="Ongoing",BB73,IF(RIGHT($K73,2)=RIGHT(BX$39,2),SUM($AX73:BB73),0)+IF(RIGHT(BX$39,2)>RIGHT($K73,2),BB73,0)) -> 1.35 | BY73: =+IF($K73="Ongoing",BC73,IF(RIGHT($K73,2)=RIGHT(BY$39,2),SUM($AX73:BC73),0)+IF(RIGHT(BY$39,2)>RIGHT($K73,2),BC73,0)) -> 0.6313635481 | BZ73: =+IF($K73="Ongoing",BD73,IF(RIGHT($K73,2)=RIGHT(BZ$39,2),SUM($AX73:BD73),0)+IF(RIGHT(BZ$39,2)>RIGHT($K73,2),BD73,0)) -> 1.165517262 | CA73: =+IF($K73="Ongoing",BE73,IF(RIGHT($K73,2)=RIGHT(CA$39,2),SUM($AX73:BE73),0)+IF(RIGHT(CA$39,2)>RIGHT($K73,2),BE73,0)) -> 1.48758182 | CB73: =+IF($K73="Ongoing",BF73,IF(RIGHT($K73,2)=RIGHT(CB$39,2),SUM($AX73:BF73),0)+IF(RIGHT(CB$39,2)>RIGHT($K73,2),BF73,0)) -> 1.486385805 | CC73: =+IF($K73="Ongoing",BG73,IF(RIGHT($K73,2)=RIGHT(CC$39,2),SUM($AX73:BG73),0)+IF(RIGHT(CC$39,2)>RIGHT($K73,2),BG73,0)) -> 1.485939 | CE73: =+Q73*KeyAssumptionsPriceControl_FO!AC$15 -> 0.3914 | CF73: =+R73*KeyAssumptionsPriceControl_FO!AD$15 -> 0.339488 | CG73: =+S73*KeyAssumptionsPriceControl_FO!AE$15 -> 0.34967264 | CH73: =+T73*KeyAssumptionsPriceControl_FO!AF$15 -> 0.8891519599 | CI73: =+U73*KeyAssumptionsPriceControl_FO!AG$15 -> 1.56502 | CJ73: =+V73*KeyAssumptionsPriceControl_FO!AH$15 -> 0.7538810946 | CK73: =+W73*KeyAssumptionsPriceControl_FO!AI$15 -> 1.43343922 | CL73: =+X73*KeyAssumptionsPriceControl_FO!AJ$15 -> 1.884424144 | CM73: =+Y73*KeyAssumptionsPriceControl_FO!AK$15 -> 1.939396339 | CN73: =+Z73*KeyAssumptionsPriceControl_FO!AL$15 -> 1.99697776 | CP73: 0.0048925 | CQ73: 0.0140286 | CR73: 0.022643108 | CS73: 0.0381284155 | CT73: 0.068805565 | CU73: 0.09779182869 | CV73: 0.1251333326 | CW73: 0.1666066247 | CX73: 0.2144043807 | CY73: 0.263609057
C74: Other Capex - Integrated Water & Sewer Planning - sewer | E74: Sewerage | F74: Growth | G74: Pipelines/network | H74: Capital Programs / Allocation | J74: Straight line | K74: Ongoing | L74: 5 | M74: 40 | Q74: 0.38 | R74: 0.32 | S74: 0.32 | T74: 0.79 | U74: 1.35 | V74: 0.6313635481 | W74: 1.165517262 | X74: 1.48758182 | Y74: 1.486385805 | Z74: 1.485939 | AX74: 0.38 | AY74: 0.32 | AZ74: 0.32 | BA74: 0.79 | BB74: 1.35 | BC74: 0.6313635481 | BD74: 1.165517262 | BE74: 1.48758182 | BF74: 1.486385805 | BG74: 1.485939 | BI74: 0.038 | BJ74: 0.108 | BK74: 0.172 | BL74: 0.283 | BM74: 0.497 | BN74: 0.6571363548 | BO74: 0.7668244358 | BP74: 0.968134344 | BQ74: 1.154531107 | BR74: 1.237763587 | BT74: =+IF($K74="Ongoing",AX74,IF(RIGHT($K74,2)=RIGHT(BT$39,2),SUM($AX74:AX74),0)+IF(RIGHT(BT$39,2)>RIGHT($K74,2),AX74,0)) -> 0.38 | BU74: =+IF($K74="Ongoing",AY74,IF(RIGHT($K74,2)=RIGHT(BU$39,2),SUM($AX74:AY74),0)+IF(RIGHT(BU$39,2)>RIGHT($K74,2),AY74,0)) -> 0.32 | BV74: =+IF($K74="Ongoing",AZ74,IF(RIGHT($K74,2)=RIGHT(BV$39,2),SUM($AX74:AZ74),0)+IF(RIGHT(BV$39,2)>RIGHT($K74,2),AZ74,0)) -> 0.32 | BW74: =+IF($K74="Ongoing",BA74,IF(RIGHT($K74,2)=RIGHT(BW$39,2),SUM($AX74:BA74),0)+IF(RIGHT(BW$39,2)>RIGHT($K74,2),BA74,0)) -> 0.79 | BX74: =+IF($K74="Ongoing",BB74,IF(RIGHT($K74,2)=RIGHT(BX$39,2),SUM($AX74:BB74),0)+IF(RIGHT(BX$39,2)>RIGHT($K74,2),BB74,0)) -> 1.35 | BY74: =+IF($K74="Ongoing",BC74,IF(RIGHT($K74,2)=RIGHT(BY$39,2),SUM($AX74:BC74),0)+IF(RIGHT(BY$39,2)>RIGHT($K74,2),BC74,0)) -> 0.6313635481 | BZ74: =+IF($K74="Ongoing",BD74,IF(RIGHT($K74,2)=RIGHT(BZ$39,2),SUM($AX74:BD74),0)+IF(RIGHT(BZ$39,2)>RIGHT($K74,2),BD74,0)) -> 1.165517262 | CA74: =+IF($K74="Ongoing",BE74,IF(RIGHT($K74,2)=RIGHT(CA$39,2),SUM($AX74:BE74),0)+IF(RIGHT(CA$39,2)>RIGHT($K74,2),BE74,0)) -> 1.48758182 | CB74: =+IF($K74="Ongoing",BF74,IF(RIGHT($K74,2)=RIGHT(CB$39,2),SUM($AX74:BF74),0)+IF(RIGHT(CB$39,2)>RIGHT($K74,2),BF74,0)) -> 1.486385805 | CC74: =+IF($K74="Ongoing",BG74,IF(RIGHT($K74,2)=RIGHT(CC$39,2),SUM($AX74:BG74),0)+IF(RIGHT(CC$39,2)>RIGHT($K74,2),BG74,0)) -> 1.485939 | CE74: =+Q74*KeyAssumptionsPriceControl_FO!AC$15 -> 0.3914 | CF74: =+R74*KeyAssumptionsPriceControl_FO!AD$15 -> 0.339488 | CG74: =+S74*KeyAssumptionsPriceControl_FO!AE$15 -> 0.34967264 | CH74: =+T74*KeyAssumptionsPriceControl_FO!AF$15 -> 0.8891519599 | CI74: =+U74*KeyAssumptionsPriceControl_FO!AG$15 -> 1.56502 | CJ74: =+V74*KeyAssumptionsPriceControl_FO!AH$15 -> 0.7538810946 | CK74: =+W74*KeyAssumptionsPriceControl_FO!AI$15 -> 1.43343922 | CL74: =+X74*KeyAssumptionsPriceControl_FO!AJ$15 -> 1.884424144 | CM74: =+Y74*KeyAssumptionsPriceControl_FO!AK$15 -> 1.939396339 | CN74: =+Z74*KeyAssumptionsPriceControl_FO!AL$15 -> 1.99697776 | CP74: 0.0048925 | CQ74: 0.0140286 | CR74: 0.022643108 | CS74: 0.0381284155 | CT74: 0.068805565 | CU74: 0.09779182869 | CV74: 0.1251333326 | CW74: 0.1666066247 | CX74: 0.2144043807 | CY74: 0.263609057
C75: Other Capex - New Development | E75: Water | F75: Growth | G75: Pipelines/network | H75: Capital Programs / Allocation | J75: Straight line | K75: Ongoing | L75: 70 | M75: 40 | Q75: 0.94 | R75: 0.89 | S75: 0.9 | T75: 1.16 | U75: 1.39 | V75: 1.054936561 | W75: 1.947446564 | X75: 2.48557975 | Y75: 2.483581345 | Z75: 2.482834784 | AX75: 0.94 | AY75: 0.89 | AZ75: 0.9 | BA75: 1.16 | BB75: 1.39 | BC75: 1.054936561 | BD75: 1.947446564 | BE75: 2.48557975 | BF75: 2.483581345 | BG75: 2.482834784 | BI75: 0.006714285714 | BJ75: 0.01978571429 | BK75: 0.03257142857 | BL75: 0.04728571429 | BM75: 0.0655 | BN75: 0.08296383258 | BO75: 0.1044094263 | BP75: 0.1360739 | BQ75: 0.1715679078 | BR75: 0.2070423088 | BT75: =+IF($K75="Ongoing",AX75,IF(RIGHT($K75,2)=RIGHT(BT$39,2),SUM($AX75:AX75),0)+IF(RIGHT(BT$39,2)>RIGHT($K75,2),AX75,0)) -> 0.94 | BU75: =+IF($K75="Ongoing",AY75,IF(RIGHT($K75,2)=RIGHT(BU$39,2),SUM($AX75:AY75),0)+IF(RIGHT(BU$39,2)>RIGHT($K75,2),AY75,0)) -> 0.89 | BV75: =+IF($K75="Ongoing",AZ75,IF(RIGHT($K75,2)=RIGHT(BV$39,2),SUM($AX75:AZ75),0)+IF(RIGHT(BV$39,2)>RIGHT($K75,2),AZ75,0)) -> 0.9 | BW75: =+IF($K75="Ongoing",BA75,IF(RIGHT($K75,2)=RIGHT(BW$39,2),SUM($AX75:BA75),0)+IF(RIGHT(BW$39,2)>RIGHT($K75,2),BA75,0)) -> 1.16 | BX75: =+IF($K75="Ongoing",BB75,IF(RIGHT($K75,2)=RIGHT(BX$39,2),SUM($AX75:BB75),0)+IF(RIGHT(BX$39,2)>RIGHT($K75,2),BB75,0)) -> 1.39 | BY75: =+IF($K75="Ongoing",BC75,IF(RIGHT($K75,2)=RIGHT(BY$39,2),SUM($AX75:BC75),0)+IF(RIGHT(BY$39,2)>RIGHT($K75,2),BC75,0)) -> 1.054936561 | BZ75: =+IF($K75="Ongoing",BD75,IF(RIGHT($K75,2)=RIGHT(BZ$39,2),SUM($AX75:BD75),0)+IF(RIGHT(BZ$39,2)>RIGHT($K75,2),BD75,0)) -> 1.947446564 | CA75: =+IF($K75="Ongoing",BE75,IF(RIGHT($K75,2)=RIGHT(CA$39,2),SUM($AX75:BE75),0)+IF(RIGHT(CA$39,2)>RIGHT($K75,2),BE75,0)) -> 2.48557975 | CB75: =+IF($K75="Ongoing",BF75,IF(RIGHT($K75,2)=RIGHT(CB$39,2),SUM($AX75:BF75),0)+IF(RIGHT(CB$39,2)>RIGHT($K75,2),BF75,0)) -> 2.483581345 | CC75: =+IF($K75="Ongoing",BG75,IF(RIGHT($K75,2)=RIGHT(CC$39,2),SUM($AX75:BG75),0)+IF(RIGHT(CC$39,2)>RIGHT($K75,2),BG75,0)) -> 2.482834784 | CE75: =+Q75*KeyAssumptionsPriceControl_FO!AC$15 -> 0.9682 | CF75: =+R75*KeyAssumptionsPriceControl_FO!AD$15 -> 0.944201 | CG75: =+S75*KeyAssumptionsPriceControl_FO!AE$15 -> 0.9834543 | CH75: =+T75*KeyAssumptionsPriceControl_FO!AF$15 -> 1.30559022 | CI75: =+U75*KeyAssumptionsPriceControl_FO!AG$15 -> 1.611390963 | CJ75: =+V75*KeyAssumptionsPriceControl_FO!AH$15 -> 1.259649424 | CK75: =+W75*KeyAssumptionsPriceControl_FO!AI$15 -> 2.395113634 | CL75: =+X75*KeyAssumptionsPriceControl_FO!AJ$15 -> 3.148658063 | CM75: =+Y75*KeyAssumptionsPriceControl_FO!AK$15 -> 3.240510339 | CN75: =+Z75*KeyAssumptionsPriceControl_FO!AL$15 -> 3.336722334 | CP75: 0.0121025 | CQ75: 0.0360075125 | CR75: 0.06010320375 | CS75: 0.08871626024 | CT75: 0.125178525 | CU75: 0.1610665299 | CV75: 0.2067510681 | CW75: 0.2760482143 | CX75: 0.3559128193 | CY75: 0.4381282277
C76: Other Capex - OH&S Remedial Works | E76: Water | F76: Improvements / Compliance | G76: Treatment | H76: Capital Programs / Allocation | J76: Straight line | K76: Ongoing | L76: 45 | M76: 40 | Q76: 0.2 | R76: 0.16 | S76: 0.16 | T76: 0.33 | U76: 0.48 | V76: 0.2657321263 | W76: 0.4905499868 | X76: 0.626102475 | Y76: 0.6255990889 | Z76: 0.6254110347 | AX76: 0.2 | AY76: 0.16 | AZ76: 0.16 | BA76: 0.33 | BB76: 0.48 | BC76: 0.2657321263 | BD76: 0.4905499868 | BE76: 0.626102475 | BF76: 0.6255990889 | BG76: 0.6254110347 | BI76: 0.002222222222 | BJ76: 0.006222222222 | BK76: 0.009777777778 | BL76: 0.01522222222 | BM76: 0.02422222222 | BN76: 0.03250813474 | BO76: 0.04091126933 | BP76: 0.0533185189 | BQ76: 0.06722631406 | BR76: 0.08112642654 | BT76: =+IF($K76="Ongoing",AX76,IF(RIGHT($K76,2)=RIGHT(BT$39,2),SUM($AX76:AX76),0)+IF(RIGHT(BT$39,2)>RIGHT($K76,2),AX76,0)) -> 0.2 | BU76: =+IF($K76="Ongoing",AY76,IF(RIGHT($K76,2)=RIGHT(BU$39,2),SUM($AX76:AY76),0)+IF(RIGHT(BU$39,2)>RIGHT($K76,2),AY76,0)) -> 0.16 | BV76: =+IF($K76="Ongoing",AZ76,IF(RIGHT($K76,2)=RIGHT(BV$39,2),SUM($AX76:AZ76),0)+IF(RIGHT(BV$39,2)>RIGHT($K76,2),AZ76,0)) -> 0.16 | BW76: =+IF($K76="Ongoing",BA76,IF(RIGHT($K76,2)=RIGHT(BW$39,2),SUM($AX76:BA76),0)+IF(RIGHT(BW$39,2)>RIGHT($K76,2),BA76,0)) -> 0.33 | BX76: =+IF($K76="Ongoing",BB76,IF(RIGHT($K76,2)=RIGHT(BX$39,2),SUM($AX76:BB76),0)+IF(RIGHT(BX$39,2)>RIGHT($K76,2),BB76,0)) -> 0.48 | BY76: =+IF($K76="Ongoing",BC76,IF(RIGHT($K76,2)=RIGHT(BY$39,2),SUM($AX76:BC76),0)+IF(RIGHT(BY$39,2)>RIGHT($K76,2),BC76,0)) -> 0.2657321263 | BZ76: =+IF($K76="Ongoing",BD76,IF(RIGHT($K76,2)=RIGHT(BZ$39,2),SUM($AX76:BD76),0)+IF(RIGHT(BZ$39,2)>RIGHT($K76,2),BD76,0)) -> 0.4905499868 | CA76: =+IF($K76="Ongoing",BE76,IF(RIGHT($K76,2)=RIGHT(CA$39,2),SUM($AX76:BE76),0)+IF(RIGHT(CA$39,2)>RIGHT($K76,2),BE76,0)) -> 0.626102475 | CB76: =+IF($K76="Ongoing",BF76,IF(RIGHT($K76,2)=RIGHT(CB$39,2),SUM($AX76:BF76),0)+IF(RIGHT(CB$39,2)>RIGHT($K76,2),BF76,0)) -> 0.6255990889 | CC76: =+IF($K76="Ongoing",BG76,IF(RIGHT($K76,2)=RIGHT(CC$39,2),SUM($AX76:BG76),0)+IF(RIGHT(CC$39,2)>RIGHT($K76,2),BG76,0)) -> 0.6254110347 | CE76: =+Q76*KeyAssumptionsPriceControl_FO!AC$15 -> 0.206 | CF76: =+R76*KeyAssumptionsPriceControl_FO!AD$15 -> 0.169744 | CG76: =+S76*KeyAssumptionsPriceControl_FO!AE$15 -> 0.17483632 | CH76: =+T76*KeyAssumptionsPriceControl_FO!AF$15 -> 0.3714179073 | CI76: =+U76*KeyAssumptionsPriceControl_FO!AG$15 -> 0.5564515557 | CJ76: =+V76*KeyAssumptionsPriceControl_FO!AH$15 -> 0.3172980556 | CK76: =+W76*KeyAssumptionsPriceControl_FO!AI$15 -> 0.6033146085 | CL76: =+X76*KeyAssumptionsPriceControl_FO!AJ$15 -> 0.7931278832 | CM76: =+Y76*KeyAssumptionsPriceControl_FO!AK$15 -> 0.816264915 | CN76: =+Z76*KeyAssumptionsPriceControl_FO!AL$15 -> 0.8405001334 | CP76: 0.002575 | CQ76: 0.0072718 | CR76: 0.011579054 | CS76: 0.01840723184 | CT76: 0.03000560013 | CU76: 0.04092747027 | CV76: 0.05243512857 | CW76: 0.06989065972 | CX76: 0.0900080697 | CY76: 0.1107176328
C77: Other Capex - OH&S Remedial Works | E77: Sewerage | F77: Improvements / Compliance | G77: Treatment | H77: Capital Programs / Allocation | J77: Straight line | K77: Ongoing | L77: 25 | M77: 40 | Q77: 0.2 | R77: 0.16 | S77: 0.16 | T77: 0.33 | U77: 0.48 | V77: 0.2657321263 | W77: 0.4905499868 | X77: 0.626102475 | Y77: 0.6255990889 | Z77: 0.6254110347 | AX77: 0.2 | AY77: 0.16 | AZ77: 0.16 | BA77: 0.33 | BB77: 0.48 | BC77: 0.2657321263 | BD77: 0.4905499868 | BE77: 0.626102475 | BF77: 0.6255990889 | BG77: 0.6254110347 | BI77: 0.004 | BJ77: 0.0112 | BK77: 0.0176 | BL77: 0.0274 | BM77: 0.0436 | BN77: 0.05851464253 | BO77: 0.07364028479 | BP77: 0.09597333402 | BQ77: 0.1210073653 | BR77: 0.1460275678 | BT77: =+IF($K77="Ongoing",AX77,IF(RIGHT($K77,2)=RIGHT(BT$39,2),SUM($AX77:AX77),0)+IF(RIGHT(BT$39,2)>RIGHT($K77,2),AX77,0)) -> 0.2 | BU77: =+IF($K77="Ongoing",AY77,IF(RIGHT($K77,2)=RIGHT(BU$39,2),SUM($AX77:AY77),0)+IF(RIGHT(BU$39,2)>RIGHT($K77,2),AY77,0)) -> 0.16 | BV77: =+IF($K77="Ongoing",AZ77,IF(RIGHT($K77,2)=RIGHT(BV$39,2),SUM($AX77:AZ77),0)+IF(RIGHT(BV$39,2)>RIGHT($K77,2),AZ77,0)) -> 0.16 | BW77: =+IF($K77="Ongoing",BA77,IF(RIGHT($K77,2)=RIGHT(BW$39,2),SUM($AX77:BA77),0)+IF(RIGHT(BW$39,2)>RIGHT($K77,2),BA77,0)) -> 0.33 | BX77: =+IF($K77="Ongoing",BB77,IF(RIGHT($K77,2)=RIGHT(BX$39,2),SUM($AX77:BB77),0)+IF(RIGHT(BX$39,2)>RIGHT($K77,2),BB77,0)) -> 0.48 | BY77: =+IF($K77="Ongoing",BC77,IF(RIGHT($K77,2)=RIGHT(BY$39,2),SUM($AX77:BC77),0)+IF(RIGHT(BY$39,2)>RIGHT($K77,2),BC77,0)) -> 0.2657321263 | BZ77: =+IF($K77="Ongoing",BD77,IF(RIGHT($K77,2)=RIGHT(BZ$39,2),SUM($AX77:BD77),0)+IF(RIGHT(BZ$39,2)>RIGHT($K77,2),BD77,0)) -> 0.4905499868 | CA77: =+IF($K77="Ongoing",BE77,IF(RIGHT($K77,2)=RIGHT(CA$39,2),SUM($AX77:BE77),0)+IF(RIGHT(CA$39,2)>RIGHT($K77,2),BE77,0)) -> 0.626102475 | CB77: =+IF($K77="Ongoing",BF77,IF(RIGHT($K77,2)=RIGHT(CB$39,2),SUM($AX77:BF77),0)+IF(RIGHT(CB$39,2)>RIGHT($K77,2),BF77,0)) -> 0.6255990889 | CC77: =+IF($K77="Ongoing",BG77,IF(RIGHT($K77,2)=RIGHT(CC$39,2),SUM($AX77:BG77),0)+IF(RIGHT(CC$39,2)>RIGHT($K77,2),BG77,0)) -> 0.6254110347 | CE77: =+Q77*KeyAssumptionsPriceControl_FO!AC$15 -> 0.206 | CF77: =+R77*KeyAssumptionsPriceControl_FO!AD$15 -> 0.169744 | CG77: =+S77*KeyAssumptionsPriceControl_FO!AE$15 -> 0.17483632 | CH77: =+T77*KeyAssumptionsPriceControl_FO!AF$15 -> 0.3714179073 | CI77: =+U77*KeyAssumptionsPriceControl_FO!AG$15 -> 0.5564515557 | CJ77: =+V77*KeyAssumptionsPriceControl_FO!AH$15 -> 0.3172980556 | CK77: =+W77*KeyAssumptionsPriceControl_FO!AI$15 -> 0.6033146085 | CL77: =+X77*KeyAssumptionsPriceControl_FO!AJ$15 -> 0.7931278832 | CM77: =+Y77*KeyAssumptionsPriceControl_FO!AK$15 -> 0.816264915 | CN77: =+Z77*KeyAssumptionsPriceControl_FO!AL$15 -> 0.8405001334 | CP77: 0.002575 | CQ77: 0.0072718 | CR77: 0.011579054 | CS77: 0.01840723184 | CT77: 0.03000560013 | CU77: 0.04092747027 | CV77: 0.05243512857 | CW77: 0.06989065972 | CX77: 0.0900080697 | CY77: 0.1107176328
C78: Other Capex - Rural Channel Renewals | E78: Rural water | F78: Renewals | G78: Pipelines/network | H78: Capital Programs / Allocation | J78: Straight line | K78: Ongoing | L78: 100 | M78: 40 | Q78: 0.26 | R78: 0.19 | S78: 0.19 | T78: 0.38 | U78: 0.36 | V78: 0.2757220558 | W78: 0.5089917157 | X78: 0.649640162 | Y78: 0.6491178516 | Z78: 0.6489227277 | AX78: 0.26 | AY78: 0.19 | AZ78: 0.19 | BA78: 0.38 | BB78: 0.36 | BC78: 0.2757220558 | BD78: 0.5089917157 | BE78: 0.649640162 | BF78: 0.6491178516 | BG78: 0.6489227277 | BI78: 0.0013 | BJ78: 0.00355 | BK78: 0.00545 | BL78: 0.0083 | BM78: 0.012 | BN78: 0.01517861028 | BO78: 0.01910217914 | BP78: 0.02489533853 | BQ78: 0.03138912859 | BR78: 0.03787933149 | BT78: =+IF($K78="Ongoing",AX78,IF(RIGHT($K78,2)=RIGHT(BT$39,2),SUM($AX78:AX78),0)+IF(RIGHT(BT$39,2)>RIGHT($K78,2),AX78,0)) -> 0.26 | BU78: =+IF($K78="Ongoing",AY78,IF(RIGHT($K78,2)=RIGHT(BU$39,2),SUM($AX78:AY78),0)+IF(RIGHT(BU$39,2)>RIGHT($K78,2),AY78,0)) -> 0.19 | BV78: =+IF($K78="Ongoing",AZ78,IF(RIGHT($K78,2)=RIGHT(BV$39,2),SUM($AX78:AZ78),0)+IF(RIGHT(BV$39,2)>RIGHT($K78,2),AZ78,0)) -> 0.19 | BW78: =+IF($K78="Ongoing",BA78,IF(RIGHT($K78,2)=RIGHT(BW$39,2),SUM($AX78:BA78),0)+IF(RIGHT(BW$39,2)>RIGHT($K78,2),BA78,0)) -> 0.38 | BX78: =+IF($K78="Ongoing",BB78,IF(RIGHT($K78,2)=RIGHT(BX$39,2),SUM($AX78:BB78),0)+IF(RIGHT(BX$39,2)>RIGHT($K78,2),BB78,0)) -> 0.36 | BY78: =+IF($K78="Ongoing",BC78,IF(RIGHT($K78,2)=RIGHT(BY$39,2),SUM($AX78:BC78),0)+IF(RIGHT(BY$39,2)>RIGHT($K78,2),BC78,0)) -> 0.2757220558 | BZ78: =+IF($K78="Ongoing",BD78,IF(RIGHT($K78,2)=RIGHT(BZ$39,2),SUM($AX78:BD78),0)+IF(RIGHT(BZ$39,2)>RIGHT($K78,2),BD78,0)) -> 0.5089917157 | CA78: =+IF($K78="Ongoing",BE78,IF(RIGHT($K78,2)=RIGHT(CA$39,2),SUM($AX78:BE78),0)+IF(RIGHT(CA$39,2)>RIGHT($K78,2),BE78,0)) -> 0.649640162 | CB78: =+IF($K78="Ongoing",BF78,IF(RIGHT($K78,2)=RIGHT(CB$39,2),SUM($AX78:BF78),0)+IF(RIGHT(CB$39,2)>RIGHT($K78,2),BF78,0)) -> 0.6491178516 | CC78: =+IF($K78="Ongoing",BG78,IF(RIGHT($K78,2)=RIGHT(CC$39,2),SUM($AX78:BG78),0)+IF(RIGHT(CC$39,2)>RIGHT($K78,2),BG78,0)) -> 0.6489227277 | CE78: =+Q78*KeyAssumptionsPriceControl_FO!AC$15 -> 0.2678 | CF78: =+R78*KeyAssumptionsPriceControl_FO!AD$15 -> 0.201571 | CG78: =+S78*KeyAssumptionsPriceControl_FO!AE$15 -> 0.20761813 | CH78: =+T78*KeyAssumptionsPriceControl_FO!AF$15 -> 0.4276933478 | CI78: =+U78*KeyAssumptionsPriceControl_FO!AG$15 -> 0.4173386667 | CJ78: =+V78*KeyAssumptionsPriceControl_FO!AH$15 -> 0.329226554 | CK78: =+W78*KeyAssumptionsPriceControl_FO!AI$15 -> 0.6259956088 | CL78: =+X78*KeyAssumptionsPriceControl_FO!AJ$15 -> 0.8229447209 | CM78: =+Y78*KeyAssumptionsPriceControl_FO!AK$15 -> 0.846951566 | CN78: =+Z78*KeyAssumptionsPriceControl_FO!AL$15 -> 0.8720978827 | CP78: 0.0033475 | CQ78: 0.0092146375 | CR78: 0.01432950163 | CS78: 0.0222708951 | CT78: 0.03283379528 | CU78: 0.04216586054 | CV78: 0.05410613757 | CW78: 0.07221789169 | CX78: 0.09309159528 | CY78: 0.1145797134
C79: Other Capex - Rural Channel Upgrades | E79: Rural water | F79: Improvements / Compliance | G79: Pipelines/network | H79: Capital Programs / Allocation | J79: Straight line | K79: Ongoing | L79: 100 | M79: 40 | Q79: 0.54 | R79: 0.55 | S79: 0.5 | T79: 0.5 | U79: 0.5 | V79: 0.5174783512 | W79: 0.9552815533 | X79: 1.219252188 | Y79: 1.21827191 | Z79: 1.217905699 | AX79: 0.54 | AY79: 0.55 | AZ79: 0.5 | BA79: 0.5 | BB79: 0.5 | BC79: 0.5174783512 | BD79: 0.9552815533 | BE79: 1.219252188 | BF79: 1.21827191 | BG79: 1.217905699 | BI79: 0.0027 | BJ79: 0.00815 | BK79: 0.0134 | BL79: 0.0184 | BM79: 0.0234 | BN79: 0.02848739176 | BO79: 0.03585119128 | BP79: 0.04672385999 | BQ79: 0.05891148048 | BR79: 0.07109236852 | BT79: =+IF($K79="Ongoing",AX79,IF(RIGHT($K79,2)=RIGHT(BT$39,2),SUM($AX79:AX79),0)+IF(RIGHT(BT$39,2)>RIGHT($K79,2),AX79,0)) -> 0.54 | BU79: =+IF($K79="Ongoing",AY79,IF(RIGHT($K79,2)=RIGHT(BU$39,2),SUM($AX79:AY79),0)+IF(RIGHT(BU$39,2)>RIGHT($K79,2),AY79,0)) -> 0.55 | BV79: =+IF($K79="Ongoing",AZ79,IF(RIGHT($K79,2)=RIGHT(BV$39,2),SUM($AX79:AZ79),0)+IF(RIGHT(BV$39,2)>RIGHT($K79,2),AZ79,0)) -> 0.5 | BW79: =+IF($K79="Ongoing",BA79,IF(RIGHT($K79,2)=RIGHT(BW$39,2),SUM($AX79:BA79),0)+IF(RIGHT(BW$39,2)>RIGHT($K79,2),BA79,0)) -> 0.5 | BX79: =+IF($K79="Ongoing",BB79,IF(RIGHT($K79,2)=RIGHT(BX$39,2),SUM($AX79:BB79),0)+IF(RIGHT(BX$39,2)>RIGHT($K79,2),BB79,0)) -> 0.5 | BY79: =+IF($K79="Ongoing",BC79,IF(RIGHT($K79,2)=RIGHT(BY$39,2),SUM($AX79:BC79),0)+IF(RIGHT(BY$39,2)>RIGHT($K79,2),BC79,0)) -> 0.5174783512 | BZ79: =+IF($K79="Ongoing",BD79,IF(RIGHT($K79,2)=RIGHT(BZ$39,2),SUM($AX79:BD79),0)+IF(RIGHT(BZ$39,2)>RIGHT($K79,2),BD79,0)) -> 0.9552815533 | CA79: =+IF($K79="Ongoing",BE79,IF(RIGHT($K79,2)=RIGHT(CA$39,2),SUM($AX79:BE79),0)+IF(RIGHT(CA$39,2)>RIGHT($K79,2),BE79,0)) -> 1.219252188 | CB79: =+IF($K79="Ongoing",BF79,IF(RIGHT($K79,2)=RIGHT(CB$39,2),SUM($AX79:BF79),0)+IF(RIGHT(CB$39,2)>RIGHT($K79,2),BF79,0)) -> 1.21827191 | CC79: =+IF($K79="Ongoing",BG79,IF(RIGHT($K79,2)=RIGHT(CC$39,2),SUM($AX79:BG79),0)+IF(RIGHT(CC$39,2)>RIGHT($K79,2),BG79,0)) -> 1.217905699 | CE79: =+Q79*KeyAssumptionsPriceControl_FO!AC$15 -> 0.5562 | CF79: =+R79*KeyAssumptionsPriceControl_FO!AD$15 -> 0.583495 | CG79: =+S79*KeyAssumptionsPriceControl_FO!AE$15 -> 0.5463635 | CH79: =+T79*KeyAssumptionsPriceControl_FO!AF$15 -> 0.562754405 | CI79: =+U79*KeyAssumptionsPriceControl_FO!AG$15 -> 0.5796370372 | CJ79: =+V79*KeyAssumptionsPriceControl_FO!AH$15 -> 0.6178962136 | CK79: =+W79*KeyAssumptionsPriceControl_FO!AI$15 -> 1.174875817 | CL79: =+X79*KeyAssumptionsPriceControl_FO!AJ$15 -> 1.544512194 | CM79: =+Y79*KeyAssumptionsPriceControl_FO!AK$15 -> 1.589568519 | CN79: =+Z79*KeyAssumptionsPriceControl_FO!AL$15 -> 1.636763418 | CP79: 0.0069525 | CQ79: 0.0211986875 | CR79: 0.03532191875 | CS79: 0.04918589256 | CT79: 0.06346578559 | CU79: 0.07843495122 | CV79: 0.1008446016 | CW79: 0.1348369517 | CX79: 0.1740129606 | CY79: 0.2143421098
C80: Other Capex - Sewer Network Improvements/Compliance | E80: Sewerage | F80: Improvements / Compliance | G80: Pipelines/network | H80: Capital Programs / Allocation | J80: Straight line | K80: Ongoing | L80: 60 | M80: 40 | Q80: 1.8 | R80: 4.3 | S80: 2.13 | T80: 9.39 | U80: 1.74 | V80: 3.868100725 | W80: 7.140637402 | X80: 9.113792418 | Y80: 9.106464933 | Z80: 9.103727543 | AX80: 1.8 | AY80: 4.3 | AZ80: 2.13 | BA80: 9.39 | BB80: 1.74 | BC80: 3.868100725 | BD80: 7.140637402 | BE80: 9.113792418 | BF80: 9.106464933 | BG80: 9.103727543 | BI80: 0.015 | BJ80: 0.06583333333 | BK80: 0.1194166667 | BL80: 0.2154166667 | BM80: 0.3081666667 | BN80: 0.3549008394 | BO80: 0.4466403238 | BP80: 0.5820939056 | BQ80: 0.7339293835 | BR80: 0.8856809875 | BT80: =+IF($K80="Ongoing",AX80,IF(RIGHT($K80,2)=RIGHT(BT$39,2),SUM($AX80:AX80),0)+IF(RIGHT(BT$39,2)>RIGHT($K80,2),AX80,0)) -> 1.8 | BU80: =+IF($K80="Ongoing",AY80,IF(RIGHT($K80,2)=RIGHT(BU$39,2),SUM($AX80:AY80),0)+IF(RIGHT(BU$39,2)>RIGHT($K80,2),AY80,0)) -> 4.3 | BV80: =+IF($K80="Ongoing",AZ80,IF(RIGHT($K80,2)=RIGHT(BV$39,2),SUM($AX80:AZ80),0)+IF(RIGHT(BV$39,2)>RIGHT($K80,2),AZ80,0)) -> 2.13 | BW80: =+IF($K80="Ongoing",BA80,IF(RIGHT($K80,2)=RIGHT(BW$39,2),SUM($AX80:BA80),0)+IF(RIGHT(BW$39,2)>RIGHT($K80,2),BA80,0)) -> 9.39 | BX80: =+IF($K80="Ongoing",BB80,IF(RIGHT($K80,2)=RIGHT(BX$39,2),SUM($AX80:BB80),0)+IF(RIGHT(BX$39,2)>RIGHT($K80,2),BB80,0)) -> 1.74 | BY80: =+IF($K80="Ongoing",BC80,IF(RIGHT($K80,2)=RIGHT(BY$39,2),SUM($AX80:BC80),0)+IF(RIGHT(BY$39,2)>RIGHT($K80,2),BC80,0)) -> 3.868100725 | BZ80: =+IF($K80="Ongoing",BD80,IF(RIGHT($K80,2)=RIGHT(BZ$39,2),SUM($AX80:BD80),0)+IF(RIGHT(BZ$39,2)>RIGHT($K80,2),BD80,0)) -> 7.140637402 | CA80: =+IF($K80="Ongoing",BE80,IF(RIGHT($K80,2)=RIGHT(CA$39,2),SUM($AX80:BE80),0)+IF(RIGHT(CA$39,2)>RIGHT($K80,2),BE80,0)) -> 9.113792418 | CB80: =+IF($K80="Ongoing",BF80,IF(RIGHT($K80,2)=RIGHT(CB$39,2),SUM($AX80:BF80),0)+IF(RIGHT(CB$39,2)>RIGHT($K80,2),BF80,0)) -> 9.106464933 | CC80: =+IF($K80="Ongoing",BG80,IF(RIGHT($K80,2)=RIGHT(CC$39,2),SUM($AX80:BG80),0)+IF(RIGHT(CC$39,2)>RIGHT($K80,2),BG80,0)) -> 9.103727543 | CE80: =+Q80*KeyAssumptionsPriceControl_FO!AC$15 -> 1.854 | CF80: =+R80*KeyAssumptionsPriceControl_FO!AD$15 -> 4.56187 | CG80: =+S80*KeyAssumptionsPriceControl_FO!AE$15 -> 2.32750851 | CH80: =+T80*KeyAssumptionsPriceControl_FO!AF$15 -> 10.56852773 | CI80: =+U80*KeyAssumptionsPriceControl_FO!AG$15 -> 2.017136889 | CJ80: =+V80*KeyAssumptionsPriceControl_FO!AH$15 -> 4.618714554 | CK80: =+W80*KeyAssumptionsPriceControl_FO!AI$15 -> 8.782083324 | CL80: =+X80*KeyAssumptionsPriceControl_FO!AJ$15 -> 11.54507956 | CM80: =+Y80*KeyAssumptionsPriceControl_FO!AK$15 -> 11.88187124 | CN80: =+Z80*KeyAssumptionsPriceControl_FO!AL$15 -> 12.23464856 | CP80: 0.023175 | CQ80: 0.103373375 | CR80: 0.1894906064 | CS80: 0.3506910593 | CT80: 0.508011867 | CU80: 0.5909600101 | CV80: 0.7584699835 | CW80: 1.01255952 | CX80: 1.305396405 | CY80: 1.606852902
C81: Other Capex - Sewer Network Growth | E81: Sewerage | F81: Growth | G81: Pipelines/network | H81: Capital Programs / Allocation | J81: Straight line | K81: Ongoing | L81: 60 | M81: 40 | Q81: 2.26 | R81: 1.63 | S81: 0.16 | T81: 0.3 | U81: 0.16 | V81: 0.9010916462 | W81: 1.66344394 | X81: 2.12309937 | Y81: 2.121392399 | Z81: 2.120754712 | AX81: 2.26 | AY81: 1.63 | AZ81: 0.16 | BA81: 0.3 | BB81: 0.16 | BC81: 0.9010916462 | BD81: 1.66344394 | BE81: 2.12309937 | BF81: 2.121392399 | BG81: 2.120754712 | BI81: 0.01883333333 | BJ81: 0.05125 | BK81: 0.06616666667 | BL81: 0.07 | BM81: 0.07383333333 | BN81: 0.08267576372 | BO81: 0.1040468936 | BP81: 0.1356014212 | BQ81: 0.1709721859 | BR81: 0.2063234119 | BT81: =+IF($K81="Ongoing",AX81,IF(RIGHT($K81,2)=RIGHT(BT$39,2),SUM($AX81:AX81),0)+IF(RIGHT(BT$39,2)>RIGHT($K81,2),AX81,0)) -> 2.26 | BU81: =+IF($K81="Ongoing",AY81,IF(RIGHT($K81,2)=RIGHT(BU$39,2),SUM($AX81:AY81),0)+IF(RIGHT(BU$39,2)>RIGHT($K81,2),AY81,0)) -> 1.63 | BV81: =+IF($K81="Ongoing",AZ81,IF(RIGHT($K81,2)=RIGHT(BV$39,2),SUM($AX81:AZ81),0)+IF(RIGHT(BV$39,2)>RIGHT($K81,2),AZ81,0)) -> 0.16 | BW81: =+IF($K81="Ongoing",BA81,IF(RIGHT($K81,2)=RIGHT(BW$39,2),SUM($AX81:BA81),0)+IF(RIGHT(BW$39,2)>RIGHT($K81,2),BA81,0)) -> 0.3 | BX81: =+IF($K81="Ongoing",BB81,IF(RIGHT($K81,2)=RIGHT(BX$39,2),SUM($AX81:BB81),0)+IF(RIGHT(BX$39,2)>RIGHT($K81,2),BB81,0)) -> 0.16 | BY81: =+IF($K81="Ongoing",BC81,IF(RIGHT($K81,2)=RIGHT(BY$39,2),SUM($AX81:BC81),0)+IF(RIGHT(BY$39,2)>RIGHT($K81,2),BC81,0)) -> 0.9010916462 | BZ81: =+IF($K81="Ongoing",BD81,IF(RIGHT($K81,2)=RIGHT(BZ$39,2),SUM($AX81:BD81),0)+IF(RIGHT(BZ$39,2)>RIGHT($K81,2),BD81,0)) -> 1.66344394 | CA81: =+IF($K81="Ongoing",BE81,IF(RIGHT($K81,2)=RIGHT(CA$39,2),SUM($AX81:BE81),0)+IF(RIGHT(CA$39,2)>RIGHT($K81,2),BE81,0)) -> 2.12309937 | CB81: =+IF($K81="Ongoing",BF81,IF(RIGHT($K81,2)=RIGHT(CB$39,2),SUM($AX81:BF81),0)+IF(RIGHT(CB$39,2)>RIGHT($K81,2),BF81,0)) -> 2.121392399 | CC81: =+IF($K81="Ongoing",BG81,IF(RIGHT($K81,2)=RIGHT(CC$39,2),SUM($AX81:BG81),0)+IF(RIGHT(CC$39,2)>RIGHT($K81,2),BG81,0)) -> 2.120754712 | CE81: =+Q81*KeyAssumptionsPriceControl_FO!AC$15 -> 2.3278 | CF81: =+R81*KeyAssumptionsPriceControl_FO!AD$15 -> 1.729267 | CG81: =+S81*KeyAssumptionsPriceControl_FO!AE$15 -> 0.17483632 | CH81: =+T81*KeyAssumptionsPriceControl_FO!AF$15 -> 0.337652643 | CI81: =+U81*KeyAssumptionsPriceControl_FO!AG$15 -> 0.1854838519 | CJ81: =+V81*KeyAssumptionsPriceControl_FO!AH$15 -> 1.07595055 | CK81: =+W81*KeyAssumptionsPriceControl_FO!AI$15 -> 2.045826229 | CL81: =+X81*KeyAssumptionsPriceControl_FO!AJ$15 -> 2.689478762 | CM81: =+Y81*KeyAssumptionsPriceControl_FO!AK$15 -> 2.767935915 | CN81: =+Z81*KeyAssumptionsPriceControl_FO!AL$15 -> 2.850116994 | CP81: 0.0290975 | CQ81: 0.0798108375 | CR81: 0.103612129 | CS81: 0.110018241 | CT81: 0.1165574472 | CU81: 0.1323253772 | CV81: 0.171347587 | CW81: 0.2305388994 | CX81: 0.2987565828 | CY81: 0.3689822442
C82: Other Capex - Water Network Improvements/Compliance | E82: Water | F82: Improvements / Compliance | G82: Pipelines/network | H82: Capital Programs / Allocation | J82: Straight line | K82: Ongoing | L82: 70 | M82: 40 | Q82: 6.61 | R82: 2.31 | S82: 2 | T82: 6.15 | U82: 1.89 | V82: 3.788181289 | W82: 6.993103572 | X82: 8.925490922 | Y82: 8.918314831 | Z82: 8.915633999 | AX82: 6.61 | AY82: 2.31 | AZ82: 2 | BA82: 6.15 | BB82: 1.89 | BC82: 3.788181289 | BD82: 6.993103572 | BE82: 8.925490922 | BF82: 8.918314831 | BG82: 8.915633999 | BI82: 0.04721428571 | BJ82: 0.1109285714 | BK82: 0.1417142857 | BL82: 0.1999285714 | BM82: 0.2573571429 | BN82: 0.2979155806 | BO82: 0.3749247582 | BP82: 0.4886290046 | BQ82: 0.61608476 | BR82: 0.7434701088 | BT82: =+IF($K82="Ongoing",AX82,IF(RIGHT($K82,2)=RIGHT(BT$39,2),SUM($AX82:AX82),0)+IF(RIGHT(BT$39,2)>RIGHT($K82,2),AX82,0)) -> 6.61 | BU82: =+IF($K82="Ongoing",AY82,IF(RIGHT($K82,2)=RIGHT(BU$39,2),SUM($AX82:AY82),0)+IF(RIGHT(BU$39,2)>RIGHT($K82,2),AY82,0)) -> 2.31 | BV82: =+IF($K82="Ongoing",AZ82,IF(RIGHT($K82,2)=RIGHT(BV$39,2),SUM($AX82:AZ82),0)+IF(RIGHT(BV$39,2)>RIGHT($K82,2),AZ82,0)) -> 2 | BW82: =+IF($K82="Ongoing",BA82,IF(RIGHT($K82,2)=RIGHT(BW$39,2),SUM($AX82:BA82),0)+IF(RIGHT(BW$39,2)>RIGHT($K82,2),BA82,0)) -> 6.15 | BX82: =+IF($K82="Ongoing",BB82,IF(RIGHT($K82,2)=RIGHT(BX$39,2),SUM($AX82:BB82),0)+IF(RIGHT(BX$39,2)>RIGHT($K82,2),BB82,0)) -> 1.89 | BY82: =+IF($K82="Ongoing",BC82,IF(RIGHT($K82,2)=RIGHT(BY$39,2),SUM($AX82:BC82),0)+IF(RIGHT(BY$39,2)>RIGHT($K82,2),BC82,0)) -> 3.788181289 | BZ82: =+IF($K82="Ongoing",BD82,IF(RIGHT($K82,2)=RIGHT(BZ$39,2),SUM($AX82:BD82),0)+IF(RIGHT(BZ$39,2)>RIGHT($K82,2),BD82,0)) -> 6.993103572 | CA82: =+IF($K82="Ongoing",BE82,IF(RIGHT($K82,2)=RIGHT(CA$39,2),SUM($AX82:BE82),0)+IF(RIGHT(CA$39,2)>RIGHT($K82,2),BE82,0)) -> 8.925490922 | CB82: =+IF($K82="Ongoing",BF82,IF(RIGHT($K82,2)=RIGHT(CB$39,2),SUM($AX82:BF82),0)+IF(RIGHT(CB$39,2)>RIGHT($K82,2),BF82,0)) -> 8.918314831 | CC82: =+IF($K82="Ongoing",BG82,IF(RIGHT($K82,2)=RIGHT(CC$39,2),SUM($AX82:BG82),0)+IF(RIGHT(CC$39,2)>RIGHT($K82,2),BG82,0)) -> 8.915633999 | CE82: =+Q82*KeyAssumptionsPriceControl_FO!AC$15 -> 6.8083 | CF82: =+R82*KeyAssumptionsPriceControl_FO!AD$15 -> 2.450679 | CG82: =+S82*KeyAssumptionsPriceControl_FO!AE$15 -> 2.185454 | CH82: =+T82*KeyAssumptionsPriceControl_FO!AF$15 -> 6.921879182 | CI82: =+U82*KeyAssumptionsPriceControl_FO!AG$15 -> 2.191028 | CJ82: =+V82*KeyAssumptionsPriceControl_FO!AH$15 -> 4.523286568 | CK82: =+W82*KeyAssumptionsPriceControl_FO!AI$15 -> 8.600635321 | CL82: =+X82*KeyAssumptionsPriceControl_FO!AJ$15 -> 11.30654486 | CM82: =+Y82*KeyAssumptionsPriceControl_FO!AK$15 -> 11.63637804 | CN82: =+Z82*KeyAssumptionsPriceControl_FO!AL$15 -> 11.98186656 | CP82: 0.08510375 | CQ82: 0.2008409875 | CR82: 0.25879265 | CS82: 0.3726343148 | CT82: 0.4865456545 | CU82: 0.5704745866 | CV82: 0.7345236103 | CW82: 0.9833633625 | CX82: 1.270149899 | CY82: 1.565377956
C83: Other Capex - Water Network Growth | E83: Water | F83: Growth | G83: Pipelines/network | H83: Capital Programs / Allocation | J83: Straight line | K83: Ongoing | L83: 70 | M83: 40 | Q83: 3.52 | R83: 1.05 | S83: 0 | T83: 0 | U83: 1.63 | V83: 1.238751265 | W83: 2.286774375 | X83: 2.918673192 | Y83: 2.91632658 | Z83: 2.915449936 | AX83: 3.52 | AY83: 1.05 | AZ83: 0 | BA83: 0 | BB83: 1.63 | BC83: 1.238751265 | BD83: 2.286774375 | BE83: 2.918673192 | BF83: 2.91632658 | BG83: 2.915449936 | BI83: 0.02514285714 | BJ83: 0.05778571429 | BK83: 0.06528571429 | BL83: 0.06528571429 | BM83: 0.07692857143 | BN83: 0.0974196519 | BO83: 0.1226019779 | BP83: 0.1597837462 | BQ83: 0.201462316 | BR83: 0.2431178626 | BT83: =+IF($K83="Ongoing",AX83,IF(RIGHT($K83,2)=RIGHT(BT$39,2),SUM($AX83:AX83),0)+IF(RIGHT(BT$39,2)>RIGHT($K83,2),AX83,0)) -> 3.52 | BU83: =+IF($K83="Ongoing",AY83,IF(RIGHT($K83,2)=RIGHT(BU$39,2),SUM($AX83:AY83),0)+IF(RIGHT(BU$39,2)>RIGHT($K83,2),AY83,0)) -> 1.05 | BV83: =+IF($K83="Ongoing",AZ83,IF(RIGHT($K83,2)=RIGHT(BV$39,2),SUM($AX83:AZ83),0)+IF(RIGHT(BV$39,2)>RIGHT($K83,2),AZ83,0)) -> 0 | BW83: =+IF($K83="Ongoing",BA83,IF(RIGHT($K83,2)=RIGHT(BW$39,2),SUM($AX83:BA83),0)+IF(RIGHT(BW$39,2)>RIGHT($K83,2),BA83,0)) -> 0 | BX83: =+IF($K83="Ongoing",BB83,IF(RIGHT($K83,2)=RIGHT(BX$39,2),SUM($AX83:BB83),0)+IF(RIGHT(BX$39,2)>RIGHT($K83,2),BB83,0)) -> 1.63 | BY83: =+IF($K83="Ongoing",BC83,IF(RIGHT($K83,2)=RIGHT(BY$39,2),SUM($AX83:BC83),0)+IF(RIGHT(BY$39,2)>RIGHT($K83,2),BC83,0)) -> 1.238751265 | BZ83: =+IF($K83="Ongoing",BD83,IF(RIGHT($K83,2)=RIGHT(BZ$39,2),SUM($AX83:BD83),0)+IF(RIGHT(BZ$39,2)>RIGHT($K83,2),BD83,0)) -> 2.286774375 | CA83: =+IF($K83="Ongoing",BE83,IF(RIGHT($K83,2)=RIGHT(CA$39,2),SUM($AX83:BE83),0)+IF(RIGHT(CA$39,2)>RIGHT($K83,2),BE83,0)) -> 2.918673192 | CB83: =+IF($K83="Ongoing",BF83,IF(RIGHT($K83,2)=RIGHT(CB$39,2),SUM($AX83:BF83),0)+IF(RIGHT(CB$39,2)>RIGHT($K83,2),BF83,0)) -> 2.91632658 | CC83: =+IF($K83="Ongoing",BG83,IF(RIGHT($K83,2)=RIGHT(CC$39,2),SUM($AX83:BG83),0)+IF(RIGHT(CC$39,2)>RIGHT($K83,2),BG83,0)) -> 2.915449936 | CE83: =+Q83*KeyAssumptionsPriceControl_FO!AC$15 -> 3.6256 | CF83: =+R83*KeyAssumptionsPriceControl_FO!AD$15 -> 1.113945 | CG83: =+S83*KeyAssumptionsPriceControl_FO!AE$15 -> 0 | CH83: =+T83*KeyAssumptionsPriceControl_FO!AF$15 -> 0 | CI83: =+U83*KeyAssumptionsPriceControl_FO!AG$15 -> 1.889616741 | CJ83: =+V83*KeyAssumptionsPriceControl_FO!AH$15 -> 1.479133793 | CK83: =+W83*KeyAssumptionsPriceControl_FO!AI$15 -> 2.81244404 | CL83: =+X83*KeyAssumptionsPriceControl_FO!AJ$15 -> 3.697287877 | CM83: =+Y83*KeyAssumptionsPriceControl_FO!AK$15 -> 3.805144717 | CN83: =+Z83*KeyAssumptionsPriceControl_FO!AL$15 -> 3.918120922 | CP83: 0.04532 | CQ83: 0.1045643125 | CR83: 0.118488625 | CS83: 0.118488625 | CT83: 0.1421088343 | CU83: 0.1842182159 | CV83: 0.2378629389 | CW83: 0.3192345878 | CX83: 0.4130149952 | CY83: 0.5095558157
C84: Other Capex - Water Network Renewals Other | E84: Water | F84: Renewals | G84: Pipelines/network | H84: Capital Programs / Allocation | J84: Straight line | K84: Ongoing | L84: 70 | M84: 40 | Q84: 0.62 | R84: 0.36 | S84: 0.34 | T84: 0.45 | U84: 0.52 | V84: 0.4575387738 | W84: 0.8446311803 | X84: 1.078026066 | Y84: 1.077159334 | Z84: 1.076835541 | AX84: 0.62 | AY84: 0.36 | AZ84: 0.34 | BA84: 0.45 | BB84: 0.52 | BC84: 0.4575387738 | BD84: 0.8446311803 | BE84: 1.078026066 | BF84: 1.077159334 | BG84: 1.076835541 | BI84: 0.004428571429 | BJ84: 0.01142857143 | BK84: 0.01642857143 | BL84: 0.02207142857 | BM84: 0.029 | BN84: 0.03598241981 | BO84: 0.04528363377 | BP84: 0.05901689982 | BQ84: 0.07441108124 | BR84: 0.08979675892 | BT84: =+IF($K84="Ongoing",AX84,IF(RIGHT($K84,2)=RIGHT(BT$39,2),SUM($AX84:AX84),0)+IF(RIGHT(BT$39,2)>RIGHT($K84,2),AX84,0)) -> 0.62 | BU84: =+IF($K84="Ongoing",AY84,IF(RIGHT($K84,2)=RIGHT(BU$39,2),SUM($AX84:AY84),0)+IF(RIGHT(BU$39,2)>RIGHT($K84,2),AY84,0)) -> 0.36 | BV84: =+IF($K84="Ongoing",AZ84,IF(RIGHT($K84,2)=RIGHT(BV$39,2),SUM($AX84:AZ84),0)+IF(RIGHT(BV$39,2)>RIGHT($K84,2),AZ84,0)) -> 0.34 | BW84: =+IF($K84="Ongoing",BA84,IF(RIGHT($K84,2)=RIGHT(BW$39,2),SUM($AX84:BA84),0)+IF(RIGHT(BW$39,2)>RIGHT($K84,2),BA84,0)) -> 0.45 | BX84: =+IF($K84="Ongoing",BB84,IF(RIGHT($K84,2)=RIGHT(BX$39,2),SUM($AX84:BB84),0)+IF(RIGHT(BX$39,2)>RIGHT($K84,2),BB84,0)) -> 0.52 | BY84: =+IF($K84="Ongoing",BC84,IF(RIGHT($K84,2)=RIGHT(BY$39,2),SUM($AX84:BC84),0)+IF(RIGHT(BY$39,2)>RIGHT($K84,2),BC84,0)) -> 0.4575387738 | BZ84: =+IF($K84="Ongoing",BD84,IF(RIGHT($K84,2)=RIGHT(BZ$39,2),SUM($AX84:BD84),0)+IF(RIGHT(BZ$39,2)>RIGHT($K84,2),BD84,0)) -> 0.8446311803 | CA84: =+IF($K84="Ongoing",BE84,IF(RIGHT($K84,2)=RIGHT(CA$39,2),SUM($AX84:BE84),0)+IF(RIGHT(CA$39,2)>RIGHT($K84,2),BE84,0)) -> 1.078026066 | CB84: =+IF($K84="Ongoing",BF84,IF(RIGHT($K84,2)=RIGHT(CB$39,2),SUM($AX84:BF84),0)+IF(RIGHT(CB$39,2)>RIGHT($K84,2),BF84,0)) -> 1.077159334 | CC84: =+IF($K84="Ongoing",BG84,IF(RIGHT($K84,2)=RIGHT(CC$39,2),SUM($AX84:BG84),0)+IF(RIGHT(CC$39,2)>RIGHT($K84,2),BG84,0)) -> 1.076835541 | CE84: =+Q84*KeyAssumptionsPriceControl_FO!AC$15 -> 0.6386 | CF84: =+R84*KeyAssumptionsPriceControl_FO!AD$15 -> 0.381924 | CG84: =+S84*KeyAssumptionsPriceControl_FO!AE$15 -> 0.37152718 | CH84: =+T84*KeyAssumptionsPriceControl_FO!AF$15 -> 0.5064789645 | CI84: =+U84*KeyAssumptionsPriceControl_FO!AG$15 -> 0.6028225186 | CJ84: =+V84*KeyAssumptionsPriceControl_FO!AH$15 -> 0.5463252236 | CK84: =+W84*KeyAssumptionsPriceControl_FO!AI$15 -> 1.038789815 | CL84: =+X84*KeyAssumptionsPriceControl_FO!AJ$15 -> 1.365611167 | CM84: =+Y84*KeyAssumptionsPriceControl_FO!AK$15 -> 1.405448613 | CN84: =+Z84*KeyAssumptionsPriceControl_FO!AL$15 -> 1.447176921 | CP84: 0.0079825 | CQ84: 0.02073905 | CR84: 0.03015718975 | CS84: 0.04113226656 | CT84: 0.0549985351 | CU84: 0.06936288187 | CV84: 0.08917681985 | CW84: 0.1192318321 | CX84: 0.1538700794 | CY84: 0.1895278986
C85: Other Capex - Water Treatment Growth | E85: Water | F85: Growth | G85: Treatment | H85: Capital Programs / Allocation | J85: Straight line | K85: Ongoing | L85: 45 | M85: 40 | Q85: 0.35 | R85: 0.43 | S85: 0.15 | T85: 1.05 | U85: 0 | V85: 0.3956012105 | W85: 0.7302924616 | X85: 0.9320924064 | Y85: 0.9313430045 | Z85: 0.9310630441 | AX85: =+Q85-AB85-AM85 -> 0.35 | AY85: =+R85-AC85-AN85 -> 0.43 | AZ85: =+S85-AD85-AO85 -> 0.15 | BA85: =+T85-AE85-AP85 -> 1.05 | BB85: =+U85-AF85-AQ85 -> 0 | BC85: =+V85-AG85-AR85 -> 0.3956012105 | BD85: =+W85-AH85-AS85 -> 0.7302924616 | BE85: =+X85-AI85-AT85 -> 0.9320924064 | BF85: 0.9313430045 | BG85: 0.9310630441 | BI85: 0.003888888889 | BJ85: 0.01255555556 | BK85: 0.019 | BL85: 0.03233333333 | BM85: 0.044 | BN85: 0.04839556901 | BO85: 0.0609054987 | BP85: 0.07937644167 | BQ85: 0.1000812796 | BR85: 0.1207746801 | BT85: =+IF($K85="Ongoing",AX85,IF(RIGHT($K85,2)=RIGHT(BT$39,2),SUM($AX85:AX85),0)+IF(RIGHT(BT$39,2)>RIGHT($K85,2),AX85,0)) -> 0.35 | BU85: =+IF($K85="Ongoing",AY85,IF(RIGHT($K85,2)=RIGHT(BU$39,2),SUM($AX85:AY85),0)+IF(RIGHT(BU$39,2)>RIGHT($K85,2),AY85,0)) -> 0.43 | BV85: =+IF($K85="Ongoing",AZ85,IF(RIGHT($K85,2)=RIGHT(BV$39,2),SUM($AX85:AZ85),0)+IF(RIGHT(BV$39,2)>RIGHT($K85,2),AZ85,0)) -> 0.15 | BW85: =+IF($K85="Ongoing",BA85,IF(RIGHT($K85,2)=RIGHT(BW$39,2),SUM($AX85:BA85),0)+IF(RIGHT(BW$39,2)>RIGHT($K85,2),BA85,0)) -> 1.05 | BX85: =+IF($K85="Ongoing",BB85,IF(RIGHT($K85,2)=RIGHT(BX$39,2),SUM($AX85:BB85),0)+IF(RIGHT(BX$39,2)>RIGHT($K85,2),BB85,0)) -> 0 | BY85: =+IF($K85="Ongoing",BC85,IF(RIGHT($K85,2)=RIGHT(BY$39,2),SUM($AX85:BC85),0)+IF(RIGHT(BY$39,2)>RIGHT($K85,2),BC85,0)) -> 0.3956012105 | BZ85: =+IF($K85="Ongoing",BD85,IF(RIGHT($K85,2)=RIGHT(BZ$39,2),SUM($AX85:BD85),0)+IF(RIGHT(BZ$39,2)>RIGHT($K85,2),BD85,0)) -> 0.7302924616 | CA85: =+IF($K85="Ongoing",BE85,IF(RIGHT($K85,2)=RIGHT(CA$39,2),SUM($AX85:BE85),0)+IF(RIGHT(CA$39,2)>RIGHT($K85,2),BE85,0)) -> 0.9320924064 | CB85: =+IF($K85="Ongoing",BF85,IF(RIGHT($K85,2)=RIGHT(CB$39,2),SUM($AX85:BF85),0)+IF(RIGHT(CB$39,2)>RIGHT($K85,2),BF85,0)) -> 0.9313430045 | CC85: =+IF($K85="Ongoing",BG85,IF(RIGHT($K85,2)=RIGHT(CC$39,2),SUM($AX85:BG85),0)+IF(RIGHT(CC$39,2)>RIGHT($K85,2),BG85,0)) -> 0.9310630441 | CE85: =+Q85*KeyAssumptionsPriceControl_FO!AC$15 -> 0.3605 | CF85: =+R85*KeyAssumptionsPriceControl_FO!AD$15 -> 0.456187 | CG85: =+S85*KeyAssumptionsPriceControl_FO!AE$15 -> 0.16390905 | CH85: =+T85*KeyAssumptionsPriceControl_FO!AF$15 -> 1.181784251 | CI85: =+U85*KeyAssumptionsPriceControl_FO!AG$15 -> 0 | CJ85: =+V85*KeyAssumptionsPriceControl_FO!AH$15 -> 0.472368534 | CK85: =+W85*KeyAssumptionsPriceControl_FO!AI$15 -> 0.8981676127 | CL85: =+X85*KeyAssumptionsPriceControl_FO!AJ$15 -> 1.180746773 | CM85: =+Y85*KeyAssumptionsPriceControl_FO!AK$15 -> 1.215191377 | CN85: =+Z85*KeyAssumptionsPriceControl_FO!AL$15 -> 1.251270875 | CP85: =IF($M85=0,0, IF($M85<=0.5,CE85, IF($J85="straight line", IF((LEFT(CP$39,4)*1)-INT($M85)<LEFT($CP$39,4)*1,0,((OFFSET(CE85,0,-INT($M85+0.5),1,1))/$M85)*(IF($M85-INT($M85)>0.5,$M85-0.5-INT($M85),IF($M85-INT($M85)<=0.5,$M85-0.5-INT($M85)+1,0)))) +CE85/$M85*0.5, IF($J85="Declining Balance",-$CP$38,0)))) -> 0.00450625 | CQ85: =IF($M85=0,0, IF($M85<=0.5,CF85, IF(AND($J85="straight line",$M85<1.51),(CE85-((CE85/$M85)*0.5))+CF85/$M85*0.5, IF($J85="straight line", IF((LEFT(CQ$39,4)*1)-INT($M85)<LEFT($CP$39,4)*1,0,((OFFSET(CF85,0,-INT($M85+0.5),1,1))/$M85)*(IF($M85-INT($M85)>0.5,$M85-0.5-INT($M85),IF($M85-INT($M85)<=0.5,$M85-0.5-INT($M85)+1,0)))) +CF85/$M85*0.5 +SUM(OFFSET(CF85,0,MAX(-INT($M85+(0.5-(10^-12))),-CQ$40)+1,1,MIN(INT($M85+(0.5-(10^-12))),CQ$40)-1))*1/$M85, IF($J85="Declining Balance",-$CP$38,0))))) -> 0.0147148375 | CR85: =IF($M85=0,0, IF($M85<=0.5,CG85, IF(AND($J85="straight line",$M85<1.51),(CF85-((CF85/$M85)*0.5))+CG85/$M85*0.5, IF($J85="straight line", IF((LEFT(CR$39,4)*1)-INT($M85)<LEFT($CP$39,4)*1,0,((OFFSET(CG85,0,-INT($M85+0.5),1,1))/$M85)*(IF($M85-INT($M85)>0.5,$M85-0.5-INT($M85),IF($M85-INT($M85)<=0.5,$M85-0.5-INT($M85)+1,0)))) +CG85/$M85*0.5 +SUM(OFFSET(CG85,0,MAX(-INT($M85+(0.5-(10^-12))),-CR$40)+1,1,MIN(INT($M85+(0.5-(10^-12))),CR$40)-1))*1/$M85, IF($J85="Declining Balance",-$CP$38,0))))) -> 0.02246603813 | CS85: =IF($M85=0,0, IF($M85<=0.5,CH85, IF(AND($J85="straight line",$M85<1.51),(CG85-((CG85/$M85)*0.5))+CH85/$M85*0.5, IF($J85="straight line", IF((LEFT(CS$39,4)*1)-INT($M85)<LEFT($CP$39,4)*1,0,((OFFSET(CH85,0,-INT($M85+0.5),1,1))/$M85)*(IF($M85-INT($M85)>0.5,$M85-0.5-INT($M85),IF($M85-INT($M85)<=0.5,$M85-0.5-INT($M85)+1,0)))) +CH85/$M85*0.5 +SUM(OFFSET(CH85,0,MAX(-INT($M85+(0.5-(10^-12))),-CS$40)+1,1,MIN(INT($M85+(0.5-(10^-12))),CS$40)-1))*1/$M85, IF($J85="Declining Balance",-$CP$38,0))))) -> 0.03928720438 | CT85: =IF($M85=0,0, IF($M85<=0.5,CI85, IF(AND($J85="straight line",$M85<1.51),(CH85-((CH85/$M85)*0.5))+CI85/$M85*0.5, IF($J85="straight line", IF((LEFT(CT$39,4)*1)-INT($M85)<LEFT($CP$39,4)*1,0,((OFFSET(CI85,0,-INT($M85+0.5),1,1))/$M85)*(IF($M85-INT($M85)>0.5,$M85-0.5-INT($M85),IF($M85-INT($M85)<=0.5,$M85-0.5-INT($M85)+1,0)))) +CI85/$M85*0.5 +SUM(OFFSET(CI85,0,MAX(-INT($M85+(0.5-(10^-12))),-CT$40)+1,1,MIN(INT($M85+(0.5-(10^-12))),CT$40)-1))*1/$M85, IF($J85="Declining Balance",-$CP$38,0))))) -> 0.05405950751 | CU85: =IF($M85=0,0, IF($M85<=0.5,CJ85, IF(AND($J85="straight line",$M85<1.51),(CI85-((CI85/$M85)*0.5))+CJ85/$M85*0.5, IF($J85="straight line", IF((LEFT(CU$39,4)*1)-INT($M85)<LEFT($CP$39,4)*1,0,((OFFSET(CJ85,0,-INT($M85+0.5),1,1))/$M85)*(IF($M85-INT($M85)>0.5,$M85-0.5-INT($M85),IF($M85-INT($M85)<=0.5,$M85-0.5-INT($M85)+1,0)))) +CJ85/$M85*0.5 +SUM(OFFSET(CJ85,0,MAX(-INT($M85+(0.5-(10^-12))),-CU$40)+1,1,MIN(INT($M85+(0.5-(10^-12))),CU$40)-1))*1/$M85, IF($J85="Declining Balance",-$CP$38,0))))) -> 0.05996411419 | CV85: =IF($M85=0,0, IF($M85<=0.5,CK85, IF(AND($J85="straight line",$M85<1.51),(CJ85-((CJ85/$M85)*0.5))+CK85/$M85*0.5, IF($J85="straight line", IF((LEFT(CV$39,4)*1)-INT($M85)<LEFT($CP$39,4)*1,0,((OFFSET(CK85,0,-INT($M85+0.5),1,1))/$M85)*(IF($M85-INT($M85)>0.5,$M85-0.5-INT($M85),IF($M85-INT($M85)<=0.5,$M85-0.5-INT($M85)+1,0)))) +CK85/$M85*0.5 +SUM(OFFSET(CK85,0,MAX(-INT($M85+(0.5-(10^-12))),-CV$40)+1,1,MIN(INT($M85+(0.5-(10^-12))),CV$40)-1))*1/$M85, IF($J85="Declining Balance",-$CP$38,0))))) -> 0.07709581602 | CW85: =IF($M85=0,0, IF($M85<=0.5,CL85, IF(AND($J85="straight line",$M85<1.51),(CK85-((CK85/$M85)*0.5))+CL85/$M85*0.5, IF($J85="straight line", IF((LEFT(CW$39,4)*1)-INT($M85)<LEFT($CP$39,4)*1,0,((OFFSET(CL85,0,-INT($M85+0.5),1,1))/$M85)*(IF($M85-INT($M85)>0.5,$M85-0.5-INT($M85),IF($M85-INT($M85)<=0.5,$M85-0.5-INT($M85)+1,0)))) +CL85/$M85*0.5 +SUM(OFFSET(CL85,0,MAX(-INT($M85+(0.5-(10^-12))),-CW$40)+1,1,MIN(INT($M85+(0.5-(10^-12))),CW$40)-1))*1/$M85, IF($J85="Declining Balance",-$CP$38,0))))) -> 0.1030822458 | CX85: =IF($M85=0,0, IF($M85<=0.5,CM85, IF(AND($J85="straight line",$M85<1.51),(CL85-((CL85/$M85)*0.5))+CM85/$M85*0.5, IF($J85="straight line", IF((LEFT(CX$39,4)*1)-INT($M85)<LEFT($CP$39,4)*1,0,((OFFSET(CM85,0,-INT($M85+0.5),1,1))/$M85)*(IF($M85-INT($M85)>0.5,$M85-0.5-INT($M85),IF($M85-INT($M85)<=0.5,$M85-0.5-INT($M85)+1,0)))) +CM85/$M85*0.5 +SUM(OFFSET(CM85,0,MAX(-INT($M85+(0.5-(10^-12))),-CX$40)+1,1,MIN(INT($M85+(0.5-(10^-12))),CX$40)-1))*1/$M85, IF($J85="Declining Balance",-$CP$38,0))))) -> 0.1330314727 | CY85: =IF($M85=0,0, IF($M85<=0.5,CN85, IF(AND($J85="straight line",$M85<1.51),(CM85-((CM85/$M85)*0.5))+CN85/$M85*0.5, IF($J85="straight line", IF((LEFT(CY$39,4)*1)-INT($M85)<LEFT($CP$39,4)*1,0,((OFFSET(CN85,0,-INT($M85+0.5),1,1))/$M85)*(IF($M85-INT($M85)>0.5,$M85-0.5-INT($M85),IF($M85-INT($M85)<=0.5,$M85-0.5-INT($M85)+1,0)))) +CN85/$M85*0.5 +SUM(OFFSET(CN85,0,MAX(-INT($M85+(0.5-(10^-12))),-CY$40)+1,1,MIN(INT($M85+(0.5-(10^-12))),CY$40)-1))*1/$M85, IF($J85="Declining Balance",-$CP$38,0))))) -> 0.1638622509
C86: Other Capex - Water Treatment Improvements/Compliance | E86: Water | F86: Improvements / Compliance | G86: Treatment | H86: Capital Programs / Allocation | J86: Straight line | K86: Ongoing | L86: 45 | M86: 40 | Q86: 10.5 | R86: 4.17 | S86: 0.62 | T86: 1.77 | U86: 1.23 | V86: 3.654316233 | W86: 6.745984405 | X86: 8.610085916 | Y86: 8.603163411 | Z86: 8.600577312 | AX86: 10.5 | AY86: 4.17 | AZ86: 0.62 | BA86: 1.77 | BB86: 1.23 | BC86: 3.654316233 | BD86: 6.745984405 | BE86: 8.610085916 | BF86: 8.603163411 | BG86: 8.600577312 | BI86: 0.1166666667 | BJ86: 0.2796666667 | BK86: 0.3328888889 | BL86: 0.3594444444 | BM86: 0.3927777778 | BN86: 0.4470479581 | BO86: 0.5626068541 | BP86: 0.7332298577 | BQ86: 0.9244881835 | BR86: 1.115640858 | BT86: =+IF($K86="Ongoing",AX86,IF(RIGHT($K86,2)=RIGHT(BT$39,2),SUM($AX86:AX86),0)+IF(RIGHT(BT$39,2)>RIGHT($K86,2),AX86,0)) -> 10.5 | BU86: =+IF($K86="Ongoing",AY86,IF(RIGHT($K86,2)=RIGHT(BU$39,2),SUM($AX86:AY86),0)+IF(RIGHT(BU$39,2)>RIGHT($K86,2),AY86,0)) -> 4.17 | BV86: =+IF($K86="Ongoing",AZ86,IF(RIGHT($K86,2)=RIGHT(BV$39,2),SUM($AX86:AZ86),0)+IF(RIGHT(BV$39,2)>RIGHT($K86,2),AZ86,0)) -> 0.62 | BW86: =+IF($K86="Ongoing",BA86,IF(RIGHT($K86,2)=RIGHT(BW$39,2),SUM($AX86:BA86),0)+IF(RIGHT(BW$39,2)>RIGHT($K86,2),BA86,0)) -> 1.77 | BX86: =+IF($K86="Ongoing",BB86,IF(RIGHT($K86,2)=RIGHT(BX$39,2),SUM($AX86:BB86),0)+IF(RIGHT(BX$39,2)>RIGHT($K86,2),BB86,0)) -> 1.23 | BY86: =+IF($K86="Ongoing",BC86,IF(RIGHT($K86,2)=RIGHT(BY$39,2),SUM($AX86:BC86),0)+IF(RIGHT(BY$39,2)>RIGHT($K86,2),BC86,0)) -> 3.654316233 | BZ86: =+IF($K86="Ongoing",BD86,IF(RIGHT($K86,2)=RIGHT(BZ$39,2),SUM($AX86:BD86),0)+IF(RIGHT(BZ$39,2)>RIGHT($K86,2),BD86,0)) -> 6.745984405 | CA86: =+IF($K86="Ongoing",BE86,IF(RIGHT($K86,2)=RIGHT(CA$39,2),SUM($AX86:BE86),0)+IF(RIGHT(CA$39,2)>RIGHT($K86,2),BE86,0)) -> 8.610085916 | CB86: =+IF($K86="Ongoing",BF86,IF(RIGHT($K86,2)=RIGHT(CB$39,2),SUM($AX86:BF86),0)+IF(RIGHT(CB$39,2)>RIGHT($K86,2),BF86,0)) -> 8.603163411 | CC86: =+IF($K86="Ongoing",BG86,IF(RIGHT($K86,2)=RIGHT(CC$39,2),SUM($AX86:BG86),0)+IF(RIGHT(CC$39,2)>RIGHT($K86,2),BG86,0)) -> 8.600577312 | CE86: =+Q86*KeyAssumptionsPriceControl_FO!AC$15 -> 10.815 | CF86: =+R86*KeyAssumptionsPriceControl_FO!AD$15 -> 4.423953 | CG86: =+S86*KeyAssumptionsPriceControl_FO!AE$15 -> 0.67749074 | CH86: =+T86*KeyAssumptionsPriceControl_FO!AF$15 -> 1.992150594 | CI86: =+U86*KeyAssumptionsPriceControl_FO!AG$15 -> 1.425907111 | CJ86: =+V86*KeyAssumptionsPriceControl_FO!AH$15 -> 4.36344469 | CK86: =+W86*KeyAssumptionsPriceControl_FO!AI$15 -> 8.296709917 | CL86: =+X86*KeyAssumptionsPriceControl_FO!AJ$15 -> 10.90699924 | CM86: =+Y86*KeyAssumptionsPriceControl_FO!AK$15 -> 11.22517691 | CN86: =+Z86*KeyAssumptionsPriceControl_FO!AL$15 -> 11.55845672 | CP86: 0.1351875 | CQ86: 0.3256744125 | CR86: 0.3894424592 | CS86: 0.4228129759 | CT86: 0.4655386972 | CU86: 0.5379055948 | CV86: 0.6961575273 | CW86: 0.9362038917 | CX86: 1.212856094 | CY86: 1.497651514
C87: Other Capex - Water Reclamation Plant Improvements/Compliance | E87: Sewerage | F87: Improvements / Compliance | G87: Treatment | H87: Capital Programs / Allocation | J87: Straight line | K87: Ongoing | L87: 25 | M87: 40 | Q87: 1.47 | R87: 4.47 | S87: 7.54 | T87: 0 | U87: 0.89 | V87: 2.871105755 | W87: 5.300152865 | X87: 6.764731252 | Y87: 6.759292412 | Z87: 6.757260578 | AX87: 1.47 | AY87: 4.47 | AZ87: 7.54 | BA87: 0 | BB87: 0.89 | BC87: 2.871105755 | BD87: 5.300152865 | BE87: 6.764731252 | BF87: 6.759292412 | BG87: 6.757260578 | BI87: 0.0294 | BJ87: 0.1482 | BK87: 0.3884 | BL87: 0.5392 | BM87: 0.557 | BN87: 0.6322221151 | BO87: 0.7956472875 | BP87: 1.03694497 | BQ87: 1.307425443 | BR87: 1.577756503 | BT87: =+IF($K87="Ongoing",AX87,IF(RIGHT($K87,2)=RIGHT(BT$39,2),SUM($AX87:AX87),0)+IF(RIGHT(BT$39,2)>RIGHT($K87,2),AX87,0)) -> 1.47 | BU87: =+IF($K87="Ongoing",AY87,IF(RIGHT($K87,2)=RIGHT(BU$39,2),SUM($AX87:AY87),0)+IF(RIGHT(BU$39,2)>RIGHT($K87,2),AY87,0)) -> 4.47 | BV87: =+IF($K87="Ongoing",AZ87,IF(RIGHT($K87,2)=RIGHT(BV$39,2),SUM($AX87:AZ87),0)+IF(RIGHT(BV$39,2)>RIGHT($K87,2),AZ87,0)) -> 7.54 | BW87: =+IF($K87="Ongoing",BA87,IF(RIGHT($K87,2)=RIGHT(BW$39,2),SUM($AX87:BA87),0)+IF(RIGHT(BW$39,2)>RIGHT($K87,2),BA87,0)) -> 0 | BX87: =+IF($K87="Ongoing",BB87,IF(RIGHT($K87,2)=RIGHT(BX$39,2),SUM($AX87:BB87),0)+IF(RIGHT(BX$39,2)>RIGHT($K87,2),BB87,0)) -> 0.89 | BY87: =+IF($K87="Ongoing",BC87,IF(RIGHT($K87,2)=RIGHT(BY$39,2),SUM($AX87:BC87),0)+IF(RIGHT(BY$39,2)>RIGHT($K87,2),BC87,0)) -> 2.871105755 | BZ87: =+IF($K87="Ongoing",BD87,IF(RIGHT($K87,2)=RIGHT(BZ$39,2),SUM($AX87:BD87),0)+IF(RIGHT(BZ$39,2)>RIGHT($K87,2),BD87,0)) -> 5.300152865 | CA87: =+IF($K87="Ongoing",BE87,IF(RIGHT($K87,2)=RIGHT(CA$39,2),SUM($AX87:BE87),0)+IF(RIGHT(CA$39,2)>RIGHT($K87,2),BE87,0)) -> 6.764731252 | CB87: =+IF($K87="Ongoing",BF87,IF(RIGHT($K87,2)=RIGHT(CB$39,2),SUM($AX87:BF87),0)+IF(RIGHT(CB$39,2)>RIGHT($K87,2),BF87,0)) -> 6.759292412 | CC87: =+IF($K87="Ongoing",BG87,IF(RIGHT($K87,2)=RIGHT(CC$39,2),SUM($AX87:BG87),0)+IF(RIGHT(CC$39,2)>RIGHT($K87,2),BG87,0)) -> 6.757260578 | CE87: =+Q87*KeyAssumptionsPriceControl_FO!AC$15 -> 1.5141 | CF87: =+R87*KeyAssumptionsPriceControl_FO!AD$15 -> 4.742223 | CG87: =+S87*KeyAssumptionsPriceControl_FO!AE$15 -> 8.23916158 | CH87: =+T87*KeyAssumptionsPriceControl_FO!AF$15 -> 0 | CI87: =+U87*KeyAssumptionsPriceControl_FO!AG$15 -> 1.031753926 | CJ87: =+V87*KeyAssumptionsPriceControl_FO!AH$15 -> 3.428250421 | CK87: =+W87*KeyAssumptionsPriceControl_FO!AI$15 -> 6.518519492 | CL87: =+X87*KeyAssumptionsPriceControl_FO!AJ$15 -> 8.569359159 | CM87: =+Y87*KeyAssumptionsPriceControl_FO!AK$15 -> 8.81934348 | CN87: =+Z87*KeyAssumptionsPriceControl_FO!AL$15 -> 9.08119317 | CP87: 0.01892625 | CQ87: 0.0971302875 | CR87: 0.2593975947 | CS87: 0.3623871145 | CT87: 0.3752840386 | CU87: 0.4310340929 | CV87: 0.5553687168 | CW87: 0.7439672 | CX87: 0.9613259829 | CY87: 1.185082691
C88: Other Capex - Water Reclamation Plant Growth | E88: Sewerage | F88: Growth | G88: Treatment | H88: Capital Programs / Allocation | J88: Straight line | K88: Ongoing | L88: 40 | M88: 40 | Q88: 0 | R88: 0.35 | S88: 0.11 | T88: 0.79 | U88: 0 | V88: 0.249748239 | W88: 0.4610432207 | X88: 0.5884421757 | Y88: 0.5879690685 | Z88: 0.5877923259 | AX88: 0 | AY88: 0.35 | AZ88: 0.11 | BA88: 0.79 | BB88: 0 | BC88: 0.249748239 | BD88: 0.4610432207 | BE88: 0.5884421757 | BF88: 0.5879690685 | BG88: 0.5877923259 | BI88: 0 | BJ88: 0.004375 | BK88: 0.010125 | BL88: 0.021375 | BM88: 0.03125 | BN88: 0.03437185299 | BO88: 0.04325674623 | BP88: 0.05637531369 | BQ88: 0.07108045424 | BR88: 0.08577747167 | BT88: =+IF($K88="Ongoing",AX88,IF(RIGHT($K88,2)=RIGHT(BT$39,2),SUM($AX88:AX88),0)+IF(RIGHT(BT$39,2)>RIGHT($K88,2),AX88,0)) -> 0 | BU88: =+IF($K88="Ongoing",AY88,IF(RIGHT($K88,2)=RIGHT(BU$39,2),SUM($AX88:AY88),0)+IF(RIGHT(BU$39,2)>RIGHT($K88,2),AY88,0)) -> 0.35 | BV88: =+IF($K88="Ongoing",AZ88,IF(RIGHT($K88,2)=RIGHT(BV$39,2),SUM($AX88:AZ88),0)+IF(RIGHT(BV$39,2)>RIGHT($K88,2),AZ88,0)) -> 0.11 | BW88: =+IF($K88="Ongoing",BA88,IF(RIGHT($K88,2)=RIGHT(BW$39,2),SUM($AX88:BA88),0)+IF(RIGHT(BW$39,2)>RIGHT($K88,2),BA88,0)) -> 0.79 | BX88: =+IF($K88="Ongoing",BB88,IF(RIGHT($K88,2)=RIGHT(BX$39,2),SUM($AX88:BB88),0)+IF(RIGHT(BX$39,2)>RIGHT($K88,2),BB88,0)) -> 0 | BY88: =+IF($K88="Ongoing",BC88,IF(RIGHT($K88,2)=RIGHT(BY$39,2),SUM($AX88:BC88),0)+IF(RIGHT(BY$39,2)>RIGHT($K88,2),BC88,0)) -> 0.249748239 | BZ88: =+IF($K88="Ongoing",BD88,IF(RIGHT($K88,2)=RIGHT(BZ$39,2),SUM($AX88:BD88),0)+IF(RIGHT(BZ$39,2)>RIGHT($K88,2),BD88,0)) -> 0.4610432207 | CA88: =+IF($K88="Ongoing",BE88,IF(RIGHT($K88,2)=RIGHT(CA$39,2),SUM($AX88:BE88),0)+IF(RIGHT(CA$39,2)>RIGHT($K88,2),BE88,0)) -> 0.5884421757 | CB88: =+IF($K88="Ongoing",BF88,IF(RIGHT($K88,2)=RIGHT(CB$39,2),SUM($AX88:BF88),0)+IF(RIGHT(CB$39,2)>RIGHT($K88,2),BF88,0)) -> 0.5879690685 | CC88: =+IF($K88="Ongoing",BG88,IF(RIGHT($K88,2)=RIGHT(CC$39,2),SUM($AX88:BG88),0)+IF(RIGHT(CC$39,2)>RIGHT($K88,2),BG88,0)) -> 0.5877923259 | CE88: =+Q88*KeyAssumptionsPriceControl_FO!AC$15 -> 0 | CF88: =+R88*KeyAssumptionsPriceControl_FO!AD$15 -> 0.371315 | CG88: =+S88*KeyAssumptionsPriceControl_FO!AE$15 -> 0.12019997 | CH88: =+T88*KeyAssumptionsPriceControl_FO!AF$15 -> 0.8891519599 | CI88: =+U88*KeyAssumptionsPriceControl_FO!AG$15 -> 0 | CJ88: =+V88*KeyAssumptionsPriceControl_FO!AH$15 -> 0.2982124583 | CK88: =+W88*KeyAssumptionsPriceControl_FO!AI$15 -> 0.567025008 | CL88: =+X88*KeyAssumptionsPriceControl_FO!AJ$15 -> 0.7454209429 | CM88: =+Y88*KeyAssumptionsPriceControl_FO!AK$15 -> 0.7671662735 | CN88: =+Z88*KeyAssumptionsPriceControl_FO!AL$15 -> 0.7899437344 | CP88: 0 | CQ88: 0.0046414375 | CR88: 0.01078537463 | CS88: 0.02340227375 | CT88: 0.03451667325 | CU88: 0.03824432898 | CV88: 0.0490597973 | CW88: 0.06546537169 | CX88: 0.0843727119 | CY88: 0.103836587
C89: Other Capex - Indirect Capital water | E89: Sewerage | F89: Improvements / Compliance | G89: Corporate | H89: Other Capital expenditure | J89: Straight line | K89: Ongoing | L89: 40 | M89: 40 | Q89: 0.51 | R89: 0.85 | S89: 1.02 | T89: 1.02 | U89: 1.02 | V89: 0.883109773 | W89: 1.630248828 | X89: 2.080731533 | Y89: 2.079058626 | Z89: 2.078433664 | AX89: 0.51 | AY89: 0.85 | AZ89: 1.02 | BA89: 1.02 | BB89: 1.02 | BC89: 0.883109773 | BD89: 1.630248828 | BE89: 2.080731533 | BF89: 2.079058626 | BG89: 2.078433664 | BI89: 0.006375 | BJ89: 0.023375 | BK89: 0.04675 | BL89: 0.07225 | BM89: 0.09775 | BN89: 0.1215388722 | BO89: 0.1529558547 | BP89: 0.1993431092 | BQ89: 0.2513404862 | BR89: 0.3033091398 | BT89: =+IF($K89="Ongoing",AX89,IF(RIGHT($K89,2)=RIGHT(BT$39,2),SUM($AX89:AX89),0)+IF(RIGHT(BT$39,2)>RIGHT($K89,2),AX89,0)) -> 0.51 | BU89: =+IF($K89="Ongoing",AY89,IF(RIGHT($K89,2)=RIGHT(BU$39,2),SUM($AX89:AY89),0)+IF(RIGHT(BU$39,2)>RIGHT($K89,2),AY89,0)) -> 0.85 | BV89: =+IF($K89="Ongoing",AZ89,IF(RIGHT($K89,2)=RIGHT(BV$39,2),SUM($AX89:AZ89),0)+IF(RIGHT(BV$39,2)>RIGHT($K89,2),AZ89,0)) -> 1.02 | BW89: =+IF($K89="Ongoing",BA89,IF(RIGHT($K89,2)=RIGHT(BW$39,2),SUM($AX89:BA89),0)+IF(RIGHT(BW$39,2)>RIGHT($K89,2),BA89,0)) -> 1.02 | BX89: =+IF($K89="Ongoing",BB89,IF(RIGHT($K89,2)=RIGHT(BX$39,2),SUM($AX89:BB89),0)+IF(RIGHT(BX$39,2)>RIGHT($K89,2),BB89,0)) -> 1.02 | BY89: =+IF($K89="Ongoing",BC89,IF(RIGHT($K89,2)=RIGHT(BY$39,2),SUM($AX89:BC89),0)+IF(RIGHT(BY$39,2)>RIGHT($K89,2),BC89,0)) -> 0.883109773 | BZ89: =+IF($K89="Ongoing",BD89,IF(RIGHT($K89,2)=RIGHT(BZ$39,2),SUM($AX89:BD89),0)+IF(RIGHT(BZ$39,2)>RIGHT($K89,2),BD89,0)) -> 1.630248828 | CA89: =+IF($K89="Ongoing",BE89,IF(RIGHT($K89,2)=RIGHT(CA$39,2),SUM($AX89:BE89),0)+IF(RIGHT(CA$39,2)>RIGHT($K89,2),BE89,0)) -> 2.080731533 | CB89: =+IF($K89="Ongoing",BF89,IF(RIGHT($K89,2)=RIGHT(CB$39,2),SUM($AX89:BF89),0)+IF(RIGHT(CB$39,2)>RIGHT($K89,2),BF89,0)) -> 2.079058626 | CC89: =+IF($K89="Ongoing",BG89,IF(RIGHT($K89,2)=RIGHT(CC$39,2),SUM($AX89:BG89),0)+IF(RIGHT(CC$39,2)>RIGHT($K89,2),BG89,0)) -> 2.078433664 | CE89: =+Q89*KeyAssumptionsPriceControl_FO!AC$15 -> 0.5253 | CF89: =+R89*KeyAssumptionsPriceControl_FO!AD$15 -> 0.901765 | CG89: =+S89*KeyAssumptionsPriceControl_FO!AE$15 -> 1.11458154 | CH89: =+T89*KeyAssumptionsPriceControl_FO!AF$15 -> 1.148018986 | CI89: =+U89*KeyAssumptionsPriceControl_FO!AG$15 -> 1.182459556 | CJ89: =+V89*KeyAssumptionsPriceControl_FO!AH$15 -> 1.054479253 | CK89: =+W89*KeyAssumptionsPriceControl_FO!AI$15 -> 2.005000428 | CL89: =+X89*KeyAssumptionsPriceControl_FO!AJ$15 -> 2.635808454 | CM89: =+Y89*KeyAssumptionsPriceControl_FO!AK$15 -> 2.712699943 | CN89: =+Z89*KeyAssumptionsPriceControl_FO!AL$15 -> 2.793241045 | CP89: 0.00656625 | CQ89: 0.0244045625 | CR89: 0.04960889425 | CS89: 0.07789140083 | CT89: 0.1070223826 | CU89: 0.1349841177 | CV89: 0.1732276137 | CW89: 0.2312377247 | CX89: 0.2980940797 | CY89: 0.3669183421
C90: Other Capex - Indirect Capital sewer | E90: Sewerage | F90: Improvements / Compliance | G90: Corporate | H90: Other Capital expenditure | J90: Straight line | K90: Ongoing | L90: 40 | M90: 40 | Q90: 0.51 | R90: 0.85 | S90: 1.02 | T90: 1.02 | U90: 1.02 | V90: 0.883109773 | W90: 1.630248828 | X90: 2.080731533 | Y90: 2.079058626 | Z90: 2.078433664 | AX90: 0.51 | AY90: 0.85 | AZ90: 1.02 | BA90: 1.02 | BB90: 1.02 | BC90: 0.883109773 | BD90: 1.630248828 | BE90: 2.080731533 | BF90: 2.079058626 | BG90: 2.078433664 | BI90: 0.006375 | BJ90: 0.023375 | BK90: 0.04675 | BL90: 0.07225 | BM90: 0.09775 | BN90: 0.1215388722 | BO90: 0.1529558547 | BP90: 0.1993431092 | BQ90: 0.2513404862 | BR90: 0.3033091398 | BT90: =+IF($K90="Ongoing",AX90,IF(RIGHT($K90,2)=RIGHT(BT$39,2),SUM($AX90:AX90),0)+IF(RIGHT(BT$39,2)>RIGHT($K90,2),AX90,0)) -> 0.51 | BU90: =+IF($K90="Ongoing",AY90,IF(RIGHT($K90,2)=RIGHT(BU$39,2),SUM($AX90:AY90),0)+IF(RIGHT(BU$39,2)>RIGHT($K90,2),AY90,0)) -> 0.85 | BV90: =+IF($K90="Ongoing",AZ90,IF(RIGHT($K90,2)=RIGHT(BV$39,2),SUM($AX90:AZ90),0)+IF(RIGHT(BV$39,2)>RIGHT($K90,2),AZ90,0)) -> 1.02 | BW90: =+IF($K90="Ongoing",BA90,IF(RIGHT($K90,2)=RIGHT(BW$39,2),SUM($AX90:BA90),0)+IF(RIGHT(BW$39,2)>RIGHT($K90,2),BA90,0)) -> 1.02 | BX90: =+IF($K90="Ongoing",BB90,IF(RIGHT($K90,2)=RIGHT(BX$39,2),SUM($AX90:BB90),0)+IF(RIGHT(BX$39,2)>RIGHT($K90,2),BB90,0)) -> 1.02 | BY90: =+IF($K90="Ongoing",BC90,IF(RIGHT($K90,2)=RIGHT(BY$39,2),SUM($AX90:BC90),0)+IF(RIGHT(BY$39,2)>RIGHT($K90,2),BC90,0)) -> 0.883109773 | BZ90: =+IF($K90="Ongoing",BD90,IF(RIGHT($K90,2)=RIGHT(BZ$39,2),SUM($AX90:BD90),0)+IF(RIGHT(BZ$39,2)>RIGHT($K90,2),BD90,0)) -> 1.630248828 | CA90: =+IF($K90="Ongoing",BE90,IF(RIGHT($K90,2)=RIGHT(CA$39,2),SUM($AX90:BE90),0)+IF(RIGHT(CA$39,2)>RIGHT($K90,2),BE90,0)) -> 2.080731533 | CB90: =+IF($K90="Ongoing",BF90,IF(RIGHT($K90,2)=RIGHT(CB$39,2),SUM($AX90:BF90),0)+IF(RIGHT(CB$39,2)>RIGHT($K90,2),BF90,0)) -> 2.079058626 | CC90: =+IF($K90="Ongoing",BG90,IF(RIGHT($K90,2)=RIGHT(CC$39,2),SUM($AX90:BG90),0)+IF(RIGHT(CC$39,2)>RIGHT($K90,2),BG90,0)) -> 2.078433664 | CE90: =+Q90*KeyAssumptionsPriceControl_FO!AC$15 -> 0.5253 | CF90: =+R90*KeyAssumptionsPriceControl_FO!AD$15 -> 0.901765 | CG90: =+S90*KeyAssumptionsPriceControl_FO!AE$15 -> 1.11458154 | CH90: =+T90*KeyAssumptionsPriceControl_FO!AF$15 -> 1.148018986 | CI90: =+U90*KeyAssumptionsPriceControl_FO!AG$15 -> 1.182459556 | CJ90: =+V90*KeyAssumptionsPriceControl_FO!AH$15 -> 1.054479253 | CK90: =+W90*KeyAssumptionsPriceControl_FO!AI$15 -> 2.005000428 | CL90: =+X90*KeyAssumptionsPriceControl_FO!AJ$15 -> 2.635808454 | CM90: =+Y90*KeyAssumptionsPriceControl_FO!AK$15 -> 2.712699943 | CN90: =+Z90*KeyAssumptionsPriceControl_FO!AL$15 -> 2.793241045 | CP90: 0.00656625 | CQ90: 0.0244045625 | CR90: 0.04960889425 | CS90: 0.07789140083 | CT90: 0.1070223826 | CU90: 0.1349841177 | CV90: 0.1732276137 | CW90: 0.2312377247 | CX90: 0.2980940797 | CY90: 0.3669183421
AX91: 0 | AY91: 0 | AZ91: 0 | BA91: 0 | BB91: 0 | BC91: 0 | BD91: 0 | BE91: 0 | BF91: 0 | BG91: 0 | BI91: 0 | BJ91: 0 | BK91: 0 | BL91: 0 | BM91: 0 | BN91: 0 | BO91: 0 | BP91: 0 | BQ91: 0 | BR91: 0 | BT91: =+IF($K91="Ongoing",AX91,IF(RIGHT($K91,2)=RIGHT(BT$39,2),SUM($AX91:AX91),0)+IF(RIGHT(BT$39,2)>RIGHT($K91,2),AX91,0)) -> 0 | BU91: =+IF($K91="Ongoing",AY91,IF(RIGHT($K91,2)=RIGHT(BU$39,2),SUM($AX91:AY91),0)+IF(RIGHT(BU$39,2)>RIGHT($K91,2),AY91,0)) -> 0 | BV91: =+IF($K91="Ongoing",AZ91,IF(RIGHT($K91,2)=RIGHT(BV$39,2),SUM($AX91:AZ91),0)+IF(RIGHT(BV$39,2)>RIGHT($K91,2),AZ91,0)) -> 0 | BW91: =+IF($K91="Ongoing",BA91,IF(RIGHT($K91,2)=RIGHT(BW$39,2),SUM($AX91:BA91),0)+IF(RIGHT(BW$39,2)>RIGHT($K91,2),BA91,0)) -> 0 | BX91: =+IF($K91="Ongoing",BB91,IF(RIGHT($K91,2)=RIGHT(BX$39,2),SUM($AX91:BB91),0)+IF(RIGHT(BX$39,2)>RIGHT($K91,2),BB91,0)) -> 0 | BY91: =+IF($K91="Ongoing",BC91,IF(RIGHT($K91,2)=RIGHT(BY$39,2),SUM($AX91:BC91),0)+IF(RIGHT(BY$39,2)>RIGHT($K91,2),BC91,0)) -> 0 | BZ91: =+IF($K91="Ongoing",BD91,IF(RIGHT($K91,2)=RIGHT(BZ$39,2),SUM($AX91:BD91),0)+IF(RIGHT(BZ$39,2)>RIGHT($K91,2),BD91,0)) -> 0 | CA91: =+IF($K91="Ongoing",BE91,IF(RIGHT($K91,2)=RIGHT(CA$39,2),SUM($AX91:BE91),0)+IF(RIGHT(CA$39,2)>RIGHT($K91,2),BE91,0)) -> 0 | CB91: =+IF($K91="Ongoing",BF91,IF(RIGHT($K91,2)=RIGHT(CB$39,2),SUM($AX91:BF91),0)+IF(RIGHT(CB$39,2)>RIGHT($K91,2),BF91,0)) -> 0 | CC91: =+IF($K91="Ongoing",BG91,IF(RIGHT($K91,2)=RIGHT(CC$39,2),SUM($AX91:BG91),0)+IF(RIGHT(CC$39,2)>RIGHT($K91,2),BG91,0)) -> 0 | CE91: =+Q91*KeyAssumptionsPriceControl_FO!AC$15 -> 0 | CF91: =+R91*KeyAssumptionsPriceControl_FO!AD$15 -> 0 | CG91: =+S91*KeyAssumptionsPriceControl_FO!AE$15 -> 0 | CH91: =+T91*KeyAssumptionsPriceControl_FO!AF$15 -> 0 | CI91: =+U91*KeyAssumptionsPriceControl_FO!AG$15 -> 0 | CJ91: =+V91*KeyAssumptionsPriceControl_FO!AH$15 -> 0 | CK91: =+W91*KeyAssumptionsPriceControl_FO!AI$15 -> 0 | CL91: =+X91*KeyAssumptionsPriceControl_FO!AJ$15 -> 0 | CM91: =+Y91*KeyAssumptionsPriceControl_FO!AK$15 -> 0 | CN91: =+Z91*KeyAssumptionsPriceControl_FO!AL$15 -> 0 | CP91: 0 | CQ91: 0 | CR91: 0 | CS91: 0 | CT91: 0 | CU91: 0 | CV91: 0 | CW91: 0 | CX91: 0 | CY91: 0
C92: ABOVE this entry is our "direct" capital expenditure | AX92: 0 | AY92: 0 | AZ92: 0 | BA92: 0 | BB92: 0 | BC92: 0 | BD92: 0 | BE92: 0 | BF92: 0 | BG92: 0 | BI92: 0 | BJ92: 0 | BK92: 0 | BL92: 0 | BM92: 0 | BN92: 0 | BO92: 0 | BP92: 0 | BQ92: 0 | BR92: 0 | BT92: =+IF($K92="Ongoing",AX92,IF(RIGHT($K92,2)=RIGHT(BT$39,2),SUM($AX92:AX92),0)+IF(RIGHT(BT$39,2)>RIGHT($K92,2),AX92,0)) -> 0 | BU92: =+IF($K92="Ongoing",AY92,IF(RIGHT($K92,2)=RIGHT(BU$39,2),SUM($AX92:AY92),0)+IF(RIGHT(BU$39,2)>RIGHT($K92,2),AY92,0)) -> 0 | BV92: =+IF($K92="Ongoing",AZ92,IF(RIGHT($K92,2)=RIGHT(BV$39,2),SUM($AX92:AZ92),0)+IF(RIGHT(BV$39,2)>RIGHT($K92,2),AZ92,0)) -> 0 | BW92: =+IF($K92="Ongoing",BA92,IF(RIGHT($K92,2)=RIGHT(BW$39,2),SUM($AX92:BA92),0)+IF(RIGHT(BW$39,2)>RIGHT($K92,2),BA92,0)) -> 0 | BX92: =+IF($K92="Ongoing",BB92,IF(RIGHT($K92,2)=RIGHT(BX$39,2),SUM($AX92:BB92),0)+IF(RIGHT(BX$39,2)>RIGHT($K92,2),BB92,0)) -> 0 | BY92: =+IF($K92="Ongoing",BC92,IF(RIGHT($K92,2)=RIGHT(BY$39,2),SUM($AX92:BC92),0)+IF(RIGHT(BY$39,2)>RIGHT($K92,2),BC92,0)) -> 0 | BZ92: =+IF($K92="Ongoing",BD92,IF(RIGHT($K92,2)=RIGHT(BZ$39,2),SUM($AX92:BD92),0)+IF(RIGHT(BZ$39,2)>RIGHT($K92,2),BD92,0)) -> 0 | CA92: =+IF($K92="Ongoing",BE92,IF(RIGHT($K92,2)=RIGHT(CA$39,2),SUM($AX92:BE92),0)+IF(RIGHT(CA$39,2)>RIGHT($K92,2),BE92,0)) -> 0 | CB92: =+IF($K92="Ongoing",BF92,IF(RIGHT($K92,2)=RIGHT(CB$39,2),SUM($AX92:BF92),0)+IF(RIGHT(CB$39,2)>RIGHT($K92,2),BF92,0)) -> 0 | CC92: =+IF($K92="Ongoing",BG92,IF(RIGHT($K92,2)=RIGHT(CC$39,2),SUM($AX92:BG92),0)+IF(RIGHT(CC$39,2)>RIGHT($K92,2),BG92,0)) -> 0 | CE92: =+Q92*KeyAssumptionsPriceControl_FO!AC$15 -> 0 | CF92: =+R92*KeyAssumptionsPriceControl_FO!AD$15 -> 0 | CG92: =+S92*KeyAssumptionsPriceControl_FO!AE$15 -> 0 | CH92: =+T92*KeyAssumptionsPriceControl_FO!AF$15 -> 0 | CI92: =+U92*KeyAssumptionsPriceControl_FO!AG$15 -> 0 | CJ92: =+V92*KeyAssumptionsPriceControl_FO!AH$15 -> 0 | CK92: =+W92*KeyAssumptionsPriceControl_FO!AI$15 -> 0 | CL92: =+X92*KeyAssumptionsPriceControl_FO!AJ$15 -> 0 | CM92: =+Y92*KeyAssumptionsPriceControl_FO!AK$15 -> 0 | CN92: =+Z92*KeyAssumptionsPriceControl_FO!AL$15 -> 0 | CP92: 0 | CQ92: 0 | CR92: 0 | CS92: 0 | CT92: 0 | CU92: 0 | CV92: 0 | CW92: 0 | CX92: 0 | CY92: 0
C93: BELOW this entry is our capital expenditure adjustments. | AX93: 0 | AY93: 0 | AZ93: 0 | BA93: 0 | BB93: 0 | BC93: 0 | BD93: 0 | BE93: 0 | BF93: 0 | BG93: 0 | BI93: 0 | BJ93: 0 | BK93: 0 | BL93: 0 | BM93: 0 | BN93: 0 | BO93: 0 | BP93: 0 | BQ93: 0 | BR93: 0 | BT93: =+IF($K93="Ongoing",AX93,IF(RIGHT($K93,2)=RIGHT(BT$39,2),SUM($AX93:AX93),0)+IF(RIGHT(BT$39,2)>RIGHT($K93,2),AX93,0)) -> 0 | BU93: =+IF($K93="Ongoing",AY93,IF(RIGHT($K93,2)=RIGHT(BU$39,2),SUM($AX93:AY93),0)+IF(RIGHT(BU$39,2)>RIGHT($K93,2),AY93,0)) -> 0 | BV93: =+IF($K93="Ongoing",AZ93,IF(RIGHT($K93,2)=RIGHT(BV$39,2),SUM($AX93:AZ93),0)+IF(RIGHT(BV$39,2)>RIGHT($K93,2),AZ93,0)) -> 0 | BW93: =+IF($K93="Ongoing",BA93,IF(RIGHT($K93,2)=RIGHT(BW$39,2),SUM($AX93:BA93),0)+IF(RIGHT(BW$39,2)>RIGHT($K93,2),BA93,0)) -> 0 | BX93: =+IF($K93="Ongoing",BB93,IF(RIGHT($K93,2)=RIGHT(BX$39,2),SUM($AX93:BB93),0)+IF(RIGHT(BX$39,2)>RIGHT($K93,2),BB93,0)) -> 0 | BY93: =+IF($K93="Ongoing",BC93,IF(RIGHT($K93,2)=RIGHT(BY$39,2),SUM($AX93:BC93),0)+IF(RIGHT(BY$39,2)>RIGHT($K93,2),BC93,0)) -> 0 | BZ93: =+IF($K93="Ongoing",BD93,IF(RIGHT($K93,2)=RIGHT(BZ$39,2),SUM($AX93:BD93),0)+IF(RIGHT(BZ$39,2)>RIGHT($K93,2),BD93,0)) -> 0 | CA93: =+IF($K93="Ongoing",BE93,IF(RIGHT($K93,2)=RIGHT(CA$39,2),SUM($AX93:BE93),0)+IF(RIGHT(CA$39,2)>RIGHT($K93,2),BE93,0)) -> 0 | CB93: =+IF($K93="Ongoing",BF93,IF(RIGHT($K93,2)=RIGHT(CB$39,2),SUM($AX93:BF93),0)+IF(RIGHT(CB$39,2)>RIGHT($K93,2),BF93,0)) -> 0 | CC93: =+IF($K93="Ongoing",BG93,IF(RIGHT($K93,2)=RIGHT(CC$39,2),SUM($AX93:BG93),0)+IF(RIGHT(CC$39,2)>RIGHT($K93,2),BG93,0)) -> 0 | CE93: =+Q93*KeyAssumptionsPriceControl_FO!AC$15 -> 0 | CF93: =+R93*KeyAssumptionsPriceControl_FO!AD$15 -> 0 | CG93: =+S93*KeyAssumptionsPriceControl_FO!AE$15 -> 0 | CH93: =+T93*KeyAssumptionsPriceControl_FO!AF$15 -> 0 | CI93: =+U93*KeyAssumptionsPriceControl_FO!AG$15 -> 0 | CJ93: =+V93*KeyAssumptionsPriceControl_FO!AH$15 -> 0 | CK93: =+W93*KeyAssumptionsPriceControl_FO!AI$15 -> 0 | CL93: =+X93*KeyAssumptionsPriceControl_FO!AJ$15 -> 0 | CM93: =+Y93*KeyAssumptionsPriceControl_FO!AK$15 -> 0 | CN93: =+Z93*KeyAssumptionsPriceControl_FO!AL$15 -> 0 | CP93: 0 | CQ93: 0 | CR93: 0 | CS93: 0 | CT93: 0 | CU93: 0 | CV93: 0 | CW93: 0 | CX93: 0 | CY93: 0
AX94: 0 | AY94: 0 | AZ94: 0 | BA94: 0 | BB94: 0 | BC94: 0 | BD94: 0 | BE94: 0 | BF94: 0 | BG94: 0 | BI94: 0 | BJ94: 0 | BK94: 0 | BL94: 0 | BM94: 0 | BN94: 0 | BO94: 0 | BP94: 0 | BQ94: 0 | BR94: 0 | BT94: =+IF($K94="Ongoing",AX94,IF(RIGHT($K94,2)=RIGHT(BT$39,2),SUM($AX94:AX94),0)+IF(RIGHT(BT$39,2)>RIGHT($K94,2),AX94,0)) -> 0 | BU94: =+IF($K94="Ongoing",AY94,IF(RIGHT($K94,2)=RIGHT(BU$39,2),SUM($AX94:AY94),0)+IF(RIGHT(BU$39,2)>RIGHT($K94,2),AY94,0)) -> 0 | BV94: =+IF($K94="Ongoing",AZ94,IF(RIGHT($K94,2)=RIGHT(BV$39,2),SUM($AX94:AZ94),0)+IF(RIGHT(BV$39,2)>RIGHT($K94,2),AZ94,0)) -> 0 | BW94: =+IF($K94="Ongoing",BA94,IF(RIGHT($K94,2)=RIGHT(BW$39,2),SUM($AX94:BA94),0)+IF(RIGHT(BW$39,2)>RIGHT($K94,2),BA94,0)) -> 0 | BX94: =+IF($K94="Ongoing",BB94,IF(RIGHT($K94,2)=RIGHT(BX$39,2),SUM($AX94:BB94),0)+IF(RIGHT(BX$39,2)>RIGHT($K94,2),BB94,0)) -> 0 | BY94: =+IF($K94="Ongoing",BC94,IF(RIGHT($K94,2)=RIGHT(BY$39,2),SUM($AX94:BC94),0)+IF(RIGHT(BY$39,2)>RIGHT($K94,2),BC94,0)) -> 0 | BZ94: =+IF($K94="Ongoing",BD94,IF(RIGHT($K94,2)=RIGHT(BZ$39,2),SUM($AX94:BD94),0)+IF(RIGHT(BZ$39,2)>RIGHT($K94,2),BD94,0)) -> 0 | CA94: =+IF($K94="Ongoing",BE94,IF(RIGHT($K94,2)=RIGHT(CA$39,2),SUM($AX94:BE94),0)+IF(RIGHT(CA$39,2)>RIGHT($K94,2),BE94,0)) -> 0 | CB94: =+IF($K94="Ongoing",BF94,IF(RIGHT($K94,2)=RIGHT(CB$39,2),SUM($AX94:BF94),0)+IF(RIGHT(CB$39,2)>RIGHT($K94,2),BF94,0)) -> 0 | CC94: =+IF($K94="Ongoing",BG94,IF(RIGHT($K94,2)=RIGHT(CC$39,2),SUM($AX94:BG94),0)+IF(RIGHT(CC$39,2)>RIGHT($K94,2),BG94,0)) -> 0 | CE94: =+Q94*KeyAssumptionsPriceControl_FO!AC$15 -> 0 | CF94: =+R94*KeyAssumptionsPriceControl_FO!AD$15 -> 0 | CG94: =+S94*KeyAssumptionsPriceControl_FO!AE$15 -> 0 | CH94: =+T94*KeyAssumptionsPriceControl_FO!AF$15 -> 0 | CI94: =+U94*KeyAssumptionsPriceControl_FO!AG$15 -> 0 | CJ94: =+V94*KeyAssumptionsPriceControl_FO!AH$15 -> 0 | CK94: =+W94*KeyAssumptionsPriceControl_FO!AI$15 -> 0 | CL94: =+X94*KeyAssumptionsPriceControl_FO!AJ$15 -> 0 | CM94: =+Y94*KeyAssumptionsPriceControl_FO!AK$15 -> 0 | CN94: =+Z94*KeyAssumptionsPriceControl_FO!AL$15 -> 0 | CP94: 0 | CQ94: 0 | CR94: 0 | CS94: 0 | CT94: 0 | CU94: 0 | CV94: 0 | CW94: 0 | CX94: 0 | CY94: 0
C95: BOOTs | E95: Water | F95: Improvements / Compliance | G95: Treatment | H95: Significant projects | J95: Straight line | K95: 2026-27 | L95: 25 | M95: 40 | Q95: 6.51 | R95: 6.35 | S95: 6.2 | T95: 5.54 | U95: 0 | AX95: 6.51 | AY95: 6.35 | AZ95: 6.2 | BA95: 5.54 | BB95: 0 | BC95: 0 | BD95: 0 | BE95: 0 | BF95: 0 | BG95: 0 | BI95: 0 | BJ95: 0 | BK95: 0 | BL95: 0.492 | BM95: 0.984 | BN95: 0.984 | BO95: 0.984 | BP95: 0.984 | BQ95: 0.984 | BR95: 0.984 | BT95: =+IF($K95="Ongoing",AX95,IF(RIGHT($K95,2)=RIGHT(BT$39,2),SUM($AX95:AX95),0)+IF(RIGHT(BT$39,2)>RIGHT($K95,2),AX95,0)) -> 0 | BU95: =+IF($K95="Ongoing",AY95,IF(RIGHT($K95,2)=RIGHT(BU$39,2),SUM($AX95:AY95),0)+IF(RIGHT(BU$39,2)>RIGHT($K95,2),AY95,0)) -> 0 | BV95: =+IF($K95="Ongoing",AZ95,IF(RIGHT($K95,2)=RIGHT(BV$39,2),SUM($AX95:AZ95),0)+IF(RIGHT(BV$39,2)>RIGHT($K95,2),AZ95,0)) -> 0 | BW95: =+IF($K95="Ongoing",BA95,IF(RIGHT($K95,2)=RIGHT(BW$39,2),SUM($AX95:BA95),0)+IF(RIGHT(BW$39,2)>RIGHT($K95,2),BA95,0)) -> 24.6 | BX95: =+IF($K95="Ongoing",BB95,IF(RIGHT($K95,2)=RIGHT(BX$39,2),SUM($AX95:BB95),0)+IF(RIGHT(BX$39,2)>RIGHT($K95,2),BB95,0)) -> 0 | BY95: =+IF($K95="Ongoing",BC95,IF(RIGHT($K95,2)=RIGHT(BY$39,2),SUM($AX95:BC95),0)+IF(RIGHT(BY$39,2)>RIGHT($K95,2),BC95,0)) -> 0 | BZ95: =+IF($K95="Ongoing",BD95,IF(RIGHT($K95,2)=RIGHT(BZ$39,2),SUM($AX95:BD95),0)+IF(RIGHT(BZ$39,2)>RIGHT($K95,2),BD95,0)) -> 0 | CA95: =+IF($K95="Ongoing",BE95,IF(RIGHT($K95,2)=RIGHT(CA$39,2),SUM($AX95:BE95),0)+IF(RIGHT(CA$39,2)>RIGHT($K95,2),BE95,0)) -> 0 | CB95: =+IF($K95="Ongoing",BF95,IF(RIGHT($K95,2)=RIGHT(CB$39,2),SUM($AX95:BF95),0)+IF(RIGHT(CB$39,2)>RIGHT($K95,2),BF95,0)) -> 0 | CC95: =+IF($K95="Ongoing",BG95,IF(RIGHT($K95,2)=RIGHT(CC$39,2),SUM($AX95:BG95),0)+IF(RIGHT(CC$39,2)>RIGHT($K95,2),BG95,0)) -> 0 | CE95: =+Q95*KeyAssumptionsPriceControl_FO!AC$15 -> 6.7053 | CF95: =+R95*KeyAssumptionsPriceControl_FO!AD$15 -> 6.736715 | CG95: =+S95*KeyAssumptionsPriceControl_FO!AE$15 -> 6.7749074 | CH95: =+T95*KeyAssumptionsPriceControl_FO!AF$15 -> 6.235318807 | CI95: =+U95*KeyAssumptionsPriceControl_FO!AG$15 -> 0 | CJ95: =+V95*KeyAssumptionsPriceControl_FO!AH$15 -> 0 | CK95: =+W95*KeyAssumptionsPriceControl_FO!AI$15 -> 0 | CL95: =+X95*KeyAssumptionsPriceControl_FO!AJ$15 -> 0 | CM95: =+Y95*KeyAssumptionsPriceControl_FO!AK$15 -> 0 | CN95: =+Z95*KeyAssumptionsPriceControl_FO!AL$15 -> 0 | CP95: 0.08381625 | CQ95: 0.2518414375 | CR95: 0.4207367175 | CS95: 0.5833645451 | CT95: 0.6613060302 | CU95: 0.6613060302 | CV95: 0.6613060302 | CW95: 0.6613060302 | CX95: 0.6613060302 | CY95: 0.6613060302
C96: BOOTs | E96: Sewerage | F96: Improvements / Compliance | G96: Treatment | H96: Significant projects | J96: Straight line | K96: 2026-27 | L96: 25 | M96: 40 | Q96: 4.23 | R96: 4.25 | S96: 4.19 | T96: 4.09 | U96: 3.99 | V96: 0 | W96: 0 | X96: 0 | Y96: 0 | Z96: 0 | AX96: 4.23 | AY96: 4.25 | AZ96: 4.19 | BA96: 4.09 | BB96: 3.99 | BC96: 0 | BD96: 0 | BE96: 0 | BF96: 0 | BG96: 0 | BI96: 0 | BJ96: 0 | BK96: 0 | BL96: 0.3352 | BM96: 0.7502 | BN96: 0.83 | BO96: 0.83 | BP96: 0.83 | BQ96: 0.83 | BR96: 0.83 | BT96: =+IF($K96="Ongoing",AX96,IF(RIGHT($K96,2)=RIGHT(BT$39,2),SUM($AX96:AX96),0)+IF(RIGHT(BT$39,2)>RIGHT($K96,2),AX96,0)) -> 0 | BU96: =+IF($K96="Ongoing",AY96,IF(RIGHT($K96,2)=RIGHT(BU$39,2),SUM($AX96:AY96),0)+IF(RIGHT(BU$39,2)>RIGHT($K96,2),AY96,0)) -> 0 | BV96: =+IF($K96="Ongoing",AZ96,IF(RIGHT($K96,2)=RIGHT(BV$39,2),SUM($AX96:AZ96),0)+IF(RIGHT(BV$39,2)>RIGHT($K96,2),AZ96,0)) -> 0 | BW96: =+IF($K96="Ongoing",BA96,IF(RIGHT($K96,2)=RIGHT(BW$39,2),SUM($AX96:BA96),0)+IF(RIGHT(BW$39,2)>RIGHT($K96,2),BA96,0)) -> 16.76 | BX96: =+IF($K96="Ongoing",BB96,IF(RIGHT($K96,2)=RIGHT(BX$39,2),SUM($AX96:BB96),0)+IF(RIGHT(BX$39,2)>RIGHT($K96,2),BB96,0)) -> 3.99 | BY96: =+IF($K96="Ongoing",BC96,IF(RIGHT($K96,2)=RIGHT(BY$39,2),SUM($AX96:BC96),0)+IF(RIGHT(BY$39,2)>RIGHT($K96,2),BC96,0)) -> 0 | BZ96: =+IF($K96="Ongoing",BD96,IF(RIGHT($K96,2)=RIGHT(BZ$39,2),SUM($AX96:BD96),0)+IF(RIGHT(BZ$39,2)>RIGHT($K96,2),BD96,0)) -> 0 | CA96: =+IF($K96="Ongoing",BE96,IF(RIGHT($K96,2)=RIGHT(CA$39,2),SUM($AX96:BE96),0)+IF(RIGHT(CA$39,2)>RIGHT($K96,2),BE96,0)) -> 0 | CB96: =+IF($K96="Ongoing",BF96,IF(RIGHT($K96,2)=RIGHT(CB$39,2),SUM($AX96:BF96),0)+IF(RIGHT(CB$39,2)>RIGHT($K96,2),BF96,0)) -> 0 | CC96: =+IF($K96="Ongoing",BG96,IF(RIGHT($K96,2)=RIGHT(CC$39,2),SUM($AX96:BG96),0)+IF(RIGHT(CC$39,2)>RIGHT($K96,2),BG96,0)) -> 0 | CE96: =+Q96*KeyAssumptionsPriceControl_FO!AC$15 -> 4.3569 | CF96: =+R96*KeyAssumptionsPriceControl_FO!AD$15 -> 4.508825 | CG96: =+S96*KeyAssumptionsPriceControl_FO!AE$15 -> 4.57852613 | CH96: =+T96*KeyAssumptionsPriceControl_FO!AF$15 -> 4.603331033 | CI96: =+U96*KeyAssumptionsPriceControl_FO!AG$15 -> 4.625503556 | CJ96: =+V96*KeyAssumptionsPriceControl_FO!AH$15 -> 0 | CK96: =+W96*KeyAssumptionsPriceControl_FO!AI$15 -> 0 | CL96: =+X96*KeyAssumptionsPriceControl_FO!AJ$15 -> 0 | CM96: =+Y96*KeyAssumptionsPriceControl_FO!AK$15 -> 0 | CN96: =+Z96*KeyAssumptionsPriceControl_FO!AL$15 -> 0 | CP96: 0.05446125 | CQ96: 0.1652828125 | CR96: 0.2788747016 | CS96: 0.3936479162 | CT96: 0.5090083485 | CU96: 0.566827143 | CV96: 0.566827143 | CW96: 0.566827143 | CX96: 0.566827143 | CY96: 0.566827143
C97: Biosolids | E97: Sewerage | F97: Improvements / Compliance | G97: Treatment | H97: Other Capital expenditure | J97: Straight line | K97: Ongoing | L97: 5 | M97: 40 | Q97: 2.76 | R97: 2.05 | S97: 2.16 | T97: 2.46 | U97: 2.16 | V97: 2.318 | W97: 2.2296 | X97: 2.26552 | Y97: 2.286624 | Z97: 2.2519488 | AX97: 2.76 | AY97: 2.05 | AZ97: 2.16 | BA97: 2.46 | BB97: 2.16 | BC97: 2.318 | BD97: 2.2296 | BE97: 2.26552 | BF97: 2.286624 | BG97: 2.2519488 | BI97: 0.276 | BJ97: 0.757 | BK97: 1.178 | BL97: 1.64 | BM97: 2.102 | BN97: 2.2738 | BO97: 2.24756 | BP97: 2.276072 | BQ97: 2.2692864 | BR97: 2.26114368 | BT97: =+IF($K97="Ongoing",AX97,IF(RIGHT($K97,2)=RIGHT(BT$39,2),SUM($AX97:AX97),0)+IF(RIGHT(BT$39,2)>RIGHT($K97,2),AX97,0)) -> 2.76 | BU97: =+IF($K97="Ongoing",AY97,IF(RIGHT($K97,2)=RIGHT(BU$39,2),SUM($AX97:AY97),0)+IF(RIGHT(BU$39,2)>RIGHT($K97,2),AY97,0)) -> 2.05 | BV97: =+IF($K97="Ongoing",AZ97,IF(RIGHT($K97,2)=RIGHT(BV$39,2),SUM($AX97:AZ97),0)+IF(RIGHT(BV$39,2)>RIGHT($K97,2),AZ97,0)) -> 2.16 | BW97: =+IF($K97="Ongoing",BA97,IF(RIGHT($K97,2)=RIGHT(BW$39,2),SUM($AX97:BA97),0)+IF(RIGHT(BW$39,2)>RIGHT($K97,2),BA97,0)) -> 2.46 | BX97: =+IF($K97="Ongoing",BB97,IF(RIGHT($K97,2)=RIGHT(BX$39,2),SUM($AX97:BB97),0)+IF(RIGHT(BX$39,2)>RIGHT($K97,2),BB97,0)) -> 2.16 | BY97: =+IF($K97="Ongoing",BC97,IF(RIGHT($K97,2)=RIGHT(BY$39,2),SUM($AX97:BC97),0)+IF(RIGHT(BY$39,2)>RIGHT($K97,2),BC97,0)) -> 2.318 | BZ97: =+IF($K97="Ongoing",BD97,IF(RIGHT($K97,2)=RIGHT(BZ$39,2),SUM($AX97:BD97),0)+IF(RIGHT(BZ$39,2)>RIGHT($K97,2),BD97,0)) -> 2.2296 | CA97: =+IF($K97="Ongoing",BE97,IF(RIGHT($K97,2)=RIGHT(CA$39,2),SUM($AX97:BE97),0)+IF(RIGHT(CA$39,2)>RIGHT($K97,2),BE97,0)) -> 2.26552 | CB97: =+IF($K97="Ongoing",BF97,IF(RIGHT($K97,2)=RIGHT(CB$39,2),SUM($AX97:BF97),0)+IF(RIGHT(CB$39,2)>RIGHT($K97,2),BF97,0)) -> 2.286624 | CC97: =+IF($K97="Ongoing",BG97,IF(RIGHT($K97,2)=RIGHT(CC$39,2),SUM($AX97:BG97),0)+IF(RIGHT(CC$39,2)>RIGHT($K97,2),BG97,0)) -> 2.2519488 | CE97: =+Q97*KeyAssumptionsPriceControl_FO!AC$15 -> 2.8428 | CF97: =+R97*KeyAssumptionsPriceControl_FO!AD$15 -> 2.174845 | CG97: =+S97*KeyAssumptionsPriceControl_FO!AE$15 -> 2.36029032 | CH97: =+T97*KeyAssumptionsPriceControl_FO!AF$15 -> 2.768751673 | CI97: =+U97*KeyAssumptionsPriceControl_FO!AG$15 -> 2.504032 | CJ97: =+V97*KeyAssumptionsPriceControl_FO!AH$15 -> 2.767813223 | CK97: =+W97*KeyAssumptionsPriceControl_FO!AI$15 -> 2.74212677 | CL97: =+X97*KeyAssumptionsPriceControl_FO!AJ$15 -> 2.869892955 | CM97: =+Y97*KeyAssumptionsPriceControl_FO!AK$15 -> 2.983525677 | CN97: =+Z97*KeyAssumptionsPriceControl_FO!AL$15 -> 3.026430878 | CP97: 0.035535 | CQ97: 0.0982555625 | CR97: 0.154944754 | CS97: 0.2190577789 | CT97: 0.2849675748 | CU97: 0.3508656401 | CV97: 0.41973989 | CW97: 0.4898901366 | CX97: 0.5630578695 | CY97: 0.6381823264
C98: NCCs | E98: Water | F98: Growth | G98: Pipelines/network | H98: Other Capital expenditure | J98: Straight line | K98: Ongoing | L98: 0 | M98: 0 | AM98: 3.163349988 | AN98: 3.545829712 | AO98: 3.97317188 | AP98: 4.450524185 | AQ98: 4.989903706 | AR98: 5.081086571 | AS98: 5.175413673 | AT98: 5.272885012 | AU98: 5.370356351 | AV98: 5.470971927 | AX98: -3.163349988 | AY98: -3.545829712 | AZ98: -3.97317188 | BA98: -4.450524185 | BB98: -4.989903706 | BC98: -5.081086571 | BD98: -5.175413673 | BE98: -5.272885012 | BF98: -5.370356351 | BG98: -5.470971927 | BI98: 0 | BJ98: 0 | BK98: 0 | BL98: 0 | BM98: 0 | BN98: 0 | BO98: 0 | BP98: 0 | BQ98: 0 | BR98: 0 | BT98: =+IF($K98="Ongoing",AX98,IF(RIGHT($K98,2)=RIGHT(BT$39,2),SUM($AX98:AX98),0)+IF(RIGHT(BT$39,2)>RIGHT($K98,2),AX98,0)) -> -3.163349988 | BU98: =+IF($K98="Ongoing",AY98,IF(RIGHT($K98,2)=RIGHT(BU$39,2),SUM($AX98:AY98),0)+IF(RIGHT(BU$39,2)>RIGHT($K98,2),AY98,0)) -> -3.545829712 | BV98: =+IF($K98="Ongoing",AZ98,IF(RIGHT($K98,2)=RIGHT(BV$39,2),SUM($AX98:AZ98),0)+IF(RIGHT(BV$39,2)>RIGHT($K98,2),AZ98,0)) -> -3.97317188 | BW98: =+IF($K98="Ongoing",BA98,IF(RIGHT($K98,2)=RIGHT(BW$39,2),SUM($AX98:BA98),0)+IF(RIGHT(BW$39,2)>RIGHT($K98,2),BA98,0)) -> -4.450524185 | BX98: =+IF($K98="Ongoing",BB98,IF(RIGHT($K98,2)=RIGHT(BX$39,2),SUM($AX98:BB98),0)+IF(RIGHT(BX$39,2)>RIGHT($K98,2),BB98,0)) -> -4.989903706 | BY98: =+IF($K98="Ongoing",BC98,IF(RIGHT($K98,2)=RIGHT(BY$39,2),SUM($AX98:BC98),0)+IF(RIGHT(BY$39,2)>RIGHT($K98,2),BC98,0)) -> -5.081086571 | BZ98: =+IF($K98="Ongoing",BD98,IF(RIGHT($K98,2)=RIGHT(BZ$39,2),SUM($AX98:BD98),0)+IF(RIGHT(BZ$39,2)>RIGHT($K98,2),BD98,0)) -> -5.175413673 | CA98: =+IF($K98="Ongoing",BE98,IF(RIGHT($K98,2)=RIGHT(CA$39,2),SUM($AX98:BE98),0)+IF(RIGHT(CA$39,2)>RIGHT($K98,2),BE98,0)) -> -5.272885012 | CB98: =+IF($K98="Ongoing",BF98,IF(RIGHT($K98,2)=RIGHT(CB$39,2),SUM($AX98:BF98),0)+IF(RIGHT(CB$39,2)>RIGHT($K98,2),BF98,0)) -> -5.370356351 | CC98: =+IF($K98="Ongoing",BG98,IF(RIGHT($K98,2)=RIGHT(CC$39,2),SUM($AX98:BG98),0)+IF(RIGHT(CC$39,2)>RIGHT($K98,2),BG98,0)) -> -5.470971927 | CE98: =+Q98*KeyAssumptionsPriceControl_FO!AC$15 -> 0 | CF98: =+R98*KeyAssumptionsPriceControl_FO!AD$15 -> 0 | CG98: =+S98*KeyAssumptionsPriceControl_FO!AE$15 -> 0 | CH98: =+T98*KeyAssumptionsPriceControl_FO!AF$15 -> 0 | CI98: =+U98*KeyAssumptionsPriceControl_FO!AG$15 -> 0 | CJ98: =+V98*KeyAssumptionsPriceControl_FO!AH$15 -> 0 | CK98: =+W98*KeyAssumptionsPriceControl_FO!AI$15 -> 0 | CL98: =+X98*KeyAssumptionsPriceControl_FO!AJ$15 -> 0 | CM98: =+Y98*KeyAssumptionsPriceControl_FO!AK$15 -> 0 | CN98: =+Z98*KeyAssumptionsPriceControl_FO!AL$15 -> 0 | CP98: 0 | CQ98: 0 | CR98: 0 | CS98: 0 | CT98: 0 | CU98: 0 | CV98: 0 | CW98: 0 | CX98: 0 | CY98: 0
C99: NCCs | E99: Sewerage | F99: Growth | G99: Pipelines/network | H99: Other Capital expenditure | J99: Straight line | K99: Ongoing | L99: 0 | M99: 0 | AM99: 2.308104872 | AN99: 3.010326873 | AO99: 3.872808362 | AP99: 4.927708406 | AQ99: 6.231181267 | AR99: 6.359049819 | AS99: 6.486933001 | AT99: 6.618684285 | AU99: 6.754303981 | AV99: 6.893792402 | AX99: -2.308104872 | AY99: -3.010326873 | AZ99: -3.872808362 | BA99: -4.927708406 | BB99: -6.231181267 | BC99: -6.359049819 | BD99: -6.486933001 | BE99: -6.618684285 | BF99: -6.754303981 | BG99: -6.893792402 | BI99: 0 | BJ99: 0 | BK99: 0 | BL99: 0 | BM99: 0 | BN99: 0 | BO99: 0 | BP99: 0 | BQ99: 0 | BR99: 0 | BT99: =+IF($K99="Ongoing",AX99,IF(RIGHT($K99,2)=RIGHT(BT$39,2),SUM($AX99:AX99),0)+IF(RIGHT(BT$39,2)>RIGHT($K99,2),AX99,0)) -> -2.308104872 | BU99: =+IF($K99="Ongoing",AY99,IF(RIGHT($K99,2)=RIGHT(BU$39,2),SUM($AX99:AY99),0)+IF(RIGHT(BU$39,2)>RIGHT($K99,2),AY99,0)) -> -3.010326873 | BV99: =+IF($K99="Ongoing",AZ99,IF(RIGHT($K99,2)=RIGHT(BV$39,2),SUM($AX99:AZ99),0)+IF(RIGHT(BV$39,2)>RIGHT($K99,2),AZ99,0)) -> -3.872808362 | BW99: =+IF($K99="Ongoing",BA99,IF(RIGHT($K99,2)=RIGHT(BW$39,2),SUM($AX99:BA99),0)+IF(RIGHT(BW$39,2)>RIGHT($K99,2),BA99,0)) -> -4.927708406 | BX99: =+IF($K99="Ongoing",BB99,IF(RIGHT($K99,2)=RIGHT(BX$39,2),SUM($AX99:BB99),0)+IF(RIGHT(BX$39,2)>RIGHT($K99,2),BB99,0)) -> -6.231181267 | BY99: =+IF($K99="Ongoing",BC99,IF(RIGHT($K99,2)=RIGHT(BY$39,2),SUM($AX99:BC99),0)+IF(RIGHT(BY$39,2)>RIGHT($K99,2),BC99,0)) -> -6.359049819 | BZ99: =+IF($K99="Ongoing",BD99,IF(RIGHT($K99,2)=RIGHT(BZ$39,2),SUM($AX99:BD99),0)+IF(RIGHT(BZ$39,2)>RIGHT($K99,2),BD99,0)) -> -6.486933001 | CA99: =+IF($K99="Ongoing",BE99,IF(RIGHT($K99,2)=RIGHT(CA$39,2),SUM($AX99:BE99),0)+IF(RIGHT(CA$39,2)>RIGHT($K99,2),BE99,0)) -> -6.618684285 | CB99: =+IF($K99="Ongoing",BF99,IF(RIGHT($K99,2)=RIGHT(CB$39,2),SUM($AX99:BF99),0)+IF(RIGHT(CB$39,2)>RIGHT($K99,2),BF99,0)) -> -6.754303981 | CC99: =+IF($K99="Ongoing",BG99,IF(RIGHT($K99,2)=RIGHT(CC$39,2),SUM($AX99:BG99),0)+IF(RIGHT(CC$39,2)>RIGHT($K99,2),BG99,0)) -> -6.893792402 | CE99: =+Q99*KeyAssumptionsPriceControl_FO!AC$15 -> 0 | CF99: =+R99*KeyAssumptionsPriceControl_FO!AD$15 -> 0 | CG99: =+S99*KeyAssumptionsPriceControl_FO!AE$15 -> 0 | CH99: =+T99*KeyAssumptionsPriceControl_FO!AF$15 -> 0 | CI99: =+U99*KeyAssumptionsPriceControl_FO!AG$15 -> 0 | CJ99: =+V99*KeyAssumptionsPriceControl_FO!AH$15 -> 0 | CK99: =+W99*KeyAssumptionsPriceControl_FO!AI$15 -> 0 | CL99: =+X99*KeyAssumptionsPriceControl_FO!AJ$15 -> 0 | CM99: =+Y99*KeyAssumptionsPriceControl_FO!AK$15 -> 0 | CN99: =+Z99*KeyAssumptionsPriceControl_FO!AL$15 -> 0 | CP99: 0 | CQ99: 0 | CR99: 0 | CS99: 0 | CT99: 0 | CU99: 0 | CV99: 0 | CW99: 0 | CX99: 0 | CY99: 0
